Workbook

Sheet Design Converter
A1: LM5177 DC/DC Controller Design Tool
A3: About | C3: xx | F3: = Input Box | J3: http://www.ti.com/product/lm5177 | N3: TERMS OF USE
J4: =CONCATENATE("Version: ",Licenses!B5) -> Version: 1.1.1
A5: Step 1: Operating Specifications
D6: Input Voltage - Min, VIN(min) | E6: 23 | F6: V
D7: Input Voltage - Nom, VIN(nom) | E7: 24 | F7: V
D8: Input Voltage - Max, VIN(max) | E8: 25 | F8: V
D9: Output Voltage, VOUT | E9: 6 | F9: V
D10: Full Load Output Current, IOUT(max) | E10: =MIN(6,60/E9) -> 6 | F10: A
D11: Switching Frequency | E11: 398 | F11: kHz
D12: Frequency Set Resistor, RT | E12: =IF('Standard Value Calculator'!O4/1000>288, "N/A",'Standard Value Calculator'!O4/1000) -> 75 | F12: kΩ
A14: Step 2: Filter Inductor
D15: Recommended Filter Inductance | E15: =Lopt_Limit*1000000 -> 0.6030150754 | F15: µH
D16: Inductance, LF | E16: 3.3 | F16: µH
D17: Inductor DCR | E17: 6 | F17: mΩ
D18: Pk-to-Pk Ripple Current at VIN(min), DIL1 | E18: ='Variable Management'!B87 -> 3.406777396 | F18: Apk-pk
D19: Pk-to-Pk Ripple Current at VIN(nom), DIL2 | E19: ='Variable Management'!B88 -> 3.457027212 | F19: Apk-pk
D20: Pk-to-Pk Ripple Current at VIN(max), DIL3 | E20: ='Variable Management'!B89 -> 3.503260899 | F20: Apk-pk
D21: DIL as a % at VIN(min) | E21: ='Variable Management'!B99*100 -> 56.77962326 | F21: %
D22: DIL as a % at VIN(nom) | E22: ='Variable Management'!B100*100 -> 57.6171202 | F22: %
D23: DIL as a % at VIN(max) | E23: ='Variable Management'!B101*100 -> 58.38768165 | F23: %
D24: Recommended RDIFF for Current Sense Filter | E24: =R_CS -> 10 | F24: Ω
D25: Recommended CDIFF for Current Sense Filter | E25: =C_CS_ideal*1000000000000 -> 180 | F25: pF
A27: Step 3: OCP, Sense Resistors, Slope Comp
D28: Peak Current Limit Margin | E28: 20 | F28: %
D29: Recommended Sense Resistance | E29: =Rs_ideal*1000 -> 8.160074256 | F29: mΩ
D30: Sense Resistance, RS | E30: 4 | F30: mΩ
D31: Peak Inductor Over Current Limit, ILPK,Limit | E31: ='Variable Management'!B159 -> 14.625 | F31: A
D32: Max Peak Inductor Current, ILPk,Max | E32: =Ipeak_inductor_max -> 8.067419923 | F32: A
D33: Power Loss in Rs at over current limit | E33: ='Variable Management'!B162 -> 0.205335 | F33: W
D34: Recommended SLOPE Resistor | E34: ='Variable Management'!B165/1000 -> 41.2 | F34: kΩ
D35: SLOPE Resistor, RSLOPE | E35: 41 | F35: kΩ
D36: VIN(min) | E36: ='Variable Management'!B151 -> 10.7966113 | F36: A
C37: IOUT(typ) at OCP Inception: | D37: VIN(nom) | E37: ='Variable Management'!B152 -> 10.77148639 | F37: A
D38: VIN(max) | E38: ='Variable Management'!B153 -> 10.74836955 | F38: A
A40: Step 4: Output Capacitor
D41: Output Voltage Ripple Spec | E41: 155 | F41: mVpk-pk
D42: Minimum Output Capacitance | E42: ='Variable Management'!B197 -> 6.903017903 | F42: µF
D43: Output Capacitance, COUT | E43: 100 | F43: µF
D44: Maximum Permitted ESR | E44: ='Variable Management'!B201 -> 45.38901158 | F44: mΩ
D45: Output Capacitor ESR | E45: 50 | F45: mΩ
D46: Resulting Output Voltage Ripple (max) | E46: =Vripple2*1000 -> 175.5082671 | F46: mVpk-pk
D47: Output Capacitor RMS Current (max) | E47: ='Variable Management'!B192 -> 1.011304311 | F47: A (rms)
A49: Step 5: Input Capacitor
D50: Input Voltage Ripple Spec | E50: 180 | F50: mVpk-pk
D51: Minimum Input Capacitance | E51: ='Variable Management'!B217 -> 20.93802345 | F51: µF
D52: Input Capacitance, CIN | E52: 80 | F52: µF
D53: Maximum Permitted ESR | E53: ='Variable Management'!B222 -> 17.14341881 | F53: mΩ
D54: Input Capacitor ESR | E54: 10 | F54: mΩ
D55: Resulting Input Voltage Ripple (max) | E55: =Vinripple2*1000 -> 124.6268573 | F55: mVpk-pk
D56: Input Capacitor RMS Current (max) | E56: ='Variable Management'!B210 -> 2.679685226 | F56: A (rms)
A58: Step 6: Soft-start, UVLO, CFG
D59: recommended Soft-Start Time, tSS for ISCP(MIN) | E59: =E43*0.000001*E9/(E10)*1000 -> 0.1 | F59: ms | M59: VIN(nom) | N59: =VIN_nom&"V" -> 24V
D60: Soft-Start Time, tSS | E60: 10 | F60: ms
D61: Soft-Start Capacitance, CSS | E61: =Css_u*1000000000 -> 100 | F61: nF
D63: Configuration Setting | E63: =CFG -> 3
D64: Configuration Resistor on CFG: RCFG | E64: =INDEX('CFG Setting'!B4:B19,CFG,0) -> 1.15 | F64: kΩ
D65: Required Input Voltage UVLO On | E65: 4.4 | F65: V
D66: Input Voltage UVLO Off | E66: 4.025 | F66: V
D67: Upper UVLO Resistor, RUV1 | E67: =Ruvlo1 -> 75 | F67: kΩ
D68: Lower UVLO Resistor, RUV2 | E68: ='Variable Management'!E242 -> 29.4 | F68: kΩ
D69: Current Monitor/Limiter
D70: =CHOOSE(IMONLIM_select+1,"","Maximum Current to Monitor","Average Current Limit","Average Current Limit") ->  | E70: 5 | F70: A
D71: =CHOOSE(IMONLIM_select+1,"","Maximum Voltage at IMONOUT","", "") ->  | E71: =CHOOSE(IMONLIM_select+1,"","1.5","5", "0") ->  | F71: V
D72: Current Sense Shunt Resistance, RCS(out/in) | E72: =Rshunt -> 10 | F72: mΩ
D73: =CHOOSE(IMONLIM_select+1,"","IMONOUT Resistance, RIMON","SYNC pin during startup", "SYNC pin during startup") ->  | E73: =CHOOSE(IMONLIM_select+1,"",'Variable Management'!B274/1000,"High", "Low") ->  | F73: kΩ
A77: Step 7: Compensation Design
D78: Load Pole Frequency | E78: =Fp_dominant -> 1591.549431 | F78: Hz
D79: COUT ESR Zero Frequency | E79: =Fesr/1000 -> 31.83098862 | F79: kHz
D80: Boost RHP Zero Frequency @ VIN(MIN) | E80: =IF(E6<E9,Frhp_Vinmin/1000,"---") -> --- | F80: kHz
D81: Boost RHP Zero Frequency @ VIN(NOM) | E81: =IF(E7<E9,Frhp/1000,"---") -> --- | F81: kHz
D82: Suggested Crossover Frequency | E82: =MIN(Fsw*0.05,E80/4,IF(E81<>"---",E81/4,E80/4)) ->  | F82: kHz
D83: Desired Crossover Frequency | E83: 50 | F83: =" kHz " -> kHz
D84: Error Amp Pole Frequency | E84: =Fp1_u -> 2.836379796 | F84: Hz
D85: Upper Feedback Resistor, RFBT | E85: 143 | F85: kΩ
D86: Lower Feedback Resistor, RFBB | E86: =IF(Vout=Vref,"OPEN",Rfb2_u/1000) -> 28.7 | F86: =IF(Vout=Vref,"","kΩ") -> kΩ
A88: Step 7.1: Compensation Components | J88: Step 7.2: Current Limiter Compensation Design
B89: Calculated / | C89: Std Values | E89: Std Values | G89: Actual P/Z Frequencies | K89: Calculated / | L89: Std Values | M89: =" Selected" -> Selected
A90: RCOMP | B90: =Rcea1/1000 -> 12.56637061 | C90: ='Standard Value Calculator'!O27 -> 12.7 | E90: 20 | F90: kΩ | G90: =Fp1_u -> 2.836379796 | H90: Hz (FPEA) | J90: CIMON | K90: =C_IL_recommend*1000000000 ->  | L90: ='Variable Management'!F292*1000000000 ->  | M90: 2.2 | N90: nF
A91: CCOMP | B91: =Cc1ea*1000000000 -> 5.30516477 | C91: ='Standard Value Calculator'!O28 -> 5.6 | E91: =C91 -> 5.6 | F91: nF | G91: =Fz1_u/1000 -> 1.421026278 | H91: kHz (FZCOMP) | J91: RIMON | K91: =R_IL_recommend/1000 ->  | L91: ='Variable Management'!F293/1000 ->  | M91: 0.7 | N91: kΩ
A92: CHF | B92: =IF(Cc2ea*1000000000000<0, 0, Cc2ea*1000000000000) -> 17.98468315 | C92: ='Standard Value Calculator'!O29 -> 18 | E92: =C92 -> 18 | F92: pF | G92: =Fp2_u/1000 -> 313.9694128 | H92: kHz (FPCOMP)
A94: Efficiency / Power Loss Analyzer
A96: Step 8: Efficiency | M96: VIN(nom) | N96: =VIN_nom&"V" -> 24V
D97: Buck-Leg Power MOSFETs (Q1, Q2)
E98: Hi-side | F98: Low-side
D99: On-State Resistance, RDS(on) | E99: 3.5 | F99: 3.5 | G99: mΩ
D100: Total Gate Charge, QG | E100: 67 | F100: 67 | G100: nC
D101: Gate-Drain Charge, QGD | E101: 10.31 | F101: 10.31 | G101: nC
D102: Gate-Source Charge, QGS | E102: 11.25 | F102: 11.25 | G102: nC
D103: Gate Resistance, RG | E103: 0.63 | F103: 0.63 | G103: Ω
D104: Transconductance, gFS | E104: 117 | F104: 117 | G104: S
D105: Gate-Source Threshold Voltage, VTH | E105: 2 | F105: 2 | G105: V
D106: Body Diode Forward Voltage, VBD | E106: 0.75 | F106: 0.75 | G106: V
D107: Body Diode Rev Recovery Charge, QRR | F107: =45 -> 45 | G107: nC
D108: Thermal Resistance, θJA | E108: 65 | F108: 65 | G108: °C/W
D110: Boost-Leg Power MOSFETs (Q3, Q4)
E111: Hi-side | F111: Low-side
D112: On-State Resistance, RDS(on) | E112: 3.5 | F112: 3.5 | G112: mΩ
D113: Total Gate Charge, QG | E113: 67 | F113: 67 | G113: nC
D114: Gate-Drain Charge, QGD | E114: 10.31 | F114: 10.31 | G114: nC
D115: Gate-Source Charge, QGS | E115: 11.25 | F115: 11.25 | G115: nC
D116: Gate Resistance, RG | E116: 0.63 | F116: 0.63 | G116: Ω
D117: Transconductance, gFS | E117: 117 | F117: 117 | G117: S
D118: Gate-Source Threshold Voltage, VTH | E118: 2 | F118: 2 | G118: V
D119: Body Diode Forward Voltage, VBD | E119: 0.75 | F119: 0.75 | G119: V
D120: Body Diode Rev Recovery Charge, QRR | E120: 56 | G120: nC
D121: Thermal Resistance, θJA | E121: 65 | F121: 65 | G121: °C/W
A123: External Schottky Diode (if applicable) | E123: Buck Leg | F123: Boost Leg
D124: Schottky Fwd Voltage, VFWDsch | E124: 0 | F124: 0 | G124: V
D125: Schottky Rev Recovery Charge, QRRsch | E125: 0 | F125: 0 | G125: nC

Sheet Licenses
A5: Version Number | B5: 1.1.1
A35: Version History
A36: Version | B36: Change List Description
A37: 1.0.0 | B37: Initial Release
A38: 1.0.1 | B38: updated calculation of High Frequency pole in compensation
A39: 1.0.2 | B39: fixed Rshunt issue blocking efficiency calculation
B40: fixed Rgate Boost side was fixed to 1Ohm, fixed A_CS value to 10, updated EA gm to 600 (from 500)
A41: 1.0.3 | B41: Fixed calculation of UVLO
A42: 1.0.4 | B42: Added support for IMONLIM, fixed error in Efficiency calculation graph of Vin
B43: Fixed minor error in RT
B44: updated Inductor limits
A45: 1.0.5 | B45: fixed calculation of R_CFG
A46: 1.0.6 | B46: Fixed limit for L
B47: fixed display of gain and phase margin in bode plot
A48: 1.0.7 | B48: Improved Rsense suggestion
B49: added range check for Slope compensation
A50: 1.0.8 | B50: Aligned steps for Lf and Rs selection with datasheet and added more comments
B51: Updated calculation of Iout at OCP inection point
A52: 1.0.9 | B52: Added display of Peak inductor current
B53: Check peak current limit with considering given margin
A54: 1.1.0 | B54: Fixed resistor value for R(CFG) setting 3
B55: Updated R(CFG) selection description
A56: 1.1.1 | B56: Fixed calculation of Softstart time
B57: Added Filter for CSA/CSB
B58: Impoved Ilimiter Compensation and Ilimit Bode Plot
B59: Added more details into efficiency graphs

Sheet BOM & Schematic (hidden)
B45: ** Tie MODE to VCC (or voltage > 2.4V) for No Hiccup **
A46: ="VIN = "&VIN_min&" V to "&VIN_max&" V, VOUT = "& Vout &" V, IOUT = " &Iout & " A, Fsw = " & Fsw/1000 &" kHz, Current Limit = "&ROUNDUP(Ilimit_DC,0)&" A" -> 
A47: High Efficiency Synchronous Buck-Boost Regulator BOM
A48: Count | B48: Ref Des | C48: Value | D48: Description | H48: Size | I48: Part Number | J48: MFR
A49: 2 | B49: CBOOT1, CBOOT2 | C49: 0.1 | D49: =C49 -> 0.1 | H49: 0603 | I49: Std | J49: Std
A50: 1 | B50: CC1 | C50: ='Design Converter'!E91 -> 5.6 | D50: 5.6 | H50: 0603 | I50: Std | J50: Std
A51: 1 | B51: CC2 | C51: ='Design Converter'!E92 -> 18 | D51: 18 | H51: 0603 | I51: Std | J51: Std
A52: 1 | B52: RSLOPE | C52: =Rslope/1000 -> 41 | H52: 0603 | I52: Std | J52: Std
A53: 1 | B53: CCS | C53: 100 | D53: =C53 -> 100 | H53: 0603 | I53: Std | J53: Std
A54: 1 | B54: CDITH | C54: =Cdither*1000000000 -> 0 | D54: =C54 -> 0 | H54: 0603 | I54: Std | J54: Std
A55: =ROUNDUP('Design Converter'!E52/10,0) -> 8 | B55: CIN | C55: 10 | D55: =C55 -> 10 | H55: 1210 | I55: Std | J55: Std
A56: =ROUNDUP('Design Converter'!E43/22,0) -> 5 | B56: COUT | C56: 22 | D56: =C56 -> 22 | H56: 1210 | I56: Std | J56: Std
A57: 1 | B57: CSS | C57: ='Design Converter'!E61 -> 100 | D57: =C57 -> 100 | H57: 0603 | I57: Std | J57: Std
A58: 1 | B58: CVCC | C58: 1 | D58: 1 | H58: 0603 | I58: Std | J58: Std
A59: 1 | B59: CVIN | C59: 0.1 | D59: 0.1 | H59: 0603 | I59: Std | J59: Std
A60: 3 | B60: DBOOT1, DBOOT2, DVIN | C60: See description | D60: Schottky Diode, 200mA | H60: - | I60: - | J60: Various
A61: 1 | B61: LF | C61: ='Design Converter'!E16 -> 3.3 | D61: ="Inductor, "&Lf*1000000&"µH, "&Rdcr*1000&"mΩ, >"&ROUNDUP(IL_peak_OCP*1.1,0)&"A" -> Inductor, 3.3µH, 6mΩ, >17A | H61: - | I61: - | J61: Various
A62: 2 | B62: Q1, Q2 | C62: See description | D62: ='Design Converter'!E99 -> 3.5 | H62: Std | I62: ='Design Converter'!E97 -> 0 | J62: -
A63: 2 | B63: Q3, Q4 | C63: See description | D63: ='Design Converter'!E112 -> 3.5 | H63: Std | I63: ='Design Converter'!E110 -> 0 | J63: -
A64: 1 | B64: RC1 | C64: ='Design Converter'!E90 -> 20 | D64: =C64 -> 20 | H64: 0603 | I64: Std | J64: Std
A65: 1 | B65: RS | C65: =Rs*1000 -> 4 | D65: 4 | H65: 2512 | I65: Std | J65: Std
A66: 1 | B66: RCS(out) | C66: ='Standard Value Calculator'!O21 -> 10 | D66: =C66 -> 10 | H66: 2512 | I66: Std | J66: Std
A67: 1 | B67: RT | C67: ='Design Converter'!E12 -> 75 | D67: 75 | H67: 0603 | I67: Std | J67: Std
A68: 1 | B68: RFB1 | C68: ='Design Converter'!E85 -> 143 | D68: 143 | H68: 0603 | I68: Std | J68: Std
A69: 1 | B69: RFB2 | C69: ='Design Converter'!E86 -> 28.7 | D69: 28.7 | H69: 0603 | I69: Std | J69: Std
A70: 1 | B70: RPGOOD | C70: 20 | D70: 20 | H70: 0603 | I70: Std | J70: Std
A71: 2 | B71: RCS, RCSG | C71: 100 | D71: 100 | H71: 0603 | I71: Std | J71: Std
A72: 1 | B72: RUV1 | C72: ='Design Converter'!E67 -> 75 | D72: 75 | H72: 0603 | I72: Std | J72: Std
A73: 1 | B73: RUV2 | C73: ='Design Converter'!E68 -> 29.4 | D73: 29.4 | H73: 0603 | I73: Std | J73: Std
A74: 1 | B74: RVIN | C74: 2.2 | D74: 2.2 | H74: 0603 | I74: Std | J74: Std
A75: 1 | B75: U1 | C75: LM5177 | D75: IC, LM5177, Buck-Boost PWM Controller | H75: TSSOP-38 | I75: LM5177HTSSOP | J75: TI
A78: NOTES:
A79: ** For information on TI NexFETTM MOSFETs, see ** | D79: http://www.ti.com/nexfet | E79: **
A80: ** Inductor saturation current should be higher than the peak inductor current at the OCP setpoint for all input voltages and operating temperatures **
A81: ** Effective input and output capacitances should be appropriately derated for applied voltage and temperature, particularly with ceramics **

Sheet EVMs (hidden)
A1: LM5175 Quickstart Design Tool
B6: LM5175EVM-HD PCB Layout | M6: LM5175EVM-HP PCB Layout | W6: LM5175EVM PCB Layout

Sheet Variable Management
A1: EXCEL Variables Names/Calculations
B2: Input from user = | F2: to check
B3: Output =
B4: Constant
A5: Variable Name | B5: Value | C5: STD Units | E5: Notes | I5: Iteration
A6: Step 1: Operational Specs
A7: VIN_min | B7: ='Design Converter'!E6 -> 23 | C7: V | D7: Minimum input voltage | I7: 1
B8: ='Design Converter'!E7 -> 24 | C8: V | D8: Nominal input voltage | K8: Efficiency vs IOUT Plot | L8: 1
A9: VIN_max | B9: ='Design Converter'!E8 -> 25 | C9: V | D9: Maximum input voltage | K9: Efficiency vs VIN Plot | L9: 2
A10: VIN_edgebuckboost | B10: =B44 -> 4.876055617 | C10: V | K10: PLOT_TYPE | L10: 1 | M10: CFG | O10: ='CFG Setting'!G28 -> 3 | P10: 1 = Yes, 2 = No
K11: BODEPLOT_TYPE | L11: FALSE
A12: Vout | B12: ='Design Converter'!E9 -> 6 | C12: V | D12: Output Voltage | I12: 1
A13: Iout | B13: ='Design Converter'!E10 -> 6 | C13: A | D13: Maximum Output Current | I13: 1
A14: Rout | B14: =Vout/Iout -> 1 | C14: W | D14: Load resistance
A15: Pout | B15: =Vout*Iout -> 36 | C15: W | D15: Output power
A16: Efficiency | B16: 0.95 | D16: Edited by Vijay from 96% to 90% to match datasheet calculations.
A17: Pin | B17: =Pout/Efficiency -> 37.89473684 | C17: W | D17: Calculate input power assuming 90% efficiency
A18: Iin_Vinmin | B18: =Pin/VIN_min -> 1.647597254 | C18: A
A19: Iin_Vinnom | B19: =Pin/VIN_nom -> 1.578947368 | C19: A | D19: Input currents at min, nom, max Vin
A20: Iin_Vinmax | B20: =Pin/VIN_max -> 1.515789474 | C20: A
A22: Fsw | B22: ='Design Converter'!E11*1000 -> 398000 | C22: Hz | D22: Nominal Switching Frequency | I22: 1
A23: Ts | B23: =1/Fsw -> 2.512562814e-06 | C23: sec | D23: Period
A24: Vref | B24: 1 | C24: V | D24: Reference Voltage
A25: Vref_eff | B25: =Vref -> 1 | C25: V | D25: effective Vref with Tracking
A26: Rt | B26: =(1/Fsw -0.00000002)*30300000000 -> 75524.65327 | C26: W | D26: Frequency Set Resistor | F26: edited based on LM5177 curve fit.
A27: Ifb | B27: 6e-08 | C27: A
A29: Device | B29: =CHOOSE(C29,L29,L30) -> LM5177 | C29: 1 | K29: Device | L29: LM5177
A30: Mode | B30: 1 | D30: 0: PSM 1: FPWM
A32: Toff_min_buck | B32: =MinToffBuck -> 3.022212659e-07 | C32: sec | D32: 200ns | E32: buck min timer
A33: Ton_min_boost | B33: =MinTonBoost -> 2.622212659e-07 | C33: sec | D33: 300ns | E33: boost min timer
A34: T_max_BB | B34: =TonBubo -> 2.041899337e-06 | C34: sec | E34: max timer before transition from BB
A36: D_min_boost | B36: =MinTonBoost*Fsw -> 0.1043640638
A37: D_max_exitBB_to_boost | B37: =TBubo*Fsw -> 0.1873240638 | C37: =MinTonBoost*Fsw -> 0.1043640638
A38: D_max_buck_BB | B38: 1 | C38: =MaxTonBuck*Fsw -> 0.8797159362
A40: D_min_boost_exitBB_to_buck | B40: =TBubo*Fsw -> 0.1873240638
A41: D_max_exitBB_to_buck | B41: =MaxTonBuck*Fsw -> 0.8797159362
A42: D_max_buck_enterBB | B42: =MaxTonBoost*Fsw -> 0.91704
A44: VIN_BB_to_boost | B44: =Vout*(1-B40) -> 4.876055617 | C44: V
A45: VIN_boost_to_BB | B45: =IF(B30=0,Vout,Vout*(1-B36)) -> 5.373815617 | C45: V
A46: VIN_buck_to_BB | B46: =IF(B30=0,Vout,Vout/B42) -> 6.542789846 | C46: V
A47: VIN_BB_to_buck | B47: =IF(B30=0,Vout,Vout/B41) -> 6.820383437 | C47: V
A51: Step 2: Filter Inductor
A52: Don1 | B52: =Vout/VIN_nom -> 0.25 | C52: =(Vout-VIN_nom)/Vout -> -3 | E52: Ideal Duty Cycle at VIN(nom) | I52: 1
A53: Doff1 | B53: =1-_Don1 -> 0.75 | E53: Ideal 1- Duty Cycle at VIN(nom) | I53: 1
A55: Don_Vinmin | B55: =IF(VIN_min>Vout, Vout/VIN_min, (Vout-VIN_min)/Vout) -> 0.2608695652 | C55: =IF(VIN_min>Vout, "BUCK", "BOOST") -> BUCK
A56: Don_Vinnom | B56: =IF(VIN_nom>Vout, Vout/VIN_nom, (Vout-VIN_nom)/Vout) -> 0.25 | C56: =IF(VIN_nom>Vout, "BUCK", "BOOST") -> BUCK
A57: Don_Vinmax | B57: =IF(VIN_max>Vout, Vout/VIN_max, (Vout-VIN_max)/Vout) -> 0.24 | C57: =IF(VIN_max>Vout, "BUCK", "BOOST") -> BUCK
A58: Don_buckboost | B58: =B37 -> 0.1873240638 | C58: lower edge of BUCK-BOOST
A59: Rs_Init | B59: =Boost_CS_Threshold/(Iin_Vinmin*1.4) -> 0.0216765873 | C59: W
B60: BUCK | C60: BOOST
A61: Lf_Vinmin | B61: =(VIN_min-Vout)*Don_Vinmin/(Fsw*Iout*0.3) -> 6.190372151e-06 | C61: =VIN_min/(Iin_Vinmin*0.3*Fsw)*(1-VIN_min/Vout) -> -0.0003312608568 | D61: H | E61: Calculated inductance for 30% ripple at VIN(min)
A62: Lf_Vinnom | B62: =(VIN_nom-Vout)*Don_Vinnom/(Fsw*Iout*0.4) -> 4.711055276e-06 | C62: =VIN_nom/(Iin_Vinnom*0.4*Fsw)*(1-VIN_nom/Vout) -> -0.0002864321608 | D62: H | E62: Calculated inductance for 40% ripple at VIN(nom) | I62: 1
A63: Lf_Vinmax | B63: =(VIN_max-Vout)*Don_Vinmax/(Fsw*Iout*0.6) -> 3.182579564e-06 | C63: =VIN_max/(Iin_Vinmax*0.6*Fsw)*(1-VIN_max/Vout) -> -0.0002187102565 | D63: H | E63: Calculated inductance for 60% ripple at VIN(max) | K63: Joerg's Calculation | R63: LM5177
K64: Labsmin | L64: =IF(Device<>"LM51772",Rs/8000,Rs*125/Fsw) -> 5e-07 | M64: H | N64: Labsmax | O64: =IF(Device<>"LM51772",Rs/100,Rs*5000/Fsw) -> 4e-05 | P64: H
A65: L_Vinmin | B65: =MAX(IF(VIN_min>Vout,B61,C61),O65) -> 6.190372151e-06 | C65: H | D65: =IF(VIN_min>Vout, "BUCK", "BOOST") -> BUCK | E65: Calculated inductance for 30% ripple at VIN(min) | K65: Lbuck | L65: =(VIN_max-Vout)*Vout/(0.4*Iout*Fsw*VIN_max) -> 4.773869347e-06 | M65: H | N65: Lmin | O65: =MAX(10*Vout*Rs/Fsw,Labsmin) -> 6.030150754e-07 | P65: H
A66: L_Vinnom | B66: =IF(VIN_nom>Vout, B62,C62) -> 4.711055276e-06 | C66: H | D66: =IF(VIN_nom>Vout, "BUCK", "BOOST") -> BUCK | E66: Calculated inductance for 40% ripple at VIN(nom) | K66: Lboost | L66: =(Vout-VIN_min)*VIN_min^2/(0.3*Iout*Fsw*Vout^2) -> -0.0003486956387 | M66: H | N66: Lmax | O66: =MIN(Rs*35*Vout/(Fsw*1),Labsmax) -> 2.110552764e-06 | P66: H
A67: L_Vinmax | B67: =MIN(IF(VIN_max>Vout,B63,C63),O66) -> 2.110552764e-06 | C67: H | D67: =IF(VIN_max>Vout, "BUCK", "BOOST") -> BUCK | E67: Calculated inductance for 60% ripple at VIN(max)
K70: L_avg | L70: =(MAX(MIN(AVERAGE(L65:L66),O66),O65)) -> 6.030150754e-07
A71: Lopt | B71: =VIN_min^2*(Vout-VIN_min)/(0.2*Iout*Fsw*Vout^2) -> -0.000523043458 | C71: H | D71: calculated based on 20% ripple limit | K71: L_min | L71: =(MAX(MIN(MIN(L65:L66),O66),O65)) -> 6.030150754e-07
A72: Lmin | B72: =O65 -> 6.030150754e-07 | C72: H
A73: Lmax | B73: =O66 -> 2.110552764e-06 | C73: H | K73: L(peak limit, less than) | L73: =VIN_min*(Vout-VIN_min)/(0.15*Fsw*Vout)*Rs/0.05 -> -8.732551647e-05 | M73: H
A74: Lopt_Limit | B74: =MAX(MIN(B71,B73),B72) -> 6.030150754e-07 | C74: H
A75: Lf | B75: ='Design Converter'!E16/1000000 -> 3.3e-06 | C75: H | E75: Chosen inductance | I75: 2
A76: Rdcr | B76: ='Design Converter'!E17/1000 -> 0.006 | C76: W | E76: Chosen inductor DCR | I76: 1
A78: Don2 | B78: =(Vout+Iout*(Rdcr+Rs))/(Vin+Iout*Rs) -> 0.2522477522 | I78: 2
A79: Doff2 | B79: =1-_Don2 -> 0.7477522478 | I79: 2
A81: Don_Vinmin_2 | B81: =IF(VIN_min>Vout, (Vout+Iout*(Rdcr+Rs))/(VIN_min+Iout*Rs), (Vout-VIN_min+Iin_Vinmin*(Rdcr))/(Vout-Iin_Vinmin*Rs)) -> 0.2632036136 | C81: =IF(VIN_min>Vout, "BUCK", "BOOST") -> BUCK | E81: Duty cycles adjusted for DCR and shunt voltage drops | I81: 2 | J81: Vijay's simplification | L81: =(1-VIN_min*90%/Vout) -> -2.45
A82: Don_Vinnom_2 | B82: =IF(VIN_nom>Vout, (Vout+Iout*(Rdcr+Rs))/(VIN_nom+Iout*Rs), (Vout-VIN_nom+Iin_Vinnom*(Rdcr))/(Vout-Iin_Vinnom*Rs)) -> 0.2522477522 | C82: =IF(VIN_nom>Vout, "BUCK", "BOOST") -> BUCK | E82: need to include RDS(on) later | R82: LM51772
A83: Don_Vinmax_2 | B83: =IF(VIN_max>Vout, (Vout+Iout*(Rdcr+Rs))/(VIN_max+Iout*Rs), (Vout-VIN_max+Iin_Vinmax*(Rdcr))/(Vout-Iin_Vinmax*Rs)) -> 0.2421675192 | C83: =IF(VIN_max>Vout, "BUCK", "BOOST") -> BUCK
A85: Vripple1 | B85: ='Design Converter'!E41/1000 -> 0.155 | C85: V | E85: Output voltage ripple spec(pk-pk) | I85: 1
A87: Iripple_Vinmin | B87: =IF(VIN_min>Vout, (VIN_min-Vout)*Don_Vinmin_2/(Fsw*Lf),VIN_min*Don_Vinmin_2/(Lf*Fsw)) -> 3.406777396 | C87: =(VIN_min-Vout)*Don_Vinmin_2/(Fsw*Lf) -> 3.406777396 | D87: A | E87: =IF(VIN_min>Vout, "BUCK", "BOOST") -> BUCK | H87: =VIN_min*Don_Vinmin_2/(Lopt*Fsw) -> -0.02908029695
A88: Iripple_Vinnom | B88: =IF(VIN_nom>Vout, (VIN_nom-Vout)*Don_Vinnom_2/(Fsw*Lf),VIN_nom*Don_Vinnom_2/(Lf*Fsw)) -> 3.457027212 | C88: =(VIN_nom-Vout)*Don_Vinnom_2/(Fsw*Lf) -> 3.457027212 | D88: A | E88: =IF(VIN_nom>Vout, "BUCK", "BOOST") -> BUCK
A89: Iripple_Vinmax | B89: =IF(VIN_max>Vout, (VIN_max-Vout)*Don_Vinmax_2/(Fsw*Lf),VIN_max*Don_Vinmax_2/(Lf*Fsw)) -> 3.503260899 | C89: =(VIN_max-Vout)*Don_Vinmax_2/(Fsw*Lf) -> 3.503260899 | D89: A | E89: =IF(VIN_max>Vout, "BUCK", "BOOST") -> BUCK
A90: Iripple_edgebuckboost | B90: =VIN_edgebuckboost*Don_buckboost/(Lf*Fsw) -> 0.6954488759 | D90: A | E90: BUCK-BOOST
A92: Ishunt_rms_Vinmin | B92: =IF(VIN_min>Vout, SQRT(1-Don_Vinmin_2)*SQRT(Iout^2+(Iripple_Vinmin^2)/12), SQRT(Don_Vinmin_2)*SQRT(Iin_Vinmin^2+(Iripple_Vinmin^2)/12)) -> 5.218935038 | C92: A | E92: =SQRT(1-Don_Vinmin_2)*SQRT(Iout^2+(Iripple_Vinmin^2)/12) -> 5.218935038 | F92: =SQRT(Don_Vinmin_2)*SQRT(Iout^2+(Iripple_Vinmin^2)/12) -> 3.119277922
A93: Ishunt_rms_Vinnom | B93: =IF(VIN_nom>Vout, SQRT(1-Don_Vinnom_2)*SQRT(Iout^2+(Iripple_Vinnom^2)/12), SQRT(Don_Vinnom_2)*SQRT(Iin_Vinnom^2+(Iripple_Vinnom^2)/12)) -> 5.259637075 | C93: A | E93: =SQRT(1-Don_Vinnom_2)*SQRT(Iout^2+(Iripple_Vinnom^2)/12) -> 5.259637075 | F93: =SQRT(Don_Vinnom_2)*SQRT(Iout^2+(Iripple_Vinnom^2)/12) -> 3.05485476
A94: Ishunt_rms_Vinmax | B94: =IF(VIN_max>Vout, SQRT(1-Don_Vinmax_2)*SQRT(Iout^2+(Iripple_Vinmax^2)/12), SQRT(Don_Vinmax_2)*SQRT(Iin_Vinmax^2+(Iripple_Vinmax^2)/12)) -> 5.296888915 | C94: A | E94: =SQRT(1-Don_Vinmax_2)*SQRT(Iout^2+(Iripple_Vinmax^2)/12) -> 5.296888915 | F94: =SQRT(Don_Vinmax_2)*SQRT(Iout^2+(Iripple_Vinmax^2)/12) -> 2.994278583
A95: Max shunt power loss at full load | B95: =MAX(B92,B94)^2*Rs -> 0.1122281287 | C95: W | D95: =IF(B94>B92, "BUCK", "BOOST") -> BUCK
B96: =(Buck_CS_threshold_max/Rs)^2*Rs*Don_Vinmin -> 0.2231902174 | C96: W
A97: Max inductor ripple current | B97: =MAX(B87:B89) -> 3.503260899 | C97: A
F98: Ripple I | G98: Iin
A99: % Ripple Current | B99: =IF(VIN_min>Vout, B87/Iout, B87/Iin_Vinmin) -> 0.5677962326 | C99: =IF(VIN_min>Vout, "BUCK", "BOOST") -> BUCK | F99: =B87 -> 3.406777396 | G99: =Iin_Vinmin -> 1.647597254
B100: =IF(VIN_nom>Vout, B88/Iout, B88/Iin_Vinnom) -> 0.576171202 | C100: =IF(VIN_nom>Vout, "BUCK", "BOOST") -> BUCK | F100: =B88 -> 3.457027212 | G100: =Iin_Vinnom -> 1.578947368
B101: =IF(VIN_max>Vout, B89/Iout, B89/Iin_Vinmax) -> 0.5838768165 | C101: =IF(VIN_max>Vout, "BUCK", "BOOST") -> BUCK | F101: =B89 -> 3.503260899 | G101: =Iin_Vinmax -> 1.515789474
A103: Temp | B103: 100
A104: DCR at hot | B104: =Rdcr*(1+0.0039*(B103-25)) -> 0.007755 | C104: W
A107: Step 3: Sense Resistors, Slope Comp, Current Limit
A109: Ilimit_Margin | B109: ='Design Converter'!E28 -> 20 | C109: % | E109: Chosen OCP level - based on output current
A111: Ipeak_inductor_Vinmin | B111: =IF(VIN_min>Vout, Iout/Efficiency+Iripple_Vinmin/2, Iin_Vinmin+Iripple_Vinmin/2) -> 8.019178172 | C111: A | D111: =IF(VIN_min>Vout, "BUCK", "BOOST") -> BUCK
A112: Ipeak_inductor_Vinnom | B112: =IF(VIN_nom>Vout, Iout/Efficiency+Iripple_Vinnom/2,Iin_Vinnom+Iripple_Vinnom/2) -> 8.04430308 | C112: A | D112: =IF(VIN_nom>Vout, "BUCK", "BOOST") -> BUCK
A113: Ipeak_inductor_Vinmax | B113: =IF(VIN_max>Vout, Iout/Efficiency+Iripple_Vinmax/2,Iin_Vinmin+Iripple_Vinmax/2) -> 8.067419923 | C113: A | D113: =IF(VIN_max>Vout, "BUCK", "BOOST") -> BUCK
A114: Ipeak_inductor_buckboost | B114: =Iout/Efficiency+Iripple_edgebuckboost/2 -> 6.663513912 | C114: A | D114: edge of buck-boost
A115: Ipeak_inductor_max | B115: =MAX(B111:B113) -> 8.067419923 | C115: A
A116: Ipeak_inductor_max_margin | B116: =Ipeak_inductor_max*(1+Ilimit_Margin/100) -> 9.680903908 | C116: A
A118: Buck CS threshold_min | B118: 0.0385 | C118: V
A119: Buck CS threshold | B119: 0.05 | C119: V | E119: Pos and neg. is identical - otherwise take lower value
A120: Buck CS threshold_max | B120: 0.0585 | C120: V | E120: Identical for Buck and Boost
A122: Boost CS Threshold_min | B122: 0.0385 | C122: V
A123: Boost CS Threshold | B123: 0.05 | C123: V | E123: Pos and neg. is identical - otherwise take lower value
A124: Boost CS Threshold_max | B124: 0.0585 | C124: V | E124: Identical for Buck and Boost
A126: Assume we'd like to achieve current limit particularly at VIN(min) and boost side of buck-boost region; accept inevitable variation over line thereafter
A127: Shunt required to get OCP at VIN(min) | B127: =IF(VIN_min>Vout,Buck_CS_threshold/Ipeak_inductor_Vinmin, Boost_CS_Threshold/Ipeak_inductor_Vinmin)/(1+Ilimit_Margin/100) -> 0.005195877405 | C127: W | D127: =IF(VIN_min>Vout, "BUCK", "BOOST") -> BUCK
A128: Shunt required to get OCP at VIN(nom) | B128: =IF(VIN_nom>Vout,Buck_CS_threshold/Ipeak_inductor_Vinnom, Boost_CS_Threshold/Ipeak_inductor_Vinnom)/(1+Ilimit_Margin/100) -> 0.005179649033 | C128: W | D128: =IF(VIN_nom>Vout, "BUCK", "BOOST") -> BUCK
A129: Shunt required to get OCP at VIN(max) | B129: =IF(VIN_max>Vout,Buck_CS_threshold/Ipeak_inductor_Vinmax, Boost_CS_Threshold/Ipeak_inductor_Vinmax)/(1+Ilimit_Margin/100) -> 0.005164806972 | C129: W | D129: =IF(VIN_max>Vout, "BUCK", "BOOST") -> BUCK
A130: Shunt required to get OCP at VIN(edge-bb) | B130: =IF(VIN_min<VIN_edgebuckboost,Buck_CS_threshold/Ipeak_inductor_buckboost, 10)/(1+Ilimit_Margin/100) -> 8.333333333 | C130: W | D130: Edge of B-B
A133: Ipeak_peak_inductor | B133: =Don_Vinmin*VIN_min/(Lf*Fsw) -> 4.568296026 | C133: A
A134: IIN_avg_max | B134: =Vout*Iout/(Efficiency*VIN_min) -> 1.647597254
A145: Rs_ideal | B145: =Boost_CS_Threshold_min/((B134+0.5*B133)*(1+Ilimit_Margin/100)) -> 0.008160074256 | C145: W | E145: Ideal Rs for the required OCP -- based on 80mV or 160mV CL threshold
A146: Rs | B146: ='Design Converter'!E30/1000 -> 0.004 | C146: W | E146: Selected (starndard value) current limit sense resistor
A147: Rs_in_range | B147: =IF(AND(100<Rs/Lf,Rs/Lf<8000,Rs/Lf<(1*Fsw/(Vout*10))),1,0) -> 1
A148: BOOST current limit - peak | B148: =Boost_CS_Threshold_max/Rs -> 14.625 | C148: A | E148: Peak inductor current limit in BOOST
A149: BUCK current limit - peak | B149: =Buck_CS_threshold_max/Rs -> 14.625 | C149: A | E149: Peak inductor current limit in BUCK
A151: Iout_OCP_Vinmin | B151: =IF(VIN_min>Vout,Buck_CS_threshold/Rs-Iripple_Vinmin/2, (Boost_CS_Threshold/Rs-Iripple_Vinmin/2)*(1-Don_Vinmin_2)) -> 10.7966113 | C151: A | D151: =IF(VIN_min>Vout, "BUCK", "BOOST") -> BUCK | E151: Current limit setpoints (i.e. IOUT) after standard components are selected
A152: Iout_OCP_Vinnom | B152: =IF(VIN_nom>Vout,Buck_CS_threshold/Rs-Iripple_Vinnom/2, (Boost_CS_Threshold/Rs-Iripple_Vinnom/2)*(1-Don_Vinnom_2)) -> 10.77148639 | C152: A | D152: =IF(VIN_nom>Vout,"BUCK",IF(VIN_nom<VIN_edgebuckboost,"BOOST","BUCK-BOOST")) -> BUCK
A153: Iout_OCP_Vinmax | B153: =IF(VIN_max>Vout,Buck_CS_threshold/Rs-Iripple_Vinmax/2, (Boost_CS_Threshold/Rs-Iripple_Vinmax/2)*(1-Don_Vinmax_2)) -> 10.74836955 | C153: A | D153: =IF(VIN_max>Vout, "BUCK", "BOOST") -> BUCK
A154: Iout_edgebuckboost | B154: =(Buck_CS_threshold/Rs-Iripple_edgebuckboost/2)*(1-Don_buckboost) -> 9.875861919 | C154: A | D154: lower edge of buck-boost window | K154: RMS current in Rs | M154: Power diss in Rs
A156: ILpeak_OCP_Vinmin | B156: =IF(VIN_min>Vout, Buck_CS_threshold_max/Rs, Boost_CS_Threshold_max/Rs) -> 14.625 | C156: A | D156: =IF(VIN_min>Vout, "BUCK", "BOOST") -> BUCK | E156: Peak inductor currents in OCP | H156: =SQRT(Don_Vinmin_2)*SQRT(Iin_Vinmin^2+(Iripple_Vinmin^2)/12) -> 0.9844039119 | K156: =IF(VIN_min>Vout, SQRT(1-Don_Vinmin_2)*SQRT(Iout_OCP_Vinmin^2+(Iripple_Vinmin^2)/12), SQRT(Don_Vinmin_2)*SQRT(Iin_Vinmin^2+(Iripple_Vinmin^2)/12)) -> 9.305838035 | L156: A | M156: =K156^2*Rs -> 0.3463944861 | N156: W
A157: ILpeak_OCP_Vinnom | B157: =IF(VIN_nom>Vout, Buck_CS_threshold_max/Rs, IF(VIN_nom<VIN_edgebuckboost, Boost_CS_Threshold_max/Rs, Buck_CS_threshold_max/Rs)) -> 14.625 | C157: A | D157: =IF(VIN_nom>Vout,"BUCK",IF(VIN_nom<VIN_edgebuckboost,"BOOST","BUCK-BOOST")) -> BUCK | H157: =SQRT(1-Don_Vinnom_2)*SQRT(Iout_OCP_Vinnom^2+(Iripple_Vinnom^2)/12) -> 9.354282192 | K157: =IF(VIN_nom>Vout, SQRT(1-Don_Vinnom_2)*SQRT(Iout_OCP_Vinnom^2+(Iripple_Vinnom^2)/12), SQRT(Don_Vinnom_2)*SQRT(Iin_Vinnom^2+(Iripple_Vinnom^2)/12)) -> 9.354282192 | L157: A | M157: =K157^2*Rs -> 0.3500103813 | N157: W
A158: ILpeak_OCP_Vinmax | B158: =IF(VIN_max>Vout, Buck_CS_threshold_max/Rs, Boost_CS_Threshold_max/Rs) -> 14.625 | C158: A | D158: =IF(VIN_max>Vout, "BUCK", "BOOST") -> BUCK | H158: =SQRT(1-Don_Vinmax_2)*SQRT(Iout_OCP_Vinmax^2+(Iripple_Vinmax^2)/12) -> 9.398165533 | K158: =IF(VIN_max>Vout, SQRT(1-Don_Vinmax_2)*SQRT(Iout_OCP_Vinmax^2+(Iripple_Vinmax^2)/12), SQRT(Don_Vinmax_2)*SQRT(Iin_Vinmax^2+(Iripple_Vinmax^2)/12)) -> 9.398165533 | L158: A | M158: =K158^2*Rs -> 0.3533020616 | N158: W
A159: Worst case peak inductor current | B159: =MAX(B156:B158) -> 14.625 | C159: A | K159: Vijay verified that this calculation (Vinmax) are correct for OCP.
A161: IL_peak_OCP | B161: =MAX(B156:B158) -> 14.625 | C161: A | E161: Peak inductor current over the full input range
A162: Max shunt power loss at OC | B162: =(Boost_CS_Threshold_max/Rs)^2*Rs*(Vout/VIN_max) -> 0.205335 | C162: W
A164: Rslope_ideal | B164: =Lf/Rs*50*10^6 -> 41250 | C164: W | E164: using 50MV/As from Datasheet
A165: Rslope_recommended | B165: ='Standard Value Calculator'!O15 -> 41200 | C165: W | E165: Standard size based on Rsideal slope Resistor
A166: Rslope_selected | B166: ='Design Converter'!E35*1000 -> 41000 | C166: W | E166: Selected SLOPE Resistor
A172: Islope_fixed | B172: =Isc_const -> 0 | C172: A | K172: BUCK | L172: BOOST | O172: LM51772 Slope table
A173: Rslope | B173: =B166 -> 41000 | C173: W | K173: =B174*(1-Don_Vinmin_2)/Fsw -> 0.5756927274 | L173: =B174*Don_Vinmin_2/Fsw -> 0.2056530257 | M173: =IF(VIN_min>Vout, "BUCK", "BOOST") -> BUCK | O173: SEL_SLOPE | P173: Factor
A174: SLOPE comp dv/dt = I_slope_total/Cslope | B174: =(ABS((VIN_min-Vout))*gm_slopecomp/Cslope + Islope_fixed)/(Rslope) -> 310975.6098 | C174: V/s | E174: at VIN_min | K174: =B175*(1-Don_Vinnom_2)/Fsw -> 0.6186208693 | L174: =B175*Don_Vinnom_2/Fsw -> 0.2086863988 | M174: =IF(VIN_nom>Vout, "BUCK", "BOOST") -> BUCK | O174: 0 | P174: =0.125 + 0.125 *O174 -> 0.125
A175: SLOPE comp dv/dt = I_slope_total/Cslope | B175: =(ABS((VIN_nom-Vout))*gm_slopecomp/Cslope + Islope_fixed)/(Rslope) -> 329268.2927 | C175: V/s | E175: at VIN_nom | K175: =B176*(1-Don_Vinmax_2)/Fsw -> 0.6617914482 | L175: =B176*Don_Vinmax_2/Fsw -> 0.2114773347 | M175: =IF(VIN_max>Vout, "BUCK", "BOOST") -> BUCK | O175: 1 | P175: =0.125 + 0.125 *O175 -> 0.25
A176: SLOPE comp dv/dt = I_slope_total/Cslope | B176: =(ABS((VIN_max-Vout))*gm_slopecomp/Cslope + Islope_fixed)/(Rslope) -> 347560.9756 | C176: V/s | E176: at VIN_max | O176: 2 | P176: =0.125 + 0.125 *O176 -> 0.375
O177: 3 | P177: 0.5
A178: DV_SLOPEcomp at Vinmin | B178: =IF(D178="BUCK", K173,L173) -> 0.5756927274 | C178: V | D178: =IF(VIN_min>Vout, "BUCK", "BOOST") -> BUCK | E178: at VIN_min | O178: 4 | P178: 0.625
A179: DV_SLOPEcomp at Vinnom | B179: =IF(D179="BUCK", K174,L174) -> 0.6186208693 | C179: V | D179: =IF(VIN_nom>Vout,"BUCK",IF(VIN_nom<VIN_edgebuckboost,"BOOST","BUCK-BOOST")) -> BUCK | E179: at VIN_nom | O179: 5 | P179: 0.75
A180: DV_SLOPEcomp at Vinmax | B180: =IF(D180="BUCK", K175,L175) -> 0.6617914482 | C180: V | D180: =IF(VIN_max>Vout, "BUCK", "BOOST") -> BUCK | E180: at VIN_max | O180: 6 | P180: 0.875
O181: 7 | P181: 1
O182: 8 | P182: =1 + 4 *P174 -> 1.5
O183: 9 | P183: =1 + 4 *P175 -> 2
O184: 10 | P184: 2.5
O185: 11 | P185: 3
O186: 12 | P186: 3.5
O187: 13 | P187: 4
A188: Step 4: Output Capacitor | O188: 14 | P188: 4.5
A189: Icoutrms_VINmin | B189: =IF(D189="BUCK", Iripple_Vinmin/SQRT(12), Iout*SQRT((Vout-VIN_min)/VIN_min)) -> 0.9834519232 | C189: A | D189: =IF(VIN_min>Vout, "BUCK", "BOOST") -> BUCK | E189: Output Cap RMS current | O189: 15 | P189: 5
A190: Icoutrms_VINnom | B190: =IF(D190="BUCK", Iripple_Vinnom/SQRT(12), Iout*SQRT((Vout-VIN_nom)/VIN_nom)) -> 0.9979577958 | C190: A | D190: =IF(VIN_nom>Vout,"BUCK",IF(VIN_nom<VIN_edgebuckboost,"BOOST","BUCK-BOOST")) -> BUCK
A191: Icoutrms_VINmax | B191: =IF(D191="BUCK", Iripple_Vinmax/SQRT(12), Iout*SQRT((Vout-VIN_max)/VIN_max)) -> 1.011304311 | C191: A | D191: =IF(VIN_max>Vout, "BUCK", "BOOST") -> BUCK
A192: Max Cout rms current | B192: =MAX(B189:B191) -> 1.011304311 | C192: A
A194: Output Ripple Spec (pk-pk) | B194: =Vripple1*1000 -> 155 | C194: mV | E194: Vout ripple spec at Vin(nom)
A196: Coutmin | B196: =IF(VIN_min>Vout, Iripple_Vinmin/(Fsw*8*Vripple1), Iout*Don_Vinmin_2/(Vripple1*Fsw)) -> 6.903017903e-06 | C196: F | E196: Minimum Output Capacitnace | H196: =Vripple2 -> 0.1755082671 | I196: 1 | K196: =Coutmin -> 6.903017903e-06
A197: Reported Coutmin | B197: =IF(Coutmin*1000000<H197, H197,Coutmin*1000000) -> 6.903017903 | C197: uF | E197: Limit Min. output Cap | H197: 0.1 | K197: =Coutmin*1000000 -> 6.903017903
A198: Cout | B198: ='Design Converter'!E43/1000000 -> 0.0001 | C198: F | E198: Chosen Output Capacitance | I198: 1
A199: Resrmax | B199: =IF(VIN_min>Vout, SQRT((Vripple1/Iripple_Vinmin)^2-(1/(Fsw*Cout*8))^2), (Vripple1-Iout*Don_Vinmin_2/(Fsw*Cout))/Iout) -> 0.04538901158 | C199: W | E199: Max ESR before ripple exceeds Vripple1 | I199: 1
A201: Reported Cout ESR max | B201: =IF(OR(CoutEsrMax>0.3, CoutEsrMax<0, (ISERROR(CoutEsrMax))), "N/A", CoutEsrMax*1000) -> 45.38901158 | C201: mΩ
A202: CoutEsr | B202: ='Design Converter'!E45/1000 -> 0.05 | C202: W | E202: Chosen ESR | I202: 1 | K202: =ISERROR(CoutEsrMax) -> FALSE | L202: =ISERROR(B201) -> FALSE
A203: Vripple | B203: =IF(VIN_min>Vout, Iripple_Vinmax*SQRT(CoutEsr^2+(1/(8*Fsw*Cout))^2), CoutEsr*Iout+Iout*Don_Vinmin_2/(Fsw*Cout)) -> 0.1755082671 | C203: Vp-p | L203: =OR(CoutEsrMax>0.3,CoutEsrMax<0) -> FALSE
K204: =OR(TRUE, FALSE, TRUE) -> TRUE
A205: Step 5: Input Capacitor
A207: Icinrms_VINmin | B207: =IF(D207="BUCK", Iout*SQRT(Don_Vinmin_2*(1-Don_Vinmax_2)), Iripple_Vinmin/SQRT(12)) -> 2.679685226 | C207: A | D207: =IF(VIN_min>Vout, "BUCK", "BOOST") -> BUCK | F207: =Iripple_Vinmin/SQRT(12) -> 0.9834519232 | G207: =Iout*SQRT(Don_Vinmax_2*(1-Don_Vinmax_2)) -> 2.570370951 | H207: =Iout*0.25 -> 1.5
A208: Icinrms_VINnom | B208: =IF(D208="BUCK", Iout*SQRT(Don_Vinnom_2*(1-Don_Vinnom_2)), Iripple_Vinnom/SQRT(12)) -> 2.605816121 | C208: A | D208: =IF(VIN_nom>Vout,"BUCK",IF(VIN_nom<VIN_edgebuckboost,"BOOST","BUCK-BOOST")) -> BUCK
A209: Icinrms_VINmiax | B209: =IF(D209="BUCK", Iout*SQRT(Don_Vinmax_2*(1-Don_Vinmax_2)), Iripple_Vinmax/SQRT(12)) -> 2.570370951 | C209: A | D209: =IF(VIN_max>Vout, "BUCK", "BOOST") -> BUCK
A210: Max Cin rms current | B210: =MAX(B207:B209) -> 2.679685226 | C210: A | D210: …report this
A212: Vinripple1 | B212: ='Design Converter'!E50/1000 -> 0.18 | C212: Vp-p | D212: Input voltage ripple spec (pk-pk)
A214: Cinmin_Vinmax | B214: =IF(VIN_max>Vout, Iout*Don_Vinmax_2*(1-Don_Vinmax_2)/(Vinripple1*Fsw), Iripple_Vinmax/(Fsw*8*Vinripple1)) -> 1.537038625e-05 | C214: F | D214: Calculate cap at Vinmax and 50% duty cycle (Vin = 2*Vout) | K214: =Iripple_Vinnom/(Fsw*8*Vinripple1) -> 6.03194307e-06
A215: Cinmin_50%D | B215: =IF(VIN_max>Vout, Iout*0.5*(1-0.5)/(Vinripple1*Fsw), Iripple_Vinmax/(Fsw*8*Vinripple1)) -> 2.093802345e-05 | D215: Buck 50% typically worst case
A216: Cinmin | B216: =IF(VIN_max<2*Vout, B214,B215) -> 2.093802345e-05
A217: Reported Cinmin | B217: =IF(Cinmin*1000000<10, 10,Cinmin*1000000) -> 20.93802345 | C217: uF | D217: …report this
A218: Cin | B218: ='Design Converter'!E52/1000000 -> 8e-05 | C218: F | D218: Input capacitance
A219: CinEsrMax_Vinmax | B219: =IF(VIN_max>Vout, -(Iout*Don_Vinmax_2*(1-Don_Vinmax_2)/(Cin*Fsw)-Vinripple1)/(Iout+Iripple_Vinmax/2), SQRT((Vinripple1/Iripple_Vinmax)^2-(1/(Fsw*Cin*8))^2)) -> 0.01875948962 | C219: W
A220: CinEsrMax_50%D | B220: =IF(VIN_max>Vout, -(Iout*0.5*(1-0.5)/(Cin*Fsw)-Vinripple1)/(Iout+Iripple_Vinmax/2), SQRT((Vinripple1/Iripple_Vinmax)^2-(1/(Fsw*Cin*8))^2)) -> 0.01714341881 | C220: W | D220: Calculate ESR at Vinmax and 50% duty cycle (Vin = 2*Vout)
A221: CinEsrMax | B221: =IF(VIN_max<2*Vout, B219,B220) -> 0.01714341881 | C221: W
A222: Reported Cin ESR max | B222: =IF(OR(CinEsrMax>0.3, CinEsrMax<0), "N/A",CinEsrMax*1000) -> 17.14341881 | C222: mΩ | D222: …report this
A223: RCinEsr | B223: ='Design Converter'!E54/1000 -> 0.01 | C223: W | D223: Input capacitance series resistance (ESR)
K224: =CinEsrMax -> 0.01714341881
A225: Vinripple2_Vinmax | B225: =IF(VIN_max>Vout, Iout*Don_Vinmax_2*(1-Don_Vinmax_2)/(Cin*Fsw)+(Iout +Iripple_Vinmax/2)*RCinEsr, Iripple_Vinmax*SQRT(RCinEsr^2+(1/(8*Fsw*Cin))^2)) -> 0.1120996736 | C225: Vp-p
A226: Vinripple2_50%D | B226: =IF(VIN_max>Vout, Iout*0.5*(1-0.5)/(Cin*Fsw)+(Iout +Iripple_Vinmax/2)*RCinEsr, Iripple_Vinmax*SQRT(RCinEsr^2+(1/(8*Fsw*Cin))^2)) -> 0.1246268573 | C226: Vp-p | D226: Calculate ripple at Vinmax and 50% duty cycle (Vin = 2*Vout)
A227: Vinripple2 | B227: =IF(VIN_max<2*Vout, B225,B226) -> 0.1246268573 | C227: Vp-p | D227: …report highest of these
B229: =Iout*Don_Vinmax_2*(1-Don_Vinmax_2)/(Cin*Fsw) -> 0.03458336906 | C229: Vp-p
A231: Step 6a: Soft Start
A232: Tss | B232: ='Design Converter'!E60/1000 -> 0.01 | C232: s | D232: Soft-start time
A233: Iss | B233: 1e-05 | C233: A | D233: Load cap current during soft start
A234: Css | B234: =Iss*Tss/Vref -> 1e-07 | C234: F
A235: Css_u | B235: ='Standard Value Calculator'!B4 -> 1e-07 | C235: F
A237: Step 6b: Other Components - UVLO, Dither, MODE
A239: VINUVLO_ON | B239: ='Design Converter'!E65 -> 4.4 | C239: V
A240: VINUVLO_OFF | B240: ='Design Converter'!E66 -> 4.025 | C240: V
A241: RUV1 | B241: =(VINuvlo_on-VINuvlo_off)/Iuvlo1 -> 75 | C241: kΩ | E241: ='Standard Value Calculator'!O16 -> 75 | F241: kΩ | G241: =IF(Ruvlo1<0,"N/A",E241) -> 75 | H241: =IF(Ruvlo1<0,"N/A",E241&"kΩ") -> 75kΩ
A242: RUV2 | B242: =Ruvlo1/(('Design Converter'!E65-Vuvlo_hys)/Vuvlo_off-1) -> 29.56730769 | C242: kΩ | E242: ='Standard Value Calculator'!O17 -> 29.4 | F242: kΩ | G242: =IF(G241="N/A","N/A",E242) -> 29.4 | H242: =IF(H241="N/A","N/A",E242&"kΩ") -> 29.4kΩ
A244: VINUVLO_ON_ACTUAL | B244: =(E241+E242)/E242*Vuvlo_on+Iuvlo1*E241 -> 4.920306122
A245: VINUVLO_OFF_ACTUAL | B245: =(E241+E242)/E242*Vuvlo_off -> 4.367755102
A247: Rising UVLO/EN Threshold | B247: 1.28 | C247: V
A248: Falling UVLO/EN Threshold | B248: 1.23 | C248: V
A249: Voltage Hysteresis | B249: =B247-B248 -> 0.05 | C249: V
A250: Rising UVLO/EN Current | B250: 0.005 | C250: mA
A251: Falling UVLO/EN Current | C251: mA
A252: UVLO/EN Current Hysteresis | C252: mA
A254: RPG | B254: 20 | C254: kΩ
A255: RSB | C255: W
A256: Rh | B256: 0 | C256: W
A257: Rmode | C257: W | D257: TBD | E257: Tie to GND or VCC for DCM/CCM, respectively. Use 93.1k or 200k for hiccup in DCM, CCM, respectively.
A264: Step 6c: Current Monitor / Current Limiter
A265: Monitor
... 241 more rows

Sheet DeviceParameter (hidden)
A1: EXCEL Device Parameter
B2: Input from user = | F2: to check
B3: Output =
B4: Constant
A5: Variable Name | B5: Selected Value | C5: STD Units | D5: Device
D6: LM5177 | E6: LM51771 | F6: LM51770 | M6: t_on_min_Boost | N6: =VLOOKUP((Fsw/1000000),P7:Q107,2) -> 209.2128 | P6: f_SW [MHz] | Q6: t_on_min_Boost
A7: MaxVin | B7: =IF(Device=DeviceParameter!$D$6,DeviceParameter!D7,IF(Device=DeviceParameter!$E$6,DeviceParameter!E7,IF(Device=DeviceParameter!$F$6,DeviceParameter!F7,""))) -> 60 | C7: V | D7: 60 | F7: 60 | P7: 0.1 | Q7: 435.3921
A8: MinVin | B8: =IF(Device=DeviceParameter!$D$6,DeviceParameter!D8,IF(Device=DeviceParameter!$E$6,DeviceParameter!E8,IF(Device=DeviceParameter!$F$6,DeviceParameter!F8,""))) -> 2.8 | C8: V | D8: 2.8 | F8: 2.8 | M8: R_CS | N8: 10 | P8: 0.1212 | Q8: 404.8119
A9: MaxfSW | B9: =IF(Device=DeviceParameter!$D$6,DeviceParameter!D9,IF(Device=DeviceParameter!$E$6,DeviceParameter!E9,IF(Device=DeviceParameter!$F$6,DeviceParameter!F9,""))) -> 600 | C9: kHz | D9: 600 | F9: 600 | M9: C_CS | N9: =(N6*0.000000001)/(2*PI()*(2*N8)*10) -> 1.664862564e-10 | P9: 0.1424 | Q9: 379.0609
M10: C_CS_ideal | N10: ='Standard Value Calculator'!O14 -> 1.8e-10 | P10: 0.1636 | Q10: 355.5805
A11: g_m | B11: =IF(Device=DeviceParameter!$D$6,DeviceParameter!D11,IF(Device=DeviceParameter!$E$6,DeviceParameter!E11,IF(Device=DeviceParameter!$F$6,DeviceParameter!F11,""))) -> 0.001 | C11: S | D11: 0.001 | F11: 0.001 | P11: 0.1848 | Q11: 334.3524
A12: gm_IL | B12: =IF(Device=DeviceParameter!$D$6,DeviceParameter!D12,IF(Device=DeviceParameter!$E$6,DeviceParameter!E12,IF(Device=DeviceParameter!$F$6,DeviceParameter!F12,""))) -> 0.0002 | C12: S | D12: 0.0002 | F12: 0.0002 | P12: 0.2061 | Q12: 315.6626
A13: gm_csa | B13: 0.0004 | C13: S | J13: CDC Transconductance | P13: 0.2273 | Q13: 299.4314
P14: 0.2485 | Q14: 283.9873
P15: 0.2697 | Q15: 270.1134
P16: 0.2909 | Q16: 257.7974
P17: 0.3121 | Q17: 246.5349
P18: 0.3333 | Q18: 236.0069
P19: 0.3545 | Q19: 226.2988
P20: 0.3758 | Q20: 217.5111
P21: 0.397 | Q21: 209.2128
P22: 0.4182 | Q22: 201.4597
P23: 0.4394 | Q23: 193.9455
P24: 0.4606 | Q24: 187.2546
P25: 0.4818 | Q25: 180.9858
P26: 0.503 | Q26: 175.1552
P27: 0.5242 | Q27: 169.5948
P28: 0.5455 | Q28: 164.3228
P29: 0.5667 | Q29: 159.3714
P30: 0.5879 | Q30: 154.7458
P31: 0.6 | Q31: 151.8441
P32: 0.6091 | Q32: 150.1909
P33: 0.6303 | Q33: 146.0382
P34: 0.6515 | Q34: 141.9745
P35: 0.6727 | Q35: 138.1506
P36: 0.6939 | Q36: 134.4471
P37: 0.7152 | Q37: 130.9936
P38: 0.7364 | Q38: 127.8038
P39: 0.7576 | Q39: 124.6821
P40: 0.7788 | Q40: 121.6017
P41: 0.8 | Q41: 118.6832
P42: 0.8212 | Q42: 115.9532
P43: 0.8424 | Q43: 113.2763
P44: 0.8636 | Q44: 110.4466
P45: 0.8848 | Q45: 108.4077
P46: 0.9061 | Q46: 105.8044
P47: 0.9273 | Q47: 103.5754
P48: 0.9485 | Q48: 101.3655
P49: 0.9697 | Q49: 99.1579
P50: 0.9909 | Q50: 97.0561
P51: 1.0121 | Q51: 95.115
P52: 1.0333 | Q52: 93.2483
P53: 1.0545 | Q53: 91.3776
P54: 1.0758 | Q54: 91.2921
P55: 1.097 | Q55: 91.2118
P56: 1.1182 | Q56: 91.1045
P57: 1.1394 | Q57: 91.0418
P58: 1.1606 | Q58: 90.7792
P59: 1.1818 | Q59: 90.677
P60: 1.203 | Q60: 90.6271
P61: 1.2242 | Q61: 90.4862
P62: 1.2455 | Q62: 90.2243
P63: 1.2667 | Q63: 90.2613
P64: 1.2879 | Q64: 90.1815
P65: 1.3091 | Q65: 89.9721
P66: 1.3303 | Q66: 89.7389
P67: 1.3515 | Q67: 89.6257
P68: 1.3727 | Q68: 89.5104
P69: 1.3939 | Q69: 89.3317
P70: 1.4152 | Q70: 89.3375
P71: 1.4364 | Q71: 89.2183
P72: 1.4576 | Q72: 89.145
P73: 1.4788 | Q73: 88.8905
P74: 1.5 | Q74: 88.917
P75: 1.5212 | Q75: 88.7541
P76: 1.5424 | Q76: 88.5991
P77: 1.5636 | Q77: 88.5257
P78: 1.5848 | Q78: 88.7184
P79: 1.6061 | Q79: 88.3713
P80: 1.6273 | Q80: 88.4202
P81: 1.6485 | Q81: 88.2529
P82: 1.6697 | Q82: 88.2802
P83: 1.6909 | Q83: 88.052
P84: 1.7121 | Q84: 88.0665
P85: 1.7333 | Q85: 88.0375
P86: 1.7545 | Q86: 87.7745
P87: 1.7758 | Q87: 87.7724
P88: 1.797 | Q88: 87.6184
P89: 1.8182 | Q89: 87.6316
P90: 1.8394 | Q90: 87.3767
P91: 1.8606 | Q91: 87.3151
P92: 1.8818 | Q92: 87.4674
P93: 1.903 | Q93: 87.2847
P94: 1.9242 | Q94: 87.1411
P95: 1.9455 | Q95: 87.1667
P96: 1.9667 | Q96: 86.794
P97: 1.9879 | Q97: 86.9755
P98: 2.0091 | Q98: 86.9146
P99: 2.0303 | Q99: 86.9184
P100: 2.0515 | Q100: 86.6816
P101: 2.0727 | Q101: 86.4207
P102: 2.0939 | Q102: 86.6138
P103: 2.1152 | Q103: 86.5314
P104: 2.1364 | Q104: 86.2811
P105: 2.1576 | Q105: 86.297
P106: 2.1788 | Q106: 86.4205
P107: 2.2 | Q107: 86.2333

Sheet Timings (hidden)
A1: DeadTime | B1: 2e-08 | D1: fsw | E1: =Fsw -> 398000
A2: GdrvDelay | B2: 2e-08 | D2: Tsw | E2: =1/E1 -> 2.512562814e-06
A3: IL | B3: 1
A4: IlPos | B4: =IF(B3>0,1,0) -> 1
A5: IlNeg | B5: =IF(B3<0,1,0) -> 0
A6: IlDir | B6: =B4-B5 -> 1
A8: Ifsw_2M | B8: 1e-06
A9: Iconst | B9: 1e-06
A10: T12_min | B10: 7.5e-08
A11: T23_min | B11: 7.5e-08
A12: I_T12_max | B12: =0.75/T12_min*Ifsw_2M/2000000*0.2 -> 1e-06
A13: I_T23_max | B13: =0.75/T23_min*Ifsw_2M/2000000*0.2 -> 1e-06
A14: Kgain_12 | B14: =1+4*0.25 -> 2
A15: Kratio_23 | B15: =1-2*0.041666 -> 0.916668
A17: I_T12(FSW) | B17: =MIN(Ifsw_2M/2000000*Fsw*Kgain_12,I_T12_max) -> 3.98e-07
A18: I_T23(FSW) | B18: =MIN(Ifsw_2M/2000000*Fsw*Kratio_23+Iconst*(1-Kratio_23),I_T23_max) -> 2.65748932e-07 | E18: D
A20: T1_to_T2(Fsw) | B20: =0.000000075/I_T12_FSW*0.000001 -> 1.884422111e-07 | E20: =T1_to_T2_Fsw*Fsw -> 0.075
A21: T2_to_T3(Fsw) | B21: =0.000000075/I_T23_FSW*0.000001 -> 2.822212659e-07 | E21: =T2_to_T3_Fsw*Fsw -> 0.1123240638
A22: T3_to_T4(Fsw) | B22: =T2_to_T3_Fsw -> 2.822212659e-07 | E22: =T3_to_T4_Fsw*Fsw -> 0.1123240638
A23: T1_to_T3(Fsw) | B23: =T1_to_T2_Fsw+T2_to_T3_Fsw -> 4.70663477e-07 | E23: =B23*Fsw -> 0.1873240638
A25: MinT1FallCtrl(Fsw) | B25: =0.2*T1_to_T2_Fsw -> 3.768844221e-08
A26: MinT1RiseCtrl(Fsw) | B26: =0.2*T1_to_T2_Fsw -> 3.768844221e-08 | G26: Vin
A28: MinTonBuck(Fsw) | B28: =T3_to_T4_Fsw-IlDir*DeadTime -> 2.622212659e-07 | E28: =MinTonBuck*Fsw -> 0.1043640638 | G28: =Vout/E28 -> 57.49105372
A29: MinToffBuck(Fsw) | B29: =T2_to_T3_Fsw+IlDir*DeadTime -> 3.022212659e-07 | E29: =(E2-MinToffBuck)*Fsw -> 0.8797159362 | G29: =Vout/E29 -> 6.820383437
A30: MaxTonBuck(Fsw) | B30: =1/Fsw-MinToffBuck -> 2.210341548e-06 | E30: =MaxTonBuck*Fsw -> 0.8797159362 | G30: =Vout/E30 -> 6.820383437
A32: MinTonBoost(Fsw) | B32: =T2_to_T3_Fsw-IlDir*DeadTime -> 2.622212659e-07 | E32: =MinTonBoost*Fsw -> 0.1043640638 | G32: =Vout*(1-E32) -> 5.373815617
A33: MinToffBoost(Fsw) | B33: =T1_to_T2_Fsw+IlDir*DeadTime -> 2.084422111e-07 | E33: =(E2-MinToffBoost)*Fsw -> 0.91704 | G33: =Vout*(1-E33) -> 0.49776
A34: MaxTonBoost(Fsw) | B34: =1/Fsw-MinToffBoost -> 2.304120603e-06 | E34: =MaxTonBoost*Fsw -> 0.91704 | G34: =Vout*(1-E34) -> 0.49776
A35: MaxToffBoost(Fsw) | B35: =1/Fsw-MaxTonBoost -> 2.084422111e-07 | E35: =MaxToffBoost*Fsw -> 0.08296
A36: MinTlRise(Fsw) | B36: =MAX(MAX(MinT1RiseCtrl,IlNeg*GdrvDelay)-IlDir*DeadTime,0) -> 1.768844221e-08 | E36: =MinTlRise*Fsw -> 0.00704
A37: MinTlFall(Fsw) | B37: =MAX(MinT1FallCtrl,IlPos*GdrvDelay) -> 3.768844221e-08 | E37: =MinTlFall*Fsw -> 0.015
A39: TBubo(Fsw) | B39: =T1_to_T2_Fsw+T2_to_T3_Fsw -> 4.70663477e-07 | E39: =TBubo*Fsw -> 0.1873240638 | G39: =Vout*(1-E39) -> 4.876055617
A40: TonBubo(Fsw) | B40: =1/Fsw-TBubo+0*DeadTime -> 2.041899337e-06 | E40: =TonBubo*Fsw -> 0.8126759362 | G40: =Vout*(1-E40) -> 1.123944383
A41: MaxTlRise(Fsw) | B41: =MAX(TBubo-MinTlFall-IlDir*DeadTime,0) -> 4.129750347e-07 | E41: =MaxTlRise*Fsw -> 0.1643640638
B43: =DeadTime+GdrvDelay -> 4e-08 | E43: =B43*Fsw -> 0.01592

Sheet CFG Setting (hidden)
A1: LM5177
A2: CFG
A3: Setting | B3: R_CFG [ | C3: DRSS | D3: SCP - HICCUP | E3: PSM Entry | F3: Current LIMIT | G3: =C3 -> DRSS | H3: =D3 -> SCP - HICCUP | I3: =E3 -> PSM Entry | J3: =F3 -> Current LIMIT
A4: 1 | B4: 0 | C4: 0 | D4: 0 | E4: 0 | F4: 0 | G4: =IF(C4=1,"Enable","Disable") -> Disable | H4: =IF(D4=1,"Enable","Disable") -> Disable | I4: 10% | J4: =IF(F4=1,"Enable","Disable") -> Disable | L4: =CONCATENATE(G$3,": ",C4) -> DRSS: 0 | M4: =CONCATENATE(H$3,": ",D4) -> SCP - HICCUP: 0 | N4: =CONCATENATE(I$3,": ",E4) -> PSM Entry: 0 | O4: =CONCATENATE(J$3,": ",F4) -> Current LIMIT: 0 | P4: =CONCATENATE(K$3,": ",G4) -> : Disable | R4: =CONCATENATE(L4," / ",M4," / ",N4," / ",O4) -> DRSS: 0 / SCP - HICCUP: 0 / PSM Entry: 0 / Current LIMIT: 0
A5: 2 | B5: 0.511 | C5: 1 | D5: 0 | E5: 0 | F5: 0 | G5: =IF(C5=1,"Enable","Disable") -> Enable | H5: Disable | I5: 10% | J5: Disable | L5: =CONCATENATE(G$3,": ",C5) -> DRSS: 1 | M5: SCP - HICCUP: 0 | N5: PSM Entry: 0 | O5: Current LIMIT: 0 | P5: : Enable | R5: =CONCATENATE(L5," / ",M5," / ",N5," / ",O5) -> DRSS: 1 / SCP - HICCUP: 0 / PSM Entry: 0 / Current LIMIT: 0
A6: 3 | B6: 1.15 | C6: 0 | D6: 1 | E6: 0 | F6: 0 | G6: Disable | H6: Enable | I6: 10% | J6: Disable | L6: DRSS: 0 | M6: SCP - HICCUP: 1 | N6: PSM Entry: 0 | O6: Current LIMIT: 0 | P6: : Disable | R6: DRSS: 0 / SCP - HICCUP: 1 / PSM Entry: 0 / Current LIMIT: 0
A7: 4 | B7: 1.9 | C7: 1 | D7: 1 | E7: 0 | F7: 0 | G7: Enable | H7: Enable | I7: 10% | J7: Disable | L7: DRSS: 1 | M7: SCP - HICCUP: 1 | N7: PSM Entry: 0 | O7: Current LIMIT: 0 | P7: : Enable | R7: DRSS: 1 / SCP - HICCUP: 1 / PSM Entry: 0 / Current LIMIT: 0
A8: 5 | B8: 2.7 | C8: 0 | D8: 0 | E8: 0 | F8: 1 | G8: Disable | H8: Disable | I8: 10% | J8: Enable | L8: DRSS: 0 | M8: SCP - HICCUP: 0 | N8: PSM Entry: 0 | O8: Current LIMIT: 1 | P8: : Disable | R8: DRSS: 0 / SCP - HICCUP: 0 / PSM Entry: 0 / Current LIMIT: 1
A9: 6 | B9: 3.8 | C9: 1 | D9: 0 | E9: 0 | F9: 1 | G9: Enable | H9: Disable | I9: 10% | J9: Enable | L9: DRSS: 1 | M9: SCP - HICCUP: 0 | N9: PSM Entry: 0 | O9: Current LIMIT: 1 | P9: : Enable | R9: DRSS: 1 / SCP - HICCUP: 0 / PSM Entry: 0 / Current LIMIT: 1
A10: 7 | B10: 5.1 | C10: 0 | D10: 1 | E10: 0 | F10: 1 | G10: Disable | H10: Enable | I10: 10% | J10: Enable | L10: DRSS: 0 | M10: SCP - HICCUP: 1 | N10: PSM Entry: 0 | O10: Current LIMIT: 1 | P10: : Disable | R10: DRSS: 0 / SCP - HICCUP: 1 / PSM Entry: 0 / Current LIMIT: 1
A11: 8 | B11: 6.5 | C11: 1 | D11: 1 | E11: 0 | F11: 1 | G11: Enable | H11: Enable | I11: 10% | J11: Enable | L11: DRSS: 1 | M11: SCP - HICCUP: 1 | N11: PSM Entry: 0 | O11: Current LIMIT: 1 | P11: : Enable | R11: DRSS: 1 / SCP - HICCUP: 1 / PSM Entry: 0 / Current LIMIT: 1
A12: 9 | B12: 8.3 | C12: 0 | D12: 0 | E12: 1 | F12: 0 | G12: Disable | H12: Disable | I12: 15% | J12: Disable | L12: DRSS: 0 | M12: SCP - HICCUP: 0 | N12: PSM Entry: 1 | O12: Current LIMIT: 0 | P12: : Disable | R12: DRSS: 0 / SCP - HICCUP: 0 / PSM Entry: 1 / Current LIMIT: 0
A13: 10 | B13: 10.5 | C13: 1 | D13: 0 | E13: 1 | F13: 0 | G13: Enable | H13: Disable | I13: 15% | J13: Disable | L13: DRSS: 1 | M13: SCP - HICCUP: 0 | N13: PSM Entry: 1 | O13: Current LIMIT: 0 | P13: : Enable | R13: DRSS: 1 / SCP - HICCUP: 0 / PSM Entry: 1 / Current LIMIT: 0
A14: 11 | B14: 13.3 | C14: 0 | D14: 1 | E14: 1 | F14: 0 | G14: Disable | H14: Enable | I14: 15% | J14: Disable | L14: DRSS: 0 | M14: SCP - HICCUP: 1 | N14: PSM Entry: 1 | O14: Current LIMIT: 0 | P14: : Disable | R14: DRSS: 0 / SCP - HICCUP: 1 / PSM Entry: 1 / Current LIMIT: 0
A15: 12 | B15: 16.2 | C15: 1 | D15: 1 | E15: 1 | F15: 0 | G15: Enable | H15: Enable | I15: 15% | J15: Disable | L15: DRSS: 1 | M15: SCP - HICCUP: 1 | N15: PSM Entry: 1 | O15: Current LIMIT: 0 | P15: : Enable | R15: DRSS: 1 / SCP - HICCUP: 1 / PSM Entry: 1 / Current LIMIT: 0
A16: 13 | B16: 20.5 | C16: 0 | D16: 0 | E16: 1 | F16: 1 | G16: Disable | H16: Disable | I16: 15% | J16: Enable | L16: DRSS: 0 | M16: SCP - HICCUP: 0 | N16: PSM Entry: 1 | O16: Current LIMIT: 1 | P16: : Disable | R16: DRSS: 0 / SCP - HICCUP: 0 / PSM Entry: 1 / Current LIMIT: 1
A17: 14 | B17: 24.9 | C17: 1 | D17: 0 | E17: 1 | F17: 1 | G17: Enable | H17: Disable | I17: 15% | J17: Enable | L17: DRSS: 1 | M17: SCP - HICCUP: 0 | N17: PSM Entry: 1 | O17: Current LIMIT: 1 | P17: : Enable | R17: DRSS: 1 / SCP - HICCUP: 0 / PSM Entry: 1 / Current LIMIT: 1
A18: 15 | B18: 30.1 | C18: 0 | D18: 1 | E18: 1 | F18: 1 | G18: Disable | H18: Enable | I18: 15% | J18: Enable | L18: DRSS: 0 | M18: SCP - HICCUP: 1 | N18: PSM Entry: 1 | O18: Current LIMIT: 1 | P18: : Disable | R18: DRSS: 0 / SCP - HICCUP: 1 / PSM Entry: 1 / Current LIMIT: 1
A19: 16 | B19: 36.5 | C19: 1 | D19: 1 | E19: 1 | F19: 1 | G19: Enable | H19: Enable | I19: 15% | J19: Enable | L19: DRSS: 1 | M19: SCP - HICCUP: 1 | N19: PSM Entry: 1 | O19: Current LIMIT: 1 | P19: : Enable | R19: DRSS: 1 / SCP - HICCUP: 1 / PSM Entry: 1 / Current LIMIT: 1
C21: 0 | D21: 1 | E21: 3 | F21: 2
C22: DRSS: off | D22: HICCUP: off | E22: PSM Entry: 10% | F22: IMON_LIMIT: off
C23: DRSS: on | D23: HICCUP: on | E23: PSM Entry: 15% | F23: IMON: on
F24: ILIMIT: positive
F25: ILIMIT: negative
B27: CFG Setting | C27: 1 | D27: 2 | E27: 1 | F27: 1 | G27: Calc Setting | H27: =CONCATENATE("R_",A2) -> R_CFG | J27: This cell give 1 for disable and 2 for enable
C28: =(C27-1)*2^C21 -> 0 | D28: =(D27-1)*2^D21 -> 2 | E28: =(E27-1)*2^E21 -> 0 | F28: =(IF(F27>2,1,0)*2^F21) -> 0 | G28: =SUM(C28:F28)+1 -> 3 | H28: =INDEX(B4:B19,G28) -> 1.15

Sheet Stability Calculations
B2: Divider Network & EA Poles/Zeros | E2: Modulator | J2: Power Stage Poles/Zeros | M2: Complex Pole Pair | P2: Total System
B3: Afb1 | C3: =Afb -> 0.1666666667 | D3: V/V | E3: Acs | F3: =Acs -> 25 | G3: A/V | H3: gm | I3: =gm -> 0.0006 | J3: z_ESR | K3: =Fesr -> 31830.98862 | L3: Hz | M3: p3 | N3: =Fsw/2 -> 199000 | O3: Hz | P3: Adc | Q3: =Am*Afb*AEA -> 14873.05202 | R3: V/V | S3: =20*LOG(Adc) -> 83.44800194 | T3: dB
B4: EA zero, z1 | C4: =Fz1_u -> 1421.026278 | D4: Hz | E4: Am | F4: =Am -> 14.87305202 | G4: V/V | J4: p_dom | K4: =Fp_dominant -> 1591.549431 | L4: Hz | M4: pterm1 | N4: =Q*PS_Pole2 -> 70831.70718 | P4: Crossover | Q4: =AJ8/1000 -> 90.682 | R4: kHz | U4: IL zero, z1 | V4: =1/(2*Pi*RcIL*Cc1IL) -> 103347.3656
B5: EA pole, p1 | C5: =Fp1_u -> 2.836379796 | D5: Hz | E5: Q | F5: =Q -> 0.355938227 | J5: z_RHP | K5: =IF(VIN_nom>Vout, 10000000,Frhp) -> 10000000 | L5: Hz | M5: pterm2 | N5: =PS_Pole2^2+0.01 -> 3.9601e+10 | P5: Phase Margin | Q5: =AJ9 -> 86.41101455 | R5: ° | U5: IL pole, p1 | V5: =1/(2*Pi*(RoEA_IL+RcIL)*Cc1IL) -> 3.617031201
B6: Aea | C6: =AEA -> 6000 | D6: V/V | E6: mc | F6: =mc -> 5.527439024 | P6: radconv | Q6: =180/Pi -> 57.29577951 | U6: AIL | V6: =gm_IL*RoEA_IL -> 4000 | AI6: XOVER SEARCH
B7: EA pole, p2 | C7: =Fp2_u -> 313969.4128 | D7: Hz | E7: k | F7: =k -> 1.39428407 | U7: IL pole, p2 | V7: =1/(2*Pi*RcIL*(Cc2IL+Cbw_IL)) -> 14284816.74 | AI7: System | AK7: Error Amp
AI8: xover | AJ8: =SUM(AI12:AI613) -> 90682 | AK8: xover | AL8: =SUM(AK12:AK613) -> 0
AI9: phase margin | AJ9: =SUM(AJ13:AJ613) -> 86.41101455 | AK9: phase margin | AL9: =SUM(AL13:AL613) -> 0
B10: Freq (Hz) | C10: Power Stage | I10: Error Amplifier | O10: ILimit Amplifier | U10: Sampling Double Pole | W10: System Response | AB10: ERROR AMP Response | AF10: PLANT Response
C11: p_dom | E11: z_ESR | G11: z_RHP | I11: p1 | K11: z1 | M11: p2 | O11: p1 | Q11: z1 | S11: p2 | U11: p3
C12: Gain(V/V) | D12: Phase(rad) | E12: Gain(V/V) | F12: Phase(rad) | G12: Gain(V/V) | H12: Phase(rad) | I12: Gain(V/V) | J12: Phase(rad) | K12: Gain(V/V) | L12: Phase(rad) | M12: Gain(V/V) | N12: Phase(rad) | O12: Gain(V/V) | P12: Phase(rad) | Q12: Gain(V/V) | R12: Phase(rad) | S12: Gain(V/V) | T12: Phase(rad) | U12: Gain(V/V) | V12: Phase(rad) | W12: Loop Gain (dB) | X12: :Loop Phase Margin (°) | Y12: Phase (°) | AB12: Gain(dB) | AC12: Phase(Deg) | AF12: Gain(dB) | AG12: Phase(Deg)
B13: 1 | C13: =SQRT(1+(B13/PS_Pole1)^2) -> 1.000000197 | D13: =ATAN(B13/PS_Pole1) -> 0.000628318448 | E13: =SQRT(1+(B13/PS_Zero1)^2) -> 1 | F13: =ATAN(B13/PS_Zero1) -> 3.141592653e-05 | G13: =IF(VIN_nom>Vout, 1, SQRT(1+(B13/PS_RHPZ)^2)) -> 1 | H13: =IF(VIN_nom>Vout, 0, -ATAN(B13/PS_RHPZ)) -> 0 | I13: =SQRT(1+(B13/EA_Pole1)^2) -> 1.060330151 | J13: =ATAN(B13/EA_Pole1) -> 0.3389554825 | K13: =SQRT(1+(B13/EA_Zero1)^2) -> 1.000000248 | L13: =ATAN(B13/EA_Zero1) -> 0.0007037166382 | M13: =SQRT(1+(B13/EA_Pole2)^2) -> 1 | N13: =ATAN(B13/EA_Pole2) -> 3.185023634e-06 | O13: =SQRT(1+(B13/$V$5)^2) -> 1.037514128 | P13: =ATAN(B13/$V$5) -> 0.2697321856 | Q13: =SQRT(1+(B13/$V$4)^2) -> 1 | R13: =ATAN(B13/$V$4) -> 9.676105373e-06 | S13: =SQRT(1+(B13/$V$7)^2) -> 1 | T13: =ATAN(B13/$V$7) -> 7.000439823e-08 | U13: =SQRT((1-(B13^2/pterm2))^2+(B13/pterm1)^2) -> 1 | V13: =IF((ATAN((B13/pterm1)/(1-B13^2/pterm2))>0),ATAN((B13/pterm1)/(1-B13^2/pterm2)),PI()+ATAN((B13/pterm1)/(1-B13^2/pterm2))) -> 1.411797117e-05 | W13: =20*LOG10(((E13*K13*G13)/(C13*I13*U13*M13))*Adc) -> 82.93918015 | X13: =IF(((F13+L13+H13)-(D13+J13+V13+N13))*radconv<-180,((F13+L13+H13)-(D13+J13+V13+N13))*radconv+360,((F13+L13+H13)-(D13+J13+V13+N13))*radconv) -> -19.41558998 | Y13: =IF(X13>0,X13-180,X13+180) -> 160.58441 | AB13: =20*LOG10((K13/(I13*M13))*AEA) -> 75.05420494 | AC13: =(L13-(J13+N13))*radconv -> -19.38058109 | AF13: =20*LOG10((E13*G13/(C13*U13))*Acs*Am) -> 51.4068004 | AG13: =(F13+H13-(D13+V13))*radconv -> -0.03500889543 | AI13: =SUM((W14<0)*(W13>0))*B13 -> 0 | AJ13: =IF(AI13>0,Y11,0) -> 0 | AK13: =SUM((AB14<0)*(AB13>0))*B13 -> 0 | AL13: =IF(AK13>0,AC13,0) -> 0
B14: 1.0965 | C14: 1.000000237 | D14: 0.0006889511599 | E14: 1.000000001 | F14: 3.444756343e-05 | G14: 1 | H14: 0 | I14: 1.07212287 | J14: 0.3688879219 | K14: 1.000000298 | L14: 0.0007716252681 | M14: 1 | N14: 3.492378414e-06 | O14: 1.044939911 | P14: 0.2943434296 | Q14: 1 | R14: 1.060984954e-05 | S14: 1 | T14: 7.675982266e-08 | U14: 1 | V14: 1.548035539e-05 | W14: 82.84311126 | X14: -21.13009752 | Y14: =IF(X14>0,X14-180,X14+180) -> 158.8699025 | AB14: 74.95813639 | AC14: -21.09171027 | AF14: 51.40680005 | AG14: -0.03838725278 | AI14: 0 | AJ14: 0 | AK14: 0 | AL14: 0
B15: 1.2023 | C15: 1.000000285 | D15: 0.0007554272258 | E15: 1.000000001 | F15: 3.777136846e-05 | G15: 1 | H15: 0 | I15: 1.086130212 | J15: 0.4009261973 | K15: 1.000000358 | L15: 0.0008460784519 | M15: 1 | N15: 3.829353915e-06 | O15: 1.053797677 | P15: 0.3209100277 | Q15: 1 | R15: 1.163358149e-05 | S15: 1 | T15: 8.416628799e-08 | U15: 1 | V15: 1.697403674e-05 | W15: 82.73036469 | X15: -22.96521287 | Y15: 157.0347871 | AB15: 74.84539023 | AC15: -22.92312168 | AF15: 51.40679964 | AG15: -0.04209119243 | AI15: 0 | AJ15: 0 | AK15: 0 | AL15: 0
B16: 1.3183 | C16: 1.000000343 | D16: 0.0008283121296 | E16: 1.000000001 | F16: 4.141561593e-05 | G16: 1 | H16: 0 | I16: 1.102734271 | J16: 0.4350789151 | K16: 1.00000043 | L16: 0.0009277095312 | M16: 1 | N16: 4.198816656e-06 | O16: 1.064348866 | P16: 0.3495072395 | Q16: 1 | R16: 1.275600971e-05 | S16: 1 | T16: 9.228679819e-08 | U16: 1 | V16: 1.861172139e-05 | W16: 82.59858526 | X16: -24.92142455 | Y16: 155.0785755 | AB16: 74.71361131 | AC16: -24.87527233 | AF16: 51.40679914 | AG16: -0.04615222223 | AI16: 0 | AJ16: 0 | AK16: 0 | AL16: 0
B17: 1.4454 | C17: 1.000000412 | D17: 0.0009081713546 | E17: 1.000000001 | F17: 4.540858018e-05 | G17: 1 | H17: 0 | I17: 1.12235702 | J17: 0.4712927234 | K17: 1.000000517 | L17: 0.001017151846 | M17: 1 | N17: 4.60363316e-06 | O17: 1.076887991 | P17: 0.3801696867 | Q17: 1 | R17: 1.398584271e-05 | S17: 1 | T17: 1.011843572e-07 | U17: 1 | V17: 2.040611553e-05 | W17: 82.44538231 | X17: -26.99567107 | Y17: 153.0043289 | AB17: 74.56040895 | AC17: -26.94506922 | AF17: 51.40679853 | AG17: -0.05060184999 | AI17: 0 | AJ17: 0 | AK17: 0 | AL17: 0
B18: 1.5849 | C18: 1.000000496 | D18: 0.0009958217102 | E18: 1.000000001 | F18: 4.979110193e-05 | G18: 1 | H18: 0 | I18: 1.145526185 | J18: 0.5095557882 | K18: 1.000000622 | L18: 0.001115320222 | M18: 1 | N18: 5.047943957e-06 | O18: 1.091787119 | P18: 0.412978564 | Q18: 1 | R18: 1.53356594e-05 | S18: 1 | T18: 1.109499708e-07 | U18: 1 | V18: 2.237557251e-05 | W18: 82.26790262 | X18: -29.18726776 | Y18: 150.8127322 | AB18: 74.38292999 | AC18: -29.13178217 | AF18: 51.40679781 | AG18: -0.05548558701 | AI18: 0 | AJ18: 0 | AK18: 0 | AL18: 0
B19: 1.7378 | C19: 1.000000596 | D19: 0.001091891509 | E19: 1.000000001 | F19: 5.459459708e-05 | G19: 1 | H19: 0 | I19: 1.172765847 | J19: 0.5496926472 | K19: 1.000000748 | L19: 0.001222918366 | M19: 1 | N19: 5.534934071e-06 | O19: 1.109428457 | P19: 0.4478850525 | Q19: 1 | R19: 1.681513592e-05 | S19: 1 | T19: 1.216536432e-07 | U19: 1 | V19: 2.45342103e-05 | W19: 82.06377706 | X19: -31.48615622 | Y19: 148.5138438 | AB19: 74.1788053 | AC19: -31.42531778 | AF19: 51.40679694 | AG19: -0.06083844184 | AI19: 0 | AJ19: 0 | AK19: 0 | AL19: 0
B20: 1.9055 | C20: 1.000000717 | D20: 0.001197260388 | E20: 1.000000002 | F20: 5.986304794e-05 | G20: 1 | H20: 0 | I20: 1.2047094 | J20: 0.5915529063 | K20: 1.000000899 | L20: 0.001340931472 | M20: 1 | N20: 6.069062534e-06 | O20: 1.130279705 | P20: 0.4848674088 | Q20: 1 | R20: 1.843781879e-05 | S20: 1 | T20: 1.333933808e-07 | U20: 1 | V20: 2.690179406e-05 | W20: 81.83035755 | X20: -33.88371233 | Y20: 146.1162877 | AB20: 73.94538683 | AC20: -33.81700291 | AF20: 51.4067959 | AG20: -0.06670942649 | AI20: 0 | AJ20: 0 | AK20: 0 | AL20: 0
B21: 2.0893 | C21: 1.000000862 | D21: 0.001312745152 | E21: 1.000000002 | F21: 6.563729522e-05 | G21: 1 | H21: 0 | I21: 1.242010999 | J21: 0.6348749802 | K21: 1.000001081 | L21: 0.001470274356 | M21: 1 | N21: 6.654469878e-06 | O21: 1.154839636 | P21: 0.5238073599 | Q21: 1 | R21: 2.021628695e-05 | S21: 1 | T21: 1.462601892e-07 | U21: 1 | V21: 2.949667716e-05 | W21: 81.56549502 | X21: -36.3649417 | Y21: 143.6350583 | AB21: 73.68052556 | AC21: -36.29179764 | AF21: 51.40679464 | AG21: -0.07314405191 | AI21: 0 | AJ21: 0 | AK21: 0 | AL21: 0
B22: 2.2909 | C22: 1.000001036 | D22: 0.001439413928 | E22: 1.000000003 | F22: 7.197074598e-05 | G22: 1 | H22: 0 | I22: 1.285439323 | J22: 0.6794090809 | K22: 1.0000013 | L22: 0.001612143316 | M22: 1 | N22: 7.296570642e-06 | O22: 1.183702194 | P22: 0.5645918037 | Q22: 1 | R22: 2.21669898e-05 | S22: 1 | T22: 1.603730759e-07 | U22: 1 | V22: 3.234286015e-05 | W22: 81.26697262 | X22: -38.91552378 | Y22: 141.0844762 | AB22: 73.38200467 | AC22: -38.83532195 | AF22: 51.40679313 | AG22: -0.08020183243 | AI22: 0 | AJ22: 0 | AK22: 0 | AL22: 0
B23: 2.5119 | C23: 1.000001245 | D23: 0.001578272007 | E23: 1.000000003 | F23: 7.89136657e-05 | G23: 1 | H23: 0 | I23: 1.335772676 | J23: 0.7248025017 | K23: 1.000001562 | L23: 0.001767664274 | M23: 1 | N23: 8.000460865e-06 | O23: 1.217489644 | P23: 0.6070012382 | Q23: 1 | R23: 2.430540908e-05 | S23: 1 | T23: 1.758440479e-07 | U23: 1 | V23: 3.546293178e-05 | W23: 80.9333536 | X23: -41.5152418 | Y23: 138.4847582 | AB23: 73.04838747 | AC23: -41.42730302 | AF23: 51.40679131 | AG23: -0.08793878125 | AI23: 0 | AJ23: 0 | AK23: 0 | AL23: 0
B24: 2.7542 | C24: 1.000001497 | D24: 0.00173051317 | E24: 1.000000004 | F24: 8.652574465e-05 | G24: 1 | H24: 0 | I24: 1.393876788 | J24: 0.770699531 | K24: 1.000001878 | L24: 0.001938174258 | M24: 1 | N24: 8.772192092e-06 | O24: 1.25690532 | P24: 0.6507909538 | Q24: 1 | R24: 2.664992941e-05 | S24: 1 | T24: 1.928061136e-07 | U24: 1.000000001 | V24: 3.888371619e-05 | W24: 80.56351755 | X24: -44.14370522 | Y24: 135.8562948 | AB24: 72.6785536 | AC24: -44.0472838 | AF24: 51.40678913 | AG24: -0.09642141387 | AI24: 0 | AJ24: 0 | AK24: 0 | AL24: 0
B25: 3.02 | C25: 1.0000018 | D25: 0.001897519685 | E25: 1.000000005 | F25: 9.487609785e-05 | G25: 1 | H25: 0 | I25: 1.460707361 | J25: 0.8167417709 | K25: 1.000002258 | L25: 0.002125221399 | M25: 1 | N25: 9.618771373e-06 | O25: 1.302736713 | P25: 0.6956850673 | Q25: 1 | R25: 2.922183822e-05 | S25: 1 | T25: 2.114132827e-07 | U25: 1.000000001 | V25: 4.263627292e-05 | W25: 80.15674159 | X25: -46.78036807 | Y25: 133.2196319 | AB25: 72.27178027 | AC25: -46.67464132 | AF25: 51.40678651 | AG25: -0.105726748 | AI25: 0 | AJ25: 0 | AK25: 0 | AL25: 0
B26: 3.3113 | C26: 1.000002164 | D26: 0.002080548149 | E26: 1.000000005 | F26: 0.0001040275572 | G26: 1 | H26: 0 | I26: 1.537177119 | J26: 0.8624969772 | K26: 1.000002715 | L26: 0.002330213071 | M26: 1 | N26: 1.054656876e-05 | O26: 1.355763123 | P26: 0.7412990898 | Q26: 1.000000001 | R26: 3.204048771e-05 | S26: 1 | T26: 2.318055639e-07 | U26: 1.000000001 | V26: 4.674883792e-05 | W26: 79.71352853 | X26: -49.40045434 | Y26: 130.5995457 | AB26: 71.82857036 | AC26: -49.28452954 | AF26: 51.40678335 | AG26: -0.1159247991 | AI26: 0 | AJ26: 0 | AK26: 0 | AL26: 0
B27: 3.6308 | C27: 1.000002602 | D27: 0.002281294964 | E27: 1.000000007 | F27: 0.0001140649456 | G27: 1 | H27: 0 | I27: 1.624380214 | J27: 0.9076245831 | K27: 1.000003264 | L27: 0.002555049232 | M27: 1 | N27: 1.156418381e-05 | O27: 1.416907832 | P27: 0.787297874 | Q27: 1.000000001 | R27: 3.513200337e-05 | S27: 1 | T27: 2.541719691e-07 | U27: 1.000000001 | V27: 5.12595297e-05 | W27: 79.23425391 | X27: -51.98443712 | Y27: 128.0155629 | AB27: 71.34929954 | AC27: -51.85732704 | AF27: 51.40677956 | AG27: -0.127110088 | AI27: 0 | AJ27: 0 | AK27: 0 | AL27: 0
B28: 3.9811 | C28: 1.000003128 | D28: 0.002501393686 | E28: 1.000000008 | F28: 0.0001250699445 | G28: 1 | H28: 0 | I28: 1.723383509 | J28: 0.9517559226 | K28: 1.000003924 | L28: 0.002801559441 | M28: 1 | N28: 1.267989759e-05 | O28: 1.487090889 | P28: 0.8332771155 | Q28: 1.000000001 | R28: 3.852154308e-05 | S28: 1 | T28: 2.786945098e-07 | U28: 1.000000001 | V28: 5.6205055e-05 | W28: 78.72037025 | X28: -54.5111801 | Y28: 125.4888199 | AB28: 70.83542044 | AC28: -54.37180647 | AF28: 51.40677499 | AG28: -0.1393736336 | AI28: 0 | AJ28: 0 | AK28: 0 | AL28: 0
B29: 4.3652 | C29: 1.000003761 | D29: 0.002742729173 | E29: 1.000000009 | F29: 0.0001371368017 | G29: 1 | H29: 0 | I29: 1.835356498 | J29: 0.9945821996 | K29: 1.000004718 | L29: 0.003071854714 | M29: 1 | N29: 1.390326516e-05 | O29: 1.567315383 | P29: 0.8788544069 | Q29: 1.000000001 | R29: 4.223813515e-05 | S29: 1 | T29: 3.055831992e-07 | U29: 1.000000001 | V29: 6.162776771e-05 | W29: 78.17360164 | X29: -56.96297516 | Y29: 123.0370248 | AB29: 70.28865731 | AC29: -56.81015471 | AF29: 51.40676951 | AG29: -0.152820457 | AI29: 0 | AJ29: 0 | AK29: 0 | AL29: 0
B30: 4.7863 | C30: 1.000004522 | D30: 0.003007311918 | E30: 1.000000011 | F30: 0.000150366048 | G30: 1 | H30: 0 | I30: 1.961516781 | J30: 1.035832923 | K30: 1.000005672 | L30: 0.003368186765 | M30: 1 | N30: 1.524447862e-05 | O30: 1.658625032 | P30: 0.9236539574 | Q30: 1.000000001 | R30: 4.631274311e-05 | S30: 1 | T30: 3.350620512e-07 | U30: 1.000000002 | V30: 6.757284536e-05 | W30: 77.59617145 | X30: -59.32430792 | Y30: 120.6756921 | AB30: 69.71123372 | AC30: -59.15674534 | AF30: 51.40676292 | AG30: -0.1675625795 | AI30: 0 | AJ30: 0 | AK30: 0 | AL30: 0
B31: 5.2481 | C31: 1.000005437 | D31: 0.00329746653 | E31: 1.000000014 | F31: 0.0001648739226 | G31: 1 | H31: 0 | I31: 2.103221396 | J31: 1.075308213 | K31: 1.00000682 | L31: 0.003693159108 | M31: 1 | N31: 1.671532253e-05 | O31: 1.762166477 | P31: 0.9673502646 | Q31: 1.000000001 | R31: 5.078116856e-05 | S31: 1 | T31: 3.673900823e-07 | U31: 1.000000002 | V31: 7.409252442e-05 | W31: 76.99031422 | X31: -61.58370709 | Y31: 118.4162929 | AB31: 69.10538442 | AC31: -61.39997756 | AF31: 51.40675499 | AG31: -0.1837295243 | AI31: 0 | AJ31: 0 | AK31: 0 | AL31: 0
B32: 5.7544 | C32: 1.000006536 | D32: 0.003615580398 | E32: 1.000000016 | F32: 0.0001807798057 | G32: 1 | H32: 0 | I32: 2.261849184 | J32: 1.112839795 | K32: 1.000008199 | L32: 0.004049445557 | M32: 1 | N32: 1.83279e-05 | O32: 1.87910086 | P32: 1.009635434 | Q32: 1.000000002 | R32: 5.56801807e-05 | S32: 1 | T32: 4.028333092e-07 | U32: 1.000000002 | V32: 8.12404532e-05 | W32: 76.35874362 | X32: -63.73151182 | Y32: 116.2684882 | AB32: 68.47382335 | AC32: -63.53005751 | AF32: 51.40674546 | AG32: -0.2014543125 | AI32: 0 | AJ32: 0 | AK32: 0 | AL32: 0
B33: 6.3096 | C33: 1.000007858 | D33: 0.003964417832 | E33: 1.00000002 | F33: 0.0001982219275 | G33: 1 | H33: 0 | I33: 2.438957765 | J33: 1.148329985 | K33: 1.000009858 | L33: 0.004440142054 | M33: 1 | N33: 2.009622512e-05 | O33: 2.010716373 | P33: 1.050271891 | Q33: 1.000000002 | R33: 6.105235439e-05 | S33: 1 | T33: 4.416997511e-07 | U33: 1.000000003 | V33: 8.907875076e-05 | W33: 75.70393385 | X33: -65.76210263 | Y33: 114.2378974 | AB33: 67.81902503 | AC33: -65.54121166 | AF33: 51.406734 | AG33: -0.2208909666 | AI33: 0 | AJ33: 0 | AK33: 0 | AL33: 0
B34: 6.9183 | C34: 1.000009448 | D34: 0.004346868712 | E34: 1.000000024 | F34: 0.0002173448011 | G34: 1 | H34: 0 | I34: 2.636163271 | J34: 1.181714342 | K34: 1.000011851 | L34: 0.004868485157 | M34: 1 | N34: 2.2034949e-05 | O34: 2.158338705 | P34: 1.089059189 | Q34: 1.000000002 | R34: 6.69421997e-05 | S34: 1 | T34: 4.843114283e-07 | U34: 1.000000004 | V34: 9.767235977e-05 | W34: 75.02857689 | X34: -67.67176372 | Y34: 112.3282363 | AB34: 67.14368185 | AC34: -67.42956322 | AF34: 51.40672022 | AG34: -0.2422005055 | AI34: 0 | AJ34: 0 | AK34: 0 | AL34: 0
B35: 7.5858 | C35: 1.000011359 | D35: 0.004766262618 | E35: 1.000000028 | F35: 0.000238314931 | G35: 1 | H35: 0 | I35: 2.855304867 | J35: 1.212984701 | K35: 1.000014248 | L35: 0.005338203848 | M35: 1 | N35: 2.416095228e-05 | O35: 2.323453441 | P35: 1.125867299 | Q35: 1.000000003 | R35: 7.340100001e-05 | S35: 1 | T35: 5.310393641e-07 | U35: 1.000000004 | V35: 0.0001070961055 | W35: 74.33497753 | X35: -69.46000021 | Y35: 110.5399998 | AB35: 66.45009905 | AC35: -69.19443176 | AF35: 51.40670366 | AG35: -0.2655684472 | AI35: 0 | AJ35: 0 | AK35: 0 | AL35: 0
B36: 8.3176 | C36: 1.000013656 | D36: 0.005226054633 | E36: 1.000000034 | F36: 0.0002613051046 | G36: 1 | H36: 0 | I36: 3.098287119 | J36: 1.242153293 | K36: 1.00001713 | L36: 0.005853167633 | M36: 1 | N36: 2.649175257e-05 | O36: 2.507588738 | P36: 1.16059989 | Q36: 1.000000003 | R36: 8.048197388e-05 | S36: 1 | T36: 5.822685827e-07 | U36: 1.000000005 | V36: 0.0001174276367 | W36: 73.62559913 | X36: -71.12748455 | Y36: 108.8725154 | AB36: 65.74074056 | AC36: -70.83629725 | AF36: 51.40668375 | AG36: -0.2911873023 | AI36: 0 | AJ36: 0 | AK36: 0 | AL36: 0
B37: 9.1201 | C37: 1.000016418 | D37: 0.005730265112 | E37: 1.000000041 | F37: 0.0002865163838 | G37: 1 | H37: 0 | I37: 3.367314531 | J37: 1.269275721 | K37: 1.000020595 | L37: 0.006417879055 | M37: 1 | N37: 2.904773403e-05 | O37: 2.712493653 | P37: 1.19322446 | Q37: 1.000000004 | R37: 8.824704838e-05 | S37: 1 | T37: 6.384471123e-07 | U37: 1.000000006 | V37: 0.0001287573084 | W37: 72.90236482 | X37: -72.67736983 | Y37: 107.3226302 | AB37: 65.0175302 | AC37: -72.35808875 | AF37: 51.40665981 | AG37: -0.3192810772 | AI37: 0 | AJ37: 0 | AK37: 0 | AL37: 0
B38: 10 | C38: 1.000019739 | D38: 0.006283102626 | E38: 1.000000049 | F38: 0.000314159255 | G38: 1 | H38: 0 | I38: 3.664696851 | J38: 1.294417323 | K38: 1.000024761 | L38: 0.007037051383 | M38: 1.000000001 | N38: 3.185023633e-05 | O38: 2.939992631 | P38: 1.223733846 | Q38: 1.000000005 | R38: 9.676105343e-05 | S38: 1 | T38: 7.000439823e-07 | U38: 1.000000007 | V38: 0.0001411797111 | W38: 72.16728481 | X38: -74.11336532 | Y38: 105.8866347 | AB38: 64.28247897 | AC38: -73.76328105 | AF38: 51.40663102 | AG38: -0.3500842649 | AI38: 0 | AJ38: 0 | AK38: 0 | AL38: 0
B39: 10.965 | C39: 1.000023732 | D39: 0.006889403688 | E39: 1.000000059 | F39: 0.0003444756208 | G39: 1 | H39: 0 | I39: 3.993087137 | J39: 1.31766905 | K39: 1.00002977 | L39: 0.007716101074 | M39: 1.000000001 | N39: 3.492378413e-05 | O39: 3.192168826 | P39: 1.252165457 | Q39: 1.000000006 | R39: 0.000106098495 | S39: 1 | T39: 7.675982266e-07 | U39: 1.000000009 | V39: 0.0001548035531 | W39: 71.42187906 | X39: -75.44064266 | Y39: 104.5593573 | AB39: 63.53710783 | AC39: -75.05677632 | AF39: 51.40659641 | AG39: -0.3838663457 | AI39: 0 | AJ39: 0 | AK39: 0 | AL39: 0
B40: 12.023 | C40: 1.000028533 | D40: 0.00755413 | E40: 1.000000071 | F40: 0.0003777136668 | G40: 1 | H40: 0 | I40: 4.355213394 | J40: 1.339119498 | K40: 1.000035792 | L40: 0.008460584659 | M40: 1.000000001 | N40: 3.829353913e-05 | O40: 3.471160393 | P40: 1.278566637 | Q40: 1.000000007 | R40: 0.0001163358144 | S40: 1 | T40: 8.416628799e-07 | U40: 1.000000011 | V40: 0.0001697403664 | W40: 70.66787672 | X40: -76.66423753 | Y40: 103.3357625 | AB40: 62.7831471 | AC40: -76.24333375 | AF40: 51.4065548 | AG40: -0.4209037745 | AI40: 0 | AJ40: 0 | AK40: 0 | AL40: 0
B41: 13.183 | C41: 1.000034304 | D41: 0.008282933763 | E41: 1.000000086 | F41: 0.0004141561358 | G41: 1 | H41: 0 | I41: 4.754186293 | J41: 1.358872641 | K41: 1.000043031 | L41: 0.009276831844 | M41: 1.000000001 | N41: 4.198816654e-05 | O41: 3.779398226 | P41: 1.303015106 | Q41: 1.000000008 | R41: 0.0001275600964 | S41: 1 | T41: 9.228679819e-07 | U41: 1.000000013 | V41: 0.0001861172126 | W41: 69.90655445 | X41: -77.79006114 | Y41: 102.2099389 | AB41: 62.02187485 | AC41: -77.32854966 | AF41: 51.40650478 | AG41: -0.4615114787 | AI41: 0 | AJ41: 0 | AK41: 0 | AL41: 0
B42: 14.454 | C42: 1.000041238 | D42: 0.009081466376 | E42: 1.000000103 | F42: 0.0004540857709 | G42: 1 | H42: 0 | I42: 5.193123155 | J42: 1.377023626 | K42: 1.000051729 | L42: 0.01017117121 | M42: 1.000000001 | N42: 4.603633157e-05 | O42: 4.119317248 | P42: 1.325587742 | Q42: 1.00000001 | R42: 0.0001398584262 | S42: 1 | T42: 1.011843572e-06 | U42: 1.000000016 | V42: 0.0002040611536 | W42: 69.13952136 | X42: -78.82351891 | Y42: 101.1764811 | AB42: 61.25490185 | AC42: -78.31751457 | AF42: 51.40644469 | AG42: -0.5060043398 | AI42: 0 | AJ42: 0 | AK42: 0 | AL42: 0
B43: 15.849 | C43: 1.000049582 | D43: 0.00995789124 | E43: 1.000000124 | F43: 0.0004979109785 | G43: 1 | H43: 0 | I43: 5.676532755 | J43: 1.393708318 | K43: 1.000062195 | L43: 0.01115274441 | M43: 1.000000001 | N43: 5.047943953e-05 | O43: 4.494431134 | P43: 1.346420818 | Q43: 1.000000012 | R43: 0.0001533565929 | S43: 1 | T43: 1.109499708e-06 | U43: 1.000000019 | V43: 0.0002237557228 | W43: 68.36644943 | X43: -79.77232879 | Y43: 100.2276712 | AB43: 60.48190223 | AC43: -79.21749159 | AF43: 51.40637237 | AG43: -0.5548372018 | AI43: 0 | AJ43: 0 | AK43: 0 | AL43: 0
B44: 17.378 | C44: 1.00005961 | D44: 0.01091848553 | E44: 1.000000149 | F44: 0.0005459459171 | G44: 1 | H44: 0 | I44: 6.207896034 | J44: 1.409006241 | K44: 1.000074774 | L44: 0.01222858018 | M44: 1.000000002 | N44: 5.534934065e-05 | O44: 4.907458619 | P44: 1.365587654 | Q44: 1.000000014 | R44: 0.0001681513576 | S44: 1 | T44: 1.216536432e-06 | U44: 1.000000022 | V44: 0.0002453421 | W44: 67.58924603 | X44: -80.64099598 | Y44: 99.35900402 | AB44: 59.70478575 | AC44: -80.03263617 | AF44: 51.40628546 | AG44: -0.6083598095 | AI44: 0 | AJ44: 0 | AK44: 0 | AL44: 0
B45: 19.055 | C45: 1.000071669 | D45: 0.01197203759 | E45: 1.000000179 | F45: 0.0005986304086 | G45: 1 | H45: 0 | I45: 6.79208907 | J45: 1.423029053 | K45: 1.000089901 | L45: 0.01340851913 | M45: 1.000000002 | N45: 6.069062526e-05 | O45: 5.362203011 | P45: 1.383207552 | Q45: 1.000000017 | R45: 0.0001843781858 | S45: 1 | T45: 1.333933808e-06 | U45: 1.000000027 | V45: 0.0002690179367 | W45: 66.80809414 | X45: -81.43584643 | Y45: 98.56415357 | AB45: 58.92373838 | AC45: -80.76878461 | AF45: 51.40618094 | AG45: -0.6670618224 | AI45: 0 | AJ45: =IF(AI45>0,Y43,0) -> 0 | AK45: 0 | AL45: 0
B46: 20.893 | C46: 1.000086161 | D46: 0.01312670505 | E46: 1.000000215 | F46: 0.0006563728589 | G46: 1 | H46: 0 | I46: 7.433648636 | J46: 1.43586381 | K46: 1.00010808 | L46: 0.01470169485 | M46: 1.000000002 | N46: 6.654469868e-05 | O46: 5.862205949 | P46: 1.399373748 | Q46: 1.00000002 | R46: 0.0002021628668 | S46: 1 | T46: 1.462601892e-06 | U46: 1.000000032 | V46: 0.0002949667664 | W46: 66.02415327 | X46: -82.16180167 | Y46: 97.83819833 | AB46: 58.13992311 | AC46: -81.43040391 | AF46: 51.40605534 | AG46: -0.7313977547 | AI46: 0 | AJ46: 0 | AK46: 0 | AL46: 0
B47: 22.909 | C47: 1.00010359 | D47: 0.01439315523 | E47: 1.000000259 | F47: 0.0007197073367 | G47: 1 | H47: 0 | I47: 8.138514934 | J47: 1.447612486 | K47: 1.000129942 | L47: 0.01612005068 | M47: 1.000000003 | N47: 7.296570629e-05 | O47: 6.412104839 | P47: 1.414202087 | Q47: 1.000000025 | R47: 0.0002216698944 | S47: 1 | T47: 1.603730759e-06 | U47: 1.000000039 | V47: 0.0003234285946 | W47: 65.23732939 | X47: -82.82461753 | Y47: 97.17538247 | AB47: 57.35325028 | AC47: -82.02265558 | AF47: 51.40590429 | AG47: -0.801961949 | AI47: 0 | AJ47: 0 | AK47: 0 | AL47: 0
B48: 25.119 | C48: 1.00012454 | D48: 0.0157814229 | E48: 1.000000311 | F48: 0.0007891364948 | G48: 1 | H48: 0 | I48: 8.91228726 | J48: 1.4583549 | K48: 1.00015622 | L48: 0.01767482039 | M48: 1.000000003 | N48: 8.000460848e-05 | O48: 7.016274169 | P48: 1.427783539 | Q48: 1.00000003 | R48: 0.0002430540861 | S48: 1 | T48: 1.758440479e-06 | U48: 1.000000047 | V48: 0.0003546293087 | W48: 64.44849581 | X48: -83.42878564 | Y48: 96.57121436 | AB48: 56.56459826 | AC48: -82.54947214 | AF48: 51.40572274 | AG48: -0.8793134992 | AI48: 0 | AJ48: 0 | AK48: 0 | AL48: 0
B49: 27.542 | C49: 1.000149723 | D49: 0.01730342184 | E49: 1.000000374 | F49: 0.0008652572327 | G49: 1 | H49: 0 | I49: 9.761621284 | J49: 1.468174299 | K49: 1.000187809 | L49: 0.01937934046 | M49: 1.000000004 | N49: 8.772192069e-05 | O49: 7.679915254 | P49: 1.440215779 | Q49: 1.000000036 | R49: 0.0002664992879 | S49: 1 | T49: 1.928061136e-06 | U49: 1.000000056 | V49: 0.0003888371499 | W49: 63.65789633 | X49: -83.97897877 | Y49: 96.02102123 | AB49: 55.77421702 | AC49: -83.01486259 | AF49: 51.40550449 | AG49: -0.9641161823 | AI49: 0 | AJ49: 0 | AK49: 0 | AL49: 0
B50: 30.2 | C50: 1.000180013 | D50: 0.01897294272 | E50: 1.00000045 | F50: 0.0009487606967 | G50: 1 | H50: 0 | I50: 10.69423206 | J50: 1.477151167 | K50: 1.000225803 | L50: 0.02124904727 | M50: 1.000000005 | N50: 9.618771344e-05 | O50: 8.409060247 | P50: 1.451594886 | Q50: 1.000000043 | R50: 0.0002922183739 | S50: 1 | T50: 2.114132827e-06 | U50: 1.000000068 | V50: 0.0004263627134 | W50: 62.86541078 | X50: -84.47969636 | Y50: 95.52030364 | AB50: 54.98199397 | AC50: -83.42255802 | AF50: 51.40524199 | AG50: -1.057138343 | AI50: 0 | AJ50: 0 | AK50: 0 | AL50: 0
B51: 33.113 | C51: 1.000216411 | D51: 0.02080251026 | E51: 1.000000541 | F51: 0.0010402752 | G51: 1 | H51: 0 | I51: 11.71713914 | J51: 1.485347315 | K51: 1.000271459 | L51: 0.02329795664 | M51: 1.000000006 | N51: 0.0001054656872 | O51: 9.209199997 | P51: 1.461994727 | Q51: 1.000000051 | R51: 0.0003204048663 | S51: 1 | T51: 2.318055639e-06 | U51: 1.000000082 | V51: 0.0004674883583 | W51: 62.07205216 | X51: -84.93437819 | Y51: 95.06562181 | AB51: 54.18895076 | AC51: -83.77530042 | AF51: 51.40492658 | AG51: -1.159077773 | AI51: 0 | AJ51: 0 | AK51: 0 | AL51: 0
B52: 36.308 | C52: 1.000260182 | D52: 0.02280903291 | E52: 1.000000651 | F52: 0.001140648966 | G52: 1 | H52: 0 | I52: 12.83982508 | J52: 1.492834695 | K52: 1.000326362 | L52: 0.02554499004 | M52: 1.000000007 | N52: 0.0001156418376 | O52: 10.08775399 | P52: 1.471503156 | Q52: 1.000000062 | R52: 0.0003513200194 | S52: 1 | T52: 2.541719691e-06 | U52: 1.000000098 | V52: 0.0005125952695 | W52: 61.27739919 | X52: -85.34700967 | Y52: 94.65299033 | AB52: 53.39467709 | AC52: -84.07613318 | AF52: 51.40454729 | AG52: -1.270876494 | AI52: 0 | AJ52: 0 | AK52: 0 | AL52: 0
B53: 39.811 | C53: 1.000312801 | D53: 0.0250087739 | E53: 1.000000782 | F53: 0.001250698799 | G53: 1 | H53: 0 | I53: 14.0714275 | J53: 1.499670377 | K53: 1.000392362 | L53: 0.02800834154 | M53: 1.000000008 | N53: 0.0001267989752 | O53: 11.05187456 | P53: 1.480190018 | Q53: 1.000000074 | R53: 0.000385215412 | S53: 1 | T53: 2.786945098e-06 | U53: 1.000000118 | V53: 0.0005620505136 | W53: 60.4819353 | X53: -85.72072909 | Y53: 94.27927091 | AB53: 52.59966913 | AC53: -84.32728854 | AF53: 51.40409135 | AG53: -1.393440555 | AI53: 0 | AJ53: 0 | AK53: 0 | AL53: 0
B54: 43.652 | C54: 1.000376059 | D54: 0.0274204861 | E54: 1.00000094 | F54: 0.001371367165 | G54: 1 | H54: 0 | I54: 15.42249485 | J54: 1.505910454 | K54: 1.000471706 | L54: 0.03070898683 | M54: 1.00000001 | N54: 0.0001390326508 | O54: 12.10982044 | P54: 1.48812458 | Q54: 1.000000089 | R54: 0.0004223813266 | S54: 1 | T54: 3.055831992e-06 | U54: 1.000000142 | V54: 0.0006162776292 | W54: 59.68574654 | X54: -86.05859866 | Y54: 93.94140134 | AB54: 51.80402847 | AC54: -84.53078398 | AF54: 51.40354325 | AG54: -1.527814682 | AI54: 0 | AJ54: 0 | AK54: 0 | AL54: 0
B55: 47.863 | C55: 1.000452097 | D55: 0.0300641487 | E55: 1.00000113 | F55: 0.001503659359 | G55: 1 | H55: 0 | I55: 16.90428373 | J55: 1.511605166 | K55: 1.000567078 | L55: 0.03366926653 | M55: 1.000000012 | N55: 0.000152444785 | O55: 13.27040692 | P55: 1.495369187 | Q55: 1.000000107 | R55: 0.0004631273984 | S55: 1 | T55: 3.350620512e-06 | U55: 1.00000017 | V55: 0.0006757283905 | W55: 58.88907291 | X55: -86.36333578 | Y55: 93.63666422 | AB55: 51.00801362 | AC55: -84.68822389 | AF55: 51.40288447 | AG55: -1.675111885 | AI55: 0 | AJ55: 0 | AK55: 0 | AL55: 0
B56: 52.481 | C56: 1.000543521 | D56: 0.03296284104 | E56: 1.000001359 | F56: 0.001648737747 | G56: 1 | H56: 0 | I56: 18.52981447 | J56: 1.516803015 | K56: 1.000681745 | L56: 0.03691498163 | M56: 1.000000014 | N56: 0.0001671532238 | O56: 14.54383269 | P56: 1.501984368 | Q56: 1.000000129 | R56: 0.0005078116424 | S56: 1 | T56: 3.673900823e-06 | U56: 1.000000205 | V56: 0.000740925161 | W56: 58.09179029 | X56: -86.6375335 | Y56: 93.3624665 | AB56: 50.21152301 | AC56: -84.80091565 | AF56: 51.40209246 | AG56: -1.836617843 | AI56: 0 | AJ56: 0 | AK56: 0 | AL56: 0
B57: 57.544 | C57: 1.000653413 | D57: 0.03614021887 | E57: 1.000001634 | F57: 0.001807796107 | G57: 1 | H57: 0 | I57: 20.3124635 | J57: 1.521545561 | K57: 1.000819574 | L57: 0.04047256402 | M57: 1.000000017 | N57: 0.0001832789979 | O57: 15.94057729 | P57: 1.508022122 | Q57: 1.000000155 | R57: 0.00055680175 | S57: 1 | T57: 4.028333092e-06 | U57: 1.000000246 | V57: 0.0008124044223 | W57: 57.29420407 | X57: -86.88338325 | Y57: 93.11661675 | AB57: 49.41488871 | AC57: -84.86973298 | AF57: 51.40114054 | AG57: -2.01365027 | AI57: 0 | AJ57: 0 | AK57: 0 | AL57: 0
B58: 63.096 | C58: 1.00078553 | D58: 0.03962363618 | E58: 1.000001965 | F58: 0.001982216705 | G58: 1 | H58: 0 | I58: 22.26772324 | J58: 1.52587317 | K58: 1.000985271 | L58: 0.0443725673 | M58: 1.00000002 | N58: 0.0002009622485 | O58: 17.47277978 | P58: 1.513533159 | Q58: 1.000000186 | R58: 0.0006105234688 | S58: 1 | T58: 4.416997511e-06 | U58: 1.000000296 | V58: 0.000890787363 | W58: 56.49623334 | X58: -87.10297898 | Y58: 92.89702102 | AB58: 48.61806227 | AC58: -84.89524616 | AF58: 51.39999625 | AG58: -2.207732827 | AI58: 0 | AJ58: 0 | AK58: 0 | AL58: 0
B59: 69.183 | C59: 1.000944329 | D59: 0.04344161298 | E59: 1.000002362 | F59: 0.002173444623 | G59: 1 | H59: 0 | I59: 24.41179385 | J59: 1.529821055 | K59: 1.001184425 | L59: 0.0486468254 | M59: 1.000000024 | N59: 0.0002203494865 | O59: 19.15313542 | P59: 1.518561804 | Q59: 1.000000224 | R59: 0.000669421898 | S59: 1 | T59: 4.843114283e-06 | U59: 1.000000356 | V59: 0.0009767234071 | W59: 55.69810849 | X59: -87.29811119 | Y59: 92.70188881 | AB59: 47.82131262 | AC59: -84.87765719 | AF59: 51.39862106 | AG59: -2.420454004 | AI59: 0 | AJ59: 0 | AK59: 0 | AL59: 0
B60: 75.858 | C60: 1.001135236 | D60: 0.04762694326 | E60: 1.00000284 | F60: 0.002383144844 | G60: 1 | H60: 0 | I60: 26.76334412 | J60: 1.533423089 | K60: 1.001423834 | L60: 0.05333192407 | M60: 1.000000029 | N60: 0.0002416095181 | O60: 20.9962756 | P60: 1.523150808 | Q60: 1.000000269 | R60: 0.0007340098696 | S60: 1 | T60: 5.310393641e-06 | U60: 1.000000428 | V60: 0.001070960803 | W60: 54.8997186 | X60: -87.47046047 | Y60: 92.52953953 | AB60: 47.02457566 | AC60: -84.81682024 | AF60: 51.39696812 | AG60: -2.653640232 | AI60: 0 | AJ60: 0 | AK60: 0 | AL60: 0
B61: 83.176 | C61: 1.001364676 | D61: 0.05221352124 | E61: 1.000003414 | F61: 0.002613045158 | G61: 1 | H61: 0 | I61: 29.34175024 | J61: 1.536708596 | K61: 1.001711553 | L61: 0.05846563721 | M61: 1.000000035 | N61: 0.0002649175196 | O61: 23.01738752 | P61: 1.527337231 | Q61: 1.000000324 | R61: 0.0008048195667 | S61: 1 | T61: 5.822685827e-06 | U61: 1.000000515 | V61: 0.001174276036 | W61: 54.1013148 | X61: -87.62144028 | Y61: 92.37855972 | AB61: 46.22815803 | AC61: -84.71226128 | AF61: 51.39498195 | AG61: -2.909179002 | AI61: 0 | AJ61: 0 | AK61: 0 | AL61: 0
B62: 91.201 | C62: 1.001640487 | D62: 0.05724068 | E62: 1.000004105 | F62: 0.002865156076 | G62: 1 | H62: 0 | I62: 32.16956193 | J62: 1.539706033 | K62: 1.002057399 | L62: 0.06409176952 | M62: 1.000000042 | N62: 0.0002904773322 | O62: 25.23414714 | P62: 1.531157106 | Q62: 1.000000389 | R62: 0.0008824702571 | S62: 1 | T62: 6.384471123e-06 | U62: 1.000000619 | V62: 0.001287572648 | W62: 53.30274347 | X62: -87.75237314 | Y62: 92.24762686 | AB62: 45.43197368 | AC62: -84.56311263 | AF62: 51.39259497 | AG62: -3.189260508 | AI62: 0 | AJ62: 0 | AK62: 0 | AL62: 0
B63: 100 | C63: 1.001971977 | D63: 0.06274936497 | E63: 1.000004935 | F63: 0.003141582318 | G63: 1 | H63: 0 | I63: 35.27038844 | J63: 1.542440131 | K63: 1.002473028 | L63: 0.07025585515 | M63: 1.000000051 | N63: 0.0003185023526 | O63: 27.66506221 | P63: 1.534641776 | Q63: 1.000000468 | R63: 0.0009676102353 | S63: 1 | T63: 7.000439823e-06 | U63: 1.000000744 | V63: 0.001411796536 | W63: 52.50417547 | X63: -87.86435889 | Y63: 92.13564111 | AB63: 44.63627365 | AC63: -84.36819454 | AF63: 51.389727 | AG63: -3.496164355 | AI63: 0 | AJ63: 0 | AK63: 0 | AL63: 0
B64: 109.65 | C64: 1.00237046 | D64: 0.06878643182 | E64: 1.000005933 | F64: 0.003444742719 | G64: 1 | H64: 0 | I64: 38.67136523 | J64: 1.544934517 | K64: 1.002972611 | L64: 0.07700994348 | M64: 1.000000061 | N64: 0.0003492378272 | O64: 30.33140586 | P64: 1.537821223 | Q64: 1.000000563 | R64: 0.001060984556 | S64: 1 | T64: 7.675982266e-06 | U64: 1.000000895 | V64: 0.001548034772 | W64: 51.70547136 | X64: -87.95839145 | Y64: 92.04160855 | AB64: 43.84101586 | AC64: -84.12589258 | AF64: 51.38628069 | AG64: -3.832498871 | AI64: 0 | AJ64: 0 | AK64: 0 | AL64: 0
B65: 120.23 | C65: 1.002849293 | D65: 0.07539952694 | E65: 1.000007133 | F65: 0.003777118885 | G65: 1 | H65: 0 | I65: 42.40033456 | J65: 1.54720942 | K65: 1.003572863 | L65: 0.08440683989 | M65: 1.000000073 | N65: 0.0003829353728 | O65: 33.25500635 | P65: 1.540721133 | Q65: 1.000000677 | R65: 0.001163357624 | S65: 1 | T65: 8.416628799e-06 | U65: 1.000001076 | V65: 0.001697402663 | W65: 50.90693298 | X65: -88.0352704 | Y65: 91.9647296 | AB65: 43.04661689 | AC65: -83.83435469 | AF65: 51.38214127 | AG65: -4.200915709 | AI65: 0 | AJ65: 0 | AK65: 0 | AL65: 0
B66: 131.83 | C66: 1.003424642 | D66: 0.08264257255 | E66: 1.000008576 | F66: 0.004141537916 | G66: 1 | H66: 0 | I66: 46.48901732 | J66: 1.549284211 | K66: 1.004294008 | L66: 0.09250620259 | M66: 1.000000088 | N66: 0.000419881641 | O66: 36.4607336 | P66: 1.543366121 | Q66: 1.000000814 | R66: 0.001275600279 | S66: 1 | T66: 9.228679818e-06 | U66: 1.000001293 | V66: 0.001861170807 | W66: 50.10857929 | X66: -88.09570421 | Y66: 91.90429579 | AB66: 42.25323435 | AC66: -83.491289 | AF66: 51.37717012 | AG66: -4.604415204 | AI66: 0 | AJ66: 0 | AK66: 0 | AL66: 0
B67: 144.54 | C67: 1.00411541 | D67: 0.09056870949 | E67: 1.00001031 | F67: 0.004540826812 | G67: 1 | H67: 0 | I67: 50.96913586 | J67: 1.551175351 | K67: 1.005159682 | L67: 0.1013665998 | M67: 1.000000106 | N67: 0.0004603632835 | O67: 39.97345943 | P67: 1.545777118 | Q67: 1.000000978 | R67: 0.001398583359 | S67: 1 | T67: 1.011843572e-05 | U67: 1.000001554 | V67: 0.002040609797 | W67: 49.31096021 | X67: -88.14025236 | Y67: 91.85974764 | AB67: 41.46157988 | AC67: -83.09429943 | AF67: 51.37120551 | AG67: -5.045952927 | AI67: 0 | AJ67: 0 | AK67: 0 | AL67: 0
B68: 158.49 | C68: 1.004946076 | D68: 0.09925497593 | E68: 1.000012396 | F68: 0.004979069051 | G68: 1 | H68: 0 | I68: 55.88651369 | J68: 1.552901967 | K68: 1.006200478 | L68: 0.1110730256 | M68: 1.000000127 | N68: 0.0005047943528 | O68: 43.82911272 | P68: 1.547978462 | Q68: 1.000001176 | R68: 0.001533564738 | S68: 1 | T68: 1.109499707e-05 | U68: 1.000001869 | V68: 0.002237554936 | W68: 48.51278711 | X68: -88.16944975 | Y68: 91.83055025 | AB68: 40.67057392 | AC68: -82.63963572 | AF68: 51.36403837 | AG68: -5.529814028 | AI68: 0 | AJ68: 0 | AK68: 0 | AL68: 0
B69: 173.78 | C69: 1.005943478 | D69: 0.1087583441 | E69: 1.000014903 | F69: 0.005459405473 | G69: 1 | H69: 0 | I69: 61.27640098 | J69: 1.554476106 | K69: 1.007449904 | L69: 0.1216876725 | M69: 1.000000153 | N69: 0.0005534933505 | O69: 48.05533279 | P69: 1.54998548 | Q69: 1.000001414 | R69: 0.001681512007 | S69: 1 | T69: 1.216536432e-05 | U69: 1.000002247 | V69: 0.002453417979 | W69: 47.71524315 | X69: -88.18360671 | Y69: 91.81639329 | AB69: 39.88162788 | AC69: -82.12444301 | AF69: 51.35544045 | AG69: -6.059163705 | AI69: 0 | AJ69: 0 | AK69: 0 | AL69: 0
B70: 190.55 | C70: 1.007141667 | D70: 0.1191589015 | E70: 1.000017918 | F70: 0.005986233295 | G70: 1 | H70: 0 | I70: 67.1881492 | J70: 1.5559122 | K70: 1.008950442 | L70: 0.1332980788 | M70: 1.000000184 | N70: 0.0006069061789 | O70: 52.69081621 | P70: 1.551816548 | Q70: 1.0000017 | R70: 0.00184377979 | S70: 1 | T70: 1.333933808e-05 | U70: 1.000002702 | V70: 0.002690175384 | W70: 46.91786436 | X70: -88.18301013 | Y70: 91.81698987 | AB70: 39.09456654 | AC70: -81.54455819 | AF70: 51.345123 | AG70: -6.638451942 | AI70: 0 | AJ70: 0 | AK70: 0 | AL70: 0
B71: 208.93 | C71: 1.008579703 | D71: 0.1305282072 | E71: 1.000021541 | F71: 0.006563635273 | G71: 1 | H71: 0 | I71: 73.66758585 | J71: 1.557221419 | K71: 1.01075076 | L71: 0.1459816377 | M71: 1.000000221 | N71: 0.0006654468896 | O71: 57.77149694 | P71: 1.553485888 | Q71: 1.000002043 | R71: 0.002021625941 | S71: 1 | T71: 1.462601892e-05 | U71: 1.000003248 | V71: 0.002949662414 | W71: 46.12130719 | X71: -88.16786061 | Y71: 91.83213939 | AB71: 38.31037585 | AC71: -80.89621062 | AF71: 51.33275651 | AG71: -7.271649989 | AI71: 0 | AJ71: 0 | AK71: 0 | AL71: 0
B72: 229.09 | C72: 1.010306465 | D72: 0.1429595553 | E72: 1.000025899 | F72: 0.00719695035 | G72: 1 | H72: 0 | I72: 80.7746404 | J72: 1.558415887 | K72: 1.012911697 | L72: 0.1598391942 | M72: 1.000000266 | N72: 0.0007296569347 | O72: 63.34436712 | P72: 1.555008948 | Q72: 1.000002457 | R72: 0.002216695349 | S72: 1 | T72: 1.603730759e-05 | U72: 1.000003905 | V72: 0.003234279025 | W72: 45.32505907 | X72: -88.13828292 | Y72: 91.86171708 | AB72: 37.52895376 | AC72: -80.17434811 | AF72: 51.3179305 | AG72: -7.963934815 | AI72: 0 | AJ72: 0 | AK72: 0 | AL72: 0
B73: 251.19 | C73: 1.012378124 | D73: 0.1565361108 | E73: 1.000031136 | F73: 0.007891202785 | G73: 1 | H73: 0 | I73: 88.56571809 | J73: 1.559505036 | K73: 1.015503045 | L73: 0.1749592675 | M73: 1.00000032 | N73: 0.0008000459158 | O73: 69.45365592 | P73: 1.556397739 | Q73: 1.000002954 | R73: 0.002430536123 | S73: 1 | T73: 1.758440479e-05 | U73: 1.000004695 | V73: 0.003546283963 | W73: 44.52968541 | X73: -88.09438133 | Y73: 91.90561867 | AB73: 36.75133387 | AC73: -79.37446835 | AF73: 51.30017673 | AG73: -8.719912978 | AI73: 0 | AJ73: 0 | AK73: 0 | AL73: 0
B74: 275.42 | C74: 1.014862955 | D74: 0.1713544327 | E74: 1.000037433 | F74: 0.008652358565 | G74: 1 | H74: 0 | I74: 97.10780097 | J74: 1.560498311 | K74: 1.018609488 | L74: 0.1914440047 | M74: 1.000000385 | N74: 0.0008772189842 | O74: 76.15188658 | P74: 1.557664298 | Q74: 1.000003551 | R74: 0.002664986633 | S74: 1 | T74: 1.928061136e-05 | U74: 1.000005644 | V74: 0.003888359472 | W74: 43.73519865 | X74: -88.03622337 | Y74: 91.96377663 | AB74: 35.97809362 | AC74: -78.49129462 | AF74: 51.27893021 | AG74: -9.54492875 | AI74: 0 | AJ74: 0 | AK74: 0 | AL74: 0
B75: 302 | C75: 1.017843748 | D75: 0.187522766 | E75: 1.000045006 | F75: 0.009487325154 | G75: 1 | H75: 0 | I75: 106.4784483 | J75: 1.561404617 | K75: 1.022333505 | L75: 0.2094068823 | M75: 1.000000463 | N75: 0.0009618768407 | O75: 83.49987679 | P75: 1.558819975 | Q75: 1.00000427 | R75: 0.002922175505 | S75: 1 | T75: 2.114132826e-05 | U75: 1.000006786 | V75: 0.004263611278 | W75: 42.94132523 | X75: -87.96384188 | Y75: 92.03615812 | AB75: 35.20963861 | AC75: -77.51887558 | AF75: 51.25351181 | AG75: -10.44496629 | AI75: 0 | AJ75: 0 | AK75: 0 | AL75: 0
B76: 331.13 | C76: 1.021414182 | D76: 0.2051287293 | E76: 1.000054107 | F76: 0.01040238053 | G76: 1 | H76: 0 | I76: 116.748169 | J76: 1.562230777 | K76: 1.026790692 | L76: 0.2289363976 | M76: 1.000000556 | N76: 0.001054656485 | O76: 91.55291617 | P76: 1.559873465 | Q76: 1.000005133 | R76: 0.003204037808 | S76: 1 | T76: 2.318055638e-05 | U76: 1.000008158 | V76: 0.004674862682 | W76: 42.14899543 | X76: -87.87741601 | Y76: 92.12258399 | AB76: 34.44765708 | AC76: -76.45256817 | AF76: 51.22316353 | AG76: -11.42484784 | AI76: 0 | AJ76: 0 | AK76: 0 | AL76: 0
B77: 363.08 | C77: =SQRT(1+(B77/PS_Pole1)^2) -> 1.025691595 | D77: =ATAN(B77/PS_Pole1) -> 0.2242915144 | E77: =SQRT(1+(B77/PS_Zero1)^2) -> 1.000065052 | F77: =ATAN(B77/PS_Zero1) -> 0.01140599995 | G77: =IF(VIN_nom>Vout, 1, SQRT(1+(B77/PS_RHPZ)^2)) -> 1 | H77: =IF(VIN_nom>Vout, 0, -ATAN(B77/PS_RHPZ)) -> 0 | I77: =SQRT(1+(B77/EA_Pole1)^2) -> 128.012151 | J77: =ATAN(B77/EA_Pole1) -> 1.562984489 | K77: =SQRT(1+(B77/EA_Zero1)^2) -> 1.032125501 | L77: =ATAN(B77/EA_Zero1) -> 0.2501535408 | M77: =SQRT(1+(B77/EA_Pole2)^2) -> 1.000000669 | N77: =ATAN(B77/EA_Pole2) -> 0.001156417865 | O77: =SQRT(1+(B77/$V$5)^2) -> 100.3856467 | P77: =ATAN(B77/$V$5) -> 1.560834579 | Q77: =SQRT(1+(B77/$V$4)^2) -> 1.000006171 | R77: =ATAN(B77/$V$4) -> 0.003513185885 | S77: =SQRT(1+(B77/$V$7)^2) -> 1 | T77: =ATAN(B77/$V$7) -> 2.54171969e-05 | U77: =SQRT((1-(B77^2/pterm2))^2+(B77/pterm1)^2) -> 1.000009809 | V77: =IF((ATAN((B77/pterm1)/(1-B77^2/pterm2))>0),ATAN((B77/pterm1)/(1-B77^2/pterm2)),PI()+ATAN((B77/pterm1)/(1-B77^2/pterm2))) -> 0.005125925142 | W77: =20*LOG10(((E77*K77*G77)/(C77*I77*U77*M77))*Adc) -> 41.35776628 | X77: -87.77706578 | Y77: 92.22293422 | AB77: =20*LOG10((K77/(I77*M77))*AEA) -> 33.69264546 | AC77: =(L77-(J77+N77))*radconv -> -75.28593041 | AF77: =20*LOG10((E77*G77/(C77*U77))*Acs*Am) -> 51.18694599 | AG77: =(F77+H77-(D77+V77))*radconv -> -12.49113538 | AI77: =SUM((W78<0)*(W77>0))*B77 -> 0 | AJ77: =IF(AI77>0,Y75,0) -> 0 | AK77: =SUM((AB78<0)*(AB77>0))*B77 -> 0 | AL77: =IF(AK77>0,AC77,0) -> 0
B78: 398.11 | C78: 1.030810344 | D78: 0.2451103202 | E78: 1.000078209 | F78: 0.01250634244 | G78: 1 | H78: 0 | I78: 140.3620575 | J78: 1.563671834 | K78: 1.038502655 | L78: 0.2731539838 | M78: 1.000000804 | N78: 0.001267989079 | O78: 110.0699465 | P78: 1.56171107 | Q78: 1.00000742 | R78: 0.003852135256 | S78: 1 | T78: 2.786945097e-05 | U78: 1.000011793 | V78: 0.005620468814 | W78: 40.56815417 | X78: -87.663132 | Y78: =IF(X78>0,X78-180,X78+180) -> 92.336868 | AB78: 32.94617573 | AC78: -74.01387663 | AF78: 51.14380361 | AG78: -13.64925537 | AI78: 0 | AJ78: 0 | AK78: 0 | AL78: 0
B79: 436.52 | C79: 1.036931054 | D79: 0.2676907619 | E79: 1.000094028 | F79: 0.01371282066 | G79: 1 | H79: 0 | I79: 153.9036541 | J79: 1.56429871 | K79: 1.046118305 | L79: 0.2980367468 | M79: 1.000000967 | N79: 0.001390325621 | O79: 120.688753 | P79: 1.562510456 | Q79: 1.00000892 | R79: 0.004223788399 | S79: 1 | T79: 3.055831991e-05 | U79: 1.000014178 | V79: 0.00616272841 | W79: 39.78032686 | X79: =IF(((F79+L79+H79)-(D79+J79+V79+N79))*radconv<-180,((F79+L79+H79)-(D79+J79+V79+N79))*radconv+360,((F79+L79+H79)-(D79+J79+V79+N79))*radconv) -> -87.53608847 | Y79: 92.46391153 | AB79: 32.20965401 | AC79: -72.63112602 | AF79: 51.09249802 | AG79: -14.90496245 | AI79: 0 | AJ79: 0 | AK79: 0 | AL79: 0
B80: 478.63 | C80: 1.044241253 | D80: 0.2921283089 | E80: 1.000113043 | F80: 0.01503547182 | G80: 1 | H80: 0 | I80: 168.749758 | J80: 1.564870358 | K80: 1.055200303 | L80: 0.3248852204 | M80: 1.000001162 | N80: 0.001524446681 | O80: 132.330533 | P80: 1.56323942 | Q80: 1.000010724 | R80: 0.004631241204 | S80: 1.000000001 | T80: 3.350620511e-05 | U80: 1.000017045 | V80: 0.006757220785 | W80: 38.99464366 | X80: -87.39666972 | Y80: 92.60333028 | AB80: 31.48484988 | AC80: -71.13325938 | AF80: 51.03161896 | AG80: -16.26341033 | AI80: 0 | AJ80: 0 | AK80: 0 | AL80: 0
B81: 524.81 | C81: 1.052964217 | D81: 0.3185201542 | E81: 1.000135908 | F81: 0.0164858987 | G81: 1 | H81: 0 | I81: 185.0308148 | J81: 1.565391795 | K81: 1.066018519 | L81: 0.3537795483 | M81: 1.000001397 | N81: 0.001671530696 | O81: 145.0975773 | P81: 1.563904358 | Q81: 1.000012894 | R81: 0.005078073211 | S81: 1.000000001 | T81: 3.673900822e-05 | U81: 1.000020493 | V81: 0.007409168402 | W81: 38.2111337 | X81: -87.245842 | Y81: 92.754158 | AB81: 30.77342663 | AC81: -69.51603982 | AF81: 50.95953225 | AG81: -17.72980218 | AI81: 0 | AJ81: 0 | AK81: 0 | AL81: 0
B82: 575.44 | C82: 1.063355705 | D82: 0.3469355731 | E82: 1.000163393 | F82: 0.01807601178 | G82: 1 | H82: 0 | I82: 202.8807959 | J82: 1.565867304 | K82: 1.078879922 | L82: 0.3847635457 | M82: 1.00000168 | N82: 0.001832787948 | O82: 159.0949416 | P82: 1.56451073 | Q82: 1.000015501 | R82: 0.005567960536 | S82: 1.000000001 | T82: 4.02833309e-05 | U82: 1.000024638 | V82: 0.008123934536 | W82: 37.43026456 | X82: -87.08500361 | Y82: 92.91499639 | AB82: 30.07765384 | AC82: -67.77727154 | AF82: 50.8744359 | AG82: -19.30773208 | AI82: 0 | AJ82: 0 | AK82: 0 | AL82: 0
B83: 630.96 | C83: 1.075717311 | D83: 0.3774369851 | E83: 1.00019644 | F83: 0.01981959744 | G83: 1 | H83: 0 | I83: 222.4548265 | J83: 1.566301017 | K83: 1.094144052 | L83: 0.4178674379 | M83: 1.000002019 | N83: 0.002009619807 | O83: 174.44427 | P83: 1.565063806 | Q83: 1.000018637 | R83: 0.006105159593 | S83: 1.000000001 | T83: 4.416997508e-05 | U83: 1.000029622 | V83: 0.008907729033 | W83: 36.65212346 | X83: -86.91588214 | Y83: 93.08411786 | AB83: 29.39966089 | AC83: -65.91553987 | AF83: 50.77428776 | AG83: -21.00034227 | AI83: 0 | AJ83: 0 | AK83: 0 | AL83: 0
B84: 691.83 | C84: 1.090392157 | D84: 0.4100491236 | E84: 1.000236166 | F84: 0.02173105906 | G84: 1 | H84: 0 | I84: 243.9150834 | J84: 1.566696528 | K84: 1.112216356 | L84: 0.453074285 | M84: 1.000002428 | N84: 0.002203491334 | O84: 191.2727363 | P84: 1.565568166 | Q84: 1.000022406 | R84: 0.006694119988 | S84: 1.000000001 | T84: 4.843114279e-05 | U84: 1.000035613 | V84: 0.009767043459 | W84: 35.87708062 | X84: -86.74070181 | Y84: 93.25929819 | AB84: 28.74201632 | AC84: -63.93210524 | AF84: 50.65688948 | AG84: -22.80859658 | AI84: 0 | AJ84: 0 | AK84: 0 | AL84: 0
B85: 758.58 | C85: 1.107779777 | D85: 0.4447773246 | E85: 1.00028393 | F85: 0.02382698347 | G85: 1 | H85: 0 | I85: 267.4484228 | J85: 1.567057279 | K85: 1.133565003 | L85: 0.4903403881 | M85: 1.000002919 | N85: 0.002416090527 | O85: 209.7268674 | P85: 1.566028202 | Q85: 1.000026938 | R85: 0.007339968197 | S85: 1.000000001 | T85: 5.310393636e-05 | U85: 1.000042816 | V85: 0.01070935676 | W85: 35.10512965 | X85: -86.56204427 | Y85: 93.43795573 | AB85: 28.10712742 | AC85: -61.82976539 | AF85: 50.5198274 | AG85: -24.73227888 | AI85: 0 | AJ85: 0 | AK85: 0 | AL85: 0
B86: 831.76 | C86: 1.128326834 | D86: 0.4815717413 | E86: 1.000341344 | F86: 0.02612456616 | G86: 1 | H86: 0 | I86: 293.2487523 | J86: 1.567386246 | K86: 1.158707702 | L86: 0.5295580145 | M86: 1.000003509 | N86: 0.00264916906 | O86: 229.9587198 | P86: 1.566447707 | Q86: 1.000032386 | R86: 0.008048023642 | S86: 1.000000002 | T86: 5.822685821e-05 | U86: 1.000051475 | V86: 0.01174242912 | W86: 34.33654481 | X86: -86.38295629 | Y86: 93.61704371 | AB86: 27.49774894 | AC86: -59.61496373 | AF86: 50.36062105 | AG86: -26.76799256 | AI86: 0 | AJ86: 0 | AK86: 0 | AL86: 0
B87: 912.01 | C87: 1.15254786 | D87: 0.5203546074 | E87: 1.000410374 | F87: 0.02864380282 | G87: 1 | H87: 0 | I87: 321.5417103 | J87: 1.567686305 | K87: 1.188235257 | L87: 0.5705867806 | M87: 1.000004219 | N87: 0.002904765234 | O87: 252.1452323 | P87: 1.566830348 | Q87: 1.000038937 | R87: 0.008824475796 | S87: 1.000000002 | T87: 6.384471114e-05 | U87: 1.000061887 | V87: 0.01287528982 | W87: 33.57111446 | X87: -86.20667892 | Y87: 93.79332108 | AB87: 26.9162907 | AC87: -57.29602531 | AF87: 50.17664894 | AG87: -28.91065361 | AI87: 0 | AJ87: 0 | AK87: 0 | AL87: 0
B88: 1000 | C88: 1.181009812 | D88: 0.5609821161 | E88: 1.000493359 | F88: 0.03140559723 | G88: 1 | H88: 0 | I88: 352.5635121 | J88: 1.567959955 | K88: 1.222790771 | L88: 0.6132160772 | M88: 1.000005072 | N88: 0.003185012864 | O88: 276.4716381 | P88: 1.567179311 | Q88: 1.000046812 | R88: 0.009675803408 | S88: 1.000000002 | T88: 7.000439812e-05 | U88: 1.000074404 | V88: 0.01411738974 | W88: 32.80882149 | X88: -86.0366488 | Y88: 93.9633512 | AB88: 26.36527672 | AC88: -54.88528248 | AF88: 49.96536995 | AG88: -31.15136631 | AI88: 0 | AJ88: 0 | AK88: 0 | AL88: 0
B89: 1096.5 | C89: 1.214353264 | D89: 0.6032721556 | E89: 1.000593141 | F89: 0.03443394758 | G89: 1 | H89: 0 | I89: 386.5856294 | J89: 1.568209575 | K89: 1.263093738 | L89: 0.6571983329 | M89: 1.000006098 | N89: 0.003492364216 | O89: 303.1508175 | P89: 1.567497633 | Q89: 1.000056283 | R89: 0.01060945146 | S89: 1.000000003 | T89: 7.675982251e-05 | U89: 1.000089457 | V89: 0.01547958889 | W89: 32.04921905 | X89: -85.87614065 | Y89: 94.12385935 | AB89: 25.84676956 | AC89: -52.39719699 | AF89: 49.72427468 | AG89: -33.47894366 | AI89: 0 | AJ89: 0 | AK89: 0 | AL89: 0
B90: 1202.3 | C90: 1.253263943 | D90: 0.6469655859 | E90: 1.000713084 | F90: 0.03775342133 | G90: 1 | H90: 0 | I90: 423.8865851 | J90: 1.568437203 | K90: 1.309904229 | L90: 0.7022131109 | M90: 1.000007332 | N90: 0.003829335197 | O90: 332.4011804 | P90: 1.567787909 | Q90: 1.000067668 | R90: 0.0116330567 | S90: 1.000000004 | T90: 8.416628779e-05 | U90: 1.000107552 | V90: 0.01697302628 | W90: 31.29214221 | X90: -85.72815797 | Y90: 94.27184203 | AB90: 25.36275876 | AC90: -49.85038934 | AF90: 49.45120864 | AG90: -35.87776863 | AI90: 0 | AJ90: =IF(AI90>0,Y90,0) -> 0 | AK90: 0 | AL90: 0
B91: 1318.3 | C91: 1.298499633 | D91: 0.691767728 | E91: 1.000857259 | F91: 0.04139196087 | G91: 1 | H91: 0 | I91: 464.7836842 | J91: 1.568644787 | K91: 1.364054789 | L91: 0.7479151645 | M91: 1.000008815 | N91: 0.004198791981 | O91: 364.4715482 | P91: 1.568052625 | Q91: 1.000081355 | R91: 0.01275531791 | S91: 1.000000004 | T91: 9.228679792e-05 | U91: 1.000129305 | V91: 0.01861038937 | W91: 30.53702737 | X91: -85.59499985 | Y91: 94.40500015 | AB91: 24.91456725 | AC91: -47.26491653 | AF91: 49.14428529 | AG91: -38.33008332 | AI91: 0 | AJ91: 0 | AK91: 0 | AL91: 0
B92: 1445.4 | C92: 1.350842575 | D92: 0.7373115 | E92: 1.001030439 | F92: 0.04537740886 | G92: 1 | H92: 0 | I92: 509.5942318 | J92: 1.56883398 | K92: 1.426393561 | L92: 0.7939011328 | M92: 1.000010597 | N92: 0.004603600638 | O92: 399.610743 | P92: 1.568293889 | Q92: 1.000097797 | R92: 0.01398493092 | S92: 1.000000005 | T92: 0.0001011843569 | U92: 1.000155438 | V92: 0.02040435995 | W92: 29.78370807 | X92: -85.47813526 | Y92: 94.52186474 | AB92: 24.50323029 | AC92: -44.66414843 | AF92: 48.80230296 | AG92: -40.81398683 | AI92: 0 | AJ92: 0 | AK92: 0 | AL92: 0
B93: 1584.9 | C93: 1.41126239 | D93: 0.7833048131 | E93: 1.00123881 | F93: 0.04975001646 | G93: 1 | H93: 0 | I93: 558.7765575 | J93: 1.569006702 | K93: 1.497978714 | L93: 0.8398611299 | M93: 1.000012741 | N93: 0.005047901081 | O93: 438.1781741 | P93: 1.568514148 | Q93: 1.000117584 | R93: 0.01533445735 | S93: 1.000000006 | T93: 0.0001109499703 | U93: 1.000186887 | V93: 0.02237325807 | W93: 29.03021558 | X93: -85.3776745 | Y93: 94.6223255 | AB93: 24.12826363 | AC93: -42.06618734 | AF93: 48.42377713 | AG93: -43.31148715 | AI93: 0 | AJ93: 0 | AK93: 0 | AL93: 0
B94: 1737.8 | C94: 1.480617444 | D94: 0.829297613 | E94: 1.001489176 | F94: 0.05454045292 | G94: 1 | H94: 0 | I94: 612.683223 | J94: 1.569164161 | K94: 1.57972492 | L94: 0.8853461118 | M94: 1.000015318 | N94: 0.00553487755 | O94: 480.4503106 | P94: 1.568714945 | Q94: 1.000141364 | R94: 0.01681355137 | S94: 1.000000007 | T94: 0.0001216536426 | U94: 1.000224682 | V94: 0.02453115946 | W94: 28.27689513 | X94: -85.29286064 | Y94: 94.70713936 | AB94: 23.78980158 | AC94: -39.49701331 | AF94: 48.00891873 | AG94: -45.79584732 | AI94: 0 | AJ94: 0 | AK94: 0 | AL94: 0
B95: 1905.5 | C95: 1.559946732 | D95: 0.8749339796 | E95: 1.00179019 | F95: 0.05979169328 | G95: 1 | H95: 0 | I95: 671.8078143 | J95: 1.569307805 | K95: 1.672752034 | L95: 0.9300208886 | M95: 1.000018417 | N95: 0.006068988021 | O95: 526.8142094 | P95: 1.568898123 | Q95: 1.000169962 | R95: 0.01843572988 | S95: 1.000000009 | T95: 0.00013339338 | U95: 1.000270133 | V95: 0.02689777223 | W95: 27.52256637 | X95: -85.22151116 | Y95: 94.77848884 | AB95: 23.48659536 | AC95: -36.97616963 | AF95: 47.5577962 | AG95: -48.24534154 | AI95: 0 | AJ95: 0 | AK95: 0 | AL95: 0
B96: 2089.3 | C96: 1.650242956 | D96: 0.9198099131 | E96: 1.002151812 | F96: 0.0655432775 | G96: 1 | H96: 0 | I96: 736.6086617 | J96: 1.569438753 | K96: 1.778119736 | L96: 0.9735207429 | M96: 1.000022141 | N96: 0.006654371656 | O96: 577.6292806 | P96: 1.569065112 | Q96: 1.000204328 | R96: 0.02021353351 | S96: 1.000000011 | T96: 0.0001462601882 | U96: 1.000324751 | V96: 0.02949137598 | W96: 26.76718552 | X96: -85.16045853 | Y96: 94.83954147 | AB96: 23.21731632 | AC96: -34.52485435 | AF96: 47.07169438 | AG96: -50.63560418 | AI96: 0 | AJ96: 0 | AK96: 0 | AL96: 0
B97: 2290.9 | C97: 1.752688026 | D97: 0.9636182546 | E97: 1.002586549 | F97: 0.07184686647 | G97: 1 | H97: 0 | I97: 807.6851201 | J97: 1.56955822 | K97: 1.897105842 | L97: 1.015589915 | M97: 1.00002662 | N97: 0.007296441157 | O97: 633.3655221 | P97: 1.569217459 | Q97: 1.000245658 | R97: 0.0221633601 | S97: 1.000000013 | T97: 0.0001603730745 | U97: 1.000390435 | V97: 0.03233587211 | W97: 26.00971477 | X97: -85.10554699 | Y97: 94.89445301 | AB97: 22.97978338 | AC97: -32.15810116 | AF97: 46.55175657 | AG97: -52.94744583 | AI97: 0 | AJ97: 0 | AK97: 0 | AL97: 0
B98: 2511.9 | C98: 1.868407521 | D98: 1.006033906 | E98: 1.003108851 | F98: 0.0787504671 | G98: 1 | H98: 0 | I98: 885.6012884 | J98: 1.56966715 | K98: 2.030921834 | L98: 1.055965925 | M98: 1.000032003 | N98: 0.008000290176 | O98: 694.465285 | P98: 1.56935637 | Q98: 1.000295333 | R98: 0.02430062462 | S98: 1.000000015 | T98: 0.0001758440461 | U98: 1.000469382 | V98: 0.03545372083 | W98: 25.25027641 | X98: -85.05207105 | Y98: 94.94792895 | AB98: 22.77184641 | AC98: -29.89129499 | AF98: 46.00025518 | AG98: -55.16077606 | AI98: 0 | AJ98: 0 | AK98: 0 | AL98: 0
B99: 2754.2 | C99: 1.99867001 | D99: 1.046813318 | E99: 1.003736372 | F99: 0.08631077878 | G99: 1 | H99: 0 | I99: 971.0270341 | J99: 1.569766489 | K99: 2.180946781 | L99: 1.094471211 | M99: 1.000038475 | N99: 0.008771967092 | O99: 761.4538614 | P99: 1.569483049 | Q99: 1.000355046 | R99: 0.02664362301 | S99: 1.000000019 | T99: 0.0001928061112 | U99: 1.00056428 | V99: 0.0388715757 | W99: 24.48861412 | X99: -84.9949291 | Y99: 95.0050709 | AB99: 22.59096577 | AC99: -27.73501015 | AF99: 45.41947354 | AG99: -57.25991895 | AI99: 0 | AJ99: 0 | AK99: 0 | AL99: 0
B100: 3020 | C100: 2.144898506 | D100: 1.085780313 | E100: 1.004490654 | F100: 0.09459295091 | G100: 1 | H100: 0 | I100: 1064.737993 | J100: 1.569857128 | K100: 2.348740001 | L100: 1.130994461 | M100: 1.000046259 | N100: 0.009618474745 | O100: 834.9394843 | P100: 1.569598635 | Q100: 1.000426867 | R100: 0.02921352482 | S100: 1.000000022 | T100: 0.0002114132795 | U100: 1.000678415 | V100: 0.04262026949 | W100: 23.72433643 | X100: -84.92889077 | Y100: 95.07110923 | AB100: 22.43446707 | AC100: -25.69607665 | AF100: 44.81169454 | AG100: -59.23281412 | AI100: 0 | AJ100: 0 | AK100: 0 | AL100: 0
B101: 3311.3 | C101: 2.308396216 | D101: 1.122754805 | E101: 1.005396306 | F101: 0.1036547226 | G101: 1 | H101: 0 | I101: 1167.43929 | J101: 1.569939751 | K101: 2.535727236 | L101: 1.16542047 | M101: 1.000055614 | N101: 0.01054617775 | O101: 915.475093 | P101: 1.569703998 | Q101: 1.000513165 | R101: 0.03202953029 | S101: 1.000000027 | T101: 0.0002318055597 | U101: 1.000815553 | V101: 0.04672774586 | W101: 22.95834121 | X101: -84.84893523 | Y101: 95.15106477 | AB101: 22.29990657 | AC101: -23.781499 | AF101: 44.18025982 | AG101: -61.06743623 | AI101: 0 | AJ101: 0 | AK101: 0 | AL101: 0
B102: 3630.8 | C102: 2.490848203 | D102: 1.15767538 | E102: 1.006484382 | F102: 0.1135740798 | G102: 1 | H102: 0 | I102: 1280.082841 | J102: 1.570015127 | K102: 2.743775681 | L102: 1.197742099 | M102: 1.000066863 | N102: 0.01156366836 | O102: 1003.807155 | P102: 1.569800119 | Q102: 1.000616939 | R102: 0.0351175601 | S102: 1.000000032 | T102: 0.0002541719636 | U102: 1.000980456 | V102: 0.05123172953 | W102: 22.19031533 | X102: -84.75018249 | Y102: 95.24981751 | AB102: 22.18465479 | AC102: -21.99222275 | AF102: 43.52748572 | AG102: -62.75795975 | AI102: 0 | AJ102: 0 | AK102: 0 | AL102: 0
B103: 3981.1 | C103: 2.693881302 | D103: 1.190482809 | E103: 1.007790897 | F103: 0.124423863 | G103: 1 | H103: 0 | I103: 1403.585308 | J103: 1.570083866 | K103: 2.97468929 | L103: 1.227949535 | M103: 1.000080387 | N103: 0.0126792181 | O103: 1100.654493 | P103: 1.569887776 | Q103: 1.00074168 | R103: 0.03850250589 | S103: 1.000000039 | T103: 0.0002786945026 | U103: 1.001178668 | V103: 0.05616841545 | W103: 21.4209674 | X103: -84.6282103 | Y103: 95.3717897 | AB103: 22.08638273 | AC103: -20.32931885 | AF103: 42.85640986 | AG103: -64.29889145 | AI103: 0 | AJ103: 0 | AK103: 0 | AL103: 0
B104: 4365.2 | C104: 2.919349421 | D104: 1.221174995 | E104: 1.009359452 | F104: 0.1362866868 | G104: 1 | H104: 0 | I104: 1539.004377 | J104: 1.570146556 | K104: 3.230534127 | L104: 1.256080429 | M104: 1.000096646 | N104: 0.01390236943 | O104: 1206.846515 | P104: 1.569967721 | Q104: 1.000891633 | R104: 0.04221304357 | S104: 1.000000047 | T104: 0.0003055831896 | U104: 1.001416929 | V104: 0.06157948034 | W104: 20.650749 | X104: -84.47897629 | Y104: 95.52102371 | AB104: 22.00287516 | AC104: -18.79121065 | AF104: 42.16969903 | AG104: -65.68776564 | AI104: 0 | AJ104: 0 | AK104: 0 | AL104: 0
B105: 4786.3 | C105: 3.169223801 | D105: 1.249776266 | E105: 1.011241786 | F105: 0.1492479227 | G105: 1 | H105: 0 | I105: 1687.468247 | J105: 1.570203723 | K105: 3.513512186 | L105: 1.282191019 | M105: 1.00011619 | N105: 0.01524329787 | O105: 1323.267923 | P105: 1.570040622 | Q105: 1.001071861 | R105: 0.04627967409 | S105: 1.000000056 | T105: 0.0003350620387 | U105: 1.001703274 | V105: 0.06750921315 | W105: 19.88036997 | X105: -84.29891133 | Y105: 95.70108867 | AB105: 21.93213295 | AC105: -17.37528902 | AF105: 41.4700622 | AG105: -66.92362231 | AI105: 0 | AJ105: 0 | AK105: 0 | AL105: 0
B106: 5248.1 | C106: 3.445774852 | D106: 1.276349543 | E106: 1.013500573 | F106: 0.1634038818 | G106: 1 | H106: 0 | I106: 1850.281396 | J106: 1.570255868 | K106: 3.826166256 | L106: 1.306367263 | M106: 1.000139691 | N106: 0.01671376603 | O106: 1450.941657 | P106: 1.570107119 | Q106: 1.001288533 | R106: 0.05073758576 | S106: 1.000000067 | T106: 0.0003673900658 | U106: 1.002047495 | V106: 0.07400867297 | W106: 19.11028567 | X106: -84.08480542 | Y106: 95.91519458 | AB106: 21.87233285 | AC106: -16.07733162 | AF106: 40.759778 | AG106: -68.0074738 | AI106: 0 | AJ106: 0 | AK106: 0 | AL106: 0
B107: 5370.3 | C107: 3.519321502 | D107: 1.282681065 | E107: 1.014132171 | F107: 0.167138993 | G107: 1 | H107: 0 | I107: 1893.364477 | J107: 1.570268166 | K107: 3.909236056 | L107: 1.312116573 | M107: 1.000146272 | N107: 0.01710286465 | O107: 1484.726263 | P107: 1.570122802 | Q107: 1.001349197 | R107: 0.05191689337 | S107: 1.000000071 | T107: 0.0003759446021 | U107: 1.002143864 | V107: 0.07572790426 | W107: 18.91799585 | X107: -84.02566062 | Y107: 95.97433938 | AB107: 21.85890802 | AC107: -15.77091873 | AF107: 40.58091301 | AG107: -68.25474189 | AI107: 0 | AJ107: 0 | AK107: 0 | AL107: 0
B108: 5432.85 | C108: 3.5570204 | D108: 1.28582058 | E108: 1.014460933 | F108: 0.1690490554 | G108: 1 | H108: 0 | I108: 1915.417233 | J108: 1.570274247 | K108: 3.951805055 | L108: 1.314965875 | M108: 1.000149699 | N108: 0.01730202893 | O108: 1502.019447 | P108: 1.570130556 | Q108: 1.001380788 | R108: 0.05252048488 | S108: 1.000000072 | T108: 0.0003803233766 | U108: 1.002194048 | V108: 0.07660781298 | W108: 18.82128725 | X108: -83.99502487 | Y108: 96.00497513 | AB108: 21.85236728 | AC108: -15.61942547 | AF108: 40.49074515 | AG108: -68.3755994 | AI108: 0 | AJ108: 0 | AK108: 0 | AL108: 0
B109: 5495.4 | C109: 3.594753622 | D109: 1.288894216 | E109: 1.014793395 | F109: 0.1709578733 | G109: 1 | H109: 0 | I109: 1937.469989 | J109: 1.57028019 | K109: 3.994405452 | L109: 1.317754422 | M109: 1.000153165 | N109: 0.01750119183 | O109: 1519.312631 | P109: 1.570138134 | Q109: 1.001412743 | R109: 0.05312403808 | S109: 1.000000074 | T109: 0.0003847021511 | U109: 1.002244809 | V109: 0.07748764816 | W109: 18.72570861 | X109: -83.9641545 | Y109: 96.0358455 | AB109: 21.84603797 | AC109: -15.47140511 | AF109: 40.40149583 | AG109: -68.49274939 | AI109: 0 | AJ109: 0 | AK109: 0 | AL109: 0
B110: 5559.4 | C110: 3.633395966 | D110: 1.291972996 | E110: 1.015137388 | F110: 0.1729096389 | G110: 1 | H110: 0 | I110: 1960.03396 | J110: 1.570286132 | K110: 4.038024851 | L110: 1.320546692 | M110: 1.000156753 | N110: 0.01770497019 | O110: 1537.006696 | P110: 1.570145711 | Q110: 1.001445817 | R110: 0.05374154243 | S110: 1.000000076 | T110: 0.0003891824319 | U110: 1.002297347 | V110: 0.07838780221 | W110: 18.62905858 | X110: -83.93233354 | Y110: 96.06766646 | AB110: 21.8397714 | AC110: -15.32343595 | AF110: 40.31111236 | AG110: -68.60889759 | AI110: 0 | AJ110: 0 | AK110: 0 | AL110: 0
B111: 5623.4 | C111: 3.672072026 | D111: 1.29498695 | E111: 1.015485245 | F111: 0.1748600748 | G111: 1 | H111: 0 | I111: 1982.597931 | J111: 1.570291938 | K111: 4.081675061 | L111: 1.32327926 | M111: 1.000160383 | N111: 0.01790874707 | O111: 1554.700761 | P111: 1.570153116 | Q111: 1.001479272 | R111: 0.05435900576 | S111: 1.000000077 | T111: 0.0003936627127 | U111: 1.002350491 | V111: 0.07928787753 | W111: 18.53354094 | X111: -83.90028276 | Y111: 96.09971724 | AB111: 21.83370763 | AC111: -15.17887958 | AF111: 40.22165849 | AG111: -68.72140319 | AI111: 0 | AJ111: 0 | AK111: 0 | AL111: 0
B112: 5688.9 | C112: 3.711688367 | D112: 1.298006478 | E112: 1.015845252 | F112: 0.1768548332 | G112: 1 | H112: 0 | I112: 2005.690746 | J112: 1.570297745 | K112: 4.126379204 | L112: 1.326015991 | M112: 1.000164141 | N112: 0.01811729844 | O112: 1572.809532 | P112: 1.570160522 | Q112: 1.001513907 | R112: 0.05499089792 | S112: 1.000000079 | T112: 0.000398248 | U112: 1.002405507 | V112: 0.08020896589 | W112: 18.43693176 | X112: -83.86725094 | Y112: 96.13274906 | AB112: 21.82770273 | AC112: -15.03435827 | AF112: 40.13105422 | AG112: -68.83289267 | AI112: 0 | AJ112: 0 | AK112: 0 | AL112: 0
B113: 5754.4 | C113: 3.751337834 | D113: 1.300962204 | E113: 1.016209299 | F113: 0.1788481702 | G113: 1 | H113: 0 | I113: 2028.78356 | J113: 1.570303421 | K113: 4.17111359 | L113: 1.32869404 | M113: 1.000167942 | N113: 0.01832584822 | O113: 1590.918302 | P113: 1.570167759 | Q113: 1.001548942 | R113: 0.05562274613 | S113: 1.000000081 | T113: 0.0004028332874 | U113: 1.002461158 | V113: 0.08112996989 | W113: 18.341458 | X113: -83.83399465 | Y113: 96.16600535 | AB113: 21.82189241 | AC113: -14.89319153 | AF113: 40.04139078 | AG113: -68.94080311 | AI113: 0 | AJ113: 0 | AK113: 0 | AL113: 0
B114: 5821.4 | C114: 3.791928494 | D114: 1.30392164 | E114: 1.016585857 | F114: 0.1808856708 | G114: 1 | H114: 0 | I114: 2052.405217 | J114: 1.570309094 | K114: 4.216902714 | L114: 1.331374613 | M114: 1.000171875 | N114: 0.01853917231 | O114: 1609.441777 | P114: 1.570174993 | Q114: 1.001585192 | R114: 0.05626901814 | S114: 1.000000083 | T114: 0.0004075235813 | U114: 1.002518739 | V114: 0.08207197731 | W114: 18.24494711 | X114: -83.79975282 | Y114: 96.20024718 | AB114: 21.81614168 | AC114: -14.75215363 | AF114: 39.95063061 | AG114: -69.04759918 | AI114: 0 | AJ114: 0 | AK114: 0 | AL114: 0
B115: 5888.4 | C115: 3.832551661 | D115: 1.306818364 | E115: 1.016966632 | F115: 0.1829216541 | G115: 1 | H115: 0 | I115: 2076.026875 | J115: 1.570314637 | K115: 4.262721488 | L115: 1.333997579 | M115: 1.000175854 | N115: 0.01875249471 | O115: 1627.965252 | P115: 1.570182063 | Q115: 1.001621861 | R115: 0.05691524311 | S115: 1.000000085 | T115: 0.0004122138752 | U115: 1.002576984 | V115: 0.08301389443 | W115: 18.14957347 | X115: -83.76529274 | Y115: 96.23470726 | AB115: 21.81057743 | AC115: -14.61440887 | AF115: 39.86082122 | AG115: -69.15088387 | AI115: 0 | AJ115: 0 | AK115: 0 | AL115: 0
B116: 5957 | C116: 3.874177546 | D116: 1.309721297 | E116: 1.017360865 | F116: 0.18500467 | G116: 1 | H116: 0 | I116: 2100.212632 | J116: 1.570320185 | K116: 4.309664173 | L116: 1.336625378 | M116: 1.000179975 | N116: 0.01897090961 | O116: 1646.931079 | P116: 1.570189137 | Q116: 1.00165984 | R116: 0.05757685101 | S116: 1.000000087 | T116: 0.0004170161761 | U116: 1.002637308 | V116: 0.08397821048 | W116: 18.05307505 | X116: -83.72979208 | Y116: 96.27020792 | AB116: 21.80506517 | AC116: -14.47667916 | AF116: 39.76983506 | AG116: -69.25311292 | AI116: 0 | AJ116: 0 | AK116: 0 | AL116: 0
B117: 6025.6 | C117: 3.915835385 | D117: 1.312562489 | E117: 1.017759508 | F117: 0.187086063 | G117: 1 | H117: 0 | I117: 2124.398389 | J117: 1.570325605 | K117: 4.356635976 | L117: 1.33919653 | M117: 1.000184143 | N117: 0.0191893227 | O117: 1665.896906 | P117: 1.57019605 | Q117: 1.001698256 | R117: 0.05823840844 | S117: 1.000000089 | T117: 0.000421818477 | U117: 1.002698326 | V117: 0.08494242971 | W117: 17.95771787 | X117: -83.69407963 | Y117: 96.30592037 | AB117: 21.79973191 | AC117: -14.34218773 | AF117: 39.67981115 | AG117: -69.3518919 | AI117: 0 | AJ117: 0 | AK117: 0 | AL117: 0
B118: 6095.8 | C118: 3.958496863 | D118: 1.315408017 | E118: 1.018172011 | F118: 0.1892143049 | G118: 1 | H118: 0 | I118: 2149.148245 | J118: 1.570331026 | K118: 4.404732504 | L118: 1.341770863 | M118: 1.000188459 | N118: 0.01941282807 | O118: 1685.305084 | P118: 1.570202962 | Q118: 1.001738022 | R118: 0.05891534296 | S118: 1.000000091 | T118: 0.0004267327848 | U118: 1.002761488 | V118: 0.08592903666 | W118: 17.86129253 | X118: -83.65732361 | Y118: 96.34267639 | AB118: 21.79445155 | AC118: -14.20780584 | AF118: 39.58866617 | AG118: -69.44951777 | AI118: 0 | AJ118: 0 | AK118: 0 | AL118: 0
B119: 6166 | C119: 4.001189709 | D119: 1.318192843 | E119: 1.018589121 | F119: 0.1913408134 | G119: 1 | H119: 0 | I119: 2173.898101 | J119: 1.570336324 | K119: 4.452857593 | L119: 1.344289567 | M119: 1.000192824 | N119: 0.01963633151 | O119: 1704.713263 | P119: 1.570209718 | Q119: 1.001778248 | R119: 0.05959222342 | S119: 1.000000093 | T119: 0.0004316470927 | U119: 1.002825378 | V119: 0.08691553991 | W119: 17.7660112 | X119: -83.62036312 | Y119: 96.37963688 | AB119: 21.78934278 | AC119: -14.07660406 | AF119: 39.4984936 | AG119: -69.54375907 | AI119: 0 | AJ119: 0 | AK119: 0 | AL119: 0
B120: 6237.8 | C120: 4.044887026 | D120: 1.320980308 | E120: 1.019020499 | F120: 0.1935139785 | G120: 1 | H120: 0 | I120: 2199.212057 | J120: 1.570341618 | K120: 4.50210814 | L120: 1.346809959 | M120: 1.00019734 | N120: 0.01986492701 | O120: 1724.563793 | P120: 1.57021647 | Q120: 1.001819865 | R120: 0.06028447481 | S120: 1.000000095 | T120: 0.0004366734075 | U120: 1.002891477 | V120: 0.08792441908 | W120: 17.669716 | X120: -83.58235752 | Y120: 96.41764248 | AB120: 21.78428739 | AC120: -13.94559717 | AF120: 39.40725379 | AG120: -69.63676035 | AI120: 0 | AJ120: 0 | AK120: 0 | AL120: 0
B121: 6309.6 | C121: 4.088615099 | D121: 1.323708169 | E121: 1.019456685 | F121: 0.1956852941 | G121: 1 | H121: 0 | I121: 2224.526013 | J121: 1.570346793 | K121: 4.551386666 | L121: 1.349275789 | M121: 1.000201909 | N121: 0.02009352043 | O121: 1744.414324 | P121: 1.570223068 | Q121: 1.001861962 | R121: 0.06097666835 | S121: 1.000000098 | T121: 0.0004416997223 | U121: 1.002958337 | V121: 0.08893318729 | W121: 17.57456639 | X121: -83.54415564 | Y121: 96.45584436 | AB121: 21.77939631 | AC121: -13.81770943 | AF121: 39.31699526 | AG121: -69.72644621 | AI121: 0 | AJ121: 0 | AK121: 0 | AL121: 0
B122: 6383.05 | C122: 4.133378872 | D122: 1.326438974 | E122: 1.019907865 | F122: 0.1979045752 | G122: 1 | H122: 0 | I122: 2250.421696 | J122: 1.570351966 | K122: 4.601825652 | L122: 1.351743624 | M122: 1.000206636 | N122: 0.02032736487 | O122: 1764.721029 | P122: 1.570229665 | Q122: 1.001905523 | R122: 0.0616847083 | S122: 1.0000001 | T122: 0.0004468415444 | U122: 1.003027522 | V122: 0.08996502141 | W122: 17.47838991 | X122: -83.50488168 | Y122: 96.49511832 | AB122: 21.77455546 | AC122: -13.69000754 | AF122: 39.22565963 | AG122: -69.81487414 | AI122: 0 | AJ122: 0 | AK122: 0 | AL122: 0
B123: 6456.5 | C123: 4.178172808 | D123: 1.329111246 | E123: 1.020364063 | F123: 0.2001218827 | G123: 1 | H123: 0 | I123: 2276.317379 | J123: 1.570357021 | K123: 4.652292057 | L123: 1.354157934 | M123: 1.000211419 | N123: 0.02056120709 | O123: 1785.027735 | P123: 1.570236111 | Q123: 1.001949586 | R123: 0.06239268634 | S123: 1.000000102 | T123: 0.0004519833664 | U123: 1.003097502 | V123: 0.09099673677 | W123: 17.38336104 | X123: -83.46542018 | Y123: 96.53457982 | AB123: 21.76987197 | AC123: -13.56536559 | AF123: 39.13531425 | AG123: -69.90005458 | AI123: 0 | AJ123: 0 | AK123: 0 | AL123: 0
B124: 6531.7 | C124: 4.224064241 | D124: 1.331788449 | E124: 1.020836322 | F124: 0.2023899546 | G124: 1 | H124: 0 | I124: 2302.830046 | J124: 1.570362078 | K124: 4.703988345 | L124: 1.356576082 | M124: 1.000216372 | N124: 0.02080061844 | O124: 1805.818263 | P124: 1.570242561 | Q124: 1.001995219 | R124: 0.06311746759 | S124: 1.000000105 | T124: 0.0004572476961 | U124: 1.003169975 | V124: 0.09205290909 | W124: 17.28723124 | X124: -83.42483324 | Y124: 96.57516676 | AB124: 21.76523282 | AC124: -13.44082294 | AF124: 39.0438236 | AG124: -69.98401029 | AI124: 0 | AJ124: 0 | AK124: 0 | AL124: 0
B125: 6606.9 | C125: 4.269985298 | D125: 1.334408087 | E125: 1.021313828 | F125: 0.2046559173 | G125: 1 | H125: 0 | I125: 2329.342713 | J125: 1.570367021 | K125: 4.755711542 | L125: 1.358941645 | M125: 1.000221382 | N125: 0.02104002741 | O125: 1826.608791 | P125: 1.570248864 | Q125: 1.002041379 | R125: 0.06384218244 | S125: 1.000000107 | T125: 0.0004625120257 | U125: 1.003243283 | V125: 0.0931089541 | W125: 17.19225297 | X125: -83.38406785 | Y125: 96.61593215 | AB125: 21.7607446 | AC125: -13.31928652 | AF125: 38.95333355 | AG125: -70.06478132 | AI125: 0 | AJ125: 0 | AK125: 0 | AL125: 0
B126: 6683.85 | C126: 4.317004678 | D126: 1.337030977 | E126: 1.02180787 | F126: 0.2069724073 | G126: 1 | H126: 0 | I126: 2356.472364 | J126: 1.570371964 | K126: 4.808665352 | L126: 1.361309564 | M126: 1.000226568 | N126: 0.02128500523 | O126: 1847.883141 | P126: 1.570255167 | Q126: 1.002089157 | R126: 0.06458369282 | S126: 1.000000109 | T126: 0.000467898863 | U126: 1.00331916 | V126: 0.09418944136 | W126: 17.09623064 | X126: -83.34217825 | Y126: 96.65782175 | AB126: 21.75630135 | AC126: -13.19793413 | AF126: 38.86175447 | AG126: -70.14424412 | AI126: 0 | AJ126: 0 | AK126: 0 | AL126: 0
B127: 6760.8 | C127: 4.364053116 | D127: 1.33959733 | E127: 1.02230739 | F127: 0.209286646 | G127: 1 | H127: 0 | I127: 2383.602015 | J127: 1.570376794 | K127: 4.861645537 | L127: 1.363625886 | M127: 1.000231815 | N127: 0.0215299805 | O127: 1869.157492 | P127: 1.570261326 | Q127: 1.002137487 | R127: 0.06532513209 | S127: 1.000000112 | T127: 0.0004732857002 | U127: 1.003395911 | V127: 0.0952697923 | W127: 17.00136251 | X127: -83.30012017 | Y127: 96.69987983 | AB127: 21.75200267 | AC127: -13.07953141 | AF127: 38.77118502 | AG127: -70.22058876 | AI127: 0 | AJ127: 0 | AK127: 0 | AL127: 0
B128: 6839.55 | C128: 4.41223122 | D128: 1.342167031 | E128: 1.022824257 | F128: 0.2116526655 | G128: 1 | H128: 0 | I128: 2411.366277 | J128: 1.570381624 | K128: 4.915891442 | L128: 1.365944686 | M128: 1.000237246 | N128: 0.0217806835 | O128: 1890.929488 | P128: 1.570267486 | Q128: 1.002187517 | R128: 0.06608384049 | S128: 1.000000115 | T128: 0.0004787985453 | U128: 1.003475361 | V128: 0.09637527186 | W128: 16.90544435 | X128: -83.25691313 | Y128: 96.74308687 | AB128: 21.74774657 | AC128: -12.96131495 | AF128: 38.67952296 | AG128: -70.29559817 | AI128: 0 | AJ128: 0 | AK128: 0 | AL128: 0
B129: 6918.3 | C129: 4.460437829 | D129: 1.344681204 | E129: 1.023346844 | F129: 0.2140162817 | G129: 1 | H129: 0 | I129: 2439.13054 | J129: 1.570386345 | K129: 4.970163202 | L129: 1.368212858 | M129: 1.00024274 | N129: 0.02203138377 | O129: 1912.701484 | P129: 1.570273506 | Q129: 1.002238124 | R129: 0.06684247272 | S129: 1.000000117 | T129: 0.0004843113904 | U129: 1.003555726 | V129: 0.0974806054 | W129: 16.81068332 | X129: -83.21354821 | Y129: 96.78645179 | AB129: 21.74362897 | AC129: -12.84599283 | AF129: 38.58887953 | AG129: -70.36755538 | AI129: 0 | AJ129: 0 | AK129: 0 | AL129: 0
B130: 6998.9 | C130: 4.509805476 | D130: 1.347198766 | E130: 1.023887623 | F130: 0.2164329119 | G130: 1 | H130: 0 | I130: 2467.547042 | J130: 1.570391066 | K130: 5.025735817 | L130: 1.370483575 | M130: 1.000248428 | N130: 0.02228797063 | O130: 1934.984949 | P130: 1.570279527 | Q130: 1.002290518 | R130: 0.06761884699 | S130: 1.00000012 | T130: 0.0004899537436 | U130: 1.003638925 | V130: 0.09861175261 | W130: 16.71486842 | X130: -83.16901047 | Y130: 96.83098953 | AB130: 21.73955175 | AC130: -12.73086219 | AF130: 38.49714184 | AG130: -70.43814828 | AI130: 0 | AJ130: 0 | AK130: 0 | AL130: 0
B131: 7079.5 | C131: 4.559201087 | D131: 1.349661791 | E131: 1.024434374 | F131: 0.2188469765 | G131: 1 | H131: 0 | I131: 2495.963544 | J131: 1.57039568 | K131: 5.081333779 | L131: 1.372704612 | M131: 1.000254182 | N131: 0.02254455456 | O131: 1957.268414 | P131: 1.570285411 | Q131: 1.002343515 | R131: 0.06839513962 | S131: 1.000000123 | T131: 0.0004955960967 | U131: 1.003723082 | V131: 0.09974274339 | W131: 16.6202138 | X131: -83.12432613 | Y131: 96.87567387 | AB131: 21.7356072 | AC131: -12.61857164 | AF131: 38.40643178 | AG131: -70.50575449 | AI131: 0 | AJ131: 0 | AK131: 0 | AL131: 0
B132: 7161.95 | C132: 4.609758465 | D132: 1.352126717 | E132: 1.024999845 | F132: 0.2213137714 | G132: 1 | H132: 0 | I132: 2525.032287 | J132: 1.570400292 | K132: 5.13823324 | L132: 1.374926885 | M132: 1.000260137 | N132: 0.02280702475 | O132: 1980.063349 | P132: 1.570291292 | Q132: 1.002398354 | R132: 0.06918916497 | S132: 1.000000126 | T132: 0.0005013679579 | U132: 1.003810161 | V132: 0.10089953 | W132: 16.52456112 | X132: -83.07847394 | Y132: 96.92152606 | AB132: 21.73170336 | AC132: -12.50654749 | AF132: 38.31468295 | AG132: -70.57192645 | AI132: 0 | AJ132: 0 | AK132: 0 | AL132: 0
B133: 7244.4 | C133: 4.660343245 | D133: 1.354538149 | E133: 1.025571547 | F133: 0.223777831 | G133: 1 | H133: 0 | I133: 2554.101029 | J133: 1.5704048 | K133: 5.195157521 | L133: 1.377100469 | M133: 1.00026616 | N133: 0.0230694918 | O133: 2002.858283 | P133: 1.57029704 | Q133: 1.002453825 | R133: 0.06998310294 | S133: 1.000000129 | T133: 0.0005071398191 | U133: 1.003898241 | V133: 0.1020561492 | W133: 16.43007068 | X133: -83.03248729 | Y133: 96.96751271 | AB133: 21.72792644 | AC133: -12.39730683 | AF133: 38.22396942 | AG133: -70.63518046 | AI133: 0 | AJ133: 0 | AK133: 0 | AL133: 0
B134: 7328.75 | C134: 4.712121148 | D134: 1.356951558 | E134: 1.02616286 | F134: 0.2262958161 | G134: 1 | H134: 0 | I134: 2583.83964 | J134: 1.570409306 | K134: 5.253418422 | L134: 1.379275385 | M134: 1.000272393 | N134: 0.02333800392 | O134: 2026.178511 | P134: 1.570302787 | Q134: 1.002511227 | R134: 0.07079524518 | S134: 1.000000132 | T134: 0.0005130446885 | U134: 1.003989387 | V134: 0.1032392466 | W134: 16.33457945 | X134: -82.9853113 | Y134: 97.0146887 | AB134: 21.72418808 | AC134: -12.28833609 | AF134: 38.13221656 | AG134: -70.69697521 | AI134: 0 | AJ134: 0 | AK134: 0 | AL134: 0
B135: 7413.1 | C135: 4.7639259 | D135: 1.359312493 | E135: 1.026760671 | F135: 0.2288108851 | G135: 1 | H135: 0 | I135: 2613.57825 | J135: 1.57041371 | K135: 5.311703629 | L135: 1.381402581 | M135: 1.000278698 | N135: 0.02360651267 | O135: 2049.498738 | P135: 1.570308403 | Q135: 1.002569291 | R135: 0.07160729389 | S135: 1.000000135 | T135: 0.0005189495579 | U135: 1.004081581 | V135: 0.104422165 | W135: 16.24025262 | X135: -82.93801365 | Y135: 97.06198635 | AB135: 21.72057116 | AC135: -12.18209348 | AF135: 38.04150665 | AG135: -70.75592018 | AI135: 0 | AJ135: 0 | AK135: 0 | AL135: 0
B136: 7499.45 | C136: 4.816985889 | D136: 1.361676791 | E136: 1.027379376 | F136: 0.2313825396 | G136: 1 | H136: 0 | I136: 2644.021985 | J136: 1.570418115 | K136: 5.37139517 | L136: 1.383532385 | M136: 1.000285228 | N136: 0.02388138444 | O136: 2073.371905 | P136: 1.570314021 | Q136: 1.002629417 | R136: 0.07243849888 | S136: 1.000000138 | T136: 0.0005249944361 | U136: 1.004177046 | V136: 0.1056329435 | W136: 16.14486927 | X136: -82.88947814 | Y136: 97.11052186 | AB136: 21.71698875 | AC136: -12.07606611 | AF136: 37.9497057 | AG136: -70.81341203 | AI136: 0 | AJ136: 0 | AK136: 0 | AL136: 0
B137: 7585.8 | C137: 4.870072217 | D137: 1.363989557 | E137: 1.028004868 | F137: 0.2339510817 | G137: 1 | H137: 0 | I137: 2674.465719 | J137: 1.57042242 | K137: 5.43111054 | L137: 1.385615364 | M137: 1.000291833 | N137: 0.02415625259 | O137: 2097.245072 | P137: 1.570319511 | Q137: 1.002690235 | R137: 0.07326960361 | S137: 1.000000141 | T137: 0.0005310393142 | U137: 1.004273608 | V137: 0.10684353 | W137: 16.05065401 | X137: -82.84083437 | Y137: 97.15916563 | AB137: 21.71352268 | AC137: -11.97271569 | AF137: 37.85895651 | AG137: -70.86811868 | AI137: 0 | AJ137: 0 | AK137: 0 | AL137: 0
B138: 7674.15 | C138: 4.92441448 | D138: 1.366304269 | E138: 1.028651858 | F138: 0.2365758643 | G138: 1 | H138: 0 | I138: 2705.614578 | J138: 1.570426725 | K138: 5.492232864 | L138: 1.387699697 | M138: 1.00029867 | N138: 0.02443748334 | O138: 2121.671179 | P138: 1.570325 | Q138: 1.002753178 | R138: 0.07411985307 | S138: 1.000000144 | T138: 0.000537224201 | U138: 1.004373542 | V138: 0.1080819547 | W138: 15.95543938 | X138: -82.79096156 | Y138: 97.20903844 | AB138: 21.71009143 | AC138: -11.86965216 | AF138: 37.76717314 | AG138: -70.92130941 | AI138: 0 | AJ138: 0 | AK138: 0 | AL138: 0
B139: 7762.5 | C139: 4.978782551 | D139: 1.368568439 | E139: 1.029305926 | F139: 0.2391973291 | G139: 1 | H139: 0 | I139: 2736.763437 | J139: 1.570430932 | K139: 5.553378524 | L139: 1.38973814 | M139: 1.000305585 | N139: 0.02471871023 | O139: 2146.097285 | P139: 1.570330365 | Q139: 1.002816846 | R139: 0.07496999517 | S139: 1.000000148 | T139: 0.0005434090878 | U139: 1.004474625 | V139: 0.1093201739 | W139: 15.86139529 | X139: -82.74099478 | Y139: 97.25900522 | AB139: 21.70677148 | AC139: -11.76921213 | AF139: 37.67644899 | AG139: -70.97178266 | AI139: 0 | AJ139: 0 | AK139: 0 | AL139: 0
B140: 7852.9 | C140: 5.034437976 | D140: 1.370834515 | E140: 1.029982483 | F140: 0.2418761551 | G140: 1 | H140: 0 | I140: 2768.635048 | J140: 1.570435138 | K140: 5.615966315 | L140: 1.391777927 | M140: 1.000312743 | N140: 0.02500645842 | O140: 2171.090155 | P140: 1.570335729 | Q140: 1.002882742 | R140: 0.0758397509 | S140: 1.000000151 | T140: 0.0005497374835 | U140: 1.004579241 | V140: 0.1105869086 | W140: 15.76635443 | X140: -82.68978108 | Y140: 97.31021892 | AB140: 21.70348462 | AC140: -11.66906869 | AF140: 37.58469499 | AG140: -71.02071239 | AI140: 0 | AJ140: 0 | AK140: 0 | AL140: 0
B141: 7943.3 | C141: =SQRT(1+(B141/PS_Pole1)^2) -> 5.090118687 | D141: =ATAN(B141/PS_Pole1) -> 1.373051025 | E141: =SQRT(1+(B141/PS_Zero1)^2) -> 1.030666421 | F141: =ATAN(B141/PS_Zero1) -> 0.2445514451 | G141: =IF(VIN_nom>Vout, 1, SQRT(1+(B141/PS_RHPZ)^2)) -> 1 | H141: =IF(VIN_nom>Vout, 0, -ATAN(B141/PS_RHPZ)) -> 0 | I141: =SQRT(1+(B141/EA_Pole1)^2) -> 2800.506659 | J141: =ATAN(B141/EA_Pole1) -> 1.570439249 | K141: =SQRT(1+(B141/EA_Zero1)^2) -> 5.678576958 | L141: =ATAN(B141/EA_Zero1) -> 1.393772742 | M141: =SQRT(1+(B141/EA_Pole2)^2) -> 1.000319984 | N141: =ATAN(B141/EA_Pole2) -> 0.02529420247 | O141: =SQRT(1+(B141/$V$5)^2) -> 2196.083025 | P141: =ATAN(B141/$V$5) -> 1.570340971 | Q141: =SQRT(1+(B141/$V$4)^2) -> 1.002949396 | R141: =ATAN(B141/$V$4) -> 0.07670939167 | S141: =SQRT(1+(B141/$V$7)^2) -> 1.000000155 | T141: =ATAN(B141/$V$7) -> 0.0005560658791 | U141: =SQRT((1-(B141^2/pterm2))^2+(B141/pterm1)^2) -> 1.004685059 | V141: =IF((ATAN((B141/pterm1)/(1-B141^2/pterm2))>0),ATAN((B141/pterm1)/(1-B141^2/pterm2)),PI()+ATAN((B141/pterm1)/(1-B141^2/pterm2))) -> 0.1118534233 | W141: =20*LOG10(((E141*K141*G141)/(C141*I141*U141*M141))*Adc) -> 15.67248665 | X141: -82.63848845 | Y141: 97.36151155 | AB141: =20*LOG10((K141/(I141*M141))*AEA) -> 21.70030423 | AC141: =(L141-(J141+N141))*radconv -> -11.57149626 | AF141: =20*LOG10((E141*G141/(C141*U141))*Acs*Am) -> 37.49400759 | AG141: =(F141+H141-(D141+V141))*radconv -> -71.0669922 | AI141: =SUM((W142<0)*(W141>0))*B141 -> 0 | AJ141: 0 | AK141: =SUM((AB142<0)*(AB141>0))*B141 -> 0 | AL141: =IF(AK141>0,AC141,0) -> 0
B142: 8035.8 | C142: 5.147118185 | D142: 1.375269374 | E142: 1.031373872 | F142: 0.2472851894 | G142: 1 | H142: 0 | I142: 2833.118651 | J142: 1.570443359 | K142: 5.742664926 | L142: 1.395768863 | M142: 1.000327478 | N142: 0.0255886265 | O142: 2221.656482 | P142: 1.570346212 | Q142: 1.003018384 | R142: 0.07759911395 | S142: 1.000000158 | T142: 0.000562541284 | U142: 1.004794578 | V142: 0.113149129 | W142: 15.57762627 | X142: -82.58593239 | Y142: =IF(X142>0,X142-180,X142+180) -> 97.41406761 | AB142: 21.6971553 | AC142: -11.47423169 | AF142: 37.40229615 | AG142: -71.1117007 | AI142: 0 | AJ142: 0 | AK142: 0 | AL142: 0
B143: 8128.3 | C143: 5.204142458 | D143: 1.377439119 | E143: 1.032089021 | F143: 0.2500151656 | G143: 1 | H143: 0 | I143: 2865.730643 | J143: 1.570447376 | K143: 5.80677527 | L143: 1.397720915 | M143: 1.00033506 | N143: 0.02588304609 | O143: 2247.229939 | P143: 1.570351334 | Q143: 1.003088165 | R143: 0.07848871314 | S143: 1.000000162 | T143: 0.0005690166887 | U143: 1.004905354 | V143: 0.1144445992 | W143: 15.48394159 | X143: =IF(((F143+L143+H143)-(D143+J143+V143+N143))*radconv<-180,((F143+L143+H143)-(D143+J143+V143+N143))*radconv+360,((F143+L143+H143)-(D143+J143+V143+N143))*radconv) -> -82.53331326 | Y143: 97.46668674 | AB143: 21.69410823 | AC143: -11.37948649 | AF143: 37.31165854 | AG143: -71.15382677 | AI143: 0 | AJ143: 0 | AK143: 0 | AL143: 0
B144: 8222.95 | C144: 5.262516964 | D144: 1.37961061 | E144: 1.032828743 | F144: 0.2528046605 | G144: 1 | H144: 0 | I144: 2899.100643 | J144: 1.570451392 | K144: 5.872398145 | L144: 1.399674212 | M144: 1.000342907 | N144: 0.02618430431 | O144: 2273.397805 | P144: 1.570356457 | Q144: 1.003160391 | R144: 0.07939886065 | S144: 1.000000166 | T144: 0.0005756426028 | U144: 1.005020006 | V144: 0.1157699339 | W144: 15.38927 | X144: -82.47941564 | Y144: 97.52058436 | AB144: 21.69109108 | AC144: -11.28506178 | AF144: 37.2200041 | AG144: -71.19435387 | AI144: 0 | AJ144: 0 | AK144: 0 | AL144: 0
B145: 8270.275 | C145: 5.291713369 | D145: 1.380678388 | E145: 1.033201614 | F145: 0.2541979047 | G145: 1 | H145: 0 | I145: 2915.785643 | J145: 1.570453366 | K145: 5.905217844 | L145: 1.400634579 | M145: 1.000346865 | N145: 0.02633493163 | O145: 2286.481739 | P145: 1.570358974 | Q145: 1.003196815 | R145: 0.07985388507 | S145: 1.000000168 | T145: 0.0005789555599 | U145: 1.005077826 | V145: 0.1164325068 | W145: 15.34237768 | X145: -82.45244884 | Y145: 97.54755116 | AB145: 21.68961931 | AC145: -11.23878021 | AF145: 37.17458356 | AG145: -71.21366863 | AI145: 0 | AJ145: 0 | AK145: 0 | AL145: 0
B146: 8317.6 | C146: 5.320915741 | D146: 1.381734446 | E146: 1.03357649 | F146: 0.255590141 | G146: 1 | H146: 0 | I146: 2932.470643 | J146: 1.570455317 | K146: 5.93804293 | L146: 1.401584329 | M146: 1.000350845 | N146: 0.02648555777 | O146: 2299.565672 | P146: 1.570361462 | Q146: 1.003233446 | R146: 0.08030887636 | S146: 1.00000017 | T146: 0.0005822685169 | U146: 1.005135974 | V146: 0.1170950164 | W146: 15.29577674 | X146: -82.42547164 | Y146: 97.57452836 | AB146: 21.68817134 | AC146: -11.19310559 | AF146: 37.12943059 | AG146: -71.23236605 | AI146: 0 | AJ146: 0 | AK146: 0 | AL146: 0
B147: 8366.05 | C147: 5.350818385 | D147: 1.382803666 | E147: 1.033962351 | F147: 0.2570144245 | G147: 1 | H147: 0 | I147: 2949.552276 | J147: 1.570457292 | K147: 5.971653813 | L147: 1.402545839 | M147: 1.000354943 | N147: 0.02663976331 | O147: 2312.960634 | P147: 1.57036398 | Q147: 1.003271164 | R147: 0.08077464909 | S147: 1.000000171 | T147: 0.0005856602288 | U147: 1.005195845 | V147: 0.1177732091 | W147: 15.24836659 | X147: -82.3978436 | Y147: 97.6021564 | AB147: 21.68671306 | AC147: -11.1469636 | AF147: 37.08347871 | AG147: -71.25088 | AI147: 0 | AJ147: 0 | AK147: 0 | AL147: 0
B148: 8414.5 | C148: 5.380727078 | D148: 1.383861001 | E148: 1.034350308 | F148: 0.2584376425 | G148: 1 | H148: 0 | I148: 2966.633908 | J148: 1.570459244 | K148: 6.005270156 | L148: 1.403496585 | M148: 1.000359066 | N148: 0.02679396758 | O148: 2326.355596 | P148: 1.57036647 | Q148: 1.0033091 | R148: 0.08124038669 | S148: 1.000000173 | T148: 0.0005890519408 | U148: 1.005256061 | V148: 0.1184513345 | W148: 15.20125523 | X148: -82.37020713 | Y148: 97.62979287 | AB148: 21.68527863 | AC148: -11.10143697 | AF148: 37.03780178 | AG148: -71.26877016 | AI148: 0 | AJ148: 0 | AK148: 0 | AL148: 0
B149: 8462.95 | C149: 5.41064172 | D149: 1.384906646 | E149: 1.034740359 | F149: 0.2598597904 | G149: 1 | H149: 0 | I149: 2983.715541 | J149: 1.570461174 | K149: 6.038891867 | L149: 1.404436746 | M149: 1.000363212 | N149: 0.02694817058 | O149: 2339.750558 | P149: 1.570368931 | Q149: 1.003347253 | R149: 0.08170608898 | S149: 1.000000175 | T149: 0.0005924436527 | U149: 1.005316621 | V149: 0.1191293924 | W149: 15.1544394 | X149: -82.34256345 | Y149: 97.65743655 | AB149: 21.6838675 | AC149: -11.05651549 | AF149: 36.99239708 | AG149: -71.28604796 | AI149: 0 | AJ149: 0 | AK149: 0 | AL149: 0
B150: 8511.4 | C150: 5.440562213 | D150: 1.38594079 | E150: 1.0351325 | F150: 0.2612808637 | G150: 1 | H150: 0 | I150: 3000.797173 | J150: 1.570463082 | K150: 6.072518856 | L150: 1.405366494 | M150: 1.000367382 | N150: 0.02710237229 | O150: 2353.14552 | P150: 1.570371364 | Q150: 1.003385623 | R150: 0.08217175575 | S150: 1.000000178 | T150: 0.0005958353646 | U150: 1.005377526 | V150: 0.1198073825 | W150: 15.1079159 | X150: -82.31491376 | Y150: 97.68508624 | AB150: 21.68247916 | AC150: -11.01218923 | AF150: 36.94726192 | AG150: -71.30272453 | AI150: 0 | AJ150: 0 | AK150: 0 | AL150: 0
B151: 8560.95 | C151: 5.471167967 | D151: 1.386986713 | E151: 1.035535705 | F151: 0.2627330845 | G151: 1 | H151: 0 | I151: 3018.266624 | J151: 1.570465011 | K151: 6.106914675 | L151: 1.406306761 | M151: 1.000371671 | N151: 0.02726007364 | O151: 2366.844599 | P151: 1.570373823 | Q151: 1.00342509 | R151: 0.08264795799 | S151: 1.00000018 | T151: 0.0005993040813 | U151: 1.005440169 | V151: 0.1205006948 | W151: 15.06063522 | X151: -82.28663133 | Y151: 97.71336867 | AB151: 21.68108233 | AC151: -10.96746207 | AF151: 36.90137807 | AG151: -71.31916926 | AI151: 0 | AJ151: 0 | AK151: 0 | AL151: 0
B152: 8610.5 | C152: 5.50177964 | D152: 1.388020998 | E152: 1.035941093 | F152: 0.2641841718 | G152: 1 | H152: 0 | I152: 3035.736075 | J152: 1.570466917 | K152: 6.141315833 | L152: 1.407236494 | M152: 1.000375985 | N152: 0.02741777364 | O152: 2380.543678 | P152: 1.570376255 | Q152: 1.003464784 | R152: 0.08312412266 | S152: 1.000000182 | T152: 0.000602772798 | U152: 1.005503173 | V152: 0.1211939354 | W152: 15.01365367 | X152: -82.25834509 | Y152: 97.74165491 | AB152: 21.67970828 | AC152: -10.92333707 | AF152: 36.85577058 | AG152: -71.33500802 | AI152: 0 | AJ152: 0 | AK152: 0 | AL152: 0
B153: 8660.05 | C153: 5.532397133 | D153: 1.389043837 | E153: 1.03634866 | F153: 0.2656341209 | G153: 1 | H153: 0 | I153: 3053.205526 | J153: 1.570468802 | K153: 6.17572224 | L153: 1.408155868 | M153: 1.000380324 | N153: 0.02757547227 | O153: 2394.242757 | P153: 1.570378658 | Q153: 1.003504706 | R153: 0.08360024956 | S153: 1.000000184 | T153: 0.0006062415146 | U153: 1.005566537 | V153: 0.1218871037 | W153: 14.96696802 | X153: -82.23005626 | Y153: 97.76994374 | AB153: 21.67835649 | AC153: -10.87980425 | AF153: 36.81043671 | AG153: -71.35025201 | AI153: 0 | AJ153: 0 | AK153: 0 | AL153: 0
B154: 8709.6 | C154: 5.56302035 | D154: 1.390055415 | E154: 1.036758404 | F154: 0.2670829268 | G154: 1 | H154: 0 | I154: 3070.674976 | J154: 1.570470665 | K154: 6.210133809 | L154: 1.409065055 | M154: 1.000384688 | N154: 0.02773316953 | O154: 2407.941836 | P154: 1.570381034 | Q154: 1.003544855 | R154: 0.08407633846 | S154: 1.000000186 | T154: 0.0006097102313 | U154: 1.005630261 | V154: 0.1225801995 | W154: 14.92057503 | X154: -82.20176604 | Y154: 97.79823396 | AB154: 21.67702646 | AC154: -10.83685386 | AF154: 36.76537376 | AG154: -71.36491219 | AI154: 0 | AJ154: =IF(AI154>0,Y154,0) -> 0 | AK154: 0 | AL154: 0
B155: 8760.325 | C155: 5.59437558 | D155: 1.391079509 | E155: 1.037180117 | F155: 0.2685649 | G155: 1 | H155: 0 | I155: 3088.558688 | J155: 1.570472551 | K155: 6.245366653 | L155: 1.409985422 | M155: 1.000389181 | N155: 0.0278946049 | O155: 2421.965767 | P155: 1.570383439 | Q155: 1.003586192 | R155: 0.08456367749 | S155: 1.000000188 | T155: 0.000613261203 | U155: 1.005695869 | V155: 0.1232896552 | W155: 14.87338179 | X155: -82.17280476 | Y155: 97.82719524 | AB155: 21.67568692 | AC155: -10.79347831 | AF155: 36.71952005 | AG155: -71.37932645 | AI155: 0 | AJ155: 0 | AK155: 0 | AL155: 0
B156: 8811.05 | C156: 5.625736612 | D156: 1.392092186 | E156: 1.037604106 | F156: 0.2700456653 | G156: 1 | H156: 0 | I156: 3106.442399 | J156: 1.570474415 | K156: 6.280604728 | L156: 1.410895462 | M156: 1.0003937 | N156: 0.02805603881 | O156: 2435.989698 | P156: 1.570385816 | Q156: 1.003627768 | R156: 0.08505097626 | S156: 1.00000019 | T156: 0.0006168121748 | U156: 1.005761854 | V156: 0.1239990341 | W156: 14.82648864 | X156: -82.14384451 | Y156: 97.85615549 | AB156: 21.67436918 | AC156: -10.75069312 | AF156: 36.67394464 | AG156: -71.39315139 | AI156: 0 | AJ156: 0 | AK156: 0 | AL156: 0
B157: 8861.775 | C157: 5.657103349 | D157: 1.393093634 | E157: 1.038030368 | F157: 0.2715252177 | G157: 1 | H157: 0 | I157: 3124.32611 | J157: 1.570476258 | K157: 6.315847946 | L157: 1.411795347 | M157: 1.000398245 | N157: 0.02821747127 | O157: 2450.013628 | P157: 1.570388166 | Q157: 1.003669581 | R157: 0.08553823455 | S157: 1.000000192 | T157: 0.0006203631465 | U157: 1.005828216 | V157: 0.1247083356 | W157: 14.7798923 | X157: -82.11488652 | Y157: 97.88511348 | AB157: 21.67307274 | AC157: -10.7084885 | AF157: 36.62864475 | AG157: -71.40639802 | AI157: 0 | AJ157: 0 | AK157: 0 | AL157: 0
B158: 8912.5 | C158: 5.688475696 | D158: 1.394084038 | E158: 1.038458901 | F158: 0.2730035522 | G158: 1 | H158: 0 | I158: 3142.209822 | J158: 1.570478079 | K158: 6.351096221 | L158: 1.412685244 | M158: 1.000402816 | N158: 0.02837890225 | O158: 2464.037559 | P158: 1.570390489 | Q158: 1.003711633 | R158: 0.08602545212 | S158: 1.000000195 | T158: 0.0006239141183 | U158: 1.005894956 | V158: 0.1254175593 | W158: 14.73358956 | X158: -82.08593199 | Y158: 97.91406801 | AB158: 21.67179711 | AC158: -10.66685486 | AF158: 36.58361763 | AG158: -71.41907713 | AI158: 0 | AJ158: 0 | AK158: 0 | AL158: 0
B159: 8964.4 | C159: 5.720580468 | D159: 1.395086138 | E159: 1.038899707 | F159: 0.2745148653 | G159: 1 | H159: 0 | I159: 3160.507793 | J159: 1.570479922 | K159: 6.38716614 | L159: 1.413585587 | M159: 1.00040752 | N159: 0.02854407111 | O159: 2478.386342 | P159: 1.570392838 | Q159: 1.003754906 | R159: 0.08652391328 | S159: 1.000000197 | T159: 0.0006275473451 | U159: 1.005963631 | V159: 0.1261431305 | W159: 14.68651483 | X159: -82.05631157 | Y159: 97.94368843 | AB159: 21.670513 | AC159: -10.624838 | AF159: 36.53782701 | AG159: -71.43147357 | AI159: 0 | AJ159: 0 | AK159: 0 | AL159: 0
B160: 9016.3 | C160: 5.752690921 | D160: 1.396077053 | E160: 1.039342885 | F160: 0.276024893 | G160: 1 | H160: 0 | I160: 3178.805765 | J160: 1.570481743 | K160: 6.423241178 | L160: 1.414475819 | M160: 1.000412252 | N160: 0.02870923841 | O160: 2492.735125 | P160: 1.570395161 | Q160: 1.003798428 | R160: 0.08702233135 | S160: 1.000000199 | T160: 0.0006311805719 | U160: 1.006032701 | V160: 0.1268686195 | W160: 14.63974081 | X160: -82.02669727 | Y160: 97.97330273 | AB160: 21.66924971 | AC160: -10.58339925 | AF160: 36.49231628 | AG160: -71.44329802 | AI160: 0 | AJ160: 0 | AK160: 0 | AL160: 0
B161: 9068.2 | C161: 5.784806959 | D161: 1.397056965 | E161: 1.03978843 | F161: 0.2775336301 | G161: 1 | H161: 0 | I161: 3197.103737 | J161: 1.570483544 | K161: 6.459321249 | L161: 1.415356106 | M161: 1.00041701 | N161: 0.02887440414 | O161: 2507.083908 | P161: 1.570397457 | Q161: 1.003842199 | R161: 0.08752070607 | S161: 1.000000201 | T161: 0.0006348137988 | U161: 1.006102166 | V161: 0.1275940256 | W161: 14.59326423 | X161: -81.99709031 | Y161: 98.00290969 | AB161: 21.66800678 | AC161: -10.54252899 | AF161: 36.44708263 | AG161: -71.45456133 | AI161: 0 | AJ161: 0 | AK161: 0 | AL161: 0
B162: 9120.1 | C162: 5.81692849 | D162: 1.398026057 | E162: 1.04023634 | F162: 0.2790410714 | G162: 1 | H162: 0 | I162: 3215.401709 | J162: 1.570485324 | K162: 6.49540627 | L162: 1.416226612 | M162: 1.000421796 | N162: 0.0290395683 | O162: 2521.432691 | P162: 1.570399727 | Q162: 1.003886219 | R162: 0.0880190372 | S162: 1.000000204 | T162: 0.0006384470255 | U162: 1.006172024 | V162: 0.1283193486 | W162: 14.54708184 | X162: -81.96749191 | Y162: 98.03250809 | AB162: 21.66678374 | AC162: -10.50221782 | AF162: 36.40212328 | AG162: -71.46527409 | AI162: 0 | AJ162: 0 | AK162: 0 | AL162: 0
B163: 9173.2 | C163: 5.849798307 | D163: 1.399006539 | E163: 1.04069705 | F163: 0.2805820202 | G163: 1 | H163: 0 | I163: 3234.122755 | J163: 1.570487124 | K163: 6.532330665 | L163: 1.417107292 | M163: 1.000426721 | N163: 0.02920854964 | O163: 2536.113238 | P163: 1.570402023 | Q163: 1.003931516 | R163: 0.08852884509 | S163: 1.000000206 | T163: 0.0006421642576 | U163: 1.006243907 | V163: 0.1290613553 | W163: 14.50013283 | X163: -81.93721925 | Y163: 98.06278075 | AB163: 21.66555255 | AC163: -10.46154366 | AF163: 36.35640546 | AG163: -71.47567559 | AI163: 0 | AJ163: 0 | AK163: 0 | AL163: 0
B164: 9226.3 | C164: 5.882673685 | D164: 1.399976064 | E164: 1.04116023 | F164: 0.2821216017 | G164: 1 | H164: 0 | I164: 3252.843801 | J164: 1.570488903 | K164: 6.569260068 | L164: 1.417978071 | M164: 1.000431675 | N164: 0.02937752931 | O164: 2550.793785 | P164: 1.570404292 | Q164: 1.003977073 | R164: 0.08903860684 | S164: 1.000000209 | T164: 0.0006458814896 | U164: 1.006316202 | V164: 0.129803274 | W164: 14.45348513 | X164: -81.90695803 | Y164: 98.09304197 | AB164: 21.66434126 | AC164: -10.42143549 | AF164: 36.31096905 | AG164: -71.48552254 | AI164: 0 | AJ164: 0 | AK164: 0 | AL164: 0
B165: 9279.4 | C165: 5.915554531 | D165: 1.400934811 | E165: 1.041625875 | F165: 0.2836598103 | G165: 1 | H165: 0 | I165: 3271.564847 | J165: 1.570490663 | K165: 6.606194398 | L165: 1.418839113 | M165: 1.000436657 | N165: 0.02954650731 | O165: 2565.474332 | P165: 1.570406535 | Q165: 1.004022891 | R165: 0.0895483222 | S165: 1.000000211 | T165: 0.0006495987216 | U165: 1.006388909 | V165: 0.1305451041 | W165: 14.40713544 | X165: -81.8767095 | Y165: 98.1232905 | AB165: 21.66314941 | AC165: -10.3818839 | AF165: 36.26581122 | AG165: -71.4948256 | AI165: 0 | AJ165: 0 | AK165: 0 | AL165: 0
B166: 9332.5 | C166: 5.948440755 | D166: 1.401882958 | E166: 1.042093983 | F166: 0.2851966406 | G166: 1 | H166: 0 | I166: 3290.285894 | J166: 1.570492402 | K166: 6.64313357 | L166: 1.419690581 | M166: 1.000441667 | N166: 0.02971548361 | O166: 2580.154879 | P166: 1.570408753 | Q166: 1.00406897 | R166: 0.0900579909 | S166: 1.000000213 | T166: 0.0006533159535 | U166: 1.00646203 | V166: 0.1312868451 | W166: 14.36108054 | X166: -81.84647486 | Y166: 98.15352514 | AB166: 21.66197656 | AC166: -10.34287968 | AF166: 36.22092916 | AG166: -71.50359518 | AI166: 0 | AJ166: 0 | AK166: 0 | AL166: 0
B167: 9386.85 | C167: 5.982106612 | D167: 1.402842629 | E167: 1.042575656 | F167: 0.2867682156 | G167: 1 | H167: 0 | I167: 3309.447643 | J167: 1.570494162 | K167: 6.680947241 | L167: 1.420552341 | M167: 1.000446826 | N167: 0.02988843595 | O167: 2595.181013 | P167: 1.570410997 | Q167: 1.004116404 | R167: 0.09057960888 | S167: 1.000000216 | T167: 0.0006571206909 | U167: 1.006537298 | V167: 0.1320459543 | W167: 14.31424345 | X167: -81.81554411 | Y167: 98.18445589 | AB167: 21.66079535 | AC167: -10.30351471 | AF167: 36.17527328 | AG167: -71.5120294 | AI167: 0 | AJ167: 0 | AK167: 0 | AL167: 0
B168: 9441.2 | C168: 6.015777917 | D168: 1.403791558 | E168: 1.043059902 | F168: 0.2883383354 | G168: 1 | H168: 0 | I168: 3328.609392 | J168: 1.570495901 | K168: 6.718765817 | L168: 1.421404401 | M168: 1.000452014 | N168: 0.03006138649 | O168: 2610.207147 | P168: 1.570413215 | Q168: 1.004164111 | R168: 0.09110117743 | S168: 1.000000218 | T168: 0.0006609254283 | U168: 1.006612999 | V168: 0.1328049692 | W168: 14.26770849 | X168: -81.78463041 | Y168: 98.21536959 | AB168: 21.65963315 | AC168: -10.2647043 | AF168: 36.12990053 | AG168: -71.51992612 | AI168: 0 | AJ168: 0 | AK168: 0 | AL168: 0
B169: 9495.55 | C169: 6.049454579 | D169: 1.404729922 | E169: 1.043546718 | F169: 0.289906994 | G169: 1 | H169: 0 | I169: 3347.771141 | J169: 1.570497621 | K169: 6.756589217 | L169: 1.422246921 | M169: 1.000457232 | N169: 0.03023433524 | O169: 2625.233281 | P169: 1.570415408 | Q169: 1.004212091 | R169: 0.09162269629 | S169: 1.000000221 | T169: 0.0006647301657 | U169: 1.006689132 | V169: 0.1335638893 | W169: 14.22147239 | X169: -81.75373501 | Y169: 98.24626499 | AB169: 21.65848954 | AC169: -10.22643919 | AF169: 36.08480803 | AG169: -71.52729582 | AI169: 0 | AJ169: 0 | AK169: 0 | AL169: 0
B170: 9549.9 | C170: 6.083136509 | D170: 1.405657896 | E170: 1.044036098 | F170: 0.291474186 | G170: 1 | H170: 0 | I170: 3366.93289 | J170: 1.570499321 | K170: 6.794417359 | L170: 1.423080061 | M170: 1.00046248 | N170: 0.03040728218 | O170: 2640.259415 | P170: 1.570417576 | Q170: 1.004260344 | R170: 0.09214416517 | S170: 1.000000223 | T170: 0.0006685349031 | U170: 1.006765697 | V170: 0.1343227139 | W170: 14.17553189 | X170: -81.72285911 | Y170: 98.27714089 | AB170: 21.6573641 | AC170: -10.18871034 | AF170: 36.03999297 | AG170: -71.53414877 | AI170: 0 | AJ170: 0 | AK170: 0 | AL170: 0
B171: 9605.525 | C171: 6.117613948 | D171: 1.406597057 | E171: 1.044539612 | F171: 0.2930766181 | G171: 1 | H171: 0 | I171: 3386.544155 | J171: 1.570501041 | K171: 6.833137742 | L171: 1.423923193 | M171: 1.000467882 | N171: 0.03058428441 | O171: 2655.638048 | P171: 1.570419769 | Q171: 1.004310012 | R171: 0.09267781519 | S171: 1.000000226 | T171: 0.000672428896 | U171: 1.006844504 | V171: 0.1350992406 | W171: 14.12881644 | X171: -81.69128033 | Y171: 98.30871967 | AB171: 21.65623065 | AC171: -10.15064246 | AF171: 35.99441097 | AG171: -71.54063787 | AI171: 0 | AJ171: 0 | AK171: 0 | AL171: 0
B172: 9661.15 | C172: 6.152096723 | D172: 1.407525692 | E172: 1.045045805 | F172: 0.294677502 | G172: 1 | H172: 0 | I172: 3406.155421 | J172: 1.570502741 | K172: 6.871862929 | L172: 1.424756823 | M172: 1.000473315 | N172: 0.03076128471 | O172: 2671.016682 | P172: 1.570421938 | Q172: 1.004359966 | R172: 0.09321141227 | S172: 1.000000229 | T172: 0.0006763228888 | U172: 1.006923764 | V172: 0.1358756663 | W172: 14.08240391 | X172: -81.65972448 | Y172: 98.34027552 | AB172: 21.65511537 | AC172: -10.11311776 | AF172: 35.94911372 | AG172: -71.54660672 | AI172: 0 | AJ172: 0 | AK172: 0 | AL172: 0
B173: 9716.775 | C173: 6.186584745 | D173: 1.408443973 | E173: 1.045554674 | F173: 0.2962768318 | G173: 1 | H173: 0 | I173: 3425.766686 | J173: 1.570504421 | K173: 6.910592837 | L173: 1.425581109 | M173: 1.00047878 | N173: 0.0309382831 | O173: 2686.395315 | P173: 1.570424081 | Q173: 1.004410206 | R173: 0.09374495613 | S173: 1.000000231 | T173: 0.0006802168817 | U173: 1.007003477 | V173: 0.1366519904 | W173: 14.03629102 | X173: -81.62819281 | Y173: 98.37180719 | AB173: 21.65401785 | AC173: -10.07612718 | AF173: 35.90409834 | AG173: -71.55206563 | AI173: 0 | AJ173: 0 | AK173: 0 | AL173: 0
B174: 9772.4 | C174: 6.221077925 | D174: 1.409352072 | E174: 1.046066215 | F174: 0.2978746014 | G174: 1 | H174: 0 | I174: 3445.377952 | J174: 1.570506083 | K174: 6.949327389 | L174: 1.426396207 | M174: 1.000484276 | N174: 0.03111527954 | O174: 2701.773948 | P174: 1.5704262 | Q174: 1.004460732 | R174: 0.09427844646 | S174: 1.000000234 | T174: 0.0006841108745 | U174: 1.007083641 | V174: 0.1374282125 | W174: 13.99047449 | X174: -81.59668652 | Y174: 98.40331348 | AB174: 21.6529377 | AC174: -10.03966185 | AF174: 35.85936197 | AG174: -71.55702467 | AI174: 0 | AJ174: 0 | AK174: 0 | AL174: 0
B175: 9829.3 | C175: 6.256366984 | D175: 1.410270626 | E175: 1.046592241 | F175: 0.2995073738 | G175: 1 | H175: 0 | I175: 3465.438734 | J175: 1.570507763 | K175: 6.988954512 | L175: 1.42722064 | M175: 1.00048993 | N175: 0.03129633096 | O175: 2717.50508 | P175: 1.570428342 | Q175: 1.004512711 | R175: 0.09482410943 | S175: 1.000000237 | T175: 0.0006880941229 | U175: 1.00716611 | V175: 0.1382221203 | W175: 13.9439111 | X175: -81.56448559 | Y175: 98.43551441 | AB175: 21.65185034 | AC175: -10.00289508 | AF175: 35.81388594 | AG175: -71.5615905 | AI175: 0 | AJ175: 0 | AK175: 0 | AL175: 0
B176: 9886.2 | C176: 6.291661263 | D176: 1.411178874 | E176: 1.047121055 | F176: 0.3011385013 | G176: 1 | H176: 0 | I176: 3485.499517 | J176: 1.570509424 | K176: 7.028586331 | L176: 1.428035776 | M176: 1.000495617 | N176: 0.03147738033 | O176: 2733.236213 | P176: 1.57043046 | Q176: 1.00456499 | R176: 0.09536971576 | S176: 1.000000239 | T176: 0.0006920773713 | U176: 1.007249052 | V176: 0.1390159202 | W176: 13.89765111 | X176: -81.53231372 | Y176: 98.46768628 | AB176: 21.65078033 | AC176: -9.966659762 | AF176: 35.76869596 | AG176: -71.56565396 | AI176: 0 | AJ176: 0 | AK176: 0 | AL176: 0
B177: 9943.1 | C177: 6.326960674 | D177: 1.412076989 | E177: 1.047652652 | F177: 0.3027679779 | G177: 1 | H177: 0 | I177: 3505.560299 | J177: 1.570511066 | K177: 7.068222769 | L177: 1.42884177 | M177: 1.000501337 | N177: 0.03165842763 | O177: 2748.967345 | P177: 1.570432554 | Q177: 1.004617568 | R177: 0.09591526514 | S177: 1.000000242 | T177: 0.0006960606196 | U177: 1.007332467 | V177: 0.1398096114 | W177: 13.8516912 | X177: -81.50017216 | Y177: 98.49982784 | AB177: 21.64972728 | AC177: -9.930947003 | AF177: 35.72378911 | AG177: -71.56922516 | AI177: 0 | AJ177: 0 | AK177: 0 | AL177: 0
B178: 10000 | C178: 6.362265132 | D178: 1.412965137 | E178: 1.048187027 | F178: 0.3043957974 | G178: 1 | H178: 0 | I178: 3525.621081 | J178: 1.570512689 | K178: 7.107863747 | L178: 1.429638775 | M178: 1.00050709 | N178: 0.03183947286 | O178: 2764.698477 | P178: 1.570434624 | Q178: 1.004670444 | R178: 0.09646075726 | S178: 1.000000245 | T178: 0.0007000438679 | U178: 1.007416354 | V178: 0.1406031935 | W178: 13.80602812 | X178: -81.46806213 | Y178: 98.53193787 | AB178: 21.64869079 | AC178: -9.895748124 | AF178: 35.67916252 | AG178: -71.572314 | AI178: 0 | AJ178: 0 | AK178: 0 | AL178: 0
B179: 10058.25 | C179: 6.398412358 | D179: 1.413864203 | E179: 1.048736955 | F179: 0.3060605153 | G179: 1 | H179: 0 | I179: 3546.157823 | J179: 1.570514331 | K179: 7.148449865 | L179: 1.430445532 | M179: 1.000513013 | N179: 0.03202481138 | O179: 2780.802844 | P179: 1.570436718 | Q179: 1.004724885 | R179: 0.097019132 | S179: 1.000000248 | T179: 0.0007041216221 | U179: 1.007502721 | V179: 0.1414154902 | W179: 13.75958579 | X179: -81.43522416 | Y179: 98.56477584 | AB179: 21.64764648 | AC179: -9.860237567 | AF179: 35.63376448 | AG179: -71.57498659 | AI179: 0 | AJ179: 0 | AK179: 0 | AL179: 0
B180: 10116.5 | C180: 6.434564697 | D180: 1.414753168 | E180: 1.049289787 | F180: 0.3077234836 | G180: 1 | H180: 0 | I180: 3566.694564 | J180: 1.570515955 | K180: 7.189040582 | L180: 1.43124318 | M180: 1.000518971 | N180: 0.03221014769 | O180: 2796.90721 | P180: 1.570438789 | Q180: 1.004779639 | R180: 0.09757744604 | S180: 1.000000251 | T180: 0.0007081993763 | U180: 1.007589583 | V180: 0.1422276713 | W180: 13.71344779 | X180: -81.40242173 | Y180: 98.59757827 | AB180: 21.64661876 | AC180: -9.825247747 | AF180: 35.58865421 | AG180: -71.57717399 | AI180: 0 | AJ180: 0 | AK180: 0 | AL180: 0
B181: 10174.75 | C181: 6.470722065 | D181: 1.415632198 | E181: 1.049845517 | F181: 0.309384696 | G181: 1 | H181: 0 | I181: 3587.231305 | J181: 1.57051756 | K181: 7.229635823 | L181: 1.43203187 | M181: 1.000524963 | N181: 0.03239548179 | O181: 2813.011577 | P181: 1.570440836 | Q181: 1.004834706 | R181: 0.09813569907 | S181: 1.000000254 | T181: 0.0007122771304 | U181: 1.00767694 | V181: 0.143039736 | W181: 13.66761081 | X181: -81.3696561 | Y181: 98.6303439 | AB181: 21.64560724 | AC181: -9.790769948 | AF181: 35.54382875 | AG181: -71.57888615 | AI181: 0 | AJ181: 0 | AK181: 0 | AL181: 0
B182: 10233 | C182: 6.506884378 | D182: 1.416501459 | E182: 1.050404142 | F182: 0.311044146 | G182: 1 | H182: 0 | I182: 3607.768046 | J182: 1.570519147 | K182: 7.27023551 | L182: 1.432811752 | M182: 1.00053099 | N182: 0.03258081367 | O182: 2829.115943 | P182: 1.570442859 | Q182: 1.004890087 | R182: 0.09869389075 | S182: 1.000000257 | T182: 0.0007163548845 | U182: 1.007764791 | V182: 0.1438516838 | W182: 13.62207157 | X182: -81.33692846 | Y182: 98.66307154 | AB182: 21.64461155 | AC182: -9.756795648 | AF182: 35.4992852 | AG182: -71.58013281 | AI182: 0 | AJ182: 0 | AK182: 0 | AL182: 0
B183: 10292.5 | C183: 6.543827724 | D183: 1.417379454 | E183: 1.050977737 | F183: 0.3127373805 | G183: 1 | H183: 0 | I183: 3628.74549 | J183: 1.570520749 | K183: 7.311710949 | L183: 1.433599428 | M183: 1.000537181 | N183: 0.03277012031 | O183: 2845.565897 | P183: 1.570444903 | Q183: 1.004946979 | R183: 0.09926399708 | S183: 1.00000026 | T183: 0.0007205201441 | U183: 1.007855039 | V183: 0.144680934 | W183: 13.57585915 | X183: -81.30353899 | Y183: 98.69646101 | AB183: 21.64361047 | AC183: -9.722603438 | AF183: 35.45407386 | AG183: -71.58093556 | AI183: 0 | AJ183: 0 | AK183: 0 | AL183: 0
B184: 10352 | C184: 6.580776059 | D184: 1.41824759 | E184: 1.051554342 | F184: 0.3144287629 | G184: 1 | H184: 0 | I184: 3649.722934 | J184: 1.570522333 | K184: 7.353190874 | L184: 1.434378217 | M184: 1.000543408 | N184: 0.0329594246 | O184: 2862.015851 | P184: 1.570446923 | Q184: 1.005004197 | R184: 0.09983403869 | S184: 1.000000263 | T184: 0.0007246854036 | U184: 1.007945803 | V184: 0.1455100608 | W184: 13.52995066 | X184: -81.27019168 | Y184: 98.72980832 | AB184: 21.64262517 | AC184: -9.68891918 | AF184: 35.40915067 | AG184: -71.5812725 | AI184: 0 | AJ184: 0 | AK184: 0 | AL184: 0
B185: 10411.5 | C185: 6.617729298 | D185: 1.419106032 | E185: 1.052133952 | F185: 0.3161182866 | G185: 1 | H185: 0 | I185: 3670.700377 | J185: 1.570523899 | K185: 7.394675208 | L185: 1.435148269 | M185: 1.000549671 | N185: 0.03314872653 | O185: 2878.465805 | P185: 1.570448919 | Q185: 1.005061742 | R185: 0.1004040152 | S185: 1.000000266 | T185: 0.0007288506631 | U185: 1.008037082 | V185: 0.1463390636 | W185: 13.48434278 | X185: -81.23688774 | Y185: 98.76311226 | AB185: 21.64165528 | AC185: -9.655734377 | AF185: 35.36451268 | AG185: -71.58115337 | AI185: 0 | AJ185: 0 | AK185: 0 | AL185: 0
B186: 10471 | C186: 6.65468736 | D186: 1.419954939 | E186: 1.052716562 | F186: 0.317805945 | G186: 1 | H186: 0 | I186: 3691.677821 | J186: 1.570525447 | K186: 7.436163878 | L186: 1.435909729 | M186: 1.000555969 | N186: 0.03333802608 | O186: 2894.915759 | P186: 1.570450894 | Q186: 1.005119614 | R186: 0.1009739263 | S186: 1.000000269 | T186: 0.0007330159226 | U186: 1.008128877 | V186: 0.1471679418 | W186: 13.43903225 | X186: -81.2036284 | Y186: 98.7963716 | AB186: 21.64070046 | AC186: -9.623040719 | AF186: 35.32015698 | AG186: -71.58058768 | AI186: 0 | AJ186: 0 | AK186: 0 | AL186: 0
B187: 10532 | C187: 6.69258206 | D187: 1.420815513 | E187: 1.053316969 | F187: 0.3195342063 | G187: 1 | H187: 0 | I187: 3713.184108 | J187: 1.570527016 | K187: 7.478702907 | L187: 1.436681614 | M187: 1.000562464 | N187: 0.03353209541 | O187: 2911.780417 | P187: 1.570452894 | Q187: 1.005179283 | R187: 0.1015581365 | S187: 1.000000272 | T187: 0.0007372861886 | U187: 1.008223522 | V187: 0.1480175859 | W187: 13.39288477 | X187: -81.16957812 | Y187: 98.83042188 | AB187: 21.63973684 | AC187: -9.590024218 | AF187: 35.27497311 | AG187: -71.5795539 | AI187: 0 | AJ187: 0 | AK187: 0 | AL187: 0
B188: 10593 | C188: 6.730481661 | D188: 1.421666396 | E188: 1.053920518 | F188: 0.3212604932 | G188: 1 | H188: 0 | I188: 3734.690395 | J188: 1.570528567 | K188: 7.521246341 | L188: 1.437444767 | M188: 1.000568997 | N188: 0.03372616221 | O188: 2928.645076 | P188: 1.570454872 | Q188: 1.005239296 | R188: 0.1021422772 | S188: 1.000000275 | T188: 0.0007415564545 | U188: 1.008318709 | V188: 0.1488670975 | W188: 13.34704305 | X188: -81.13557722 | Y188: 98.86442278 | AB188: 21.63878834 | AC188: -9.557506831 | AF188: 35.23007989 | AG188: -71.57807039 | AI188: 0 | AJ188: 0 | AK188: 0 | AL188: 0
B189: 10654 | C189: 6.768386081 | D189: 1.42250775 | E189: 1.054527205 | F189: 0.322984799 | G189: 1 | H189: 0 | I189: 3756.196682 | J189: 1.5705301 | K189: 7.563794107 | L189: 1.438199334 | M189: 1.000575567 | N189: 0.03392022647 | O189: 2945.509735 | P189: 1.570456827 | Q189: 1.005299651 | R189: 0.102726348 | S189: 1.000000278 | T189: 0.0007458267204 | U189: 1.008414437 | V189: 0.1497164759 | W189: 13.30150373 | X189: -81.10162693 | Y189: 98.89837307 | AB189: 21.63785461 | AC189: -9.525480183 | AF189: 35.1854743 | AG189: -71.57614675 | AI189: 0 | AJ189: 0 | AK189: 0 | AL189: 0
B190: 10715 | C190: 6.806295238 | D190: 1.423339732 | E190: 1.055137023 | F190: 0.3247071167 | G190: 1 | H190: 0 | I190: 3777.702969 | J190: 1.570531616 | K190: 7.606346131 | L190: 1.43894546 | M190: 1.000582175 | N190: 0.03411428818 | O190: 2962.374393 | P190: 1.57045876 | Q190: 1.005360349 | R190: 0.1033103484 | S190: 1.000000281 | T190: 0.0007500969864 | U190: 1.008510707 | V190: 0.1505657204 | W190: 13.25626354 | X190: -81.06772847 | Y190: 98.93227153 | AB190: 21.63693531 | AC190: -9.493936087 | AF190: 35.14115341 | AG190: -71.57379239 | AI190: 0 | AJ190: 0 | AK190: 0 | AL190: 0
B191: 10777.5 | C191: 6.845141419 | D191: 1.424182613 | E191: 1.055765079 | F191: 0.3264697175 | G191: 1 | H191: 0 | I191: 3799.738099 | J191: 1.570533151 | K191: 7.649948858 | L191: 1.439701324 | M191: 1.000588984 | N191: 0.03431311922 | O191: 2979.653757 | P191: 1.570460717 | Q191: 1.005422896 | R191: 0.1039086361 | S191: 1.000000285 | T191: 0.0007544722588 | U191: 1.008609906 | V191: 0.1514357083 | W191: 13.21021774 | X191: -81.03305145 | Y191: 98.96694855 | AB191: 21.63600803 | AC191: -9.462108436 | AF191: 35.09603489 | AG191: -71.57094301 | AI191: 0 | AJ191: 0 | AK191: 0 | AL191: 0
B192: 10840 | C192: 6.883992408 | D192: 1.425015982 | E192: 1.056396412 | F192: 0.328230217 | G192: 1 | H192: 0 | I192: 3821.773229 | J192: 1.570534668 | K192: 7.693555907 | L192: 1.440448619 | M192: 1.000595833 | N192: 0.03451194756 | O192: 2996.93312 | P192: 1.570462652 | Q192: 1.005485802 | R192: 0.1045068492 | S192: 1.000000288 | T192: 0.0007588475311 | U192: 1.008709673 | V192: 0.1523055542 | W192: 13.16447912 | X192: -80.99843135 | Y192: 99.00156865 | AB192: 21.63509521 | AC192: -9.430770529 | AF192: 35.05120909 | AG192: -71.56766082 | AI192: 0 | AJ192: 0 | AK192: 0 | AL192: 0
B193: 10902.5 | C193: 6.922848125 | D193: 1.425839996 | E193: 1.057031014 | F193: 0.329988608 | G193: 1 | H193: 0 | I193: 3843.808359 | J193: 1.570536168 | K193: 7.737167204 | L193: 1.44118749 | M193: 1.000602721 | N193: 0.03471077316 | O193: 3014.212483 | P193: 1.570464565 | Q193: 1.005549068 | R193: 0.1051049873 | S193: 1.000000291 | T193: 0.0007632228035 | U193: 1.008810008 | V193: 0.1531752571 | W193: 13.11904433 | X193: -80.96386941 | Y193: 99.03613059 | AB193: 21.63419652 | AC193: -9.399914128 | AF193: 35.00667299 | AG193: -71.56395528 | AI193: 0 | AJ193: 0 | AK193: 0 | AL193: 0
B194: 10965 | C194: 6.96170849 | D194: 1.426654812 | E194: 1.057668881 | F194: 0.3317448836 | G194: 1 | H194: 0 | I194: 3865.84349 | J194: 1.570537651 | K194: 7.780782677 | L194: 1.441918079 | M194: 1.00060965 | N194: 0.03490959602 | O194: 3031.491847 | P194: 1.570466456 | Q194: 1.005612694 | R194: 0.1057030498 | S194: 1.000000295 | T194: 0.0007675980758 | U194: 1.008910911 | V194: 0.1540448165 | W194: 13.07391004 | X194: -80.92936686 | Y194: 99.07063314 | AB194: 21.63331163 | AC194: -9.369531179 | AF194: 34.96242359 | AG194: -71.55983568 | AI194: 0 | AJ194: 0 | AK194: 0 | AL194: 0
B195: 11028.75 | C195: 7.00135077 | D195: 1.427476605 | E195: 1.058322863 | F195: 0.333534098 | G195: 1 | H195: 0 | I195: 3888.319322 | J195: 1.570539146 | K195: 7.82527469 | L195: 1.442654888 | M195: 1.000616757 | N195: 0.03511239249 | O195: 3049.116797 | P195: 1.570468363 | Q195: 1.005677963 | R195: 0.1063129955 | S195: 1.000000298 | T195: 0.0007720608536 | U195: 1.009014418 | V195: 0.1549316182 | W195: 13.02817926 | X195: -80.89423666 | Y195: 99.10576334 | AB195: 21.63242294 | AC195: -9.339020154 | AF195: 34.91758151 | AG195: -71.55521651 | AI195: 0 | AJ195: 0 | AK195: 0 | AL195: 0
B196: 11092.5 | C196: 7.040997726 | D196: 1.428289144 | E196: 1.058980228 | F196: 0.3353210968 | G196: 1 | H196: 0 | I196: 3910.795155 | J196: 1.570540624 | K196: 7.869770903 | L196: 1.443383366 | M196: 1.000623905 | N196: 0.03531518607 | O196: 3066.741748 | P196: 1.570470248 | Q196: 1.005743606 | R196: 0.1069228617 | S196: 1.000000301 | T196: 0.0007765236313 | U196: 1.009118514 | V196: 0.1558182689 | W196: 12.98275434 | X196: -80.85917074 | Y196: 99.14082926 | AB196: 21.63154795 | AC196: -9.308985342 | AF196: 34.87303157 | AG196: -71.5501854 | AI196: 0 | AJ196: 0 | AK196: 0 | AL196: 0
B197: 11156.25 | C197: 7.080649278 | D197: 1.429092582 | E197: 1.05964097 | F197: 0.3371058727 | G197: 1 | H197: 0 | I197: 3933.270988 | J197: 1.570542085 | K197: 7.914271246 | L197: 1.444103652 | M197: 1.000631095 | N197: 0.03551797675 | O197: 3084.366699 | P197: 1.570472111 | Q197: 1.005809623 | R197: 0.1075326481 | S197: 1.000000305 | T197: 0.000780986409 | U197: 1.009223201 | V197: 0.1567047677 | W197: 12.93763193 | X197: -80.82417032 | Y197: 99.17582968 | AB197: 21.63068636 | AC197: -9.27941875 | AF197: 34.82877075 | AG197: -71.54475157 | AI197: 0 | AJ197: 0 | AK197: 0 | AL197: 0
B198: 11220 | C198: 7.120305349 | D198: 1.429887072 | E198: 1.060305084 | F198: 0.3388884186 | G198: 1 | H198: 0 | I198: 3955.746821 | J198: 1.57054353 | K198: 7.958775649 | L198: 1.444815883 | M198: 1.000638326 | N198: 0.0357207645 | O198: 3101.99165 | P198: 1.570473953 | Q198: 1.005876014 | R198: 0.1081423542 | S198: 1.000000308 | T198: 0.0007854491866 | U198: 1.009328479 | V198: 0.1575911139 | W198: 12.89280873 | X198: -80.78923659 | Y198: 99.21076341 | AB198: 21.62983784 | AC198: -9.250312564 | AF198: 34.78479607 | AG198: -71.53892403 | AI198: 0 | AJ198: 0 | AK198: 0 | AL198: 0
B199: 11285.5 | C199: 7.161054648 | D199: 1.430694206 | E199: 1.060990933 | F199: 0.3407175668 | G199: 1 | H199: 0 | I199: 3978.839637 | J199: 1.570544997 | K199: 8.004505899 | L199: 1.445539417 | M199: 1.000645798 | N199: 0.03592911592 | O199: 3120.100422 | P199: 1.570475824 | Q199: 1.005944617 | R199: 0.1087687134 | S199: 1.000000312 | T199: 0.0007900344719 | U199: 1.009437261 | V199: 0.1585016312 | W199: 12.84706334 | X199: -80.75341462 | Y199: 99.24658538 | AB199: 21.62897935 | AC199: -9.22087889 | AF199: 34.73990917 | AG199: -71.53253573 | AI199: 0 | AJ199: 0 | AK199: 0 | AL199: 0
B200: 11351 | C200: 7.201808559 | D200: 1.431492206 | E200: 1.061680327 | F200: 0.3425443456 | G200: 1 | H200: 0 | I200: 4001.932453 | J200: 1.570546448 | K200: 8.050240291 | L200: 1.446254729 | M200: 1.000653314 | N200: 0.03613746421 | O200: 3138.209195 | P200: 1.570477674 | Q200: 1.006013614 | R200: 0.1093949868 | S200: 1.000000316 | T200: 0.0007946197571 | U200: 1.009546666 | V200: 0.1594119856 | W200: 12.80162694 | X200: -80.71766555 | Y200: 99.28233445 | AB200: 21.62813404 | AC200: -9.191915071 | AF200: 34.69531808 | AG200: -71.52575048 | AI200: 0 | AJ200: 0 | AK200: 0 | AL200: 0
B201: 11416.5 | C201: 7.242567004 | D201: 1.432281224 | E201: 1.062373259 | F201: 0.3443687475 | G201: 1 | H201: 0 | I201: 4025.02527 | J201: 1.570547881 | K201: 8.095978756 | L201: 1.44696196 | M201: 1.000660873 | N201: 0.03634580936 | O201: 3156.317968 | P201: 1.570479502 | Q201: 1.006083006 | R201: 0.1100211741 | S201: 1.000000319 | T201: 0.0007992050422 | U201: 1.009656693 | V201: 0.1603221763 | W201: 12.75649615 | X201: -80.68199064 | Y201: 99.31800936 | AB201: 21.62730161 | AC201: -9.163413184 | AF201: 34.65101972 | AG201: -71.51857746 | AI201: 0 | AJ201: 0 | AK201: 0 | AL201: 0
... 435 more rows

Sheet IL Stability Calculations (hidden)
A2: Vout | B2: =Vout -> 6 | D2: Divider Network & IL Poles/Zeros | G2: Modulator | M2: Power Stage Poles/Zeros | R2: Complex Pole Pair | T2: Total System
A3: Vin | B3: =Vin -> 24 | G3: Acs | H3: =Acs -> 25 | I3: A/V | J3: gm | K3: =gm -> 0.0006 | M3: z_ESR | O3: =Fesr -> 31830.98862 | P3: Hz | Q3: p3 | R3: =Fsw/2 -> 199000 | S3: Hz | T3: Adc | U3: =Am*Afb*AEA -> 14873.05202 | V3: V/V
A4: Iload | B4: =Constant_Current_Loop_Setpoint -> 5 | D4: IL zero, z1 | E4: =1/(2*Pi*RcIL*Cc1IL) -> 103347.3656 | F4: Hz | G4: Am | H4: =Am -> 14.87305202 | I4: V/V | M4: p_dom | O4: =Fp_dominant -> 1591.549431 | P4: Hz | Q4: pterm1 | R4: =Q*PS_Pole2 -> 70831.70718 | T4: Crossover | U4: =BM8/1000 ->  | V4: kHz
A5: Rload | B5: =Rout -> 1 | D5: IL pole, p1 | E5: =1/(2*Pi*(RoEA_IL+RcIL)*Cc1IL) -> 3.617031201 | F5: Hz | G5: Q | H5: =Q -> 0.355938227 | M5: z_RHP | O5: =IF(VIN_nom>Vout, 10000000,Frhp) -> 10000000 | P5: Hz | Q5: pterm2 | R5: =PS_Pole2^2+0.01 -> 3.9601e+10 | T5: Phase Margin | U5: =BM9 ->  | V5: °
A6: Co1 | B6: =Cout-B7 -> 5e-05 | D6: AIL | E6: =DeviceParameter!B12*RoEA_IL -> 4000 | F6: V/V | G6: mc | H6: =mc -> 5.527439024 | T6: radconv | U6: =180/Pi -> 57.29577951 | BB6: =20*LOG10(IMPRODUCT(COMPLEX($B$15,0),IMABS(AS13))) -> 31.72131944 | BC6: =(180/PI())*IMARGUMENT(AS13) -> -15.45396545 | BL6: XOVER SEARCH
A7: Co2 | B7: =Co2_u -> 5e-05 | D7: IL pole, p2 | E7: =1/(2*Pi*RcIL*(Cc2IL+Cbw_IL)) -> 14284816.74 | F7: Hz | G7: k | H7: =k -> 1.39428407 | T7: Adc [dB] | U7: =20*LOG(Adc) -> 83.44800194 | V7: dB | BL7: System | BN7: Error Amp
A8: Co1_esr | B8: =CoutEsr -> 0.05 | BL8: xover | BM8: =SUM(BL12:BL613) ->  | BN8: xover | BO8: =SUM(BN12:BN613) -> 144.54
A9: CO2_esr | B9: =CoutEsr -> 0.05 | BL9: phase margin | BM9: =SUM(BM13:BM613) ->  | BN9: phase margin | BO9: =SUM(BO13:BO613) -> -88.48695174
A10: L_dcr | B10: =Rdcr -> 0.006 | D10: Freq (Hz) | E10: Power Stage | V10: Error Amplifier | AI10: ILimit Amplifier | AW10: System Response | BB10: IL ERROR AMP Response | BE10: PLANT Response
A11: Duty | B11: =IF(B3>=Vout,Vout/B3,(Vout-Vin)/Vout) -> 0.25 | M11: G_d_il | W11: p1 | Z11: z1 | AC11: p2 | AF11: Total | AJ11: p1 | AM11: z1 | AP11: p2 | AS11: Total
B12: =IF(Vin<Vout,"Boost","Buck") -> Buck | E12: ZL | F12: ZCo1 | G12: ZCo2 | H12: Zout | I12: Zout_sns | J12: Zout_all | K12: He | M12: G_d_il | N12: G_d_iout | O12: G_d_isns | P12: G_d_mid | Q12: G_d_vo | R12: G_d_il_smpl | S12: G_vc_Il | T12: G_vc_isns | U12: G_vc_vo | V12: ADC_EA | W12: Complex | X12: Gain(V/V) | Y12: Phase(rad) | Z12: Complex | AA12: Gain(V/V) | AB12: Phase(rad) | AC12: Complex | AD12: Gain(V/V) | AE12: Phase(rad) | AF12: Complex | AG12: Gain(V/V) | AH12: Phase(rad) | AI12: ADC_IL | AJ12: Complex | AK12: Gain(V/V) | AL12: Phase(rad) | AM12: Complex | AN12: Gain(V/V) | AO12: Phase(rad) | AP12: Complex | AQ12: Gain(V/V) | AR12: Phase(rad) | AS12: Complex | AT12: Gain(V/V) | AU12: Phase(rad) | AV12: Complex | AW12: Gain(dB) | AX12: :Loop Phase Margin (°) | AY12: Phase (°) | BB12: Gain(dB) | BC12: Phase(Deg) | BE12: Gain(dB) | BF12: Phase(Deg)
A13: L | B13: =Lf -> 3.3e-06 | D13: 1 | E13: =COMPLEX(0,2*PI()*D13*Lf) -> 0.0000207345115136926i | F13: =IMSUM(COMPLEX($B$8,0),IMDIV(COMPLEX(1,0),COMPLEX(0,2*PI()*D13*$B$6))) -> 0.05-3183.09886183791i | G13: =IMSUM(COMPLEX($B$9,0),IMDIV(COMPLEX(1,0),COMPLEX(0,2*PI()*D13*$B$7))) -> 0.05-3183.09886183791i | H13: =IMDIV(COMPLEX(1,0),IMSUM(IMDIV(COMPLEX(1,0),COMPLEX($B$5,0)), IMDIV(COMPLEX(1,0),G13))) -> 0.999999896369167-0.000314159231174564i | I13: =IMSUM(H13,COMPLEX($B$15,0)) -> 1.00999989636917-0.000314159231174564i | J13: =IMDIV(COMPLEX(1,0),IMSUM(IMDIV(COMPLEX(1,0),F13),IMDIV(COMPLEX(1,0),IMSUM(COMPLEX($B$15,0),H13)))) -> 1.0099995902827-0.000634632867437728i | K13: =IMSUM(COMPLEX(1,0),COMPLEX(0,2*PI()*D13/(Fsw*PI()*(-2)/PI())),IMPRODUCT(COMPLEX(0,2*PI()*D13/(Fsw*PI())),COMPLEX(0,2*PI()*D13/(Fsw*PI())))) -> 0.999999999974748-7.89344887836631E-06i | M13: =IF(Vin>=Vout,IMDIV(COMPLEX(Vin,0),IMSUM(E13,J13)),IMDIV(IMSUM(COMPLEX(Vout,0),IMPRODUCT(J13,COMPLEX($B$4,0))),IMSUM(E13,IMPRODUCT(J13,COMPLEX((1-$B$11)^2,0))))) -> 23.7623770981831+0.0144432575753208i | N13: =IF(Vin>=Vout,0,IMSUB(IMPRODUCT(M13,COMPLEX(1-$B$11,0)),COMPLEX($B$4/(1-$B$11),0))) -> 0 | O13: =IMDIV(IF(Vin>=Vout,M13,N13),IMPRODUCT(I13,IMSUM(IMDIV(COMPLEX(1,0),F13),IMDIV(COMPLEX(1,0),I13)))) -> 23.7623768249612+0.00690343511691459i | P13: =IF(Vin>=Vout,IMDIV(IMPRODUCT(COMPLEX(Vin,0),J13),IMSUM(J13,E13)),IMPRODUCT(N13,J13)) -> 24.0000002994739-0.000492701281535016i | Q13: =IF(Vin>=Vout,IMDIV(IMPRODUCT(P13,H13),IMSUM(COMPLEX($B$15,0),H13)),IMPRODUCT(O13,H13)) -> 23.7623765312242-0.000561735632704192i | R13: =IMPRODUCT(M13,COMPLEX($B$29,0),K13,COMPLEX($B$34,0)) ->  | S13: =IMDIV(IMPRODUCT(COMPLEX($B$34,0),M13),IMSUM(COMPLEX(1,0),R13)) ->  | T13: =IMDIV(IMPRODUCT(COMPLEX($B$34,0),O13),IMSUM(COMPLEX(1,0),R13)) ->  | U13: =IMDIV(IMPRODUCT(COMPLEX($B$34,0),Q13),IMSUM(COMPLEX(1,0),R13)) ->  | V13: =COMPLEX(AEA,0) -> 6000 | W13: =IMSUM(COMPLEX(1,0),IMDIV(COMPLEX(0,2*PI()*D13),COMPLEX(2*PI()*EA_Pole1,0))) -> 1+0.352562093956461i | X13: =IMABS(W13) -> 1.060330151 | Y13: =IMARGUMENT(W13) -> 0.3389554825 | Z13: =IMSUM(COMPLEX(1,0),IMDIV(COMPLEX(0,2*PI()*D13),COMPLEX(2*PI()*EA_Zero1,0))) -> 1+0.000703716754404114i | AA13: =IMABS(Z13) -> 1.000000248 | AB13: =IMARGUMENT(Z13) -> 0.0007037166382 | AC13: =IMSUM(COMPLEX(1,0),IMDIV(COMPLEX(0,2*PI()*D13),COMPLEX(2*PI()*EA_Pole2,0))) -> 1+3.18502363366158E-06i | AD13: =IMABS(AC13) -> 1 | AE13: =IMARGUMENT(AC13) -> 3.185023634e-06 | AF13: =IMPRODUCT(V13,IMDIV(Z13,IMPRODUCT(W13,AC13))) -> 5337.97183878367-1877.76333857761i | AG13: =IMABS(AF13) -> 5658.616307 | AH13: =IMARGUMENT(AF13) -> -0.3382549509 | AI13: =COMPLEX(AIL,0) -> 4000 | AJ13: =IMSUM(COMPLEX(1,0),IMDIV(COMPLEX(0,2*PI()*D13),COMPLEX(2*PI()*IL_Pole1,0))) -> 1+0.276469829621275i | AK13: =IMABS(AJ13) -> 1.037514128 | AL13: =IMARGUMENT(AJ13) -> 0.2697321856 | AM13: =IMSUM(COMPLEX(1,0),IMDIV(COMPLEX(0,2*PI()*D13),COMPLEX(2*PI()*IL_Zero1,0))) -> 1+9.67610537305657E-06i | AN13: =IMABS(AM13) -> 1 | AO13: =IMARGUMENT(AM13) -> 9.676105373e-06 | AP13: =IMSUM(COMPLEX(1,0),IMDIV(COMPLEX(0,2*PI()*D13),COMPLEX(2*PI()*IL_Pole2,0))) -> 1+7.00043982297151E-08i | AQ13: =IMABS(AP13) -> 1 | AR13: =IMARGUMENT(AP13) -> 7.000439823e-08 | AS13: =IMPRODUCT(AI13,IMDIV(AM13,IMPRODUCT(AJ13,AP13))) -> 3715.97775748709-1027.317313085i | AT13: =IMABS(AS13) -> 3855.369185 | AU13: =IMARGUMENT(AS13) -> -0.2697225795 | AV13: =IMPRODUCT(T13,AS13,COMPLEX($B$15,0)) ->  | AW13: =20*LOG10(IMABS(AV13)) ->  | AX13: =(180/PI())*IMARGUMENT(AV13) ->  | AY13: =IF(AX13>0,AX13-180,AX13+180) ->  | BB13: =20*LOG10(IMABS(IMPRODUCT(COMPLEX($B$15,0),AS13))) -> 31.72131944 | BC13: =180/PI()*IMARGUMENT(IMPRODUCT(COMPLEX($B$15,0),AS13)) -> -15.45396545 | BE13: =20*LOG10(IMABS(T13)) ->  | BF13: =180/PI()*IMARGUMENT(T13) ->  | BL13: =SUM((AW14<0)*(AW13>0))*D13 ->  | BM13: =IF(BL13>0,AY11,0) ->  | BN13: =SUM((BB14<0)*(BB13>0))*D13 -> 0 | BO13: =IF(BN13>0,BC13,0) -> 0
D14: 1.0965 | E14: 0.000022735391874764i | F14: =IMSUM(COMPLEX($B$8,0),IMDIV(COMPLEX(1,0),COMPLEX(0,2*PI()*D14*$B$6))) -> 0.05-2902.96293829266i | G14: =IMSUM(COMPLEX($B$9,0),IMDIV(COMPLEX(1,0),COMPLEX(0,2*PI()*D14*$B$7))) -> 0.05-2902.96293829266i | H14: =IMDIV(COMPLEX(1,0),IMSUM(IMDIV(COMPLEX(1,0),COMPLEX($B$5,0)), IMDIV(COMPLEX(1,0),G14))) -> 0.999999875403384-0.000344475589399599i | I14: =IMSUM(H14,COMPLEX($B$15,0)) -> 1.00999987540338-0.000344475589399599i | J14: =IMDIV(COMPLEX(1,0),IMSUM(IMDIV(COMPLEX(1,0),F14),IMDIV(COMPLEX(1,0),IMSUM(COMPLEX($B$15,0),H14)))) -> 1.0099995073919-0.000695874880466942i | K14: 0.999999999969639-8.65516669512866E-06i | M14: 23.7623772722851+0.0158370319665847i | N14: 0 | O14: 23.7623769437871+0.00756961662102346i | P14: 24.0000003600611-0.000540246959161376i | Q14: 23.7623765906233-0.000615943125371577i | R14: =IMPRODUCT(M14,COMPLEX($B$29,0),K14,COMPLEX($B$34,0)) ->  | S14: =IMDIV(IMPRODUCT(COMPLEX($B$34,0),M14),IMSUM(COMPLEX(1,0),R14)) ->  | T14: =IMDIV(IMPRODUCT(COMPLEX($B$34,0),O14),IMSUM(COMPLEX(1,0),R14)) ->  | U14: =IMDIV(IMPRODUCT(COMPLEX($B$34,0),Q14),IMSUM(COMPLEX(1,0),R14)) ->  | V14: 6000 | W14: 1+0.38658433602326i | X14: 1.07212287 | Y14: 0.3688879219 | Z14: 1+0.000771625421204111i | AA14: 1.000000298 | AB14: 0.0007716252681 | AC14: 1+3.49237841430992E-06i | AD14: 1 | AE14: 3.492378414e-06 | AF14: =IMPRODUCT(V14,IMDIV(Z14,IMPRODUCT(W14,AC14))) -> 5221.44941142776-2013.92175553916i | AG14: =IMABS(AF14) -> 5596.375148 | AH14: =IMARGUMENT(AF14) -> -0.368119789 | AI14: 4000 | AJ14: =IMSUM(COMPLEX(1,0),IMDIV(COMPLEX(0,2*PI()*D14),COMPLEX(2*PI()*IL_Pole1,0))) -> 1+0.303149168179728i | AK14: =IMABS(AJ14) -> 1.044939911 | AL14: =IMARGUMENT(AJ14) -> 0.2943434296 | AM14: =IMSUM(COMPLEX(1,0),IMDIV(COMPLEX(0,2*PI()*D14),COMPLEX(2*PI()*IL_Zero1,0))) -> 1+0.0000106098495415565i | AN14: =IMABS(AM14) -> 1 | AO14: =IMARGUMENT(AM14) -> 1.060984954e-05 | AP14: =IMSUM(COMPLEX(1,0),IMDIV(COMPLEX(0,2*PI()*D14),COMPLEX(2*PI()*IL_Pole2,0))) -> 1+7.67598226588826E-08i | AQ14: =IMABS(AP14) -> 1 | AR14: =IMARGUMENT(AP14) -> 7.675982266e-08 | AS14: =IMPRODUCT(AI14,IMDIV(AM14,IMPRODUCT(AJ14,AP14))) -> 3663.3527830831-1110.50021658166i | AT14: =IMABS(AS14) -> 3827.971309 | AU14: =IMARGUMENT(AS14) -> -0.2943328965 | AV14: =IMPRODUCT(T14,AS14,COMPLEX($B$15,0)) ->  | AW14: =20*LOG10(IMABS(AV14)) ->  | AX14: =(180/PI())*IMARGUMENT(AV14) ->  | BB14: 31.65937348 | BC14: -16.86403274 | BE14: =20*LOG10(IMABS(T14)) ->  | BF14: =180/PI()*IMARGUMENT(T14) ->  | BN14: 0 | BO14: 0
A15: Rsns | B15: =Rshunt/1000 -> 0.01 | D15: 1.2023 | E15: 0.0000249291031929127i | F15: 0.05-2647.50799454205i | G15: 0.05-2647.50799454205i | H15: 0.999999850199016-0.000377713625330125i | I15: 1.00999985019902-0.000377713625330125i | J15: 1.00999940774338-0.00076301895483223i | K15: 0.999999999963498-9.49029358645982E-06i | M15: 23.7623774815843+0.0173651286679133i | N15: 0 | O15: 23.7623770866351+0.00830000007807459i | P15: 24.0000004328971-0.000592374760347361i | Q15: 23.7623766620307-0.000675374761128137i | V15: 6000 | W15: 1+0.423885405563853i | X15: 1.086130212 | Y15: 0.4009261973 | Z15: 1+0.000846078653820066i | AA15: 1.000000358 | AB15: 0.0008460784519 | AC15: 1+3.82935391475132E-06i | AD15: 1 | AE15: 3.829353915e-06 | AF15: 5087.94591710853-2151.65252276114i | AG15: 5524.201502 | AH15: -0.4000839482 | AI15: 4000 | AJ15: 1+0.332399676153659i | AK15: 1.053797677 | AL15: 0.3209100277 | AM15: 1+0.0000116335814900259i | AN15: 1 | AO15: 1.163358149e-05 | AP15: 1+8.41662879915864E-08i | AQ15: 1 | AR15: 8.416628799e-08 | AS15: 3602.02883057901-1197.2670191198i | AT15: 3795.795043 | AU15: -0.3208984783 | BB15: 31.58605509 | BC15: -18.38612846 | BN15: 0 | BO15: 0
D16: 1.3183 | E16: 0.000027334306528501i | F16: 0.05-2414.54817707495i | G16: 0.05-2414.54817707495i | H16: 0.99999981989844-0.000414156081203062i | I16: 1.00999981989844-0.000414156081203062i | J16: 1.0099992879464-0.000836636251825959i | K16: 0.999999999956114-0.0000104059336563503i | M16: 23.7623777332032+0.0190405466161031i | N16: 0 | O16: 23.7623772583667+0.00910079858183826i | P16: 24.0000005204601-0.000649528116805386i | Q16: 23.7623767478764-0.000740536102623822i | V16: 6000 | W16: 1+0.464782608462803i | X16: 1.102734271 | Y16: 0.4350789151 | Z16: 1+0.000927709797330943i | AA16: 1.00000043 | AB16: 0.0009277095312 | AC16: 1+4.19881665625606E-06i | AD16: 1 | AE16: 4.198816656e-06 | AF16: 4936.23561444469-2288.73539898464i | AG16: 5441.023044 | AH16: -0.4341554044 | AI16: 4000 | AJ16: 1+0.364470176389727i | AK16: 1.064348866 | AL16: 0.3495072395 | AM16: 1+0.0000127560097133005i | AN16: 1 | AO16: 1.275600971e-05 | AP16: 1+9.22867981862334E-08i | AQ16: 1 | AR16: 9.228679819e-08 | AS16: 3530.96970904238-1286.8824977898i | AT16: 3758.166262 | AU16: -0.3494945757 | BB16: 31.49951979 | BC16: -20.02456415 | BN16: 0 | BO16: 0
D17: 1.4454 | E17: 0.0000299696629418913i | F17: 0.05-2202.22696958482i | G17: 0.05-2202.22696958482i | H17: 0.999999783496434-0.000454085698923113i | I17: 1.00999978349643-0.000454085698923113i | J17: 1.0099991440267-0.000917297930169879i | K17: 0.999999999947244-0.0000114091910087907i | M17: 23.7623780354887+0.020876284749494i | N17: 0 | O17: 23.7623774646786+0.00997822522675579i | P17: 24.0000006256552-0.000712150460421393i | Q17: 23.7623768510085-0.000811932712688962i | V17: 6000 | W17: 1+0.509593250604668i | X17: 1.12235702 | Y17: 0.4712927234 | Z17: 1+0.00101715219681571i | AA17: 1.000000517 | AB17: 0.001017151846 | AC17: 1+4.60363316009445E-06i | AD17: 1 | AE17: 4.60363316e-06 | AF17: 4765.55219442734-2422.41794230264i | AG17: 5345.895286 | AH17: -0.4702801752 | AI17: 4000 | AJ17: 1+0.399609491734591i | AK17: 1.076887991 | AL17: 0.3801696867 | AM17: 1+0.000013985842706216i | AN17: 1 | AO17: 1.398584271e-05 | AP17: 1+1.0118435720123E-07i | AQ17: 1 | AR17: 1.011843572e-07 | AS17: 3449.22347241004-1378.2869000554i | AT17: 3714.406728 | AU17: -0.3801558021 | BB17: 31.39778915 | BC17: -21.78132302 | BN17: 0 | BO17: 0
B18: =IF(Vin>=Vout,P13,Q13) -> 24.0000002994739-0.000492701281535016i | D18: 1.5849 | E18: 0.0000328621272980515i | F18: 0.05-2008.39097850837i | G18: 0.05-2008.39097850837i | H18: 0.999999739688918-0.0004979108835751i | I18: 1.00999973968892-0.0004979108835751i | J18: 1.00999897082846-0.00100582899776829i | K18: 0.99999999993657-0.0000125103271273228i | M18: 23.7623783992702+0.0228911193118376i | N18: 0 | O18: 23.7623777129618+0.0109412544823509i | P18: 24.0000007522508-0.000780882303861379i | Q18: 23.7623769751211-0.000890294848684906i | V18: 6000 | W18: 1+0.558775662711595i | X18: 1.145526185 | Y18: 0.5095557882 | Z18: 1+0.00111532068405508i | AA18: 1.000000622 | AB18: 0.001115320222 | AC18: 1+5.04794395699024E-06i | AD18: 1 | AE18: 5.047943957e-06 | AF18: 4575.20502520703-2549.85158356106i | AG18: 5237.770911 | AH18: -0.5084455159 | AI18: 4000 | AJ18: 1+0.438177032966759i | AK18: 1.091787119 | AL18: 0.412978564 | AM18: 1+0.0000153356594057574i | AN18: 1 | AO18: 1.53356594e-05 | AP18: 1+1.10949970754275E-07i | AQ18: 1 | AR18: 1.109499708e-07 | AS18: 3355.72958358213-1470.34273353506i | AT18: 3663.717892 | AU18: -0.4129633393 | BB18: 31.27844051 | BC18: -23.66105644 | BN18: 0 | BO18: 0
D19: 1.7378 | E19: 0.0000360324341084951i | F19: 0.05-1831.68308311538i | G19: 0.05-1831.68308311538i | H19: 0.999999687040249-0.000545945791938764i | I19: 1.00999968704025-0.000545945791938764i | J19: 1.00999876267573-0.00110286406851982i | K19: 0.999999999923741-0.000013717235460825i | M19: 23.7623788364696+0.0250994935721033i | N19: 0 | O19: 23.7623780113533+0.0119967897886955i | P19: 24.0000009043958-0.000856216349686349i | Q19: 23.7623771242823-0.000976184247573294i | V19: 6000 | W19: 1+0.612682406877539i | X19: 1.172765847 | Y19: 0.5496926472 | Z19: 1+0.00122291897580347i | AA19: 1.000000748 | AB19: 0.001222918366 | AC19: 1+0.0000055349340705771i | AD19: 1 | AE19: 5.534934071e-06 | AF19: 4365.68543272607-2667.47435434265i | AG19: 5116.114613 | AH19: -0.5484752638 | AI19: 4000 | AJ19: 1+0.480449269915852i | AK19: 1.109428457 | AL19: 0.4478850525 | AM19: 1+0.0000168151359172977i | AN19: 1 | AO19: 1.681513592e-05 | AP19: 1+1.21653643243599E-07i | AQ19: 1 | AR19: 1.216536432e-07 | AS19: 3249.8616409842-1561.3268788093i | AT19: 3605.460069 | AU19: -0.447868359 | BB19: 31.1392138 | BC19: -25.66096675 | BN19: 0 | BO19: 0
D20: 1.9055 | E20: 0.0000395096116893413i | F20: 0.05-1670.47959162315i | G20: 0.05-1670.47959162315i | H20: 0.999999623723777-0.000598630243628598i | I20: 1.00999962372378-0.000598630243628598i | J20: 1.00999851234667-0.00120929160283331i | K20: 0.999999999908312-0.000015040966837727i | M20: 23.7623793622553+0.0275216281062763i | N20: 0 | O20: 23.7623783702054+0.013154495961641i | P20: 24.0000010873689-0.000938842381417429i | Q20: 23.7623773036668-0.00107038734103385i | V20: 6000 | W20: 1+0.671807070034036i | X20: 1.2047094 | Y20: 0.5915529063 | Z20: 1+0.00134093227551704i | AA20: 1.000000899 | AB20: 0.001340931472 | AC20: 1+6.06906253394214E-06i | AD20: 1 | AE20: 6.069062534e-06 | AF20: 4137.86143724879-2771.83538908733i | AG20: 4980.458684 | AH20: -0.5902180439 | AI20: 4000 | AJ20: 1+0.526813260343339i | AK20: 1.130279705 | AL20: 0.4848674088 | AM20: 1+0.0000184378187883593i | AN20: 1 | AO20: 1.843781879e-05 | AP20: 1+1.33393380826722E-07i | AQ20: 1 | AR20: 1.333933808e-07 | AS20: 3131.06670561224-1649.41424183443i | AT20: 3538.947026 | AU20: -0.4848491044 | BB20: 30.97748124 | BC20: -27.77980738 | BN20: 0 | BO20: 0
B21: =20*LOG10(IMABS(H13)) -> -4.714945774e-07 | D21: 2.0893 | E21: 0.000043320614905558i | F21: 0.05-1523.52408071503i | G21: 0.05-1523.52408071503i | H21: 0.999999547633491-0.000656372641347318i | I21: 1.00999954763349-0.000656372641347318i | J21: 1.00999821151496-0.00132593659018071i | K21: 0.999999999889771-0.0000164917827415707i | M21: 23.7623799941166+0.0301762991691804i | N21: 0 | O21: 23.7623788014552+0.0144233474755261i | P21: 24.0000013072558-0.00102940091296471i | Q21: 23.7623775192413-0.00117363438771996i | V21: 6000 | W21: 1+0.736607982903233i | X21: 1.242010999 | Y21: 0.6348749802 | Z21: 1+0.00147027541497651i | AA21: 1.000001081 | AB21: 0.001470274356 | AC21: 1+6.65446987780913E-06i | AD21: 1 | AE21: 6.654469878e-06 | AF21: 3893.75245921495-2859.38741923663i | AG21: 4830.880316 | AH21: -0.6334113603 | AI21: 4000 | AJ21: 1+0.577628415027729i | AK21: 1.154839636 | AL21: 0.5238073599 | AM21: 1+0.0000202162869559271i | AN21: 1 | AO21: 2.021628695e-05 | AP21: 1+1.46260189221344E-07i | AQ21: 1 | AR21: 1.462601892e-07 | AS21: 2999.31212664109-1732.40762977807i | AT21: 3463.684372 | AU21: -0.5237872898 | BB21: 30.7907662 | BC21: -30.01080107 | BN21: 0 | BO21: 0
B22: =20*LOG10(IMABS(I13)) -> 0.08642700462 | D22: 2.2909 | E22: 0.0000475006924267185i | F22: 0.05-1389.45342958571i | G22: 0.05-1389.45342958571i | H22: 0.999999456122541-0.00071970705000659i | I22: 1.00999945612254-0.00071970705000659i | J22: 1.00999784971608-0.00145387786170185i | K22: 0.999999999867472-0.0000180831020354494i | M22: 23.7623807540323+0.0330880603255622i | N22: 0 | O22: 23.7623793201026+0.015815080181733i | P22: 24.0000015717058-0.00112872953952392i | Q22: 23.7623777785048-0.00128688034134128i | V22: 6000 | W22: 1+0.807684501044856i | X22: 1.285439323 | Y22: 0.6794090809 | Z22: 1+0.00161214471266438i | AA22: 1.0000013 | AB22: 0.001612143316 | AC22: 1+7.29657064235531E-06i | AD22: 1 | AE22: 7.296570642e-06 | AF22: 3635.88941314917-2927.02243766204i | AG22: 4667.670958 | AH22: -0.6778042341 | AI22: 4000 | AJ22: 1+0.633364732679378i | AK22: 1.183702194 | AL22: 0.5645918037 | AM22: 1+0.0000221669897991353i | AN22: 1 | AO22: 2.21669898e-05 | AP22: 1+1.60373075904454E-07i | AQ22: 1 | AR22: 1.603730759e-07 | AS22: 2854.8358330516-1808.06430777734i | AT22: 3379.22834 | AU22: -0.5645697971 | BB22: 30.57635078 | BC22: -32.34746661 | BN22: 0 | BO22: 0
B23: =20*LOG10(IMABS(J13)) -> 0.08642566682 | D23: 2.5119 | E23: 0.0000520830194712445i | F23: 0.05-1267.20763638597i | G23: 0.05-1267.20763638597i | H23: 0.999999346126953-0.000789136116860268i | I23: 1.00999934612695-0.000789136116860268i | J23: 1.00999741483634-0.00159413077182715i | K23: 0.99999999984067-0.0000198275542375683i | M23: 23.7623816674465+0.0362800208224759i | N23: 0 | O23: 23.7623799435138+0.0173407395916402i | P23: 24.0000018895731-0.00123761658706859i | Q23: 23.762378090138-0.00141102398298496i | V23: 6000 | W23: 1+0.885600723809234i | X23: 1.335772676 | Y23: 0.7248025017 | Z23: 1+0.00176766611538769i | AA23: 1.000001562 | AB23: 0.001767664274 | AC23: 1+8.00046086539452E-06i | AD23: 1 | AE23: 8.000460865e-06 | AF23: 3367.92495902327-2972.07878751973i | AG23: 4491.78927 | AH23: -0.7230428379 | AI23: 4000 | AJ23: 1+0.69446456502568i | AK23: 1.217489644 | AL23: 0.6070012382 | AM23: 1+0.0000243054090865808i | AN23: 1 | AO23: 2.430540908e-05 | AP23: 1+1.75844047913221E-07i | AQ23: 1 | AR23: 1.758440479e-07 | AS23: 2698.58882490416-1873.97779621007i | AT23: 3285.448893 | AU23: -0.6069771087 | BB23: 30.33189432 | BC23: -34.77722659 | BN23: 0 | BO23: 0
B24: =20*LOG10(IMABS(P13)) -> 27.60422494 | D24: 2.7542 | E24: 0.0000571069916110122i | F24: 0.05-1155.72538734947i | G24: 0.05-1155.72538734947i | H24: 0.999999213896676-0.000865256734460858i | I24: 1.00999921389668-0.000865256734460858i | J24: 1.00999689204969-0.00174790104572952i | K24: 0.999999999808449-0.0000217401369007965i | M24: 23.7623827655+0.0397796228957296i | N24: 0 | O24: 23.7623806929426+0.0190134422521529i | P24: 24.0000022716946-0.00135699819324696i | Q24: 23.7623784647651-0.00154713261576856i | V24: 6000 | W24: 1+0.971026519174884i | X24: 1.393876788 | Y24: 0.770699531 | Z24: 1+0.00193817668497981i | AA24: 1.000001878 | AB24: 0.001938174258 | AC24: 1+8.77219209183072E-06i | AD24: 1 | AE24: 8.772192092e-06 | AF24: 3093.96485714549-2992.74549872696i | AG24: 4304.54924 | AH24: -0.7687701289 | AI24: 4000 | AJ24: 1+0.761453204742915i | AK24: 1.25690532 | AL24: 0.6507909538 | AM24: 1+0.0000266499294184724i | AN24: 1 | AO24: 2.664992941e-05 | AP24: 1+1.92806113604281E-07i | AQ24: 1 | AR24: 1.928061136e-07 | AS24: 2531.99947745404-1927.89328802155i | AT24: 3182.419502 | AU24: -0.6507644967 | BB24: 30.05514854 | BC24: -37.28605912 | BN24: 0 | BO24: 0
B25: =20*LOG10(IMABS(Q13)) -> 27.51779747 | D25: 3.02 | E25: 0.0000626182247713517i | F25: 0.05-1054.00624564169i | G25: 0.05-1054.00624564169i | H25: 0.999999054846168-0.000948760039822788i | I25: 1.00999905484617-0.000948760039822788i | J25: 1.00999626322691-0.00191658477285014i | K25: 0.999999999769693-0.0000238382156126663i | M25: 23.762384086272+0.043618641773777i | N25: 0 | O25: 23.7623815943781+0.0208483757473971i | P25: 24.0000027313219-0.00148795830781744i | Q25: 23.7623789153781-0.0016964420652914i | V25: 6000 | W25: 1+1.06473752374851i | X25: 1.460707361 | Y25: 0.8167417709 | Z25: 1+0.00212522459830042i | AA25: 1.000002258 | AB25: 0.002125221399 | AC25: 1+9.61877137365795E-06i | AD25: 1 | AE25: 9.618771373e-06 | AF25: 2818.39590972306-2988.15824690106i | AG25: 4107.608211 | AH25: -0.8146261683 | AI25: 4000 | AJ25: 1+0.834938885456248i | AK25: 1.302736713 | AL25: 0.6956850673 | AM25: 1+0.0000292218382266308i | AN25: 1 | AO25: 2.922183822e-05 | AP25: 1+2.11413282653739E-07i | AQ25: 1 | AR25: 2.114132827e-07 | AS25: 2356.98710311738-1967.8241432118i | AT25: 3070.459259 | AU25: -0.6956560568 | BB25: 29.74406679 | BC25: -39.85815605 | BN25: 0 | BO25: 0
B26: =20*LOG10(IMABS(M13)) -> 27.51779928 | D26: 3.3113 | E26: 0.0000686581879752904i | F26: 0.05-961.28374409987i | G26: 0.05-961.28374409987i | H26: 0.999998863719423-0.00104027433423601i | I26: 1.00999886371942-0.00104027433423601i | J26: 1.00999550758813-0.00210145108604797i | K26: 0.99999999972312-0.0000261375772709344i | M26: 23.7623856734093+0.0478259640515832i | N26: 0 | O26: 23.7623826776099+0.0228593469823149i | P26: 24.000003283644-0.00163148234230633i | Q26: 23.762379456868-0.00186007581212937i | V26: 6000 | W26: 1+1.16743886171803i | X26: 1.537177119 | Y26: 0.8624969772 | Z26: 1+0.00233021728885835i | AA26: 1.000002715 | AB26: 0.002330213071 | AC26: 1+0.0000105465687581436i | AD26: 1 | AE26: 1.054656876e-05 | AF26: 2546.11461647812-2958.5151253458i | AG26: 3903.26932 | AH26: -0.8601773107 | AI26: 4000 | AJ26: 1+0.915474546824929i | AK26: 1.355763123 | AL26: 0.7412990898 | AM26: 1+0.0000320404877218023i | AN26: 1.000000001 | AO26: 3.204048771e-05 | AP26: 1+2.31805563858056E-07i | AQ26: 1 | AR26: 2.318055639e-07 | AS26: 2176.23105827155-1992.15690712886i | AT26: 2950.367903 | AU26: -0.7412672811 | BB26: 29.39752349 | BC26: -42.4714867 | BN26: 0 | BO26: 0
A27: Gm_csa | B27: =gm_CDC -> 0.0004 | D27: 3.6308 | E27: 0.0000752828644039152i | F27: 0.05-876.693528103424i | G27: 0.05-876.693528103424i | H27: 0.999998633866707-0.00114064782447222i | I27: 1.00999863386671-0.00114064782447222i | J27: 1.00999459884352-0.00230421331491726i | K27: 0.999999999667112-0.0000286595341875724i | M27: 23.762387582132+0.0524405866322065i | N27: 0 | O27: 23.7623839803259+0.0250649952785126i | P27: 24.0000039478776-0.00178890060225871i | Q27: 23.7623801080743-0.00203955055504389i | V27: 6000 | W27: 1+1.28008245073712i | X27: 1.624380214 | Y27: 0.9076245831 | Z27: 1+0.00255505479189045i | AA27: 1.000003264 | AB27: 0.002555049232 | AC27: 1+0.0000115641838090984i | AD27: 1 | AE27: 1.156418381e-05 | AF27: 2281.3272811167-2905.02607329887i | AG27: 3693.728557 | AH27: -0.9050810981 | AI27: 4000 | AJ27: 1+1.00380665738892i | AK27: 1.416907832 | AL27: 0.787297874 | AM27: 1+0.0000351320033884937i | AN27: 1.000000001 | AO27: 3.513200337e-05 | AP27: 1+2.54171969092449E-07i | AQ27: 1 | AR27: 2.541719691e-07 | AS27: 1992.47093093506-1999.91607380084i | AT27: 2823.048833 | AU27: -0.7872629962 | BB27: 29.01436781 | BC27: -45.10684705 | BN27: 0 | BO27: 0
A28: r_v2i_ipeak | B28: 25000 | D28: 3.9811 | E28: 0.0000825461637871617i | F28: 0.05-799.552601501573i | G28: 0.05-799.552601501573i | H28: 0.999998357541255-0.00125069729438726i | I28: 1.00999835754125-0.00125069729438726i | J28: 1.00999350636614-0.00252652127165819i | K28: 0.999999999599779-0.0000314246093296641i | M28: 23.7623898767712+0.0575000621254513i | N28: 0 | O28: 23.7623855464322+0.027483269628222i | P28: 24.0000047464096-0.00196149412674227i | Q28: 23.7623808909454-0.00223632682302441i | V28: 6000 | W28: 1+1.40358495225007i | X28: 1.723383509 | Y28: 0.9517559226 | Z28: 1+0.00280156677095822i | AA28: 1.000003924 | AB28: 0.002801559441 | AC28: 1+0.0000126798975879701i | AD28: 1 | AE28: 1.267989759e-05 | AF28: 2028.07541743001-2829.84281669552i | AG28: 3481.537055 | AH28: -0.9489670431 | AI28: 4000 | AJ28: 1+1.10065403870526i | AK28: 1.487090889 | AL28: 0.8332771155 | AM28: 1+0.0000385215431006756i | AN28: 1.000000001 | AO28: 3.852154308e-05 | AP28: 1+2.78694509792319E-07i | AQ28: 1 | AR28: 2.786945098e-07 | AS28: 1808.85287932548-1990.76825565886i | AT28: 2689.815419 | AU28: -0.8332388726 | BB28: 28.59444957 | BC28: -47.74107073 | BN28: 0 | BO28: 0
A29: i_sns_gain | B29: =Rs * B27 *B28 -> 0.04 | D29: 4.3652 | E29: 0.0000905102896595711i | F29: 0.05-729.198859579836i | G29: 0.05-729.198859579836i | H29: 0.999998025321323-0.00137136518173327i | I29: 1.00999802532132-0.00137136518173327i | J29: 1.00999219290729-0.00277027854581869i | K29: 0.999999999518826-0.0000344564830438446i | M29: 23.7623926355667+0.063047720489683i | N29: 0 | O29: 23.7623874293285+0.0301348804175186i | P29: 24.0000057064675-0.00215074104044951i | Q29: 23.7623818321743-0.00245208984462466i | V29: 6000 | W29: 1+1.53900405253874i | X29: 1.835356498 | Y29: 0.9945821996 | Z29: 1+0.00307186437632483i | AA29: 1.000004718 | AB29: 0.003071854714 | AC29: 1+0.0000139032651656595i | AD29: 1 | AE29: 1.390326516e-05 | AF29: 1789.57329334999-2735.81278411733i | AG29: 3269.135079 | AH29: -0.9915242482 | AI29: 4000 | AJ29: 1+1.20684610026279i | AK29: 1.567315383 | AL29: 0.8788544069 | AM29: 1+0.0000422381351744665i | AN29: 1.000000001 | AO29: 4.223813515e-05 | AP29: 1+3.05583199152352E-07i | AQ29: 1 | AR29: 3.055831992e-07 | AS29: 1628.43030671806-1965.09703500453i | AT29: 2552.134718 | AU29: -0.8788124744 | BB29: 28.13807191 | BC29: -50.35224577 | BN29: 0 | BO29: 0
A30: Vse | B30: =IF(Vin>=Vout,MAX(Vout,Vin/2),MAX(Vout-Vin,5)) -> 12 | D30: 4.7863 | E30: 0.000099241592457987i | F30: 0.05-665.043741896227i | G30: 0.05-665.043741896227i | H30: 0.999997625961303-0.00150365674355208i | I30: 1.0099976259613-0.00150365674355208i | J30: 1.00999061400803-0.00303751555636393i | K30: 0.999999999421513-0.0000377804143665247i | M30: 23.7623959519047+0.0691297803931377i | N30: 0 | O30: 23.7623896927508+0.033041918744878i | P30: 24.0000068605495-0.00235821801488436i | Q30: 23.7623829636221-0.002688637202333i | V30: 6000 | W30: 1+1.68746795030381i | X30: 1.961516781 | Y30: 1.035832923 | Z30: 1+0.00336819950160441i | AA30: 1.000005672 | AB30: 0.003368186765 | AC30: 1+0.0000152444786177944i | AD30: 1 | AE30: 1.524447862e-05 | AF30: 1568.25807004282-2626.26750086933i | AG30: 3058.874689 | AH30: -1.032479981 | AI30: 4000 | AJ30: 1+1.32326754551631i | AK30: 1.658625032 | AL30: 0.9236539574 | AM30: 1+0.0000463127431470607i | AN30: 1.000000001 | AO30: 4.631274311e-05 | AP30: 1+3.35062051246886E-07i | AQ30: 1 | AR30: 3.350620512e-07 | AS30: 1454.08562934354-1923.96041098758i | AT30: 2411.6361 | AU30: -0.9236079797 | BB30: 27.64623553 | BC30: -52.91883916 | BN30: 0 | BO30: 0
A31: Sn | B31: =IF(Vin>=Vout,B29*(Vin-Vout)/L,B29*Vin/Lf) ->  | D31: 5.2481 | E31: 0.00010881678987501i | F31: 0.05-606.524049053544i | G31: 0.05-606.524049053544i | H31: 0.99999714575042-0.00164873429932151i | I31: 1.00999714575042-0.00164873429932151i | J31: 1.0099887154639-0.003330579905765i | K31: 0.999999999304499-0.0000414256090585543i | M31: 23.7623999396432+0.0757996822126922i | N31: 0 | O31: 23.7623924144086+0.0362299274610589i | P31: 24.0000082482781-0.00258574808115811i | Q31: 23.762384324134-0.00294804735576869i | V31: 6000 | W31: 1+1.8502811252929i | X31: 2.103221396 | Y31: 1.075308213 | Z31: 1+0.00369317589878823i | AA31: 1.00000682 | AB31: 0.003693159108 | AC31: 1+0.0000167153225318193i | AD31: 1 | AE31: 1.671532253e-05 | AF31: 1365.60649413454-2504.69715722317i | AG31: 2852.786173 | AH31: -1.071631769 | AI31: 4000 | AJ31: 1+1.45094131283541i | AK31: 1.762166477 | AL31: 0.9673502646 | AM31: 1+0.0000507811686083382i | AN31: 1.000000001 | AO31: 5.078116856e-05 | AP31: 1+3.67390082349368E-07i | AQ31: 1 | AR31: 3.673900823e-07 | AS31: 1288.24328525766-1868.96374844904i | AT31: 2269.933095 | AU31: -0.9672998508 | BB31: 27.12026114 | BC31: -55.42219898 | BN31: 0 | BO31: 0
A32: Se | B32: =IF(Vin>=Vout,B29*B30/L,B29*(Vout-Vin)/Lf) ->  | D32: 5.7544 | E32: 0.000119314673054393i | F32: 0.05-553.159123772749i | G32: 0.05-553.159123772749i | H32: 0.999996568471787-0.00180779156289611i | I32: 1.00999656847179-0.00180779156289611i | J32: 1.00998643316344-0.00365188249306656i | K32: 0.999999999163831-0.0000454220622256711i | M32: 23.7624047334524+0.0831123107511235i | N32: 0 | O32: 23.7623956862147+0.0397251398038788i | P32: 24.0000099165182-0.00283520355175779i | Q32: 23.762385959656-0.00323245494979671i | V32: 6000 | W32: 1+2.02878331346306i | X32: 2.261849184 | Y32: 1.112839795 | Z32: 1+0.00404946769154303i | AA32: 1.000008199 | AB32: 0.004049445557 | AC32: 1+0.0000183278999975422i | AD32: 1 | AE32: 1.83279e-05 | AF32: 1182.39162328656-2374.62955656113i | AG32: 2652.718508 | AH32: -1.108808677 | AI32: 4000 | AJ32: 1+1.59091798757266i | AK32: 1.87910086 | AL32: 1.009635434 | AM32: 1+0.0000556801807587167i | AN32: 1.000000002 | AO32: 5.56801807e-05 | AP32: 1+4.02833309173072E-07i | AQ32: 1 | AR32: 4.028333092e-07 | AS32: 1132.91675438616-1802.15653358559i | AT32: 2128.677651 | AU32: -1.009580157 | BB32: 26.56219801 | BC32: -57.84468206 | BN32: 0 | BO32: 0
A33: mc | B33: =1+B32/B31 ->  | D33: 6.3096 | E33: 0.000130826473846795i | F33: 0.05-504.485048471837i | G33: 0.05-504.485048471837i | H33: 0.999995874364844-0.00198221071389969i | I33: 1.00999587436484-0.00198221071389969i | J33: 1.00998368898669-0.00400421476669763i | K33: 0.999999998994696-0.0000498045050429401i | M33: 23.7624104974309+0.0911312169041153i | N33: 0 | O33: 23.7623996201676+0.0435579311323916i | P33: 24.0000119223758-0.0031087523754789i | Q33: 23.7623879261742-0.00354433168680263i | V33: 6000 | W33: 1+2.22452578802768i | X33: 2.438957765 | Y33: 1.148329985 | Z33: 1+0.00444017123358819i | AA33: 1.000009858 | AB33: 0.004440142054 | AC33: 1+0.0000200962251189511i | AD33: 1 | AE33: 2.009622512e-05 | AF33: 1018.57286679563-2239.32115913206i | AG33: 2460.091449 | AH33: -1.143909939 | AI33: 4000 | AJ33: 1+1.7444140369784i | AK33: 2.010716373 | AL33: 1.050271891 | AM33: 1+0.0000610523544618377i | AN33: 1.000000002 | AO33: 6.105235439e-05 | AP33: 1+4.4169975107021E-07i | AQ33: 1 | AR33: 4.416997511e-07 | AS33: 989.47375240696-1725.80946030154i | AT33: 1989.340745 | AU33: -1.05021128 | BB33: =20*LOG10(IMABS(IMPRODUCT(COMPLEX($B$15,0),AS33))) -> 25.97418356 | BC33: =180/PI()*IMARGUMENT(IMPRODUCT(COMPLEX($B$15,0),AS33)) -> -60.17267393 | BN33: 0 | BO33: 0
A34: Fm | B34: =Fsw/(B31+B32) ->  | D34: 6.9183 | E34: 0.00014344757100518i | F34: 0.05-460.098414616004i | G34: 0.05-460.098414616004i | H34: 0.999995039955603-0.00217343672611428i | I34: 1.0099950399556-0.00217343672611428i | J34: 1.00998039013473-0.00439049481005948i | K34: 0.999999998791372-0.0000546092473752017i | M34: 23.7624174265157+0.0999228403940363i | N34: 0 | O34: 23.7624043493131+0.047760057568847i | P34: 24.0000143336887-0.00340866106104536i | Q34: 23.7623902901956-0.00388626163673375i | V34: 6000 | W34: 1+2.43913033461898i | X34: 2.636163271 | Y34: 1.181714342 | Z34: 1+0.00486852362199398i | AA34: 1.000011851 | AB34: 0.004868485157 | AC34: 1+0.0000220349490047609i | AD34: 1 | AE34: 2.2034949e-05 | AF34: 873.59566216749-2101.73474776046i | AG34: 2276.062023 | AH34: -1.176867891 | AI34: 4000 | AJ34: 1+1.91270122226886i | AK34: 2.158338705 | AL34: 1.089059189 | AM34: 1+0.0000669421998024172i | AN34: 1.000000002 | AO34: 6.69421997e-05 | AP34: 1+4.84311428272637E-07i | AQ34: 1 | AR34: 4.843114283e-07 | AS34: 858.768280519768-1642.30130824239i | AT34: 1853.277245 | AU34: -1.088992731 | BB34: 25.35880787 | BC34: -62.39468743 | BN34: 0 | BO34: 0
D35: 7.5858 | E35: 0.00015728785744057i | F35: 0.05-419.612811020316i | G35: 0.05-419.612811020316i | H35: 0.999994036666447-0.0023831344330699i | I35: 1.00999403666645-0.0023831344330699i | J35: 1.00997642363465-0.00481408454944533i | K35: 0.999999998546896-0.0000598781245015112i | M35: 23.7624257580287+0.10956373146392i | N35: 0 | O35: 23.7624100356246+0.0523681077445996i | P35: 24.0000172330446-0.00373754103507102i | Q35: 23.7623931326883-0.0042612221125172i | V35: 6000 | W35: 1+2.67446553233492i | X35: 2.855304867 | Y35: 1.212984701 | Z35: 1+0.00533825455555872i | AA35: 1.000014248 | AB35: 0.005338203848 | AC35: 1+0.00002416095228023i | AD35: 1 | AE35: 2.416095228e-05 | AF35: 746.406191251314-1964.35307002198i | AG35: 2101.381733 | AH35: -1.207670658 | AI35: 4000 | AJ35: 1+2.09724483354107i | AK35: 2.323453441 | AL35: 1.125867299 | AM35: 1+0.0000734010001389325i | AN35: 1.000000003 | AO35: 7.340100001e-05 | AP35: 1+5.31039364090972E-07i | AQ35: 1 | AR35: 5.310393641e-07 | AS35: 741.068595593712-1553.91080356535i | AT35: 1721.575281 | AU35: -1.125794429 | BB35: 24.71852037 | BC35: -64.50326937 | BN35: 0 | BO35: 0
D36: 8.3176 | E36: 0.00017246137296629i | F36: 0.05-382.69439042968i | G36: 0.05-382.69439042968i | H36: 0.999992830616085-0.00261303143488495i | I36: 1.00999283061609-0.00261303143488495i | J36: 1.00997165555018-0.00527847233282554i | K36: 0.999999998253012-0.0000656545503906997i | M36: 23.7624357733389+0.120133329311628i | N36: 0 | O36: 23.7624168711382+0.0574200511099219i | P36: 24.0000207183589-0.00409810229849347i | Q36: 23.7623965496474-0.00467230280959295i | V36: 6000 | W36: 1+2.93247047269226i | X36: 3.098287119 | Y36: 1.242153293 | Z36: 1+0.00585323447643165i | AA36: 1.00001713 | AB36: 0.005853167633 | AC36: 1+0.0000264917525753435i | AD36: 1 | AE36: 2.649175257e-05 | AF36: 635.720169253332-1829.27016891173i | AG36: 1936.587071 | AH36: -1.236326617 | AI36: 4000 | AJ36: 1+2.29956545485792i | AK36: 2.507588738 | AL36: 1.16059989 | AM36: 1+0.0000804819740509353i | AN36: 1.000000003 | AO36: 8.048197388e-05 | AP36: 1+5.82268582715477E-07i | AQ36: 1 | AR36: 5.822685827e-07 | AS36: 636.249065434052-1462.77677273591i | AT36: 1595.157911 | AU36: -1.16051999 | BB36: 24.05607364 | BC36: -66.4928975 | BN36: 0 | BO36: 0
D37: 9.1201 | E37: 0.000189100818456028i | F37: 0.05-349.020171032982i | G37: 0.05-349.020171032982i | H37: 0.999991380455538-0.00286513798477229i | I37: 1.00999138045554-0.00286513798477229i | J37: 1.00996592242853-0.00578771697978728i | K37: 0.999999997899643-0.0000719890431155886i | M37: 23.7624478158343+0.131724072486154i | N37: 0 | O37: 23.7624250902181+0.0629600703890341i | P37: 24.0000249091299-0.00449349833049336i | Q37: 23.7624006582277-0.00512309903438366i | V37: 6000 | W37: 1+3.21540155309232i | X37: 3.367314531 | Y37: 1.269275721 | Z37: 1+0.00641796717184096i | AA37: 1.000020595 | AB37: 0.006417879055 | AC37: 1+0.000029047734041357i | AD37: 1 | AE37: 2.904773403e-05 | AF37: 540.026713795531-1698.06921765503i | AG37: 1781.872027 | AH37: -1.262886889 | AI37: 4000 | AJ37: 1+2.52143249312899i | AK37: 2.712493653 | AL37: 1.19322446 | AM37: 1+0.0000882470486128133i | AN37: 1.000000004 | AO37: 8.824704838e-05 | AP37: 1+6.38447112294825E-07i | AQ37: 1 | AR37: 6.384471123e-07 | AS37: 543.774020493476-1370.73904978564i | AT37: 1474.657834 | AU37: -1.193136851 | BB37: 23.37382525 | BC37: -68.36170594 | BN37: 0 | BO37: 0
D38: 10 | E38: 0.000207345115136926i | F38: 0.05-318.309886183791i | G38: 0.05-318.309886183791i | H38: 0.999989637028139-0.0031415584695417i | I38: 1.00998963702814-0.0031415584695417i | J38: 1.00995902995967-0.00634606681647981i | K38: 0.999999997474811-0.0000789344887836631i | M38: 23.7624622937483+0.144432733044428i | N38: 0 | O38: 23.7624349714862+0.0690344195674442i | P38: 24.0000299474217-0.00492703048023363i | Q38: 23.7624055977069-0.00561737467590805i | V38: 6000 | W38: 1+3.52562093956461i | X38: 3.664696851 | Y38: 1.294417323 | Z38: 1+0.00703716754404114i | AA38: 1.000024761 | AB38: 0.007037051383 | AC38: 1+0.0000318502363366158i | AD38: 1.000000001 | AE38: 3.185023633e-05 | AF38: 457.795124435812-1571.9801729379i | AG38: 1637.283738 | AH38: -1.287412121 | AI38: 4000 | AJ38: 1+2.76469829621275i | AK38: 2.939992631 | AL38: 1.223733846 | AM38: 1+0.0000967610537305657i | AN38: 1.000000005 | AO38: 9.676105343e-05 | AP38: 1+7.00043982297151E-07i | AQ38: 1 | AR38: 7.000439823e-07 | AS38: 462.895364985676-1279.38178286168i | AT38: 1360.547634 | AU38: -1.223637785 | BB38: 22.67427503 | BC38: -70.10928071 | BN38: 0 | BO38: 0
D39: 10.965 | E39: 0.00022735391874764i | F39: 0.05-290.296293829266i | G39: 0.05-290.296293829266i | H39: 0.999987540499412-0.00344471127872031i | I39: 1.00998754049941-0.00344471127872031i | J39: 1.00995074163397-0.00695840359107807i | K39: 0.999999996963935-0.0000865516669512866i | M39: 23.762479703999+0.158370527028465i | N39: 0 | O39: 23.7624468540914+0.0756962563821444i | P39: 24.00003600616-0.0054024928798656i | Q39: 23.7624115376191-0.00615945544368697i | V39: 6000 | W39: 1+3.8658433602326i | X39: 3.993087137 | Y39: 1.31766905 | Z39: 1+0.00771625421204111i | AA39: 1.00002977 | AB39: 0.007716101074 | AC39: 1+0.0000349237841430992i | AD39: 1.000000001 | AE39: 3.492378413e-05 | AF39: 387.473777408952-1451.82494714947i | AG39: 1502.641543 | AH39: -1.309987873 | AI39: 4000 | AJ39: 1+3.03149168179728i | AK39: 3.192168826 | AL39: 1.252165457 | AM39: 1+0.000106098495415565i | AN39: 1.000000006 | AO39: 0.000106098495 | AP39: 1+7.67598226588826E-07i | AQ39: 1 | AR39: 7.675982266e-07 | AS39: 392.669292054133-1189.95236897058i | AT39: 1253.066564 | AU39: -1.252060126 | BB39: 21.95948283 | BC39: -71.73776093 | BN39: 0 | BO39: 0
D40: 12.023 | E40: 0.000249291031929127i | F40: 0.05-264.750799454205i | G40: 0.05-264.750799454205i | H40: 0.99998502013472-0.00377707743735985i | I40: 1.00998502013472-0.00377707743735985i | J40: 1.00994077787025-0.00762973445960044i | K40: 0.999999996349776-0.0000949029358645982i | M40: 23.7625006340403+0.173651560044315i | N40: 0 | O40: 23.7624611389743+0.0830001196539538i | P40: 24.0000432897766-0.00592377830427696i | Q40: 23.7624186783868-0.00675377950081662i | V40: 6000 | W40: 1+4.23885405563853i | X40: 4.355213394 | Y40: 1.339119498 | Z40: 1+0.00846078653820066i | AA40: 1.000035792 | AB40: 0.008460584659 | AC40: 1+0.0000382935391475132i | AD40: 1.000000001 | AE40: 3.829353913e-05 | AF40: 327.617584710036-1338.18816972642i | AG40: 1377.708554 | AH40: -1.330697207 | AI40: 4000 | AJ40: 1+3.32399676153659i | AK40: 3.471160393 | AL40: 1.278566637 | AM40: 1+0.000116335814900259i | AN40: 1.000000007 | AO40: 0.0001163358144 | AP40: 1+8.41662879915864E-07i | AQ40: 1 | AR40: 8.416628799e-07 | AS40: 332.106459433207-1103.45881903328i | AT40: 1152.352405 | AU40: -1.278451143 | BB40: 21.23170625 | BC40: -73.24985479 | BN40: 0 | BO40: 0
D41: 13.183 | E41: 0.00027334306528501i | F41: 0.05-241.454817707495i | G41: 0.05-241.454817707495i | H41: 0.999981990181504-0.00414148327701616i | I41: 1.0099819901815-0.00414148327701616i | J41: 1.00992879974662-0.00836576259604676i | K41: 0.999999995611437-0.000104059336563503i | M41: 23.7625257960676+0.19040582653012i | N41: 0 | O41: 23.7624783122113+0.0910081425253474i | P41: 24.0000520461123-0.00649532164001082i | Q41: 23.7624272629903-0.00740540306526436i | V41: 6000 | W41: 1+4.64782608462803i | X41: 4.754186293 | Y41: 1.358872641 | Z41: 1+0.00927709797330943i | AA41: 1.000043031 | AB41: 0.009276831844 | AC41: 1+0.0000419881665625606i | AD41: 1.000000001 | AE41: 4.198816654e-05 | AF41: 276.85434420959-1231.36018391713i | AG41: 1262.099929 | AH41: -1.349637797 | AI41: 4000 | AJ41: 1+3.64470176389727i | AK41: 3.779398226 | AL41: 1.303015106 | AM41: 1+0.000127560097133005i | AN41: 1.000000008 | AO41: 0.0001275600964 | AP41: 1+9.22867981862334E-07i | AQ41: 1 | AR41: 9.228679819e-07 | AS41: 280.165778460889-1020.61415802345i | AT41: 1058.369559 | AU41: -1.302888468 | BB41: 20.4927468 | BC41: -74.65001041 | BN41: 0 | BO41: 0
D42: 14.454 | E42: 0.000299696629418913i | F42: 0.05-220.222696958482i | G42: 0.05-220.222696958482i | H42: 0.999978350131009-0.00454075479706835i | I42: 1.00997835013101-0.00454075479706835i | J42: 1.00991441004899-0.00917218860501772i | K42: 0.999999994724423-0.000114091910087907i | M42: 23.7625560248541+0.208763322468097i | N42: 0 | O42: 23.7624989435392+0.0997824588102381i | P42: 24.0000625656641-0.00712155794702619i | Q42: 23.7624375762287-0.00811938253512813i | V42: 6000 | W42: 1+5.09593250604668i | X42: 5.193123155 | Y42: 1.377023626 | Z42: 1+0.0101715219681571i | AA42: 1.000051729 | AB42: 0.01017117121 | AC42: 1+0.0000460363316009445i | AD42: 1.000000001 | AE42: 4.603633157e-05 | AF42: 233.961435333489-1131.49876978669i | AG42: 1155.433866 | AH42: -1.366898491 | AI42: 4000 | AJ42: 1+3.99609491734591i | AK42: 4.119317248 | AL42: 1.325587742 | AM42: 1+0.00013985842706216i | AN42: 1.00000001 | AO42: 0.0001398584262 | AP42: 1+0.0000010118435720123i | AQ42: 1 | AR42: 1.011843572e-06 | AS42: 235.857890398008-941.955130701448i | AT42: 971.0347124 | AU42: -1.325448895 | BB42: 19.74469511 | BC42: -75.94262765 | BN42: 0 | BO42: 0
D43: 15.849 | E43: 0.000328621272980515i | F43: 0.05-200.839097850837i | G43: 0.05-200.839097850837i | H43: 0.999973969596213-0.00497897410801308i | I43: 1.00997396959621-0.00497897410801308i | J43: 1.00989709351205-0.0100572475555275i | K43: 0.999999993656958-0.000125103271273228i | M43: 23.7625924033535+0.228911819314943i | N43: 0 | O43: 23.7625237720778+0.109412817125865i | P43: 24.0000752252935-0.00780889336490702i | Q43: 23.7624499875728-0.00890302153616519i | V43: 6000 | W43: 1+5.58775662711595i | X43: 5.676532755 | Y43: 1.393708318 | Z43: 1+0.0111532068405508i | AA43: 1.000062195 | AB43: 0.01115274441 | AC43: 1+0.0000504794395699024i | AD43: 1.000000001 | AE43: 5.047943953e-05 | AF43: 197.754232160027-1038.38615705628i | AG43: 1057.048981 | AH43: -1.382606053 | AI43: 4000 | AJ43: 1+4.38177032966759i | AK43: 4.494431134 | AL43: 1.346420818 | AM43: 1+0.000153356594057574i | AN43: 1.000000012 | AO43: 0.0001533565929 | AP43: 1+1.10949970754275E-06i | AQ43: 1 | AR43: 1.109499708e-06 | AS43: 198.152774232412-867.650958495508i | AT43: 889.9902852 | AU43: -1.346268571 | BB43: 18.98770532 | BC43: -77.13550718 | BN43: 0 | BO43: 0
D44: 17.378 | E44: 0.000360324341084951i | F44: 0.05-183.168308311538i | G44: 0.05-183.168308311538i | H44: 0.999968705042994-0.00545928031717347i | I44: 1.00996870504299-0.00545928031717347i | J44: 1.00987628298972-0.011027266554226i | K44: 0.999999992374059-0.00013717235460825i | M44: 23.7626361237794+0.250995761197445i | N44: 0 | O44: 23.7625536115176+0.119968256846369i | P44: 24.0000904398823-0.00856225620374321i | Q44: 23.7624649037672-0.00976193877220625i | V44: 6000 | W44: 1+6.12682406877539i | X44: 6.207896034 | Y44: 1.409006241 | Z44: 1+0.0122291897580347i | AA44: 1.000074774 | AB44: 0.01222858018 | AC44: 1+0.000055349340705771i | AD44: 1.000000002 | AE44: 5.534934065e-05 | AF44: 167.303191685446-951.994179321132i | AG44: 966.5832998 | AH44: -1.39683301 | AI44: 4000 | AJ44: 1+4.80449269915852i | AK44: 4.907458619 | AL44: 1.365587654 | AM44: 1+0.000168151359172977i | AN44: 1.000000014 | AO44: 0.0001681513576 | AP44: 1+1.21653643243599E-06i | AQ44: 1 | AR44: 1.216536432e-06 | AS44: 166.224440463921-797.956371339656i | AT44: 815.0858453 | AU44: -1.36542072 | BB44: 18.22406703 | BC44: -78.23284449 | BN44: 0 | BO44: 0
D45: 19.055 | E45: 0.000395096116893413i | F45: 0.05-167.047959162315i | G45: 0.05-167.047959162315i | H45: 0.999962373849136-0.00598606829772738i | I45: 1.00996237384914-0.00598606829772738i | J45: 1.00985125695131-0.0120911045028803i | K45: 0.999999990831216-0.00015040966837727i | M45: 23.7626887030725+0.275217369322076i | N45: 0 | O45: 23.7625894971742+0.131545432847242i | P45: 24.0001087373139-0.00938854603353087i | Q45: 23.762482842342-0.0107040003620039i | V45: 6000 | W45: 1+6.71807070034036i | X45: 6.79208907 | Y45: 1.423029053 | Z45: 1+0.0134093227551704i | AA45: 1.000089901 | AB45: 0.01340851913 | AC45: 1+0.0000606906253394214i | AD45: 1.000000002 | AE45: 6.069062526e-05 | AF45: 141.723749619189-872.018377375068i | AG45: 883.4600566 | AH45: -1.409681224 | AI45: 4000 | AJ45: 1+5.26813260343339i | AK45: 5.362203011 | AL45: 1.383207552 | AM45: 1+0.000184378187883593i | AN45: 1.000000017 | AO45: 0.0001843781858 | AP45: 1+1.33393380826722E-06i | AQ45: 1 | AR45: 1.333933808e-06 | AS45: 139.248997142034-732.850004823052i | AT45: 745.9620719 | AU45: -1.383024508 | BB45: 17.45433493 | BC45: -79.24146726 | BN45: 0 | BO45: 0
D46: 20.893 | E46: 0.00043320614905558i | F46: 0.05-152.352408071503i | G46: 0.05-152.352408071503i | H46: 0.999954765475942-0.00656341777860466i | I46: 1.00995476547594-0.00656341777860466i | J46: 1.00982118370494-0.0132569780543881i | K46: 0.99999998897711-0.000164917827415707i | M46: 23.7627518901807+0.301764426217191i | N46: 0 | O46: 23.7626326227084+0.144234098560225i | P46: 24.000130726205-0.0102941702373079i | Q46: 23.7625043999779-0.0117365112229105i | V46: 6000 | W46: 1+7.36607982903233i | X46: 7.433648636 | Y46: 1.43586381 | Z46: 1+0.0147027541497651i | AA46: 1.00010808 | AB46: 0.01470169485 | AC46: 1+0.0000665446987780913i | AD46: 1.000000002 | AE46: 6.654469868e-05 | AF46: 120.285544087736-798.215663711796i | AG46: 807.2278847 | AH46: -1.42122866 | AI46: 4000 | AJ46: 1+5.77628415027729i | AK46: 5.862205949 | AL46: 1.399373748 | AM46: 1+0.000202162869559271i | AN46: 1.00000002 | AO46: 0.0002021628668 | AP46: 1+1.46260189221344E-06i | AQ46: 1 | AR46: 1.462601892e-06 | AS46: 116.530882263629-672.312687166564i | AT46: 682.3370105 | AU46: -1.399173048 | BB46: 16.67997857 | BC46: -80.16671046 | BN46: 0 | BO46: 0
D47: 22.909 | E47: 0.000475006924267185i | F47: 0.05-138.945342958571i | G47: 0.05-138.945342958571i | H47: 0.999945615328665-0.00719666362904478i | I47: 1.00994561532867-0.00719666362904478i | J47: 1.00978501816425-0.0145356308222074i | K47: 0.999999986747247-0.000180831020354494i | M47: 23.7628278832206+0.330882494399519i | N47: 0 | O47: 23.762684488337+0.158151624183251i | P47: 24.000157171476-0.0112875077846998i | Q47: 23.7625303265925-0.0128690240265328i | V47: 6000 | W47: 1+8.07684501044855i | X47: 8.138514934 | Y47: 1.447612486 | Z47: 1+0.0161214471266438i | AA47: 1.000129942 | AB47: 0.01612005068 | AC47: 1+0.0000729657064235531i | AD47: 1.000000003 | AE47: 7.296570629e-05 | AF47: 102.327924539851-730.195898740578i | AG47: 737.3310347 | AH47: -1.431565401 | AI47: 4000 | AJ47: 1+6.33364732679378i | AK47: 6.412104839 | AL47: 1.414202087 | AM47: 1+0.000221669897991353i | AN47: 1.000000025 | AO47: 0.0002216698944 | AP47: 1+1.60373075904454E-06i | AQ47: 1 | AR47: 1.603730759e-06 | AS47: 97.423487030952-616.165743531588i | AT47: 623.8201338 | AU47: -1.413982021 | BB47: 15.90118775 | BC47: -81.01520211 | BN47: 0 | BO47: 0
D48: 25.119 | E48: 0.000520830194712445i | F48: 0.05-126.720763638597i | G48: 0.05-126.720763638597i | H48: 0.999934617139035-0.00789082482842156i | I48: 1.00993461713903-0.00789082482842156i | J48: 1.00974155092277-0.0159371584104416i | K48: 0.999999984066964-0.000198275542375683i | M48: 23.76291922676+0.362802701175177i | N48: 0 | O48: 23.7627468307273+0.173408479978345i | P48: 24.0001889586015-0.0123764458478077i | Q48: 23.7625614902943-0.01411053064759i | V48: 6000 | W48: 1+8.85600723809234i | X48: 8.91228726 | Y48: 1.4583549 | Z48: 1+0.0176766611538769i | AA48: 1.00015622 | AB48: 0.01767482039 | AC48: 1+0.0000800046086539452i | AD48: 1.000000003 | AE48: 8.000460848e-05 | AF48: 87.3111458539692-667.648201053342i | AG48: 673.3330205 | AH48: -1.440760085 | AI48: 4000 | AJ48: 1+6.9446456502568i | AK48: 7.016274169 | AL48: 1.427783539 | AM48: 1+0.000243054090865808i | AN48: 1.00000003 | AO48: 0.0002430540861 | AP48: 1+1.75844047913221E-06i | AQ48: 1 | AR48: 1.758440479e-06 | AS48: 81.3905592899556-564.263410943416i | AT48: 570.1031662 | AU48: -1.427542244 | BB48: 15.11906906 | BC48: -81.79214563 | BN48: 0 | BO48: 0
D49: 27.542 | E49: 0.000571069916110123i | F49: 0.05-115.572538734947i | G49: 0.05-115.572538734947i | H49: 0.999921396090533-0.00865186035402634i | I49: 1.00992139609053-0.00865186035402634i | J49: 1.00968930221894-0.0174735411576407i | K49: 0.999999980844884-0.000217401369007965i | M49: 23.763029035176+0.397799515153845i | N49: 0 | O49: 23.7628217754374+0.190135851527048i | P49: 24.0002271713358-0.0135703509976393i | Q49: 23.7625989535815-0.0154717095129088i | V49: 6000 | W49: 1+9.71026519174884i | X49: 9.761621284 | Y49: 1.468174299 | Z49: 1+0.0193817668497981i | AA49: 1.000187809 | AB49: 0.01937934046 | AC49: 1+0.0000877219209183071i | AD49: 1.000000004 | AE49: 8.772192069e-05 | AF49: 74.763017829033-610.204460972898i | AG49: 614.76743 | AH49: -1.44888268 | AI49: 4000 | AJ49: 1+7.61453204742915i | AK49: 7.679915254 | AL49: 1.440215779 | AM49: 1+0.000266499294184724i | AN49: 1.000000036 | AO49: 0.0002664992879 | AP49: 1+1.92806113604281E-06i | AQ49: 1 | AR49: 1.928061136e-06 | AS49: 67.9549628949828-516.386957813516i | AT49: 520.8390991 | AU49: -1.439951207 | BB49: 14.33407158 | BC49: -82.50312689 | BN49: 0 | BO49: 0
D50: 30.2 | E50: 0.000626182247713518i | F50: 0.05-105.400624564169i | G50: 0.05-105.400624564169i | H50: 0.999905493901921-0.00948666834500837i | I50: 1.00990549390192-0.00948666834500837i | J50: 1.00962646326573-0.0191586376818385i | K50: 0.999999976969268-0.000238382156126663i | M50: 23.7631611167939+0.436190750137861i | N50: 0 | O50: 23.7629119216378+0.208485641421593i | P50: 24.0002731349043-0.0148800696408923i | Q50: 23.762644015688-0.0169649260551078i | V50: 6000 | W50: 1+10.6473752374851i | X50: 10.69423206 | Y50: 1.477151167 | Z50: 1+0.0212522459830042i | AA50: 1.000225803 | AB50: 0.02124904727 | AC50: 1+0.0000961877137365795i | AD50: 1.000000005 | AE50: 9.618771344e-05 | AF50: 64.2805782312462-557.483088469411i | AG50: 561.1767874 | AH50: -1.455998308 | AI50: 4000 | AJ50: 1+8.34938885456248i | AK50: 8.409060247 | AL50: 1.451594886 | AM50: 1+0.000292218382266308i | AN50: 1.000000043 | AO50: 0.0002922183739 | AP50: 1+2.11413282653739E-06i | AQ50: 1 | AR50: 2.114132827e-06 | AS50: 56.704266464978-472.285553431076i | AT50: 475.6774304 | AU50: -1.451304782 | BB50: 13.54625092 | BC50: -83.15363879 | BN50: 0 | BO50: 0
D51: 33.113 | E51: 0.000686581879752904i | F51: 0.05-96.1283744099871i | G51: 0.05-96.1283744099871i | H51: 0.99988638536168-0.0104015147532328i | I51: 1.00988638536168-0.0104015147532328i | J51: 1.00955096197483-0.0210050074578485i | K51: 0.999999972312043-0.000261375772709344i | M51: 23.7633198368929+0.478265351409204i | N51: 0 | O51: 23.7630202486091+0.228595953208954i | P51: 24.000328368324-0.0163154648027837i | Q51: 23.7626981658379-0.0186014243348735i | V51: 6000 | W51: 1+11.6743886171803i | X51: 11.71713914 | Y51: 1.485347315 | Z51: 1+0.0233021728885835i | AA51: 1.000271459 | AB51: 0.02329795664 | AC51: 1+0.000105465687581436i | AD51: 1.000000006 | AE51: 0.0001054656872 | AF51: 55.5377955766214-509.189566845087i | AG51: 512.2093925 | AH51: -1.462154824 | AI51: 4000 | AJ51: 1+9.15474546824929i | AK51: 9.209199997 | AL51: 1.461994727 | AM51: 1+0.000320404877218023i | AN51: 1.000000051 | AO51: 0.0003204048663 | AP51: 1+2.31805563858056E-06i | AQ51: 1 | AR51: 2.318055639e-06 | AS51: 47.301946406164-431.764932214888i | AT51: 434.3482829 | AU51: -1.46167664 | BB51: 12.75676218 | BC51: -83.74790249 | BN51: 0 | BO51: 0
D52: 36.308 | E52: 0.000752828644039152i | F52: 0.05-87.6693528103424i | G52: 0.05-87.6693528103424i | H52: 0.99986340606844-0.011404858645813i | I52: 1.00986340606844-0.011404858645813i | J52: 1.00946017799275-0.0230296060651i | K52: 0.999999966711172-0.000286595341875724i | M52: 23.7635107183952+0.524413394958593i | N52: 0 | O52: 23.7631505257059+0.250653226616627i | P52: 24.000394793425-0.0178898515517405i | Q52: 23.7627632881679-0.0203963838179066i | V52: 6000 | W52: 1+12.8008245073712i | X52: 12.83982508 | Y52: 1.492834695 | Z52: 1+0.0255505479189045i | AA52: 1.000326362 | AB52: 0.02554499004 | AC52: 1+0.000115641838090984i | AD52: 1.000000007 | AE52: 0.0001156418376 | AF52: 48.2439086434944-464.952373650991i | AG52: 467.4485902 | AH52: -1.467405346 | AI52: 4000 | AJ52: 1+10.0380665738892i | AK52: 10.08775399 | AL52: 1.471503156 | AM52: 1+0.000351320033884937i | AN52: 1.000000062 | AO52: 0.0003513200194 | AP52: 1+2.54171969092449E-06i | AQ52: 1 | AR52: 2.541719691e-06 | AS52: 39.4447186085436-394.55359812412i | AT52: 396.5204 | AU52: -1.471154378 | BB52: 11.96531071 | BC52: -84.29093685 | BN52: 0 | BO52: 0
D53: 39.811 | E53: 0.000825461637871617i | F53: 0.05-79.9552601501573i | G53: 0.05-79.9552601501573i | H53: 0.999835782163414-0.012504837948046i | I53: 1.00983578216341-0.012504837948046i | J53: 1.00935106101064-0.0252487005693783i | K53: 0.999999959977886-0.000314246093296641i | M53: 23.7637401956363+0.575010546006805i | N53: 0 | O53: 23.7633071442956+0.274837012064114i | P53: 24.0004746491471-0.019616055903844i | Q53: 23.7628415777042-0.0223644260244845i | V53: 6000 | W53: 1+14.0358495225007i | X53: 14.0714275 | Y53: 1.499670377 | Z53: 1+0.0280156677095822i | AA53: 1.000392362 | AB53: 0.02800834154 | AC53: 1+0.000126798975879701i | AD53: 1.000000008 | AE53: 0.0001267989752 | AF53: 42.1639955615575-424.474287257575i | AG53: 426.5632697 | AH53: -1.471788834 | AI53: 4000 | AJ53: 1+11.0065403870526i | AK53: 11.05187456 | AL53: 1.480190018 | AM53: 1+0.000385215431006756i | AN53: 1.000000074 | AO53: 0.000385215412 | AP53: 1+2.78694509792319E-06i | AQ53: 1 | AR53: 2.786945098e-06 | AS53: 32.8860944631587-360.43241293756i | AT53: 361.9295781 | AU53: -1.479807589 | BB53: 11.17248153 | BC53: -84.78672936 | BN53: 0 | BO53: 0
D54: 43.652 | E54: 0.000905102896595711i | F54: 0.05-72.9198859579836i | G54: 0.05-72.9198859579836i | H54: 0.999802572657579-0.013710837423231i | I54: 1.00980257265758-0.013710837423231i | J54: 1.0092199040912-0.027681020984801i | K54: 0.999999951882601-0.000344564830438446i | M54: 23.7640160944696+0.630490288402803i | N54: 0 | O54: 23.7634954454169+0.301354493539345i | P54: 24.0005706585863-0.0215088798018513i | Q54: 23.7629357041321-0.0245224247372451i | V54: 6000 | W54: 1+15.3900405253874i | X54: 15.42249485 | Y54: 1.505910454 | Z54: 1+0.0307186437632483i | AA54: 1.000471706 | AB54: 0.03070898683 | AC54: 1+0.000139032651656595i | AD54: 1.00000001 | AE54: 0.0001390326508 | AF54: 37.0974563856407-387.453694040891i | AG54: 389.2256239 | AH54: -1.4753405 | AI54: 4000 | AJ54: 1+12.0684610026279i | AK54: 12.10982044 | AL54: 1.48812458 | AM54: 1+0.000422381351744665i | AN54: 1.000000089 | AO54: 0.0004223813266 | AP54: 1+3.05583199152352E-06i | AQ54: 1 | AR54: 3.055831992e-06 | AS54: 27.4142796818242-329.170863176232i | AT54: 330.3104599 | AU54: -1.487705254 | BB54: 10.37844653 | BC54: -85.23923223 | BN54: 0 | BO54: 0
D55: 47.863 | E55: 0.000992415924579871i | F55: 0.05-66.5043741896227i | G55: 0.05-66.5043741896227i | H55: 0.999762654702348-0.0150328576070334i | I55: 1.00976265470235-0.0150328576070334i | J55: 1.00906228720236-0.0303464698883243i | K55: 0.99999994215129-0.000377804143665247i | M55: 23.7643477561467+0.691315050908472i | N55: 0 | O55: 23.7637218043077+0.330426687294361i | P55: 24.0006860720654-0.0235841171504555i | Q55: 23.7630488540223-0.0268883840233997i | V55: 6000 | W55: 1+16.8746795030381i | X55: 16.90428373 | Y55: 1.511605166 | Z55: 1+0.0336819950160441i | AA55: 1.000567078 | AB55: 0.03366926653 | AC55: 1+0.000152444786177944i | AD55: 1.000000012 | AE55: 0.000152444785 | AF55: 32.8772528045755-353.615807313619i | AG55: 355.1408917 | AH55: -1.478088345 | AI55: 4000 | AJ55: 1+13.2326754551631i | AK55: 13.27040692 | AL55: 1.495369187 | AM55: 1+0.000463127431470607i | AN55: 1.000000107 | AO55: 0.0004631273984 | AP55: 1+3.35062051246886E-06i | AQ55: 1 | AR55: 3.350620512e-06 | AS55: 22.8520827345711-300.555087057303i | AT55: 301.4225905 | AU55: -1.49490941 | BB55: 9.583515958 | BC55: -85.65199996 | BN55: 0 | BO55: 0
D56: 52.481 | E56: 0.0010881678987501i | F56: 0.05-60.6524049053544i | G56: 0.05-60.6524049053544i | H56: 0.999714659701918-0.0164824526619679i | I56: 1.00971465970192-0.0164824526619679i | J56: 1.0088728274022-0.0332679907703675i | K56: 0.999999930449853-0.000414256090585543i | M56: 23.7647465702986+0.758019558510927i | N56: 0 | O56: 23.7639939941352+0.362309161516871i | P56: 24.0008248525502-0.0258600343397306i | Q56: 23.7631849126088-0.0294831259549002i | V56: 6000 | W56: 1+18.502811252929i | X56: 18.52981447 | Y56: 1.516803015 | Z56: 1+0.0369317589878823i | AA56: 1.000681745 | AB56: 0.03691498163 | AC56: 1+0.000167153225318193i | AD56: 1.000000014 | AE56: 0.0001671532238 | AF56: 29.3619046605253-322.690151548072i | AG56: 324.0232327 | AH56: -1.480055187 | AI56: 4000 | AJ56: 1+14.5094131283541i | AK56: 14.54383269 | AL56: 1.501984368 | AM56: 1+0.000507811686083382i | AN56: 1.000000129 | AO56: 0.0005078116424 | AP56: 1+3.67390082349368E-06i | AQ56: 1 | AR56: 3.673900823e-06 | AS56: 19.0487921425541-274.37024365145i | AT56: 275.0307021 | AU56: -1.50148023 | BB56: 8.787623549 | BC56: -86.02848021 | BN56: 0 | BO56: 0
D57: 57.544 | E57: 0.00119314673054393i | F57: 0.05-55.3159123772749i | G57: 0.05-55.3159123772749i | H57: 0.999656969539909-0.0180714694028545i | I57: 1.00965696953991-0.0180714694028545i | J57: 1.00864516750162-0.0364689962802472i | K57: 0.999999916383123-0.000454220622256711i | M57: 23.7652260094447+0.831153079630969i | N57: 0 | O57: 23.764321209506+0.397264431390163i | P57: 24.0009916875796-0.0283554017138052i | Q57: 23.7633484754845-0.032328046027707i | V57: 6000 | W57: 1+20.2878331346306i | X57: 20.3124635 | Y57: 1.521545561 | Z57: 1+0.0404946769154303i | AA57: 1.000819574 | AB57: 0.04047256402 | AC57: 1+0.000183278999975422i | AD57: 1.000000017 | AE57: 0.0001832789979 | AF57: 26.4351207219363-294.442938732378i | AG57: 295.6272311 | AH57: -1.481256276 | AI57: 4000 | AJ57: 1+15.9091798757266i | AK57: 15.94057729 | AL57: 1.508022122 | AM57: 1+0.000556801807587167i | AN57: 1.000000155 | AO57: 0.00055680175 | AP57: 1+4.02833309173072E-06i | AQ57: 1 | AR57: 4.028333092e-06 | AS57: 15.8801451026656-250.428990993i | AT57: 250.9319799 | AU57: -1.507469348 | BB57: 7.991120266 | BC57: -86.3716314 | BN57: 0 | BO57: 0
D58: 63.096 | E58: 0.00130826473846795i | F58: 0.05-50.4485048471837i | G58: 0.05-50.4485048471837i | H58: 0.99958761334086-0.0198136098787416i | I58: 1.00958761334086-0.0198136098787416i | J58: 1.00837157369808-0.0399764783959042i | K58: 0.999999899469579-0.000498045050429401i | M58: 23.7658024914418+0.911351680719489i | N58: 0 | O58: 23.7647146550245+0.435596492926503i | P58: 24.0011922892682-0.0310919613809468i | Q58: 23.763545142718-0.0354479263102116i | V58: 6000 | W58: 1+22.2452578802768i | X58: 22.26772324 | Y58: 1.52587317 | Z58: 1+0.0444017123358819i | AA58: 1.000985271 | AB58: 0.0443725673 | AC58: 1+0.000200962251189511i | AD58: 1.00000002 | AE58: 0.0002009622485 | AF58: 23.9983051514491-268.643996985909i | AG58: 269.7137664 | AH58: -1.481701565 | AI58: 4000 | AJ58: 1+17.444140369784i | AK58: 17.47277978 | AL58: 1.513533159 | AM58: 1+0.000610523544618377i | AN58: 1.000000186 | AO58: 0.0006105234688 | AP58: 1+0.0000044169975107021i | AQ58: 1 | AR58: 4.416997511e-06 | AS58: 13.2404784876805-228.544339113821i | AT58: 228.9275545 | AU58: -1.512927053 | BB58: 7.19396138 | BC58: -86.68433482 | BN58: 0 | BO58: 0
D59: 69.183 | E59: 0.0014344757100518i | F59: 0.05-46.0098414616004i | G59: 0.05-46.0098414616004i | H59: 0.999504251166951-0.0217231668698415i | I59: 1.00950425116695-0.0217231668698415i | J59: 1.00804287867061-0.0438184098836717i | K59: 0.999999879137206-0.000546092473752017i | M59: 23.7664955215858+0.999280489985661i | N59: 0 | O59: 23.7651876421873+0.477623225209995i | P59: 24.0014334435904-0.0340924605387704i | Q59: 23.7637815671685-0.0388686927908707i | V59: 6000 | W59: 1+24.3913033461898i | X59: 24.41179385 | Y59: 1.529821055 | Z59: 1+0.0486852362199398i | AA59: 1.001184425 | AB59: 0.0486468254 | AC59: 1+0.000220349490047609i | AD59: 1.000000024 | AE59: 0.0002203494865 | AF59: 21.9701466401543-245.091204999878i | AG59: 246.0739444 | AH59: -1.481394579 | AI59: 4000 | AJ59: 1+19.1270122226887i | AK59: 19.15313542 | AL59: 1.518561804 | AM59: 1+0.000669421998024172i | AN59: 1.000000224 | AO59: 0.000669421898 | AP59: 1+4.84311428272637E-06i | AQ59: 1 | AR59: 4.843114283e-06 | AS59: 11.0424625834416-208.551001267168i | AT59: 208.8431376 | AU59: -1.517897225 | BB59: 6.396404185 | BC59: -86.96910475 | BN59: 0 | BO59: 0
D60: 75.858 | E60: 0.0015728785744057i | F60: 0.05-41.9612811020314i | G60: 0.05-41.9612811020314i | H60: 0.999404036076012-0.0238165807056693i | I60: 1.00940403607601-0.0238165807056693i | J60: 1.00764794820585-0.0480268107171292i | K60: 0.999999854689625-0.000598781245015112i | M60: 23.7673288487773+1.09570597897882i | N60: 0 | O60: 23.76575637833+0.523710935963465i | P60: 24.0017234124582-0.0373831223170954i | Q60: 23.7640658486749-0.0426202316767295i | V60: 6000 | W60: 1+26.7446553233492i | X60: 26.76334412 | Y60: 1.533423089 | Z60: 1+0.0533825455555872i | AA60: 1.001423834 | AB60: 0.05333192407 | AC60: 1+0.0002416095228023i | AD60: 1.000000029 | AE60: 0.0002416095181 | AF60: 20.281959344855-223.588414376282i | AG60: 224.5064296 | AH60: -1.480332774 | AI60: 4000 | AJ60: 1+20.9724483354107i | AK60: 20.9962756 | AL60: 1.523150808 | AM60: 1+0.000734010001389325i | AN60: 1.000000269 | AO60: 0.0007340098696 | AP60: 1+5.31039364090972E-06i | AQ60: 1 | AR60: 5.310393641e-06 | AS60: 9.21217995371012-190.28716970478i | AT60: 190.5100292 | AU60: -1.522422108 | BB60: 5.59835687 | BC60: -87.22836144 | BN60: 0 | BO60: 0
D61: 83.176 | E61: 0.0017246137296629i | F61: 0.05-38.269439042968i | G61: 0.05-38.269439042968i | H61: 0.999283595514414-0.0261108550394012i | I61: 1.00928359551441-0.0261108550394012i | J61: 1.00717362323111-0.0526344731386875i | K61: 0.999999825301205-0.000656545503906997i | M61: 23.7683306339816+1.20142380921502i | N61: 0 | O61: 23.7664400814147+0.574239871728523i | P61: 24.0020719919965-0.0409911893425339i | Q61: 23.7644075911825-0.0467335880598162i | V61: 6000 | W61: 1+29.3247047269226i | X61: 29.34175024 | Y61: 1.536708596 | Z61: 1+0.0585323447643165i | AA61: 1.001711553 | AB61: 0.05846563721 | AC61: 1+0.000264917525753435i | AD61: 1.000000035 | AE61: 0.0002649175196 | AF61: 18.8772439935279-203.9650672726i | AG61: 204.8367619 | AH61: -1.478507876 | AI61: 4000 | AJ61: 1+22.9956545485792i | AK61: 23.01738752 | AL61: 1.527337231 | AM61: 1+0.000804819740509353i | AN61: 1.000000324 | AO61: 0.0008048195667 | AP61: 1+5.82268582715477E-06i | AQ61: 1 | AR61: 5.822685827e-06 | AS61: 7.68873702258116-173.611552267527i | AT61: 173.7817245 | AU61: -1.526538234 | BB61: 4.80008205 | BC61: -87.46419807 | BN61: 0 | BO61: 0
D62: 91.201 | E62: 0.00189100818456028i | F62: 0.05-34.9020171032982i | G62: 0.05-34.9020171032982i | H62: 0.999138817174555-0.0286257311454606i | I62: 1.00913881717456-0.0286257311454606i | J62: 1.00660389829185-0.057679215608022i | K62: 0.999999789964334-0.000719890431155886i | M62: 23.7695352509731+1.31736005114904i | N62: 0 | O62: 23.7672622087473+0.629652592422848i | P62: 24.0024911386387-0.0449483857027868i | Q62: 23.7648185165511-0.0512449116270173i | V62: 6000 | W62: 1+32.1540155309232i | X62: 32.16956193 | Y62: 1.539706033 | Z62: 1+0.0641796717184096i | AA62: 1.002057399 | AB62: 0.06409176952 | AC62: 1+0.00029047734041357i | AD62: 1.000000042 | AE62: 0.0002904773322 | AF62: 17.7082005089709-186.054620266878i | AG62: 186.8954309 | AH62: -1.475904741 | AI62: 4000 | AJ62: 1+25.2143249312899i | AK62: 25.23414714 | AL62: 1.531157106 | AM62: 1+0.000882470486128133i | AN62: 1.000000389 | AO62: 0.0008824702571 | AP62: 1+6.38447112294825E-06i | AQ62: 1 | AR62: 6.384471123e-06 | AS62: 6.42054413626476-158.385342027589i | AT62: 158.515425 | AU62: -1.53028102 | BB62: 4.001430588 | BC62: -87.67864394 | BN62: 0 | BO62: 0
D63: 100 | E63: 0.00207345115136926i | F63: 0.05-31.8309886183791i | G63: 0.05-31.8309886183791i | H63: 0.998964817944211-0.0313817792723113i | I63: 1.00896481794421-0.0313817792723113i | J63: 1.00591983138124-0.0631998970546697i | K63: 0.999999747481124-0.000789344887836631i | M63: 23.7709835735181+1.444484635997i | N63: 0 | O63: 23.7682506525854+0.690412599150937i | P63: 24.0029950683317-0.0492879732596866i | Q63: 23.7653125618059-0.0561920992511939i | V63: 6000 | W63: 1+35.2562093956461i | X63: 35.27038844 | Y63: 1.542440131 | Z63: 1+0.0703716754404114i | AA63: 1.002473028 | AB63: 0.07025585515 | AC63: 1+0.000318502363366158i | AD63: 1.000000051 | AE63: 0.0003185023526 | AF63: 16.7355171750545-169.711902044619i | AG63: 170.5350616 | AH63: -1.472502779 | AI63: 4000 | AJ63: 1+27.6469829621275i | AK63: 27.66506221 | AL63: 1.534641776 | AM63: 1+0.000967610537305657i | AN63: 1.000000468 | AO63: 0.0009676102353 | AP63: 1+7.00043982297151E-06i | AQ63: 1 | AR63: 7.000439823e-06 | AS63: 5.36512903533472-144.487190639772i | AT63: 144.5867659 | AU63: -1.533681166 | BB63: 3.202570871 | BC63: -87.87345795 | BN63: 0 | BO63: 0
D64: 109.65 | E64: 0.0022735391874764i | F64: 0.05-29.0296293829266i | G64: 0.05-29.0296293829266i | H64: 0.998755661565239-0.0344025557980726i | I64: 1.00875566156524-0.0344025557980726i | J64: 1.0050984792865-0.0692405434725357i | K64: 0.999999696393462-0.000865516669512866i | M64: 23.7727253665388+1.58391265562223i | N64: 0 | O64: 23.7694393714943+0.757052743939821i | P64: 24.0036010874921-0.0540482227139435i | Q64: 23.7659066937772-0.0616187501533408i | V64: 6000 | W64: 1+38.658433602326i | X64: 38.67136523 | Y64: 1.544934517 | Z64: 1+0.0771625421204111i | AA64: 1.002972611 | AB64: 0.07700994348 | AC64: 1+0.000349237841430992i | AD64: 1.000000061 | AE64: 0.0003492378272 | AF64: 15.9260830624905-154.79765515469i | AG64: 155.614762 | AH64: -1.468273812 | AI64: 4000 | AJ64: 1+30.3149168179728i | AK64: 30.33140586 | AL64: 1.537821223 | AM64: 1+0.00106098495415565i | AN64: 1.000000563 | AO64: 0.001060984556 | AP64: 1+7.67598226588826E-06i | AQ64: 1 | AR64: 7.675982266e-06 | AS64: 4.48668481822208-131.800241165553i | AT64: 131.8765859 | AU64: -1.536767915 | BB64: 2.403353908 | BC64: -88.0503156 | BN64: 0 | BO64: 0
D65: 120.23 | E65: 0.00249291031929127i | F65: 0.05-26.4750799454205i | G65: 0.05-26.4750799454205i | H65: 0.998504342445382-0.0377120507898731i | I65: 1.00850434244538-0.0377120507898731i | J65: 1.00411289976819-0.075844981073395i | K65: 0.999999634977579-0.000949029358645982i | M65: 23.7748194807361+1.73678900163478i | N65: 0 | O65: 23.7708685223638+0.830120082757416i | P65: 24.0043296592246-0.0592684928228122i | Q65: 23.766620974001-0.0675696936503829i | V65: 6000 | W65: 1+42.3885405563853i | X65: 42.40033456 | Y65: 1.54720942 | Z65: 1+0.0846078653820066i | AA65: 1.003572863 | AB65: 0.08440683989 | AC65: 1+0.000382935391475132i | AD65: 1.000000073 | AE65: 0.0003829353728 | AF65: 15.2527527653239-141.192423350465i | AG65: 142.0138968 | AH65: -1.463185516 | AI65: 4000 | AJ65: 1+33.2399676153659i | AK65: 33.25500635 | AL65: 1.540721133 | AM65: 1+0.00116335814900259i | AN65: 1.000000677 | AO65: 0.001163357624 | AP65: 1+8.41662879915864E-06i | AQ65: 1 | AR65: 8.416628799e-06 | AS65: 3.75583507897716-120.22407031337i | AT65: 120.2827227 | AU65: -1.539566192 | BB65: 1.604065003 | BC65: -88.21064507 | BN65: 0 | BO65: 0
D66: 131.83 | E66: 0.0027334306528501i | F66: 0.05-24.1454817707495i | G66: 0.05-24.1454817707495i | H66: 0.998202383505749-0.0413374440882009i | I66: 1.00820238350575-0.0413374440882009i | J66: 1.00293066664967-0.0830620176882534i | K66: 0.999999561143686-0.00104059336563503i | M66: 23.7773372879832+1.90441869146182i | N66: 0 | O66: 23.7725868037888+0.910238152836261i | P66: 24.0052055964271-0.0649937025861258i | Q66: 23.7674797283891-0.0740960841144939i | V66: 6000 | W66: 1+46.4782608462803i | X66: 46.48901732 | Y66: 1.549284211 | Z66: 1+0.0927709797330943i | AA66: 1.004294008 | AB66: 0.09250620259 | AC66: 1+0.000419881665625606i | AD66: 1.000000088 | AE66: 0.000419881641 | AF66: 14.6926321177597-128.781497372175i | AG66: 129.616926 | AH66: -1.45719789 | AI66: 4000 | AJ66: 1+36.4470176389727i | AK66: 36.4607336 | AL66: 1.543366121 | AM66: 1+0.00127560097133005i | AN66: 1.000000814 | AO66: 0.001275600279 | AP66: 1+9.22867981862333E-06i | AQ66: 1 | AR66: 9.228679818e-06 | AS66: 3.14778767729704-109.661983832572i | AT66: 109.7071523 | AU66: -1.54209975 | BB66: 0.8046988418 | BC66: -88.35580725 | BN66: 0 | BO66: 0
D67: 144.54 | E67: 0.00299696629418913i | F67: 0.05-22.0222696958482i | G67: 0.05-22.0222696958482i | H67: 0.997839874472272-0.0453055875700218i | I67: 1.00783987447227-0.0453055875700218i | J67: 1.00151415203665-0.0909380144203172i | K67: 0.999999472442322-0.00114091910087907i | M67: 23.7803624842412+2.08810828826601i | N67: 0 | O67: 23.774651319915+0.998031163451399i | P67: 24.0062579901586-0.0712689448288671i | Q67: 23.7685114769595-0.0812492564633739i | V67: 6000 | W67: 1+50.9593250604668i | X67: 50.96913586 | Y67: 1.551175351 | Z67: 1+0.101715219681571i | AA67: 1.005159682 | AB67: 0.1013665998 | AC67: 1+0.000460363316009445i | AD67: 1.000000106 | AE67: 0.0004603632835 | AF67: 14.2269599757811-117.467268590993i | AG67: 118.3256759 | AH67: -1.450269115 | AI67: 4000 | AJ67: 1+39.9609491734591i | AK67: 39.97345943 | AL67: 1.545777118 | AM67: 1+0.0013985842706216i | AN67: 1.000000978 | AO67: 0.001398583359 | AP67: 1+0.000010118435720123i | AQ67: 1 | AR67: 1.011843572e-05 | AS67: 2.64221619964462-100.031603920252i | AT67: 100.0664933 | AU67: -1.544388653 | BB67: 0.00577361878 | BC67: -88.48695174 | BN67: 144.54 | BO67: -88.48695174
D68: 158.49 | E68: 0.00328621272980515i | F68: 0.05-20.0839097850837i | G68: 0.05-20.0839097850837i | H68: 0.997403984078105-0.0496553805485966i | I68: 1.00740398407811-0.0496553805485966i | J68: 0.999814908199323-0.0995408530412565i | K68: 0.999999365695813-0.00125103271273228i | M68: 23.7840036876352+2.28974453305828i | N68: 0 | O68: 23.7771361754057+1.09440052539643i | P68: 24.0075245876325-0.078159295684047i | Q68: 23.7697532258783-0.0891033009380189i | V68: 6000 | W68: 1+55.8775662711595i | X68: 55.88651369 | Y68: 1.552901967 | Z68: 1+0.111532068405508i | AA68: 1.006200478 | AB68: 0.1110730256 | AC68: 1+0.000504794395699024i | AD68: 1.000000127 | AE68: 0.0005047943528 | AF68: 13.8391754148648-107.135967073488i | AG68: 108.0260997 | AH68: -1.442333736 | AI68: 4000 | AJ68: 1+43.8177032966759i | AK68: 43.82911272 | AL68: 1.547978462 | AM68: 1+0.00153356594057574i | AN68: 1.000001176 | AO68: 0.001533564738 | AP68: 1+0.0000110949970754275i | AQ68: 1 | AR68: 1.109499707e-05 | AS68: 2.22116840549382-91.2366143906276i | AT68: 91.26364772 | AU68: -1.546455992 | BB68: -0.794043538 | BC68: -88.60540154 | BN68: 0 | BO68: 0
D69: 173.78 | E69: 0.00360324341084951i | F69: 0.05-18.3168308311538i | G69: 0.05-18.3168308311538i | H69: 0.996880651884617-0.0544157826027189i | I69: 1.00688065188462-0.0544157826027189i | J69: 0.997780550053357-0.108915614281967i | K69: 0.999999237405914-0.0013717235460825i | M69: 23.7883805762945+2.51078331556977i | N69: 0 | O69: 23.7801230118588+1.20004160994778i | P69: 24.0090469634379-0.0857153255663239i | Q69: 23.7712457333192-0.0977157416658022i | V69: 6000 | W69: 1+61.2682406877539i | X69: 61.27640098 | Y69: 1.554476106 | Z69: 1+0.122291897580347i | AA69: 1.007449904 | AB69: 0.1216876725 | AC69: 1+0.00055349340705771i | AD69: 1.000000153 | AE69: 0.0005534933505 | AF69: 13.5167289685199-97.7160024855882i | AG69: 98.64643483 | AH69: -1.433341927 | AI69: 4000 | AJ69: 1+48.0449269915852i | AK69: 48.05533279 | AL69: 1.54998548 | AM69: 1+0.00168151359172977i | AN69: 1.000001414 | AO69: 0.001681512007 | AP69: 1+0.0000121653643243599i | AQ69: 1 | AR69: 1.216536432e-05 | AS69: 1.87103747994982-83.2164662140756i | AT69: 83.23749774 | AU69: -1.548316133 | BB69: -1.593619678 | BC69: -88.71197977 | BN69: 0 | BO69: 0
D70: 190.55 | E70: 0.00395096116893413i | F70: 0.05-16.7047959162315i | G70: 0.05-16.7047959162315i | H70: 0.996252044062927-0.0596274657446269i | I70: 1.00625204406293-0.0596274657446269i | J70: 0.995345225759905-0.119126523341521i | K70: 0.999999083121575-0.0015040966837727i | M70: 23.7936455135467+2.75326231264713i | N70: 0 | O70: 23.7837157603497+1.3159276893911i | P70: 24.0108780324851-0.094007769491402i | Q70: 23.7730408748815-0.107167046385323i | V70: 6000 | W70: 1+67.1807070034036i | X70: 67.1881492 | Y70: 1.5559122 | Z70: 1+0.134093227551704i | AA70: 1.008950442 | AB70: 0.1332980788 | AC70: 1+0.000606906253394214i | AD70: 1.000000184 | AE70: 0.0006069061789 | AF70: 13.2484318405408-89.1213849502344i | AG70: 90.10073364 | AH70: -1.423221028 | AI70: 4000 | AJ70: 1+52.6813260343339i | AK70: 52.69081621 | AL70: 1.551816548 | AM70: 1+0.00184378187883593i | AN70: 1.0000017 | AO70: 0.00184377979 | AP70: 1+0.0000133393380826722i | AQ70: 1 | AR70: 1.333933808e-05 | AS70: 1.57968725551928-75.8982491785832i | AT70: 75.91468659 | AU70: -1.549986107 | BB70: -2.393483932 | BC70: -88.80766226 | BN70: 0 | BO70: 0
D71: 208.93 | E71: 0.0043320614905558i | F71: 0.05-15.2352408071503i | G71: 0.05-15.2352408071503i | H71: 0.995497717904837-0.0653270018110231i | I71: 1.00549771790484-0.0653270018110231i | J71: 0.992434701626128-0.13022459725147i | K71: 0.999998897711045-0.00164917827415707i | M71: 23.7999743511806+3.01907935827458i | N71: 0 | O71: 23.7880343580593+1.44296499672807i | P71: 24.0130788374249-0.103102952362966i | Q71: 23.7751984938442-0.11753260233025i | V71: 6000 | W71: 1+73.6607982903233i | X71: 73.66758585 | Y71: 1.557221419 | Z71: 1+0.147027541497651i | AA71: 1.01075076 | AB71: 0.1459816377 | AC71: 1+0.000665446987780913i | AD71: 1.000000221 | AE71: 0.0006654468896 | AF71: 13.0253507641429-81.2855571109548i | AG71: 82.32254586 | AH71: -1.411905228 | AI71: 4000 | AJ71: 1+57.7628415027729i | AK71: 57.77149694 | AL71: 1.553485888 | AM71: 1+0.00202162869559271i | AN71: 1.000002043 | AO71: 0.002021625941 | AP71: 1+0.0000146260189221344i | AQ71: 1 | AR71: 1.462601892e-05 | AS71: 1.33742606592725-69.225519162868i | AT71: 69.23843739 | AU71: -1.551478888 | BB71: -3.193054842 | BC71: -88.89319231 | BN71: 0 | BO71: 0
D72: 229.09 | E72: 0.00475006924267185i | F72: 0.05-13.8945342958571i | G72: 0.05-13.8945342958571i | H72: 0.994592105245257-0.0715620753697372i | I72: 1.00459210524526-0.0715620753697372i | J72: 0.98895741275172-0.142275889578617i | K72: 0.999998674724676-0.00180831020354494i | M72: 23.8075883006855+3.31071699251644i | N72: 0 | O72: 23.7932296621315+1.58233893452064i | P72: 24.0157261349574-0.113087692929283i | Q72: 23.777793838336-0.128911082274492i | V72: 6000 | W72: 1+80.7684501044856i | X72: 80.7746404 | Y72: 1.558415887 | Z72: 1+0.161214471266438i | AA72: 1.012911697 | AB72: 0.1598391942 | AC72: 1+0.000729657064235531i | AD72: 1.000000266 | AE72: 0.0007296569347 | AF72: 12.8397230951951-74.1361616083374i | AG72: 75.23980959 | AH72: -1.39930635 | AI72: 4000 | AJ72: 1+63.3364732679378i | AK72: 63.34436712 | AL72: 1.555008948 | AM72: 1+0.00221669897991353i | AN72: 1.000002457 | AO72: 0.002216695349 | AP72: 1+0.0000160373075904454i | AQ72: 1 | AR72: 1.603730759e-05 | AS72: 1.1358302031586-63.1368326122432i | AT72: 63.14704857 | AU72: -1.55280829 | BB72: -3.992938863 | BC72: -88.96936139 | BN72: 0 | BO72: 0
D73: 251.19 | E73: 0.00520830194712445i | F73: 0.05-12.6720763638597i | G73: 0.05-12.6720763638597i | H73: 0.993505851697146-0.0783755649638065i | I73: 1.00350585169715-0.0783755649638065i | J73: 0.984810738747408-0.155328590612903i | K73: 0.999998406696394-0.00198275542375683i | M73: 23.8167438241672+3.63052139592878i | N73: 0 | O73: 23.7994765360159+1.73516937960521i | P73: 24.0189088516555-0.124044793233561i | Q73: 23.7809140862952-0.141396487029623i | V73: 6000 | W73: 1+88.5600723809234i | X73: 88.56571809 | Y73: 1.559505036 | Z73: 1+0.176766611538769i | AA73: 1.015503045 | AB73: 0.1749592675 | AC73: 1+0.000800046086539452i | AD73: 1.00000032 | AE73: 0.0008000459158 | AF73: 12.6853513869068-67.6169200775706i | AG73: 68.7965553 | AH73: -1.385345815 | AI73: 4000 | AJ73: 1+69.446456502568i | AK73: 69.45365592 | AL73: 1.556397739 | AM73: 1+0.00243054090865808i | AN73: 1.000002954 | AO73: 0.002430536123 | AP73: 1+0.0000175844047913221i | AQ73: 1 | AR73: 1.758440479e-05 | AS73: 0.96817349242892-57.5843923164216i | AT73: 57.59253075 | AU73: -1.553984787 | BB73: -4.792676743 | BC73: -89.03676975 | BN73: 0 | BO73: 0
D74: 275.42 | E74: 0.00571069916110123i | F74: 0.05-11.5572538734947i | G74: 0.05-11.5572538734947i | H74: 0.992203314804166-0.085817400171419i | I74: 1.00220331480417-0.085817400171419i | J74: 0.979872923931001-0.169433717881043i | K74: 0.999998084488361-0.00217401369007965i | M74: 23.8277552701587+3.98128362043107i | N74: 0 | O74: 23.8069892725778+1.9027883415272i | P74: 24.0227359130313-0.136073142032218i | Q74: 23.7846660203054-0.155101025447495i | V74: 6000 | W74: 1+97.1026519174884i | X74: 97.10780097 | Y74: 1.560498311 | Z74: 1+0.193817668497981i | AA74: 1.018609488 | AB74: 0.1914440047 | AC74: 1+0.000877219209183072i | AD74: 1.000000385 | AE74: 0.0008772189842 | AF74: 12.5569508362961-61.6714212901302i | AG74: 62.93680337 | AH74: -1.369931525 | AI74: 4000 | AJ74: 1+76.1453204742915i | AK74: 76.15188658 | AL74: 1.557664298 | AM74: 1+0.00266499294184724i | AN74: 1.000003551 | AO74: 0.002664986633 | AP74: 1+0.0000192806113604281i | AQ74: 1 | AR74: 1.928061136e-05 | AS74: 0.828719372053212-52.5202528502324i | AT74: 52.52679064 | AU74: -1.555018592 | BB74: -5.592382671 | BC74: -89.0960024 | BN74: 0 | BO74: 0
D75: 302 | E75: 0.00626182247713518i | F75: 0.05-10.5400624564169i | G75: 0.05-10.5400624564169i | H75: 0.990641328924493-0.0939437882332367i | I75: 1.00064132892449-0.0939437882332367i | J75: 0.974000604605736-0.184640348458373i | K75: 0.999997696926845-0.00238382156126663i | M75: 23.8410077056749+4.36624350368559i | N75: 0 | O75: 23.8160303157344+2.08674166282244i | P75: 24.0273406417121-0.149288157928936i | Q75: 23.7891803385548-0.170155574557155i | V75: 6000 | W75: 1+106.473752374851i | X75: 106.4784483 | Y75: 1.561404617 | Z75: 1+0.212522459830042i | AA75: 1.022333505 | AB75: 0.2094068823 | AC75: 1+0.000961877137365795i | AD75: 1.000000463 | AE75: 0.0009618768407 | AF75: 12.4500991541618-56.2464526502093i | AG75: 57.60788492 | AH75: -1.352959611 | AI75: 4000 | AJ75: 1+83.4938885456248i | AK75: 83.49987679 | AL75: 1.558819975 | AM75: 1+0.00292218382266308i | AN75: 1.00000427 | AO75: 0.002922175505 | AP75: 1+0.0000211413282653739i | AQ75: 1 | AR75: 2.114132826e-05 | AS75: 0.712666955884952-47.8991654124036i | AT75: 47.90446682 | AU75: -1.555918941 | BB75: -6.392479784 | BC75: -89.14758857 | BN75: 0 | BO75: 0
D76: 331.13 | E76: 0.00686581879752904i | F76: 0.05-9.61283744099871i | G76: 0.05-9.61283744099871i | H76: 0.988771151581297-0.102801042379605i | I76: 0.998771151581297-0.102801042379605i | J76: 0.967039034892412-0.20096196427747i | K76: 0.999997231204341-0.00261375772709344i | M76: 23.8569437063015+4.7883701166626i | N76: 0 | O76: 23.8269012020803+2.28844497969399i | P76: 24.0328760815565-0.163797452550314i | Q76: 23.7946070695357-0.186681902347255i | V76: 6000 | W76: 1+116.743886171803i | X76: 116.748169 | Y76: 1.562230777 | Z76: 1+0.233021728885835i | AA76: 1.026790692 | AB76: 0.2289363976 | AC76: 1+0.00105465687581436i | AD76: 1.000000556 | AE76: 0.001054656485 | AF76: 12.3612651199776-51.3012441477092i | AG76: 52.7694848 | AH76: -1.334349036 | AI76: 4000 | AJ76: 1+91.5474546824929i | AK76: 91.55291617 | AL76: 1.559873465 | AM76: 1+0.00320404877218023i | AN76: 1.000005133 | AO76: 0.003204037808 | AP76: 1+0.0000231805563858056i | AQ76: 1 | AR76: 2.318055638e-05 | AS76: 0.616182415008408-43.6864588577904i | AT76: 43.69080416 | AU76: -1.556692607 | BB76: -7.192199234 | BC76: -89.1919164 | BN76: 0 | BO76: 0
D77: 363.08 | E77: =COMPLEX(0,2*PI()*D77*Lf) -> 0.00752828644039152i | F77: 0.05-8.76693528103424i | G77: 0.05-8.76693528103424i | H77: 0.986531840422319-0.112451888925903i | I77: 0.996531840422319-0.112451888925903i | J77: 0.958801284735108-0.218421370350512i | K77: =IMSUM(COMPLEX(1,0),COMPLEX(0,2*PI()*D77/(Fsw*PI()*(-2)/PI())),IMPRODUCT(COMPLEX(0,2*PI()*D77/(Fsw*PI())),COMPLEX(0,2*PI()*D77/(Fsw*PI())))) -> 0.999996671117234-0.00286595341875724i | M77: =IF(Vin>=Vout,IMDIV(COMPLEX(Vin,0),IMSUM(E77,J77)),IMDIV(IMSUM(COMPLEX(Vout,0),IMPRODUCT(J77,COMPLEX($B$4,0))),IMSUM(E77,IMPRODUCT(J77,COMPLEX((1-$B$11)^2,0))))) -> 23.8761244247712+5.2516716361648i | N77: =IF(Vin>=Vout,0,IMSUB(IMPRODUCT(M77,COMPLEX(1-$B$11,0)),COMPLEX($B$4/(1-$B$11),0))) -> 0 | O77: =IMDIV(IF(Vin>=Vout,M77,N77),IMPRODUCT(I77,IMSUM(IMDIV(COMPLEX(1,0),F77),IMDIV(COMPLEX(1,0),I77)))) -> 23.8399841537274+2.50980936568387i | P77: =IF(Vin>=Vout,IMDIV(IMPRODUCT(COMPLEX(Vin,0),J77),IMSUM(J77,E77)),IMPRODUCT(N77,J77)) -> 24.0395360883679-0.179746303756117i | Q77: =IF(Vin>=Vout,IMDIV(IMPRODUCT(P77,H77),IMSUM(COMPLEX($B$15,0),H77)),IMPRODUCT(O77,H77)) -> 23.8011362468306-0.204844397412952i | V77: =COMPLEX(AEA,0) -> 6000 | W77: =IMSUM(COMPLEX(1,0),IMDIV(COMPLEX(0,2*PI()*D77),COMPLEX(2*PI()*EA_Pole1,0))) -> 1+128.008245073712i | X77: =IMABS(W77) -> 128.012151 | Y77: =IMARGUMENT(W77) -> 1.562984489 | Z77: =IMSUM(COMPLEX(1,0),IMDIV(COMPLEX(0,2*PI()*D77),COMPLEX(2*PI()*EA_Zero1,0))) -> 1+0.255505479189045i | AA77: =IMABS(Z77) -> 1.032125501 | AB77: =IMARGUMENT(Z77) -> 0.2501535408 | AC77: =IMSUM(COMPLEX(1,0),IMDIV(COMPLEX(0,2*PI()*D77),COMPLEX(2*PI()*EA_Pole2,0))) -> 1+0.00115641838090984i | AD77: =IMABS(AC77) -> 1.000000669 | AE77: =IMARGUMENT(AC77) -> 0.001156417865 | AF77: 12.2873499416848-46.7897786413975i | AG77: 48.37625816 | AH77: -1.313987366 | AI77: =COMPLEX(AIL,0) -> 4000 | AJ77: 1+100.380665738892i | AK77: 100.3856467 | AL77: 1.560834579 | AM77: 1+0.00351320033884937i | AN77: 1.000006171 | AO77: 0.003513185885 | AP77: 1+0.0000254171969092449i | AQ77: 1 | AR77: 2.54171969e-05 | AS77: 0.53590109349176-39.8429759761557i | AT77: 39.84657984 | AU77: -1.55734681 | AY77: =IF(AX77>0,AX77-180,AX77+180) ->  | BB77: -7.992178992 | BC77: -89.22939944 | BL77: =SUM((AW78<0)*(AW77>0))*D77 ->  | BM77: =IF(BL77>0,AY75,0) ->  | BN77: =SUM((BB78<0)*(BB77>0))*D77 -> 0 | BO77: =IF(BN77>0,BC77,0) -> 0
D78: 398.11 | E78: 0.00825461637871617i | F78: =IMSUM(COMPLEX($B$8,0),IMDIV(COMPLEX(1,0),COMPLEX(0,2*PI()*D78*$B$6))) -> 0.05-7.99552601501573i | G78: =IMSUM(COMPLEX($B$9,0),IMDIV(COMPLEX(1,0),COMPLEX(0,2*PI()*D78*$B$7))) -> 0.05-7.99552601501573i | H78: =IMDIV(COMPLEX(1,0),IMSUM(IMDIV(COMPLEX(1,0),COMPLEX($B$5,0)), IMDIV(COMPLEX(1,0),G78))) -> 0.983853838489213-0.122949575621103i | I78: =IMSUM(H78,COMPLEX($B$15,0)) -> 0.993853838489213-0.122949575621103i | J78: =IMDIV(COMPLEX(1,0),IMSUM(IMDIV(COMPLEX(1,0),F78),IMDIV(COMPLEX(1,0),IMSUM(COMPLEX($B$15,0),H78)))) -> 0.949087103358115-0.236997947817844i | K78: 0.999995997788639-0.00314246093296641i | M78: 23.8992060247061+5.7600445580795i | N78: 0 | O78: 23.8557259021192+2.75269108229013i | P78: 24.0475469581513-0.197278777489841i | Q78: 23.8089896991301-0.224805688312748i | R78: =IMPRODUCT(M78,COMPLEX($B$29,0),K78,COMPLEX($B$34,0)) ->  | S78: =IMDIV(IMPRODUCT(COMPLEX($B$34,0),M78),IMSUM(COMPLEX(1,0),R78)) ->  | T78: =IMDIV(IMPRODUCT(COMPLEX($B$34,0),O78),IMSUM(COMPLEX(1,0),R78)) ->  | U78: =IMDIV(IMPRODUCT(COMPLEX($B$34,0),Q78),IMSUM(COMPLEX(1,0),R78)) ->  | V78: 6000 | W78: 1+140.358495225007i | X78: 140.3620575 | Y78: 1.563671834 | Z78: 1+0.280156677095822i | AA78: 1.038502655 | AB78: 0.2731539838 | AC78: 1+0.00126798975879701i | AD78: 1.000000804 | AE78: 0.001267989079 | AF78: =IMPRODUCT(V78,IMDIV(Z78,IMPRODUCT(W78,AC78))) -> 12.2258729174319-42.675691856522i | AG78: =IMABS(AF78) -> 44.39241651 | AH78: =IMARGUMENT(AF78) -> -1.291785839 | AI78: 4000 | AJ78: =IMSUM(COMPLEX(1,0),IMDIV(COMPLEX(0,2*PI()*D78),COMPLEX(2*PI()*IL_Pole1,0))) -> 1+110.065403870526i | AK78: =IMABS(AJ78) -> 110.0699465 | AL78: =IMARGUMENT(AJ78) -> 1.56171107 | AM78: =IMSUM(COMPLEX(1,0),IMDIV(COMPLEX(0,2*PI()*D78),COMPLEX(2*PI()*IL_Zero1,0))) -> 1+0.00385215431006756i | AN78: =IMABS(AM78) -> 1.00000742 | AO78: =IMARGUMENT(AM78) -> 0.003852135256 | AP78: =IMSUM(COMPLEX(1,0),IMDIV(COMPLEX(0,2*PI()*D78),COMPLEX(2*PI()*IL_Pole2,0))) -> 1+0.0000278694509792319i | AQ78: =IMABS(AP78) -> 1 | AR78: =IMARGUMENT(AP78) -> 2.786945097e-05 | AS78: =IMPRODUCT(AI78,IMDIV(AM78,IMPRODUCT(AJ78,AP78))) -> 0.469129329485064-36.3377696928109i | AT78: =IMABS(AS78) -> 36.34079785 | AU78: =IMARGUMENT(AS78) -> -1.557886804 | AV78: =IMPRODUCT(T78,AS78,COMPLEX($B$15,0)) ->  | AW78: =20*LOG10(IMABS(AV78)) ->  | AX78: =(180/PI())*IMARGUMENT(AV78) ->  | BB78: -8.792110842 | BC78: -89.26033883 | BE78: =20*LOG10(IMABS(T78)) ->  | BF78: =180/PI()*IMARGUMENT(T78) ->  | BN78: 0 | BO78: 0
D79: 436.52 | E79: 0.00905102896595711i | F79: 0.05-7.29198859579836i | G79: 0.05-7.29198859579836i | H79: 0.980654289499185-0.134351143190026i | I79: 0.990654289499185-0.134351143190026i | J79: 0.937672773973622-0.256646955414009i | K79: 0.999995188260135-0.00344564830438446i | M79: 23.9269895624996+6.31800913098348i | N79: 0 | O79: 23.8746715697243+3.01924250950612i | P79: 24.0571844836517-0.216563875598347i | Q79: 23.8184377679545-0.246756300693407i | V79: 6000 | W79: 1+153.900405253874i | X79: 153.9036541 | Y79: 1.56429871 | Z79: 1+0.307186437632483i | AA79: 1.046118305 | AB79: 0.2980367468 | AC79: 1+0.00139032651656595i | AD79: 1.000000967 | AE79: 0.001390325621 | AF79: 12.174736229088-38.923719450965i | AG79: 40.78333162 | AH79: -1.267652288 | AI79: 4000 | AJ79: 1+120.684610026279i | AK79: 120.688753 | AL79: 1.562510456 | AM79: 1+0.00422381351744665i | AN79: 1.00000892 | AO79: 0.004223788399 | AP79: 1+0.0000305583199152352i | AQ79: 1 | AR79: 3.055831991e-05 | AS79: 0.413589111700904-33.140819882276i | AT79: 33.14340053 | AU79: -1.558317226 | BB79: -9.592058697 | BC79: -89.28500017 | BN79: 0 | BO79: 0
D80: 478.63 | E80: 0.00992415924579871i | F80: 0.05-6.65043741896227i | G80: 0.05-6.65043741896227i | H80: 0.97683695001575-0.146708966050053i | I80: 0.98683695001575-0.146708966050053i | J80: 0.924320193873031-0.277279048281908i | K80: 0.999994215128989-0.00377804143665247i | M80: 23.9604358513418+6.93043353456392i | N80: 0 | O80: 23.8974745985998+3.31177973071269i | P80: 24.0687787260394-0.237787180987479i | Q80: 23.8298039800534-0.270904978294596i | V80: 6000 | W80: 1+168.746795030381i | X80: 168.749758 | Y80: 1.564870358 | Z80: 1+0.336819950160441i | AA80: 1.055200303 | AB80: 0.3248852204 | AC80: 1+0.00152444786177944i | AD80: 1.000001162 | AE80: 0.001524446681 | AF80: 12.1322058135409-35.5025091235064i | AG80: 37.51824319 | AH80: -1.241509584 | AI80: 4000 | AJ80: 1+132.326754551631i | AK80: 132.330533 | AL80: 1.56323942 | AM80: 1+0.00463127431470607i | AN80: 1.000010724 | AO80: 0.004631241204 | AP80: 1+0.0000335062051246886i | AQ80: 1.000000001 | AR80: 3.350620511e-05 | AS80: 0.367397385409069-30.2254312242584i | AT80: 30.22766404 | AU80: -1.558641685 | BB80: -10.39190827 | BC80: -89.30359032 | BN80: 0 | BO80: 0
D81: 524.81 | E81: 0.010881678987501i | F81: 0.05-6.06524049053544i | G81: 0.05-6.06524049053544i | H81: 0.972287941009445-0.160076478348216i | I81: 0.982287941009445-0.160076478348216i | J81: 0.90877386121051-0.298764584733293i | K81: 0.999993044985326-0.00414256090585543i | M81: 24.0007226561985+7.60298911883513i | N81: 0 | O81: 23.9249354456601+3.6329991466347i | P81: 24.0827332869366-0.261168159412805i | Q81: 23.84348393248-0.297498150879156i | V81: 6000 | W81: 1+185.02811252929i | X81: 185.0308148 | Y81: 1.565391795 | Z81: 1+0.369317589878823i | AA81: 1.066018519 | AB81: 0.3537795483 | AC81: 1+0.00167153225318193i | AD81: 1.000001397 | AE81: 0.001671530696 | AF81: 12.0968225102107-32.3820541578389i | AG81: 34.56776745 | AH81: -1.213283778 | AI81: 4000 | AJ81: 1+145.094131283541i | AK81: 145.0975773 | AL81: 1.563904358 | AM81: 1+0.00507811686083382i | AN81: 1.000012894 | AO81: 0.005078073211 | AP81: 1+0.0000367390082349368i | AQ81: 1.000000001 | AR81: 3.673900822e-05 | AS81: 0.32896960648305-27.5660478881693i | AT81: 27.56801076 | AU81: -1.558863024 | BB81: -11.19189141 | BC81: -89.31627213 | BN81: 0 | BO81: 0
D82: 575.44 | E82: 0.0119314673054393i | F82: 0.05-5.53159123772749i | G82: 0.05-5.53159123772749i | H82: 0.96687801816034-0.174492632876629i | I82: 0.97687801816034-0.174492632876629i | J82: 0.890783516062877-0.320903805704318i | K82: 0.999991638312325-0.00454220622256711i | M82: 24.0492532225701+8.3415935195637i | N82: 0 | O82: 23.9580069581581+3.9857103565424i | P82: 24.0995274503539-0.286942878545334i | Q82: 23.8599473807723-0.326799982110759i | V82: 6000 | W82: 1+202.878331346306i | X82: 202.8807959 | Y82: 1.565867304 | Z82: 1+0.404946769154303i | AA82: 1.078879922 | AB82: 0.3847635457 | AC82: 1+0.00183278999975422i | AD82: 1.00000168 | AE82: 0.001832787948 | AF82: 12.0673927029387-29.5367449656125i | AG82: 31.906759 | AH82: -1.182936546 | AI82: 4000 | AJ82: 1+159.091798757266i | AK82: 159.0949416 | AL82: 1.56451073 | AM82: 1+0.00556801807587167i | AN82: 1.000015501 | AO82: 0.005567960536 | AP82: 1+0.0000402833309173072i | AQ82: 1.000000001 | AR82: 4.02833309e-05 | AS82: 0.297009616740805-25.1408552315639i | AT82: 25.14260958 | AU82: -1.558983053 | BB82: -11.99179297 | BC82: -89.32314928 | BN82: 0 | BO82: 0
D83: 630.96 | E83: 0.0130826473846795i | F83: 0.05-5.04485048471837i | G83: 0.05-5.04485048471837i | H83: 0.960456470042347-0.189991615499379i | I83: 0.970456470042347-0.189991615499379i | J83: 0.870100994763914-0.343440475437585i | K83: 0.999989946957865-0.00498045050429401i | M83: 24.1077507758072+9.15317214146771i | N83: 0 | O83: 23.9978581449309+4.37319835134645i | P83: 24.1197477235781-0.315393202637646i | Q83: 23.8797691421288-0.359125186151115i | V83: 6000 | W83: 1+222.452578802768i | X83: 222.4548265 | Y83: 1.566301017 | Z83: 1+0.444017123358819i | AA83: 1.094144052 | AB83: 0.4178674379 | AC83: 1+0.00200962251189511i | AD83: 1.000002019 | AE83: 0.002009619807 | AF83: 12.0429089697968-26.9418619964158i | AG83: 29.51094008 | AH83: -1.150443199 | AI83: 4000 | AJ83: 1+174.44140369784i | AK83: 174.44427 | AL83: 1.565063806 | AM83: 1+0.00610523544618377i | AN83: 1.000018637 | AO83: 0.006105159593 | AP83: 1+0.000044169975107021i | AQ83: 1.000000001 | AR83: 4.416997508e-05 | AS83: 0.270423493251131-22.9287919185938i | AT83: 22.93038656 | AU83: -1.559002816 | BB83: -12.79177248 | BC83: -89.3242816 | BN83: 0 | BO83: 0
D84: 691.83 | E84: 0.014344757100518i | F84: 0.05-4.60098414616004i | G84: 0.05-4.60098414616004i | H84: 0.952854661712557-0.206585670500835i | I84: 0.962854661712557-0.206585670500835i | J84: 0.846512104641935-0.366036991703532i | K84: 0.999987913720641-0.00546092473752017i | M84: 24.1782836141214+10.0451187248085i | N84: 0 | O84: 24.0458903419715+4.79896391145388i | P84: 24.1440947881532-0.346831605552023i | Q84: 23.9036358847335-0.394821244666557i | V84: 6000 | W84: 1+243.913033461898i | X84: 243.9150834 | Y84: 1.566696528 | Z84: 1+0.486852362199398i | AA84: 1.112216356 | AB84: 0.453074285 | AC84: 1+0.00220349490047609i | AD84: 1.000002428 | AE84: 0.002203491334 | AF84: 12.0225432568609-24.5759108006597i | AG84: 27.35903759 | AH84: -1.115825734 | AI84: 4000 | AJ84: 1+191.270122226886i | AK84: 191.2727363 | AL84: 1.565568166 | AM84: 1+0.00669421998024172i | AN84: 1.000022406 | AO84: 0.006694119988 | AP84: 1+0.0000484311428272637i | AQ84: 1.000000001 | AR84: 4.843114279e-05 | AS84: 0.248312154503761-20.9115408550508i | AT84: 20.91301508 | AU84: -1.558922477 | BB84: -13.59166699 | BC84: -89.31967855 | BN84: 0 | BO84: 0
D85: 758.58 | E85: 0.015728785744057i | F85: 0.05-4.19612811020314i | G85: 0.05-4.19612811020314i | H85: 0.943880251282824-0.224272052504472i | I85: 0.953880251282824-0.224272052504472i | J85: 0.819839750406144-0.38829090642347i | K85: 0.999985468962491-0.00598781245015112i | M85: 24.2633981218094+11.0260853473767i | N85: 0 | O85: 24.1038264557004+5.26709808195948i | P85: 24.1734269340246-0.381633790480674i | Q85: 23.9323886694676-0.434304771300263i | V85: 6000 | W85: 1+267.446553233492i | X85: 267.4484228 | Y85: 1.567057279 | Z85: 1+0.533825455555872i | AA85: 1.133565003 | AB85: 0.4903403881 | AC85: 1+0.002416095228023i | AD85: 1.000002919 | AE85: 0.002416090527 | AF85: 12.0055981801963-22.4183033883906i | AG85: 25.4305862 | AH85: -1.079132982 | AI85: 4000 | AJ85: 1+209.724483354107i | AK85: 209.7268674 | AL85: 1.566028202 | AM85: 1+0.00734010001389325i | AN85: 1.000026938 | AO85: 0.007339968197 | AP85: 1+0.0000531039364090972i | AQ85: 1.000000001 | AR85: 5.310393636e-05 | AS85: 0.229918494007707-19.0715531415821i | AT85: 19.07293899 | AU85: -1.558741338 | BB85: -14.39164761 | BC85: -89.30930003 | BN85: 0 | BO85: 0
D86: 831.76 | E86: 0.017246137296629i | F86: 0.05-3.8269439042968i | G86: 0.05-3.8269439042968i | H86: 0.933324865153628-0.243011429398571i | I86: 0.943324865153628-0.243011429398571i | J86: 0.789988368421791-0.409719473057479i | K86: 0.999982530120512-0.00656545503906997i | M86: 24.366158645724+12.1053270473717i | N86: 0 | O86: 24.1737361276173+5.78196574092453i | P86: 24.2087701322796-0.420222117395595i | Q86: 23.9670327710034-0.478041774804845i | V86: 6000 | W86: 1+293.247047269226i | X86: 293.2487523 | Y86: 1.567386246 | Z86: 1+0.585323447643165i | AA86: 1.158707702 | AB86: 0.5295580145 | AC86: 1+0.00264917525753435i | AD86: 1.000003509 | AE86: 0.00264916906 | AF86: 11.991501317032-20.4512547598533i | AG86: 23.70759214 | AH86: -1.040477401 | AI86: 4000 | AJ86: 1+229.956545485792i | AK86: 229.9587198 | AL86: 1.566447707 | AM86: 1+0.00804819740509353i | AN86: 1.000032386 | AO86: 0.008048023642 | AP86: 1+0.0000582268582715478i | AQ86: 1.000000002 | AR86: 5.822685821e-05 | AS86: 0.214621190753826-17.3936655348647i | AT86: 17.39498959 | AU86: -1.55845791 | BB86: =20*LOG10(IMABS(IMPRODUCT(COMPLEX($B$15,0),AS86))) -> -15.19151653 | BC86: =180/PI()*IMARGUMENT(IMPRODUCT(COMPLEX($B$15,0),AS86)) -> -89.29306078 | BN86: 0 | BO86: 0
D87: 912.01 | E87: 0.0189100818456028i | F87: 0.05-3.49020171032983i | G87: 0.05-3.49020171032983i | H87: 0.920957590384123-0.262737098314203i | I87: 0.930957590384123-0.262737098314203i | J87: 0.756942309162021-0.429792750770236i | K87: 0.999978996433421-0.00719890431155886i | M87: 24.4903649570535+13.2938354676361i | N87: 0 | O87: 24.258180813057+6.34874165320313i | P87: 24.251387516735-0.463114805766608i | Q87: 24.0088057086044-0.526602222298644i | V87: 6000 | W87: 1+321.540155309232i | X87: 321.5417103 | Y87: 1.567686305 | Z87: 1+0.641796717184095i | AA87: 1.188235257 | AB87: 0.5705867806 | AC87: 1+0.0029047734041357i | AD87: 1.000004219 | AE87: 0.002904765234 | AF87: 11.9797692945493-18.6575612894792i | AG87: 22.17249345 | AH87: -1.00000429 | AI87: 4000 | AJ87: 1+252.143249312899i | AK87: 252.1452323 | AL87: 1.566830348 | AM87: 1+0.00882470486128131i | AN87: 1.000038937 | AO87: 0.008824475796 | AP87: 1+0.0000638447112294824i | AQ87: 1.000000002 | AR87: 6.384471114e-05 | AS87: 0.201895734824669-15.8632061437422i | AT87: 15.86449089 | AU87: -1.558069717 | BB87: -15.99147721 | BC87: -89.27081897 | BN87: 0 | BO87: 0
D88: 1000 | E88: 0.0207345115136926i | F88: 0.05-3.18309886183791i | G88: 0.05-3.18309886183791i | H88: 0.906538881343511-0.28332950516339i | I88: 0.916538881343511-0.28332950516339i | J88: 0.720815049269665-0.447935017928383i | K88: 0.999974748112421-0.00789344887836631i | M88: 24.6406307633953+14.603593461548i | N88: 0 | O88: 24.3602628751233+6.97304818582512i | P88: 24.3027983767698-0.510911442268262i | Q88: 24.0591957480186-0.580641924126521i | V88: 6000 | W88: 1+352.562093956461i | X88: 352.5635121 | Y88: 1.567959955 | Z88: 1+0.703716754404114i | AA88: 1.222790771 | AB88: 0.6132160772 | AC88: 1+0.00318502363366158i | AD88: 1.000005072 | AE88: 0.003185012864 | AF88: 11.9700050485249-17.0222982638638i | AG88: 20.80960497 | AH88: -0.9579288902 | AI88: 4000 | AJ88: 1+276.469829621275i | AK88: 276.4716381 | AL88: 1.567179311 | AM88: 1+0.00967610537305657i | AN88: 1.000046812 | AO88: 0.009675803408 | AP88: 1+0.0000700043982297151i | AQ88: 1.000000002 | AR88: 7.000439812e-05 | AS88: 0.191311458248877-14.4674425556604i | AT88: 14.46870741 | AU88: -1.557573512 | BB88: -16.79140531 | BC88: -89.24238854 | BN88: 0 | BO88: 0
D89: 1096.5 | E89: 0.022735391874764i | F89: 0.05-2.90296293829266i | G89: 0.05-2.90296293829266i | H89: 0.889818076035656-0.304622896893591i | I89: 0.899818076035656-0.304622896893591i | J89: 0.681840500135826-0.463570605570878i | K89: 0.999969639346229-0.00865516669512866i | M89: 24.8227027388017+16.0487994834495i | N89: 0 | O89: 24.4838360814056+7.66153001771328i | P89: 24.3648757453757-0.564353874157478i | Q89: 24.1200373845617-0.64096917433459i | V89: 6000 | W89: 1+386.58433602326i | X89: 386.5856294 | Y89: 1.568209575 | Z89: 1+0.771625421204111i | AA89: 1.263093738 | AB89: 0.6571983329 | AC89: 1+0.00349237841430992i | AD89: 1.000006098 | AE89: 0.003492364216 | AF89: 11.9618744295806-15.5312386905536i | AG89: 19.60371942 | AH89: -0.9145036062 | AI89: 4000 | AJ89: 1+303.149168179728i | AK89: 303.1508175 | AL89: 1.567497633 | AM89: 1+0.0106098495415565i | AN89: 1.000056283 | AO89: 0.01060945146 | AP89: 1+0.0000767598226588826i | AQ89: 1.000000003 | AR89: 7.675982251e-05 | AS89: 0.182506163081102-13.1942328983661i | AT89: 13.19549508 | AU89: -1.556964941 | BB89: -17.59148622 | BC89: -89.20751997 | BN89: 0 | BO89: 0
D90: 1202.3 | E90: 0.0249291031929127i | F90: 0.05-2.64750799454205i | G90: 0.05-2.64750799454205i | H90: 0.870558916189298-0.326377432581928i | I90: 0.880558916189298-0.326377432581928i | J90: 0.640415969393332-0.476146018828872i | K90: 0.999963497757885-0.00949029358645982i | M90: 25.0435864710539+17.6449220256578i | N90: 0 | O90: 24.6335817799733+8.42139110609263i | P90: 24.4398720820085-0.624314151457491i | Q90: 24.1935362642087-0.708528062518435i | V90: 6000 | W90: 1+423.885405563853i | X90: 423.8865851 | Y90: 1.568437203 | Z90: 1+0.846078653820066i | AA90: 1.309904229 | AB90: 0.7022131109 | AC90: 1+0.00382935391475132i | AD90: 1.000007332 | AE90: 0.003829335197 | AF90: 11.9551035432208-14.172217674306i | AG90: 18.54120424 | AH90: -0.8700534273 | AI90: 4000 | AJ90: 1+332.399676153659i | AK90: 332.4011804 | AL90: 1.567787909 | AM90: 1+0.0116335814900259i | AN90: 1.000067668 | AO90: 0.0116330567 | AP90: 1+0.0000841662879915864i | AQ90: 1.000000004 | AR90: 8.416628779e-05 | AS90: 0.175183236923156-12.0331907399322i | AT90: 12.03446586 | AU90: -1.556239019 | BB90: -18.39146361 | BC90: -89.1659277 | BM90: =IF(BL90>0,AY90,0) ->  | BN90: 0 | BO90: 0
D91: 1318.3 | E91: 0.027334306528501i | F91: 0.05-2.41454817707495i | G91: 0.05-2.41454817707495i | H91: 0.848540425175233-0.348291847898751i | I91: 0.858540425175233-0.348291847898751i | J91: 0.597062842977644-0.48518775689998i | K91: 0.999956114368577-0.0104059336563503i | M91: 25.3120621914384+19.4103772269102i | N91: 0 | O91: 24.8153449594102+9.26117682079541i | P91: 24.5305692009542-0.691887666809203i | Q91: 24.2824157513601-0.784499435017168i | V91: 6000 | W91: 1+464.782608462803i | X91: 464.7836842 | Y91: 1.568644787 | Z91: 1+0.927709797330943i | AA91: 1.364054789 | AB91: 0.7479151645 | AC91: 1+0.00419881665625606i | AD91: 1.000008815 | AE91: 0.004198791981 | AF91: 11.9494613251039-12.9336079680593i | AG91: 17.60874331 | AH91: -0.8249284141 | AI91: 4000 | AJ91: 1+364.470176389727i | AK91: 364.4715482 | AL91: 1.568052625 | AM91: 1+0.0127560097133005i | AN91: 1.000081355 | AO91: 0.01275531791 | AP91: 1+0.0000922867981862334i | AQ91: 1.000000004 | AR91: 9.228679792e-05 | AS91: 0.169092778980954-10.9743837523807i | AT91: 10.97568636 | AU91: -1.555389594 | BB91: -19.19136623 | BC91: -89.11725923 | BN91: 0 | BO91: 0
D92: 1445.4 | E92: 0.0299696629418913i | F92: 0.05-2.20222696958482i | G92: 0.05-2.20222696958482i | H92: 0.823597708374626-0.369978937251399i | I92: 0.833597708374626-0.369978937251399i | J92: 0.552448859504743-0.490334094667604i | K92: 0.999947244232216-0.0114091910087907i | M92: 25.6388925940275+21.3652974679093i | N92: 0 | O92: 25.0362546152361+10.1901646570226i | P92: 24.6403107637665-0.768388969246383i | Q92: 24.3899482176141-0.870290615816628i | V92: 6000 | W92: 1+509.593250604668i | X92: 509.5942318 | Y92: 1.56883398 | Z92: 1+1.01715219681571i | AA92: 1.426393561 | AB92: 0.7939011328 | AC92: 1+0.00460363316009445i | AD92: 1.000010597 | AE92: 0.004603600638 | AF92: 11.9447582169895-11.805539132972i | AG92: 16.79428483 | AH92: -0.7795364478 | AI92: 4000 | AJ92: 1+399.609491734591i | AK92: 399.610743 | AL92: 1.568293889 | AM92: 1+0.013985842706216i | AN92: 1.000097797 | AO92: 0.01398493092 | AP92: 1+0.00010118435720123i | AQ92: 1.000000005 | AR92: 0.0001011843569 | AS92: 0.164030159485462-10.00937583369i | AT92: 10.01071978 | AU92: -1.554410142 | BB92: -19.99069391 | BC92: -89.06114079 | BN92: 0 | BO92: 0
D93: 1584.9 | E93: 0.0328621272980515i | F93: 0.05-2.00839097850837i | G93: 0.05-2.00839097850837i | H93: 0.795566094253177-0.391031630479198i | I93: 0.805566094253177-0.391031630479198i | J93: 0.507220277716531-0.491379285070009i | K93: 0.999936569581324-0.0125103271273228i | M93: 26.0385369370892+23.5383254050554i | N93: 0 | O93: 25.3058508632846+11.2215577005292i | P93: 24.7735194458438-0.855681715481653i | Q93: 24.520460937211-0.967897292486908i | V93: 6000 | W93: 1+558.775662711595i | X93: 558.7765575 | Y93: 1.569006702 | Z93: 1+1.11532068405508i | AA93: 1.497978714 | AB93: 0.8398611299 | AC93: 1+0.00504794395699024i | AD93: 1.000012741 | AE93: 0.005047901081 | AF93: 11.940826545601-10.7765715041697i | AG93: 16.08470802 | AH93: -0.7341934729 | AI93: 4000 | AJ93: 1+438.177032966759i | AK93: 438.1781741 | AL93: 1.568514148 | AM93: 1+0.0153356594057574i | AN93: 1.000117584 | AO93: 0.01533445735 | AP93: 1+0.000110949970754275i | AQ93: 1.000000006 | AR93: 0.0001109499703 | AS93: 0.159814898572539-9.1283810900446i | AT93: 9.12977996 | AU93: -1.553290641 | BB93: -20.79079379 | BC93: -88.99699807 | BN93: 0 | BO93: 0
D94: 1737.8 | E94: 0.0360324341084951i | F94: 0.05-1.83168308311538i | G94: 0.05-1.83168308311538i | H94: 0.764445276587708-0.410915811449725i | I94: 0.774445276587708-0.410915811449725i | J94: 0.462199716142511-0.48827440879209i | K94: 0.999923740591399-0.013717235460825i | M94: 26.5281754033294+25.9566460344934i | N94: 0 | O94: 25.6353779464703+12.367700711737i | P94: 24.9352811379155-0.955874732239071i | Q94: 24.6789273584508-1.07955173935646i | V94: 6000 | W94: 1+612.682406877539i | X94: 612.683223 | Y94: 1.569164161 | Z94: 1+1.22291897580347i | AA94: 1.57972492 | AB94: 0.8853461118 | AC94: 1+0.0055349340705771i | AD94: 1.000015318 | AE94: 0.00553487755 | AF94: 11.9375387748356-9.83950248528654i | AG94: 15.46999163 | AH94: -0.689352927 | AI94: 4000 | AJ94: 1+480.449269915852i | AK94: 480.4503106 | AL94: 1.568714945 | AM94: 1+0.0168151359172977i | AN94: 1.000141364 | AO94: 0.01681355137 | AP94: 1+0.000121653643243599i | AQ94: 1.000000007 | AR94: 0.0001216536426 | AS94: 0.156310281185328-8.32523236784396i | AT94: 8.326699639 | AU94: -1.552023047 | BB94: -21.59054202 | BC94: -88.92437029 | BN94: 0 | BO94: 0
D95: 1905.5 | E95: 0.0395096116893413i | F95: 0.05-1.67047959162315i | G95: 0.05-1.67047959162315i | H95: 0.730285270289898-0.429098049086551i | I95: 0.740285270289898-0.429098049086551i | J95: 0.418104284711408-0.481147688161199i | K95: 0.999908312157521-0.015040966837727i | M95: 27.1308821803679+28.6579952831451i | N95: 0 | O95: 26.0398512877528+13.6457108789794i | P95: 25.1322662654321-1.07193061973561i | Q95: 24.8718677525546-1.2083877285254i | V95: 6000 | W95: 1+671.807070034036i | X95: 671.8078143 | Y95: 1.569307805 | Z95: 1+1.34093227551704i | AA95: 1.672752034 | AB95: 0.9300208886 | AC95: 1+0.00606906253394214i | AD95: 1.000018417 | AE95: 0.006068988021 | AF95: 11.9347806271178-8.9857221041223i | AG95: 14.93928346 | AH95: -0.6453559048 | AI95: 4000 | AJ95: 1+526.813260343339i | AK95: 526.8142094 | AL95: 1.568898123 | AM95: 1+0.0184378187883593i | AN95: 1.000169962 | AO95: 0.01843572988 | AP95: 1+0.000133393380826722i | AQ95: 1.000000009 | AR95: 0.00013339338 | AS95: 0.153394489242092-7.59255066901792i | AT95: 7.594100047 | AU95: -1.550595787 | BB95: -22.39047371 | BC95: -88.84259431 | BN95: 0 | BO95: 0
D96: 2089.3 | E96: 0.043320614905558i | F96: 0.05-1.52352408071503i | G96: 0.05-1.52352408071503i | H96: 0.693307588166083-0.445003118858609i | I96: 0.703307588166083-0.445003118858609i | J96: 0.375651115902784-0.4702949618777i | K96: 0.999889771104518-0.0164917827415707i | M96: 27.8758363114461+31.6843648308562i | N96: 0 | O96: 26.5380844498192+15.0743887270282i | P96: 25.3725861673647-1.20759837001852i | Q96: 25.1072053228665-1.35834225728879i | V96: 6000 | W96: 1+736.607982903233i | X96: 736.6086617 | Y96: 1.569438753 | Z96: 1+1.47027541497651i | AA96: 1.778119736 | AB96: 0.9735207429 | AC96: 1+0.00665446987780913i | AD96: 1.000022141 | AE96: 0.006654371656 | AF96: 11.9324601359309-8.2085760968265i | AG96: 14.48324295 | AH96: -0.6025723822 | AI96: 4000 | AJ96: 1+577.628415027729i | AK96: 577.6292806 | AL96: 1.569065112 | AM96: 1+0.0202162869559271i | AN96: 1.000204328 | AO96: 0.02021353351 | AP96: 1+0.000146260189221344i | AQ96: 1.000000011 | AR96: 0.0001462601882 | AS96: 0.15097029358917-6.92462605271556i | AT96: 6.92627158 | AU96: -1.548997838 | BB96: -23.19000967 | BC96: -88.75103862 | BN96: 0 | BO96: 0
D97: 2290.9 | E97: 0.0475006924267185i | F97: 0.05-1.38945342958571i | G97: 0.05-1.38945342958571i | H97: 0.653817336953138-0.458099703270068i | I97: 0.663817336953138-0.458099703270068i | J97: 0.335391820674951-0.456130770063744i | K97: 0.999867472467614-0.0180831020354494i | M97: 28.8027793732195+35.0923345350378i | N97: 0 | O97: 27.1554975349449+16.6789458221833i | P97: 25.6669101892844-1.368151964042i | Q97: 25.3953552139349-1.53494142226381i | V97: 6000 | W97: 1+807.684501044856i | X97: 807.6851201 | Y97: 1.56955822 | Z97: 1+1.61214471266438i | AA97: 1.897105842 | AB97: 1.015589915 | AC97: 1+0.00729657064235531i | AD97: 1.00002662 | AE97: 0.007296441157 | AF97: 11.9304964633582-7.50085594353612i | AG97: 14.09253653 | AH97: -0.5612647464 | AI97: 4000 | AJ97: 1+633.364732679378i | AK97: 633.3655221 | AL97: 1.569217459 | AM97: 1+0.0221669897991353i | AN97: 1.000245658 | AO97: 0.0221633601 | AP97: 1+0.000160373075904454i | AQ97: 1.000000013 | AR97: 0.0001603730745 | AS97: 0.14895323853399-6.3152634768838i | AT97: 6.317019855 | AU97: -1.547214472 | BB97: -23.98975516 | BC97: -88.64885925 | BN97: 0 | BO97: 0
D98: 2511.9 | E98: 0.0520830194712445i | F98: 0.05-1.26720763638597i | G98: 0.05-1.26720763638597i | H98: 0.612305095641491-0.467895184181933i | I98: 0.622305095641491-0.467895184181933i | J98: 0.297804939217338-0.439179087689514i | K98: 0.999840669639403-0.0198275542375683i | M98: 29.9638793741193+38.9479769031743i | N98: 0 | O98: 27.9250735085301+18.4883559210315i | P98: 26.0285282394135-1.56060931287622i | Q98: 25.7492775043282-1.74549287208651i | V98: 6000 | W98: 1+885.600723809234i | X98: 885.6012884 | Y98: 1.56966715 | Z98: 1+1.76766611538769i | AA98: 2.030921834 | AB98: 1.055965925 | AC98: 1+0.00800046086539452i | AD98: 1.000032003 | AE98: 0.008000290176 | AF98: 11.9288239762085-6.8569666032498i | AG98: 13.75917267 | AH98: -0.5217015153 | AI98: 4000 | AJ98: 1+694.46456502568i | AK98: 694.465285 | AL98: 1.56935637 | AM98: 1+0.0243054090865808i | AN98: 1.000295333 | AO98: 0.02430062462 | AP98: 1+0.000175844047913221i | AQ98: 1.000000015 | AR98: 0.0001758440461 | AS98: 0.147275912704279-5.7596454847202i | AT98: 5.761528122 | AU98: -1.545231589 | BB98: -24.78924628 | BC98: -88.53524842 | BN98: 0 | BO98: 0
D99: 2754.2 | E99: 0.0571069916110122i | F99: 0.05-1.15572538734947i | G99: 0.05-1.15572538734947i | H99: 0.569354648622032-0.474007395744335i | I99: 0.579354648622032-0.474007395744335i | J99: 0.263197648060811-0.420007082778362i | K99: 0.999808448836141-0.0217401369007965i | M99: 31.4313577003761+43.3379350424311i | N99: 0 | O99: 28.8919677815778+20.540192702105i | P99: 26.4748990929067-1.79495028051811i | Q99: 26.185979415091-2.00035220753919i | V99: 6000 | W99: 1+971.026519174884i | X99: 971.0270341 | Y99: 1.569766489 | Z99: 1+1.93817668497981i | AA99: 2.180946781 | AB99: 1.094471211 | AC99: 1+0.00877219209183071i | AD99: 1.000038475 | AE99: 0.008771967092 | AF99: 11.9273853934683-6.27131733428844i | AG99: 13.47560549 | AH99: -0.4840672452 | AI99: 4000 | AJ99: 1+761.453204742915i | AK99: 761.4538614 | AL99: 1.569483049 | AM99: 1+0.0266499294184724i | AN99: 1.000355046 | AO99: 0.02664362301 | AP99: 1+0.000192806113604281i | AQ99: 1.000000019 | AR99: 0.0001928061112 | AS99: 0.145880846208558-5.25294857073188i | AT99: 5.254973826 | AU99: -1.543032232 | BB99: -25.58858886 | BC99: -88.40923456 | BN99: 0 | BO99: 0
D100: 3020 | E100: 0.0626182247713517i | F100: 0.05-1.05400624564169i | G100: 0.05-1.05400624564169i | H100: 0.525622949132877-0.476187023240981i | I100: 0.535622949132877-0.476187023240981i | J100: 0.231727734198677-0.399183580696445i | K100: 0.999769692684528-0.0238382156126663i | M100: 33.3073785944494+48.376210859428i | N100: 0 | O100: 30.1192560641962+22.8831680717064i | P100: 27.029232445182-2.08564891937174i | Q100: 26.72803988454-2.31448060008878i | V100: 6000 | W100: 1+1064.73752374851i | X100: 1064.737993 | Y100: 1.569857128 | Z100: 1+2.12522459830042i | AA100: 2.348740001 | AB100: 1.130994461 | AC100: 1+0.00961877137365795i | AD100: 1.000046259 | AE100: 0.009618474745 | AF100: 11.9261311034127-5.73865352702388i | AG100: 13.23498196 | AH100: -0.4484811424 | AI100: 4000 | AJ100: 1+834.938885456248i | AK100: 834.9394843 | AL100: 1.569598635 | AM100: 1+0.0292218382266308i | AN100: 1.000426867 | AO100: 0.02921352482 | AP100: 1+0.000211413282653739i | AQ100: 1.000000022 | AR100: 0.0002114132795 | AS100: 0.144719958011383-4.79062585594136i | AT100: 4.792811279 | AU100: -1.540596523 | BB100: -26.38819343 | BC100: -88.26967872 | BN100: 0 | BO100: 0
D101: 3311.3 | E101: 0.0686581879752904i | F101: 0.05-0.96128374409987i | G101: 0.05-0.96128374409987i | H101: 0.481882270918792-0.474341095710196i | I101: 0.491882270918792-0.474341095710196i | J101: 0.203473107395786-0.377285712398919i | K101: 0.99972312043408-0.0261375772709344i | M101: 35.7356313202371+54.2037204288977i | N101: 0 | O101: 31.6942285883409+25.5758992902584i | P101: 27.7215292261673-2.45354369260051i | Q101: 27.4045869402839-2.70930268550305i | V101: 6000 | W101: 1+1167.43886171803i | X101: 1167.43929 | Y101: 1.569939751 | Z101: 1+2.33021728885835i | AA101: 2.535727236 | AB101: 1.16542047 | AC101: 1+0.0105465687581436i | AD101: 1.000055614 | AE101: 0.01054617775 | AF101: 11.9250196367396-5.2549613145879i | AG101: 13.03152761 | AH101: -0.4150654586 | AI101: 4000 | AJ101: 1+915.474546824929i | AK101: 915.475093 | AL101: 1.569703998 | AM101: 1+0.0320404877218023i | AN101: 1.000513165 | AO101: 0.03202953029 | AP101: 1+0.000231805563858056i | AQ101: 1.000000027 | AR101: 0.0002318055597 | AS101: 0.143754860338283-4.36919382710156i | AT101: 4.371558093 | AU101: -1.537906273 | BB101: -27.18727492 | BC101: -88.11553872 | BN101: 0 | BO101: 0
D102: 3630.8 | E102: 0.0752828644039152i | F102: 0.05-0.876693528103424i | G102: 0.05-0.876693528103424i | H102: 0.438830235555932-0.468546572052795i | I102: 0.448830235555932-0.468546572052795i | J102: 0.178352183945146-0.35480483924749i | K102: 0.999667111723441-0.0286595341875724i | M102: 38.933719738278+61.0187662888213i | N102: 0 | O102: 33.747164499128+28.6992169384858i | P102: 28.5936675086155-2.93104194379682i | Q102: 28.2561958636242-3.2180341131816i | V102: 6000 | W102: 1+1280.08245073712i | X102: 1280.082841 | Y102: 1.570015127 | Z102: 1+2.55505479189045i | AA102: 2.743775681 | AB102: 1.197742099 | AC102: 1+0.0115641838090984i | AD102: 1.000066863 | AE102: 0.01156366836 | AF102: 11.9240122324145-4.81573100548755i | AG102: 12.85975633 | AH102: -0.3838366968 | AI102: 4000 | AJ102: 1+1003.80665738892i | AK102: 1003.807155 | AL102: 1.569800119 | AM102: 1+0.0351320033884937i | AN102: 1.000616939 | AO102: 0.0351175601 | AP102: 1+0.000254171969092449i | AQ102: 1.000000032 | AR102: 0.0002541719636 | AS102: 0.142951871894122-3.98472402882703i | AT102: 3.987287402 | AU102: -1.534936731 | BB102: -27.98644919 | BC102: -87.94539652 | BN102: 0 | BO102: 0
D103: 3981.1 | E103: 0.0825461637871617i | F103: 0.05-0.799552601501573i | G103: 0.05-0.799552601501573i | H103: 0.397169923806198-0.459042243508709i | I103: 0.407169923806198-0.459042243508709i | J103: 0.156235605476059-0.332192798433149i | K103: 0.999599778863918-0.0314246093296641i | M103: 43.2321520727302+69.0800361452465i | N103: 0 | O103: 36.4721920476142+32.3541297800291i | P103: 29.7022919780686-3.56864830586708i | Q103: 29.3375700575925-3.89218960366735i | V103: 6000 | W103: 1+1403.58495225007i | X103: 1403.585308 | Y103: 1.570083866 | Z103: 1+2.80156677095822i | AA103: 2.97468929 | AB103: 1.227949535 | AC103: 1+0.0126798975879701i | AD103: 1.000080387 | AE103: 0.0126792181 | AF103: 11.9230750390271-4.41741670598134i | AG103: 12.71508115 | AH103: -0.3548135487 | AI103: 4000 | AJ103: 1+1100.65403870526i | AK103: 1100.654493 | AL103: 1.569887776 | AM103: 1+0.0385215431006756i | AN103: 1.00074168 | AO103: 0.03850250589 | AP103: 1+0.000278694509792319i | AQ103: 1.000000039 | AR103: 0.0002786945026 | AS103: 0.142284032262701-3.6341122710615i | AT103: 3.636896581 | AU103: -1.531663965 | BB103: -28.78538097 | BC103: -87.75788082 | BN103: 0 | BO103: 0
D104: 4365.2 | E104: 0.0905102896595711i | F104: 0.05-0.729198859579836i | G104: 0.05-0.729198859579836i | H104: 0.357495962995414-0.446203058151606i | I104: 0.367495962995414-0.446203058151606i | J104: 0.136923329772845-0.309818194884615i | K104: 0.999518826013485-0.0344564830438446i | M104: 49.1616614917359+78.7414461583853i | N104: 0 | O104: 40.1748834465916+36.6712045573108i | P104: 31.126911100009-4.44963622176279i | Q104: 30.725162265543-4.81634826733585i | V104: 6000 | W104: 1+1539.00405253874i | X104: 1539.004377 | Y104: 1.570146556 | Z104: 1+3.07186437632483i | AA104: 3.230534127 | AB104: 1.256080429 | AC104: 1+0.0139032651656595i | AD104: 1.000096646 | AE104: 0.01390236943 | AF104: 11.9221760875358-4.05659905733726i | AG104: 12.59342204 | AH104: -0.3279684963 | AI104: 4000 | AJ104: 1+1206.84610026279i | AK104: 1206.846515 | AL104: 1.569967721 | AM104: 1+0.0422381351744665i | AN104: 1.000891633 | AO104: 0.04221304357 | AP104: 1+0.000305583199152352i | AQ104: 1.000000047 | AR104: 0.0003055831896 | AS104: 0.141728544758658-3.3143492994782i | AT104: 3.317378221 | AU104: -1.528060261 | BB104: -29.58410022 | BC104: -87.55140377 | BN104: 0 | BO104: 0
D105: 4786.3 | E105: 0.0992415924579871i | F105: 0.05-0.665043741896227i | G105: 0.05-0.665043741896227i | H105: 0.320292961160041-0.430509440479362i | I105: 0.330292961160041-0.430509440479362i | J105: 0.120183813003241-0.287980560292315i | K105: 0.999421512898917-0.0377804143665247i | M105: 57.611552851415+90.4742889145619i | N105: 0 | O105: 45.3554618491921+41.8068014708193i | P105: 32.9788125083851-5.71746224895192i | Q105: 32.5252578898932-6.13553026366009i | V105: 6000 | W105: 1+1687.46795030381i | X105: 1687.468247 | Y105: 1.570203723 | Z105: 1+3.36819950160441i | AA105: 3.513512186 | AB105: 1.282191019 | AC105: 1+0.0152444786177944i | AD105: 1.00011619 | AE105: 0.01524329787 | AF105: 11.9212849267717-3.73025856034367i | AG105: 12.49127148 | AH105: -0.3032560019 | AI105: 4000 | AJ105: 1+1323.26754551631i | AK105: 1323.267923 | AL105: 1.570040622 | AM105: 1+0.0463127431470607i | AN105: 1.001071861 | AO105: 0.04627967409 | AP105: 1+0.000335062051246886i | AQ105: 1.000000056 | AR105: 0.0003350620387 | AS105: 0.141266567356133-3.02276011263437i | AT105: 3.026059309 | AU105: -1.52409601 | BB105: -30.38245129 | BC105: -87.32426894 | BN105: 0 | BO105: 0
D106: 5248.1 | E106: 0.10881678987501i | F106: 0.05-0.606524049053544i | G106: 0.05-0.606524049053544i | H106: 0.285894717326291-0.412497169045507i | I106: 0.295894717326291-0.412497169045507i | J106: 0.105761065843181-0.266900145423476i | K106: 0.999304498532613-0.0414256090585543i | M106: 70.1648357171947+104.876899483291i | N106: 0 | O106: 52.8808414552462+47.9159795088407i | P106: 35.4123675338158-7.63511218485258i | Q106: 34.8835591192634-8.114271979941i | V106: 6000 | W106: 1+1850.2811252929i | X106: 1850.281396 | Y106: 1.570255868 | Z106: 1+3.69317589878823i | AA106: 3.826166256 | AB106: 1.306367263 | AC106: 1+0.0167153225318193i | AD106: 1.000139691 | AE106: 0.01671376603 | AF106: 11.9203709882871-3.43552982074665i | AG106: 12.40556769 | AH106: -0.2806023717 | AI106: 4000 | AJ106: 1+1450.94131283541i | AK106: 1450.941657 | AL106: 1.570107119 | AM106: 1+0.0507811686083382i | AN106: 1.001288533 | AO106: 0.05073758576 | AP106: 1+0.000367390082349368i | AQ106: 1.000000067 | AR106: 0.0003673900658 | AS106: 0.140882246612844-2.75678497017619i | AT106: 2.760382434 | AU106: -1.519736923 | BB106: -31.1806149 | BC106: -87.07451168 | BN106: 0 | BO106: 0
D107: 5370.3 | E107: 0.111350547181984i | F107: 0.05-0.592722727191758i | G107: 0.05-0.592722727191758i | H107: 0.277764900107567-0.407700150554147i | I107: 0.287764900107567-0.407700150554147i | J107: 0.10248924793436-0.261771473367614i | K107: 0.99927173247923-0.0423901885114906i | M107: 74.2440312675927+108.966122516371i | N107: 0 | O107: 55.2887049800527+49.6033388100246i | P107: 36.133437366497-8.26711350664279i | Q107: 35.5805503166964-8.76314689474301i | V107: 6000 | W107: 1+1893.36421317438i | X107: 1893.364477 | Y107: 1.570268166 | Z107: 1+3.77917008617641i | AA107: 3.909236056 | AB107: 1.312116573 | AC107: 1+0.0171045324198528i | AD107: 1.000146272 | AE107: 0.01710286465 | AF107: 11.920135454486-3.36652458629444i | AG107: 12.38640856 | AH107: -0.2752544579 | AI107: 4000 | AJ107: 1+1484.72592601513i | AK107: 1484.726263 | AL107: 1.570122802 | AM107: 1+0.0519635886849256i | AN107: 1.001349197 | AO107: 0.05191689337 | AP107: 1+0.000375944619813038i | AQ107: 1.000000071 | AR107: 0.0003759446021 | AS107: 0.140796763075046-2.69405734050214i | AT107: 2.69773399 | AU107: -1.518581853 | BB107: -31.38001752 | BC107: -87.00833103 | BN107: 0 | BO107: 0
D108: 5432.85 | E108: 0.112647490877165i | F108: 0.05-0.585898536097611i | G108: 0.05-0.585898536097611i | H108: 0.27374696699733-0.405248179878775i | I108: 0.28374696699733-0.405248179878775i | J108: 0.100890724880954-0.259213834120831i | K108: 0.999254668843653-0.0428839237388324i | M108: 76.4791254864724+111.103035192304i | N108: 0 | O108: 56.6010123997896+50.4755198455198i | P108: 36.5154781432504-8.61518159053092i | Q108: 35.9494680192525-9.11993678898613i | V108: 6000 | W108: 1+1915.41697215136i | X108: 1915.417233 | Y108: 1.570274247 | Z108: 1+3.82318756916439i | AA108: 3.951805055 | AB108: 1.314965875 | AC108: 1+0.0173037556481383i | AD108: 1.000149699 | AE108: 0.01730202893 | AF108: 11.9200155366439-3.33248493781425i | AG108: 12.37708472 | AH108: -0.2726104017 | AI108: 4000 | AJ108: 1+1502.01911385794i | AK108: 1502.019447 | AL108: 1.570130556 | AM108: 1+0.0525688290760104i | AN108: 1.001380788 | AO108: 0.05252048488 | AP108: 1+0.000380323394922307i | AQ108: 1.000000072 | AR108: 0.0003803233766 | AS108: 0.140755221875746-2.66304110373897i | AT108: 2.666758323 | AU108: -1.517990395 | BB108: -31.48032682 | BC108: -86.97444297 | BN108: 0 | BO108: 0
D109: 5495.4 | E109: 0.113944434572346i | F109: 0.05-0.579229694260275i | G109: 0.05-0.579229694260275i | H109: 0.26982276739073-0.402800319238172i | I109: 0.27982276739073-0.402800319238172i | J109: 0.0993411162485514-0.256700636235607i | K109: 0.999237407611929-0.0433776589661742i | M109: 78.8213283354488+113.2686431172i | N109: 0 | O109: 57.9710990866283+51.3522386446592i | P109: 36.9063314947662-8.98125168942398i | Q109: 36.3266205039-9.49477407587061i | V109: 6000 | W109: 1+1937.46973112834i | X109: 1937.469989 | Y109: 1.57028019 | Z109: 1+3.86720505215237i | AA109: 3.994405452 | AB109: 1.317754422 | AC109: 1+0.0175029788764238i | AD109: 1.000153165 | AE109: 0.01750119183 | AF109: 11.9198959725337-3.29927415559773i | AG109: 12.36806897 | AH109: -0.2700269591 | AI109: 4000 | AJ109: 1+1519.31230170075i | AK109: 1519.312631 | AL109: 1.570138134 | AM109: 1+0.0531740694670951i | AN109: 1.001412743 | AO109: 0.05312403808 | AP109: 1+0.000384702170031576i | AQ109: 1.000000074 | AR109: 0.0003847021511 | AS109: 0.14071509106282-2.63273094883515i | AT109: 2.636488761 | AU109: -1.517398798 | BB109: -31.57948151 | BC109: -86.94054699 | BN109: 0 | BO109: 0
D110: 5559.4 | E110: 0.115271443309223i | F110: 0.05-0.572561582515722i | G110: 0.05-0.572561582515722i | H110: 0.265902012654702-0.400301243196218i | I110: 0.275902012654702-0.400301243196218i | J110: 0.0978042112682943-0.254174170723594i | K110: 0.999219541719654-0.0438828396943897i | M110: 81.3351021665716+115.513098863113i | N110: 0 | O110: 59.4359236140213+52.2528246751395i | P110: 37.3153616270721-9.37561461844385i | Q110: 36.7210023909319-9.89814286519527i | V110: 6000 | W110: 1+1960.03370514155i | X110: 1960.03396 | Y110: 1.570286132 | Z110: 1+3.91224292443423i | AA110: 4.038024851 | AB110: 1.320546692 | AC110: 1+0.0177068203889782i | AD110: 1.000156753 | AE110: 0.01770497019 | AF110: 11.9197739423205-3.26612222594582i | AG110: 12.35914905 | AH110: -0.26744441 | AI110: 4000 | AJ110: 1+1537.00637079652i | AK110: 1537.006696 | AL110: 1.570145711 | AM110: 1+0.0537933402109707i | AN110: 1.001445817 | AO110: 0.05374154243 | AP110: 1+0.000389182451518278i | AQ110: 1.000000076 | AR110: 0.0003891824319 | AS110: 0.140675423938713-2.60242412549972i | AT110: 2.606223495 | AU110: -1.516793351 | BB110: -31.67976689 | BC110: -86.90585743 | BN110: 0 | BO110: 0
D111: 5623.4 | E111: 0.116598452046099i | F111: 0.05-0.566045250531336i | G111: 0.05-0.566045250531336i | H111: 0.262074166837528-0.397808964862853i | I111: 0.272074166837528-0.397808964862853i | J111: 0.0963145454158888-0.251692206074413i | K111: 0.999201468963915-0.0443880204226051i | M111: 83.9744507645227+117.78515640872i | N111: 0 | O111: 60.9678671209124+53.1556277716648i | P111: 37.7335669112644-9.7912909705647i | Q111: 37.1238882400552-10.3228472482813i | V111: 6000 | W111: 1+1982.59767915476i | X111: 1982.597931 | Y111: 1.570291938 | Z111: 1+3.95728079671609i | AA111: 4.081675061 | AB111: 1.32327926 | AC111: 1+0.0179106619015325i | AD111: 1.000160383 | AE111: 0.01790874707 | AF111: 11.9196521629078-3.23378011293707i | AG111: 12.35052394 | AH111: -0.2649214254 | AI111: 4000 | AJ111: 1+1554.70043989228i | AK111: 1554.700761 | AL111: 1.570153116 | AM111: 1+0.0544126109548463i | AN111: 1.001479272 | AO111: 0.05435900576 | AP111: 1+0.00039366273300498i | AQ111: 1.000000077 | AR111: 0.0003936627127 | AS111: 0.140637103426481-2.57280716029624i | AT111: 2.576648109 | AU111: -1.516187773 | BB111: -31.77889777 | BC111: -86.87116035 | BN111: 0 | BO111: 0
D112: 5688.9 | E112: 0.117956562550246i | F112: 0.05-0.559528003979311i | G112: 0.05-0.559528003979311i | H112: 0.25825015882849-0.395266483888252i | I112: 0.26825015882849-0.395266483888252i | J112: 0.0948369322016866-0.24919711056971i | K112: 0.99918275843514-0.0449050413241381i | M112: 86.8134681439623+120.137238417348i | N112: 0 | O112: 62.6090150489411+54.0802175705321i | P112: 38.1709756779897-10.2402182853271i | Q112: 37.5448855275003-10.7810204610324i | V112: 6000 | W112: 1+2005.69049630891i | X112: 2005.690746 | Y112: 1.570297745 | Z112: 1+4.00337424412956i | AA112: 4.126379204 | AB112: 1.326015991 | AC112: 1+0.0181192809495373i | AD112: 1.000164141 | AE112: 0.01811729844 | AF112: 11.9195277311407-3.20148996766352i | AG112: 12.34198847 | AH112: -0.2623990527 | AI112: 4000 | AJ112: 1+1572.80921373247i | AK112: 1572.809532 | AL112: 1.570160522 | AM112: 1+0.0550463958567814i | AN112: 1.001513907 | AO112: 0.05499089792 | AP112: 1+0.000398248021089025i | AQ112: 1.000000079 | AR112: 0.000398248 | AS112: 0.140599216227182-2.54318605200979i | AT112: 2.547069578 | AU112: -1.515567872 | BB112: -31.87918383 | BC112: -86.83564263 | BN112: 0 | BO112: 0
D113: 5754.4 | E113: 0.119314673054393i | F113: 0.05-0.553159123772749i | G113: 0.05-0.553159123772749i | H113: 0.254518161064211-0.392733410299256i | I113: 0.264518161064211-0.392733410299256i | J113: 0.093404940920028-0.246746541398244i | K113: 0.999163831232545-0.0454220622256711i | M113: 89.8003400857017+122.514130433762i | N113: 0 | O113: 64.3284088620071+55.0034716537677i | P113: 38.6177334172476-10.7144982174988i | Q113: 37.9744493286274-11.2645329340364i | V113: 6000 | W113: 1+2028.78331346306i | X113: 2028.78356 | Y113: 1.570303421 | Z113: 1+4.04946769154303i | AA113: 4.17111359 | AB113: 1.32869404 | AC113: 1+0.0183278999975422i | AD113: 1.000167942 | AE113: 0.01832584822 | AF113: 11.9194034479041-3.16999142195504i | AG113: 12.33373521 | AH113: -0.2599352284 | AI113: 4000 | AJ113: 1+1590.91798757266i | AK113: 1590.918302 | AL113: 1.570167759 | AM113: 1+0.0556801807587167i | AN113: 1.001548942 | AO113: 0.05562274613 | AP113: 1+0.000402833309173072i | AQ113: 1.000000081 | AR113: 0.0004028332874 | AS113: 0.14056261539066-2.51423928753251i | AT113: 2.518165412 | AU113: -1.514947846 | BB113: -31.97831491 | BC113: -86.80011777 | BN113: 0 | BO113: 0
D114: 5821.4 | E114: 0.12070388532581i | F114: 0.05-0.54679267218159i | G114: 0.05-0.54679267218159i | H114: 0.250793210033427-0.390153126383251i | I114: 0.260793210033427-0.390153126383251i | J114: 0.0919854683650734-0.244284855509919i | K114: 0.999144246408929-0.0459509233005217i | M114: 93.0180360733758+124.968207988523i | N114: 0 | O114: 66.1726797447147+55.944092724865i | P114: 39.0841482464187-11.2276383594328i | Q114: 38.4224214489715-11.7870792866814i | V114: 6000 | W114: 1+2052.40497375814i | X114: 2052.405217 | Y114: 1.570309094 | Z114: 1+4.0966167140881i | AA114: 4.216902714 | AB114: 1.331374613 | AC114: 1+0.0185412965809975i | AD114: 1.000171875 | AE114: 0.01853917231 | AF114: 11.9192764169618-3.13856267619761i | AG114: 12.32557203 | AH114: -0.2574736526 | AI114: 4000 | AJ114: 1+1609.44146615729i | AK114: 1609.441777 | AL114: 1.570174993 | AM114: 1+0.0563284798187114i | AN114: 1.001585192 | AO114: 0.05626901814 | AP114: 1+0.000407523603854463i | AQ114: 1.000000083 | AR114: 0.0004075235813 | AS114: 0.140526447244008-2.48530357523741i | AT114: 2.489273296 | AU114: -1.514313499 | BB114: -32.0785484 | BC114: -86.76377234 | BN114: 0 | BO114: 0
D115: 5888.4 | E115: 0.122093097597228i | F115: 0.05-0.540571099422239i | G115: 0.05-0.540571099422239i | H115: 0.247159162375196-0.387584761223619i | I115: 0.257159162375196-0.387584761223619i | J115: 0.0906099897218399-0.241867622065944i | K115: 0.999124434873867-0.0464797843753722i | M115: 96.4102430544215+127.441698770807i | N115: 0 | O115: 68.1083113139501+56.8780759287311i | P115: 39.5597517659807-11.771025214616i | Q115: 38.8786686528412-12.3398059739033i | V115: 6000 | W115: 1+2076.02663405322i | X115: 2076.026875 | Y115: 1.570314637 | Z115: 1+4.14376573663317i | AA115: 4.262721488 | AB115: 1.333997579 | AC115: 1+0.0187546931644528i | AD115: 1.000175854 | AE115: 0.01875249471 | AF115: 11.9191494325147-3.10790691733636i | AG115: 12.3176787 | AH115: -0.255069553 | AI115: 4000 | AJ115: 1+1627.96494474191i | AK115: 1627.965252 | AL115: 1.570182063 | AM115: 1+0.0569767788787062i | AN115: 1.001621861 | AO115: 0.05691524311 | AP115: 1+0.000412213898535853i | AQ115: 1.000000085 | AR115: 0.0004122138752 | AS115: 0.140491506631741-2.45702635563264i | AT115: 2.461039694 | AU115: -1.513679034 | BB115: -32.17762763 | BC115: -86.72742017 | BN115: 0 | BO115: 0
D116: 5957 | E116: 0.123515485087067i | F116: 0.05-0.534345956326659i | G116: 0.05-0.534345956326659i | H116: 0.243529802900418-0.384968372287421i | I116: 0.253529802900418-0.384968372287421i | J116: 0.0892454125576788-0.239437631430871i | K116: 0.999103915330421-0.0470212749684281i | M116: 100.075744404367+129.989819709898i | N116: 0 | O116: 70.1902519987594+57.8240616256457i | P116: 40.0557556378484-12.3609041155547i | Q116: 39.3538531178608-12.9391447318112i | V116: 6000 | W116: 1+2100.21239369864i | X116: 2100.212632 | Y116: 1.570320185 | Z116: 1+4.19204070598531i | AA116: 4.309664173 | AB116: 1.336625378 | AC116: 1+0.018973185785722i | AD116: 1.000179975 | AE116: 0.01897090961 | AF116: 11.919019411039-3.07729273540411i | AG116: 12.30986411 | AH116: -0.2526657161 | AI116: 4000 | AJ116: 1+1646.93077505393i | AK116: 1646.931079 | AL116: 1.570189137 | AM116: 1+0.057640559707298i | AN116: 1.00165984 | AO116: 0.05757685101 | AP116: 1+0.000417016200254413i | AQ116: 1.000000087 | AR116: 0.0004170161761 | AS116: 0.140456946126677-2.42873292320681i | AT116: 2.432790942 | AU116: -1.513029302 | BB116: -32.2779042 | BC116: -86.69019328 | BN116: 0 | BO116: 0
D117: 6025.6 | E117: 0.124937872576906i | F117: 0.05-0.528262556730931i | G117: 0.05-0.528262556730931i | H117: 0.239990308009963-0.382366345743757i | I117: 0.249990308009963-0.382366345743757i | J117: 0.0879233214224746-0.237052054572526i | K117: 0.999083158118229-0.0475627655614841i | M117: 103.948241027574+132.548131987551i | N117: 0 | O117: 72.3792822307636+58.755596082754i | P117: 40.5602816245675-12.9870720920966i | Q117: 39.8364888022599-13.5746280529242i | V117: 6000 | W117: 1+2124.39815334405i | X117: 2124.398389 | Y117: 1.570325605 | Z117: 1+4.24031567533742i | AA117: 4.356635976 | AB117: 1.33919653 | AC117: 1+0.0191916784069912i | AD117: 1.000184143 | AE117: 0.0191893227 | AF117: 11.9188893341758-3.04743480646737i | AG117: 12.30230799 | AH117: -0.2503183978 | AI117: 4000 | AJ117: 1+1665.89660536595i | AK117: 1665.896906 | AL117: 1.57019605 | AM117: 1+0.0583043405358896i | AN117: 1.001698256 | AO117: 0.05823840844 | AP117: 1+0.000421818501972971i | AQ117: 1.000000089 | AR117: 0.000421818477 | AS117: 0.140423559252645-2.40108373305655i | AT117: 2.405186452 | AU117: -1.51237946 | BB117: -32.37702502 | BC117: -86.65296005 | BN117: 0 | BO117: 0
